Workbook

Sheet Basic Calcs
A1: Isotope | B1: mu_0
A2: 1 | B2: =2/(3*A2) -> 0.6666666667
A3: 16 | B3: =2/(3*A3) -> 0.04166666667
A4: 54 | B4: 0.01234567901
A5: 56 | B5: 0.0119047619
A6: 57 | B6: 0.01169590643
A7: 90 | B7: 0.007407407407
A8: 91 | B8: 0.007326007326
A9: 92 | B9: 0.007246376812
A10: 94 | B10: 0.007092198582
A11: 96 | B11: 0.006944444444
A12: 235 | B12: 0.002836879433
A13: 238 | B13: 0.002801120448

Sheet H-1 t
A1: Energy (MeV) | B1: Flux (n/cm2-s) | C1: Flux (n/m2-s) | D1: E(JANIS) | E1: sigma (b) | F1: Int(s*F) | G1: Int(F) | I1: Value | K1: Energy (MeV) | L1: Flux (n/cm2-s) | M1: Flux (n/m2-s) | N1: E(JANIS) | O1: sigma (b) | P1: Int(s*F) | Q1: Int(F) | S1: Value
A2: 1.00E-10 | B2: 0.00E+00 | C2: =B2*10000 -> 0.00E+00 | I2: =F121/G121 -> 2.14E+01 | K2: 1.00E-06 | L2: 5.55E+13 | M2: =L2*10000 -> 5.55E+17 | S2: =P121/Q121 -> 1.96E+01
A3: 1.08E-10 | B3: 0.00E+00 | C3: =B3*10000 -> 0.00E+00 | D3: 1.21E-04 | E3: 3.39E+02 | F3: =F2+(A3-A2)*(E3*C3) -> 0.00E+00 | G3: =G2+(A3-A2)*(C3) -> 0.00E+00 | K3: 1.08E-06 | L3: 5.59E+13 | M3: =L3*10000 -> 5.59E+17 | N3: 1.21E+00 | O3: 2.07E+01 | P3: =P2+(K3-K2)*(O3*M3) -> 9.23E+11 | Q3: =Q2+(K3-K2)*(M3) -> 4.46E+10
A4: 1.17E-10 | B4: 0.00E+00 | C4: =B4*10000 -> 0.00E+00 | D4: 1.52E-04 | E4: 3.03E+02 | F4: =F3+(A4-A3)*(E4*C4) -> 0.00E+00 | G4: =G3+(A4-A3)*(C4) -> 0.00E+00 | K4: 1.17E-06 | L4: 5.42E+13 | M4: =L4*10000 -> 5.42E+17 | N4: 1.52E+00 | O4: 2.07E+01 | P4: =P3+(K4-K3)*(O4*M4) -> 1.89E+12 | Q4: =Q3+(K4-K3)*(M4) -> 9.13E+10
A5: 1.26E-10 | B5: 0.00E+00 | C5: =B5*10000 -> 0.00E+00 | D5: 1.82E-04 | E5: 2.77E+02 | F5: =F4+(A5-A4)*(E5*C5) -> 0.00E+00 | G5: =G4+(A5-A4)*(C5) -> 0.00E+00 | K5: 1.26E-06 | L5: 5.59E+13 | M5: =L5*10000 -> 5.59E+17 | N5: 1.82E+00 | O5: 2.06E+01 | P5: =P4+(K5-K4)*(O5*M5) -> 2.96E+12 | Q5: =Q4+(K5-K4)*(M5) -> 1.43E+11
A6: 1.36E-10 | B6: 0.00E+00 | C6: =B6*10000 -> 0.00E+00 | D6: 2.12E-04 | E6: 2.56E+02 | F6: =F5+(A6-A5)*(E6*C6) -> 0.00E+00 | G6: =G5+(A6-A5)*(C6) -> 0.00E+00 | K6: 1.36E-06 | L6: 5.68E+13 | M6: =L6*10000 -> 5.68E+17 | N6: 2.12E+00 | O6: 2.06E+01 | P6: =P5+(K6-K5)*(O6*M6) -> 4.13E+12 | Q6: =Q5+(K6-K5)*(M6) -> 2.00E+11
A7: 1.47E-10 | B7: 0.00E+00 | C7: =B7*10000 -> 0.00E+00 | D7: 2.42E-04 | E7: 2.40E+02 | F7: =F6+(A7-A6)*(E7*C7) -> 0.00E+00 | G7: =G6+(A7-A6)*(C7) -> 0.00E+00 | K7: 1.47E-06 | L7: 5.47E+13 | M7: =L7*10000 -> 5.47E+17 | N7: 2.42E+00 | O7: 2.06E+01 | P7: =P6+(K7-K6)*(O7*M7) -> 5.35E+12 | Q7: =Q6+(K7-K6)*(M7) -> 2.60E+11
A8: 1.58E-10 | B8: 0.00E+00 | C8: =B8*10000 -> 0.00E+00 | D8: 2.73E-04 | E8: 2.26E+02 | F8: =F7+(A8-A7)*(E8*C8) -> 0.00E+00 | G8: =G7+(A8-A7)*(C8) -> 0.00E+00 | K8: 1.58E-06 | L8: 5.38E+13 | M8: =L8*10000 -> 5.38E+17 | N8: 2.73E+00 | O8: 2.06E+01 | P8: =P7+(K8-K7)*(O8*M8) -> 6.65E+12 | Q8: =Q7+(K8-K7)*(M8) -> 3.23E+11
A9: 1.71E-10 | B9: 0.00E+00 | C9: =B9*10000 -> 0.00E+00 | D9: 3.03E-04 | E9: 2.15E+02 | F9: =F8+(A9-A8)*(E9*C9) -> 0.00E+00 | G9: =G8+(A9-A8)*(C9) -> 0.00E+00 | K9: 1.71E-06 | L9: 5.52E+13 | M9: =L9*10000 -> 5.52E+17 | N9: 3.03E+00 | O9: 2.06E+01 | P9: =P8+(K9-K8)*(O9*M9) -> 8.08E+12 | Q9: =Q8+(K9-K8)*(M9) -> 3.92E+11
A10: 1.85E-10 | B10: 0.00E+00 | C10: =B10*10000 -> 0.00E+00 | D10: 3.33E-04 | E10: 2.05E+02 | F10: =F9+(A10-A9)*(E10*C10) -> 0.00E+00 | G10: =G9+(A10-A9)*(C10) -> 0.00E+00 | K10: 1.85E-06 | L10: 5.47E+13 | M10: =L10*10000 -> 5.47E+17 | N10: 3.33E+00 | O10: 2.05E+01 | P10: =P9+(K10-K9)*(O10*M10) -> 9.62E+12 | Q10: =Q9+(K10-K9)*(M10) -> 4.67E+11
A11: 2.00E-10 | B11: 0.00E+00 | C11: =B11*10000 -> 0.00E+00 | D11: 3.64E-04 | E11: 1.96E+02 | F11: =F10+(A11-A10)*(E11*C11) -> 0.00E+00 | G11: =G10+(A11-A10)*(C11) -> 0.00E+00 | K11: 2.00E-06 | L11: 5.68E+13 | M11: =L11*10000 -> 5.68E+17 | N11: 3.64E+00 | O11: 2.05E+01 | P11: =P10+(K11-K10)*(O11*M11) -> 1.13E+13 | Q11: =Q10+(K11-K10)*(M11) -> 5.51E+11
A12: 2.15E-10 | B12: 0.00E+00 | C12: =B12*10000 -> 0.00E+00 | D12: 3.94E-04 | E12: 1.89E+02 | F12: =F11+(A12-A11)*(E12*C12) -> 0.00E+00 | G12: =G11+(A12-A11)*(C12) -> 0.00E+00 | K12: 2.15E-06 | L12: 5.57E+13 | M12: =L12*10000 -> 5.57E+17 | N12: 3.94E+00 | O12: 2.05E+01 | P12: =P11+(K12-K11)*(O12*M12) -> 1.32E+13 | Q12: =Q11+(K12-K11)*(M12) -> 6.39E+11
A13: 2.33E-10 | B13: 0.00E+00 | C13: =B13*10000 -> 0.00E+00 | D13: 4.24E-04 | E13: 1.82E+02 | F13: =F12+(A13-A12)*(E13*C13) -> 0.00E+00 | G13: =G12+(A13-A12)*(C13) -> 0.00E+00 | K13: 2.33E-06 | L13: 5.56E+13 | M13: =L13*10000 -> 5.56E+17 | N13: 4.24E+00 | O13: 2.05E+01 | P13: =P12+(K13-K12)*(O13*M13) -> 1.51E+13 | Q13: =Q12+(K13-K12)*(M13) -> 7.35E+11
A14: 2.51E-10 | B14: 0.00E+00 | C14: =B14*10000 -> 0.00E+00 | D14: 4.55E-04 | E14: 1.76E+02 | F14: =F13+(A14-A13)*(E14*C14) -> 0.00E+00 | G14: =G13+(A14-A13)*(C14) -> 0.00E+00 | K14: 2.51E-06 | L14: 5.65E+13 | M14: =L14*10000 -> 5.65E+17 | N14: 4.55E+00 | O14: 2.05E+01 | P14: =P13+(K14-K13)*(O14*M14) -> 1.73E+13 | Q14: =Q13+(K14-K13)*(M14) -> 8.40E+11
A15: 2.71E-10 | B15: 0.00E+00 | C15: =B15*10000 -> 0.00E+00 | D15: 4.85E-04 | E15: 1.70E+02 | F15: =F14+(A15-A14)*(E15*C15) -> 0.00E+00 | G15: =G14+(A15-A14)*(C15) -> 0.00E+00 | K15: 2.71E-06 | L15: 5.32E+13 | M15: =L15*10000 -> 5.32E+17 | N15: 4.85E+00 | O15: 2.05E+01 | P15: =P14+(K15-K14)*(O15*M15) -> 1.95E+13 | Q15: =Q14+(K15-K14)*(M15) -> 9.47E+11
A16: 2.93E-10 | B16: 3.02E+10 | C16: =B16*10000 -> 3.02E+14 | D16: 5.15E-04 | E16: 1.65E+02 | F16: =F15+(A16-A15)*(E16*C16) -> 1.08E+06 | G16: =G15+(A16-A15)*(C16) -> 6.54E+03 | K16: 2.93E-06 | L16: 5.44E+13 | M16: =L16*10000 -> 5.44E+17 | N16: 5.15E+00 | O16: 2.05E+01 | P16: =P15+(K16-K15)*(O16*M16) -> 2.19E+13 | Q16: =Q15+(K16-K15)*(M16) -> 1.06E+12
A17: 3.16E-10 | B17: 2.75E+10 | C17: =B17*10000 -> 2.75E+14 | D17: 5.45E-04 | E17: 1.61E+02 | F17: =F16+(A17-A16)*(E17*C17) -> 2.11E+06 | G17: =G16+(A17-A16)*(C17) -> 1.30E+04 | K17: 3.16E-06 | L17: 5.39E+13 | M17: =L17*10000 -> 5.39E+17 | N17: 5.45E+00 | O17: 2.05E+01 | P17: =P16+(K17-K16)*(O17*M17) -> 2.45E+13 | Q17: =Q16+(K17-K16)*(M17) -> 1.19E+12
A18: 3.41E-10 | B18: 0.00E+00 | C18: =B18*10000 -> 0.00E+00 | D18: 5.76E-04 | E18: 1.56E+02 | F18: =F17+(A18-A17)*(E18*C18) -> 2.11E+06 | G18: =G17+(A18-A17)*(C18) -> 1.30E+04 | K18: 3.41E-06 | L18: 5.38E+13 | M18: =L18*10000 -> 5.38E+17 | N18: 5.76E+00 | O18: 2.05E+01 | P18: =P17+(K18-K17)*(O18*M18) -> 2.72E+13 | Q18: =Q17+(K18-K17)*(M18) -> 1.33E+12
A19: 3.69E-10 | B19: 1.02E+10 | C19: =B19*10000 -> 1.02E+14 | D19: 6.06E-04 | E19: 1.52E+02 | F19: =F18+(A19-A18)*(E19*C19) -> 2.54E+06 | G19: =G18+(A19-A18)*(C19) -> 1.58E+04 | K19: 3.69E-06 | L19: 5.56E+13 | M19: =L19*10000 -> 5.56E+17 | N19: 6.06E+00 | O19: 2.05E+01 | P19: =P18+(K19-K18)*(O19*M19) -> 3.03E+13 | Q19: =Q18+(K19-K18)*(M19) -> 1.48E+12
A20: 3.98E-10 | B20: 0.00E+00 | C20: =B20*10000 -> 0.00E+00 | D20: 6.36E-04 | E20: 1.49E+02 | F20: =F19+(A20-A19)*(E20*C20) -> 2.54E+06 | G20: =G19+(A20-A19)*(C20) -> 1.58E+04 | K20: 3.98E-06 | L20: 5.65E+13 | M20: =L20*10000 -> 5.65E+17 | N20: 6.36E+00 | O20: 2.05E+01 | P20: =P19+(K20-K19)*(O20*M20) -> 3.38E+13 | Q20: =Q19+(K20-K19)*(M20) -> 1.64E+12
A21: 4.30E-10 | B21: 1.26E+10 | C21: =B21*10000 -> 1.26E+14 | D21: 6.67E-04 | E21: 1.46E+02 | F21: =F20+(A21-A20)*(E21*C21) -> 3.12E+06 | G21: =G20+(A21-A20)*(C21) -> 1.98E+04 | K21: 4.30E-06 | L21: 5.56E+13 | M21: =L21*10000 -> 5.56E+17 | N21: 6.67E+00 | O21: 2.05E+01 | P21: =P20+(K21-K20)*(O21*M21) -> 3.74E+13 | Q21: =Q20+(K21-K20)*(M21) -> 1.82E+12
A22: 4.64E-10 | B22: 7.95E+09 | C22: =B22*10000 -> 7.95E+13 | D22: 6.97E-04 | E22: 1.42E+02 | F22: =F21+(A22-A21)*(E22*C22) -> 3.51E+06 | G22: =G21+(A22-A21)*(C22) -> 2.25E+04 | K22: 4.64E-06 | L22: 5.38E+13 | M22: =L22*10000 -> 5.38E+17 | N22: 6.97E+00 | O22: 2.05E+01 | P22: =P21+(K22-K21)*(O22*M22) -> 4.12E+13 | Q22: =Q21+(K22-K21)*(M22) -> 2.00E+12
A23: 5.01E-10 | B23: 7.77E+09 | C23: =B23*10000 -> 7.77E+13 | D23: 7.27E-04 | E23: 1.39E+02 | F23: =F22+(A23-A22)*(E23*C23) -> 3.91E+06 | G23: =G22+(A23-A22)*(C23) -> 2.54E+04 | K23: 5.01E-06 | L23: 5.23E+13 | M23: =L23*10000 -> 5.23E+17 | N23: 7.27E+00 | O23: 2.05E+01 | P23: =P22+(K23-K22)*(O23*M23) -> 4.51E+13 | Q23: =Q22+(K23-K22)*(M23) -> 2.20E+12
A24: 5.41E-10 | B24: 6.15E+10 | C24: =B24*10000 -> 6.15E+14 | D24: 7.58E-04 | E24: 1.37E+02 | F24: =F23+(A24-A23)*(E24*C24) -> 7.27E+06 | G24: =G23+(A24-A23)*(C24) -> 4.99E+04 | K24: 5.41E-06 | L24: 5.55E+13 | M24: =L24*10000 -> 5.55E+17 | N24: 7.58E+00 | O24: 2.05E+01 | P24: =P23+(K24-K23)*(O24*M24) -> 4.97E+13 | Q24: =Q23+(K24-K23)*(M24) -> 2.42E+12
A25: 5.84E-10 | B25: 1.72E+10 | C25: =B25*10000 -> 1.72E+14 | D25: 7.88E-04 | E25: 1.34E+02 | F25: =F24+(A25-A24)*(E25*C25) -> 8.26E+06 | G25: =G24+(A25-A24)*(C25) -> 5.74E+04 | K25: 5.84E-06 | L25: 5.83E+13 | M25: =L25*10000 -> 5.83E+17 | N25: 7.88E+00 | O25: 2.05E+01 | P25: =P24+(K25-K24)*(O25*M25) -> 5.48E+13 | Q25: =Q24+(K25-K24)*(M25) -> 2.67E+12
A26: 6.31E-10 | B26: 7.71E+10 | C26: =B26*10000 -> 7.71E+14 | D26: 8.18E-04 | E26: 1.32E+02 | F26: =F25+(A26-A25)*(E26*C26) -> 1.30E+07 | G26: =G25+(A26-A25)*(C26) -> 9.33E+04 | K26: 6.31E-06 | L26: 5.67E+13 | M26: =L26*10000 -> 5.67E+17 | N26: 8.18E+00 | O26: 2.05E+01 | P26: =P25+(K26-K25)*(O26*M26) -> 6.02E+13 | Q26: =Q25+(K26-K25)*(M26) -> 2.94E+12
A27: 6.81E-10 | B27: 1.54E+10 | C27: =B27*10000 -> 1.54E+14 | D27: 8.48E-04 | E27: 1.29E+02 | F27: =F26+(A27-A26)*(E27*C27) -> 1.40E+07 | G27: =G26+(A27-A26)*(C27) -> 1.01E+05 | K27: 6.81E-06 | L27: 5.50E+13 | M27: =L27*10000 -> 5.50E+17 | N27: 8.48E+00 | O27: 2.05E+01 | P27: =P26+(K27-K26)*(O27*M27) -> 6.59E+13 | Q27: =Q26+(K27-K26)*(M27) -> 3.21E+12
A28: 7.36E-10 | B28: 4.12E+10 | C28: =B28*10000 -> 4.12E+14 | D28: 8.79E-04 | E28: 1.27E+02 | F28: =F27+(A28-A27)*(E28*C28) -> 1.68E+07 | G28: =G27+(A28-A27)*(C28) -> 1.23E+05 | K28: 7.36E-06 | L28: 5.72E+13 | M28: =L28*10000 -> 5.72E+17 | N28: 8.79E+00 | O28: 2.05E+01 | P28: =P27+(K28-K27)*(O28*M28) -> 7.23E+13 | Q28: =Q27+(K28-K27)*(M28) -> 3.52E+12
A29: 7.94E-10 | B29: 8.22E+10 | C29: =B29*10000 -> 8.22E+14 | D29: 9.09E-04 | E29: 1.25E+02 | F29: =F28+(A29-A28)*(E29*C29) -> 2.29E+07 | G29: =G28+(A29-A28)*(C29) -> 1.72E+05 | K29: 7.94E-06 | L29: 5.84E+13 | M29: =L29*10000 -> 5.84E+17 | N29: 9.09E+00 | O29: 2.05E+01 | P29: =P28+(K29-K28)*(O29*M29) -> 7.93E+13 | Q29: =Q28+(K29-K28)*(M29) -> 3.87E+12
A30: 8.58E-10 | B30: 1.79E+11 | C30: =B30*10000 -> 1.79E+15 | D30: 9.39E-04 | E30: 1.23E+02 | F30: =F29+(A30-A29)*(E30*C30) -> 3.68E+07 | G30: =G29+(A30-A29)*(C30) -> 2.85E+05 | K30: 8.58E-06 | L30: 5.75E+13 | M30: =L30*10000 -> 5.75E+17 | N30: 9.39E+00 | O30: 2.05E+01 | P30: =P29+(K30-K29)*(O30*M30) -> 8.68E+13 | Q30: =Q29+(K30-K29)*(M30) -> 4.23E+12
A31: 9.26E-10 | B31: 1.38E+11 | C31: =B31*10000 -> 1.38E+15 | D31: 9.70E-04 | E31: 1.21E+02 | F31: =F30+(A31-A30)*(E31*C31) -> 4.82E+07 | G31: =G30+(A31-A30)*(C31) -> 3.79E+05 | K31: 9.26E-06 | L31: 5.55E+13 | M31: =L31*10000 -> 5.55E+17 | N31: 9.70E+00 | O31: 2.05E+01 | P31: =P30+(K31-K30)*(O31*M31) -> 9.45E+13 | Q31: =Q30+(K31-K30)*(M31) -> 4.61E+12
A32: 1.00E-09 | B32: 7.31E+10 | C32: =B32*10000 -> 7.31E+14 | D32: 1.00E-03 | E32: 1.19E+02 | F32: =F31+(A32-A31)*(E32*C32) -> 5.47E+07 | G32: =G31+(A32-A31)*(C32) -> 4.33E+05 | K32: 1.00E-05 | L32: 5.82E+13 | M32: =L32*10000 -> 5.82E+17 | N32: 1.00E+01 | O32: 2.05E+01 | P32: =P31+(K32-K31)*(O32*M32) -> 1.03E+14 | Q32: =Q31+(K32-K31)*(M32) -> 5.04E+12
A33: 1.08E-09 | B33: 1.03E+11 | C33: =B33*10000 -> 1.03E+15 | D33: 1.21E-03 | E33: 1.09E+02 | F33: =F32+(A33-A32)*(E33*C33) -> 6.36E+07 | G33: =G32+(A33-A32)*(C33) -> 5.16E+05 | K33: 1.08E-05 | L33: 5.69E+13 | M33: =L33*10000 -> 5.69E+17 | N33: 1.21E+01 | O33: 2.05E+01 | P33: =P32+(K33-K32)*(O33*M33) -> 1.13E+14 | Q33: =Q32+(K33-K32)*(M33) -> 5.50E+12
A34: 1.17E-09 | B34: 2.34E+11 | C34: =B34*10000 -> 2.34E+15 | D34: 1.52E-03 | E34: 9.75E+01 | F34: =F33+(A34-A33)*(E34*C34) -> 8.32E+07 | G34: =G33+(A34-A33)*(C34) -> 7.17E+05 | K34: 1.17E-05 | L34: 5.71E+13 | M34: =L34*10000 -> 5.71E+17 | N34: 1.52E+01 | O34: 2.05E+01 | P34: =P33+(K34-K33)*(O34*M34) -> 1.23E+14 | Q34: =Q33+(K34-K33)*(M34) -> 5.99E+12
A35: 1.26E-09 | B35: 1.62E+11 | C35: =B35*10000 -> 1.62E+15 | D35: 1.82E-03 | E35: 8.94E+01 | F35: =F34+(A35-A34)*(E35*C35) -> 9.67E+07 | G35: =G34+(A35-A34)*(C35) -> 8.68E+05 | K35: 1.26E-05 | L35: 5.40E+13 | M35: =L35*10000 -> 5.40E+17 | N35: 1.82E+01 | O35: 2.05E+01 | P35: =P34+(K35-K34)*(O35*M35) -> 1.33E+14 | Q35: =Q34+(K35-K34)*(M35) -> 6.49E+12
A36: 1.36E-09 | B36: 1.17E+11 | C36: =B36*10000 -> 1.17E+15 | D36: 2.12E-03 | E36: 8.31E+01 | F36: =F35+(A36-A35)*(E36*C36) -> 1.06E+08 | G36: =G35+(A36-A35)*(C36) -> 9.85E+05 | K36: 1.36E-05 | L36: 5.94E+13 | M36: =L36*10000 -> 5.94E+17 | N36: 2.12E+01 | O36: 2.05E+01 | P36: =P35+(K36-K35)*(O36*M36) -> 1.45E+14 | Q36: =Q35+(K36-K35)*(M36) -> 7.09E+12
A37: 1.47E-09 | B37: 2.33E+11 | C37: =B37*10000 -> 2.33E+15 | D37: 2.42E-03 | E37: 7.80E+01 | F37: =F36+(A37-A36)*(E37*C37) -> 1.26E+08 | G37: =G36+(A37-A36)*(C37) -> 1.24E+06 | K37: 1.47E-05 | L37: 5.95E+13 | M37: =L37*10000 -> 5.95E+17 | N37: 2.42E+01 | O37: 2.05E+01 | P37: =P36+(K37-K36)*(O37*M37) -> 1.58E+14 | Q37: =Q36+(K37-K36)*(M37) -> 7.73E+12
A38: 1.58E-09 | B38: 3.17E+11 | C38: =B38*10000 -> 3.17E+15 | D38: 2.73E-03 | E38: 7.38E+01 | F38: =F37+(A38-A37)*(E38*C38) -> 1.54E+08 | G38: =G37+(A38-A37)*(C38) -> 1.61E+06 | K38: 1.58E-05 | L38: 5.94E+13 | M38: =L38*10000 -> 5.94E+17 | N38: 2.73E+01 | O38: 2.05E+01 | P38: =P37+(K38-K37)*(O38*M38) -> 1.73E+14 | Q38: =Q37+(K38-K37)*(M38) -> 8.43E+12
A39: 1.71E-09 | B39: 3.29E+11 | C39: =B39*10000 -> 3.29E+15 | D39: 3.03E-03 | E39: 7.03E+01 | F39: =F38+(A39-A38)*(E39*C39) -> 1.83E+08 | G39: =G38+(A39-A38)*(C39) -> 2.03E+06 | K39: 1.71E-05 | L39: 5.76E+13 | M39: =L39*10000 -> 5.76E+17 | N39: 3.03E+01 | O39: 2.05E+01 | P39: =P38+(K39-K38)*(O39*M39) -> 1.88E+14 | Q39: =Q38+(K39-K38)*(M39) -> 9.15E+12
A40: 1.85E-09 | B40: 2.40E+11 | C40: =B40*10000 -> 2.40E+15 | D40: 3.33E-03 | E40: 6.72E+01 | F40: =F39+(A40-A39)*(E40*C40) -> 2.05E+08 | G40: =G39+(A40-A39)*(C40) -> 2.35E+06 | K40: 1.85E-05 | L40: 6.06E+13 | M40: =L40*10000 -> 6.06E+17 | N40: 3.33E+01 | O40: 2.04E+01 | P40: =P39+(K40-K39)*(O40*M40) -> 2.04E+14 | Q40: =Q39+(K40-K39)*(M40) -> 9.98E+12
A41: 2.00E-09 | B41: 5.05E+11 | C41: =B41*10000 -> 5.05E+15 | D41: 3.64E-03 | E41: 6.47E+01 | F41: =F40+(A41-A40)*(E41*C41) -> 2.53E+08 | G41: =G40+(A41-A40)*(C41) -> 3.10E+06 | K41: 2.00E-05 | L41: 5.93E+13 | M41: =L41*10000 -> 5.93E+17 | N41: 3.64E+01 | O41: 2.04E+01 | P41: =P40+(K41-K40)*(O41*M41) -> 2.22E+14 | Q41: =Q40+(K41-K40)*(M41) -> 1.09E+13
A42: 2.15E-09 | B42: 3.15E+11 | C42: =B42*10000 -> 3.15E+15 | D42: 3.94E-03 | E42: 6.23E+01 | F42: =F41+(A42-A41)*(E42*C42) -> 2.84E+08 | G42: =G41+(A42-A41)*(C42) -> 3.60E+06 | K42: 2.15E-05 | L42: 6.02E+13 | M42: =L42*10000 -> 6.02E+17 | N42: 3.94E+01 | O42: 2.04E+01 | P42: =P41+(K42-K41)*(O42*M42) -> 2.42E+14 | Q42: =Q41+(K42-K41)*(M42) -> 1.18E+13
A43: 2.33E-09 | B43: 5.45E+11 | C43: =B43*10000 -> 5.45E+15 | D43: 4.24E-03 | E43: 6.02E+01 | F43: =F42+(A43-A42)*(E43*C43) -> 3.41E+08 | G43: =G42+(A43-A42)*(C43) -> 4.54E+06 | K43: 2.33E-05 | L43: 6.24E+13 | M43: =L43*10000 -> 6.24E+17 | N43: 4.24E+01 | O43: 2.04E+01 | P43: =P42+(K43-K42)*(O43*M43) -> 2.64E+14 | Q43: =Q42+(K43-K42)*(M43) -> 1.29E+13
A44: 2.51E-09 | B44: 5.21E+11 | C44: =B44*10000 -> 5.21E+15 | D44: 4.55E-03 | E44: 5.84E+01 | F44: =F43+(A44-A43)*(E44*C44) -> 3.97E+08 | G44: =G43+(A44-A43)*(C44) -> 5.50E+06 | K44: 2.51E-05 | L44: 6.32E+13 | M44: =L44*10000 -> 6.32E+17 | N44: 4.55E+01 | O44: 2.04E+01 | P44: =P43+(K44-K43)*(O44*M44) -> 2.88E+14 | Q44: =Q43+(K44-K43)*(M44) -> 1.41E+13
A45: 2.71E-09 | B45: 7.35E+11 | C45: =B45*10000 -> 7.35E+15 | D45: 4.85E-03 | E45: 5.68E+01 | F45: =F44+(A45-A44)*(E45*C45) -> 4.81E+08 | G45: =G44+(A45-A44)*(C45) -> 6.97E+06 | K45: 2.71E-05 | L45: 6.22E+13 | M45: =L45*10000 -> 6.22E+17 | N45: 4.85E+01 | O45: 2.04E+01 | P45: =P44+(K45-K44)*(O45*M45) -> 3.13E+14 | Q45: =Q44+(K45-K44)*(M45) -> 1.53E+13
A46: 2.93E-09 | B46: 1.37E+12 | C46: =B46*10000 -> 1.37E+16 | D46: 5.15E-03 | E46: 5.53E+01 | F46: =F45+(A46-A45)*(E46*C46) -> 6.44E+08 | G46: =G45+(A46-A45)*(C46) -> 9.94E+06 | K46: 2.93E-05 | L46: 6.21E+13 | M46: =L46*10000 -> 6.21E+17 | N46: 5.15E+01 | O46: 2.04E+01 | P46: =P45+(K46-K45)*(O46*M46) -> 3.41E+14 | Q46: =Q45+(K46-K45)*(M46) -> 1.67E+13
A47: 3.16E-09 | B47: 1.44E+12 | C47: =B47*10000 -> 1.44E+16 | D47: 5.46E-03 | E47: 5.39E+01 | F47: =F46+(A47-A46)*(E47*C47) -> 8.26E+08 | G47: =G46+(A47-A46)*(C47) -> 1.33E+07 | K47: 3.16E-05 | L47: 6.24E+13 | M47: =L47*10000 -> 6.24E+17 | N47: 5.45E+01 | O47: 2.04E+01 | P47: =P46+(K47-K46)*(O47*M47) -> 3.71E+14 | Q47: =Q46+(K47-K46)*(M47) -> 1.81E+13
A48: 3.41E-09 | B48: 1.61E+12 | C48: =B48*10000 -> 1.61E+16 | D48: 5.76E-03 | E48: 5.27E+01 | F48: =F47+(A48-A47)*(E48*C48) -> 1.04E+09 | G48: =G47+(A48-A47)*(C48) -> 1.74E+07 | K48: 3.41E-05 | L48: 6.26E+13 | M48: =L48*10000 -> 6.26E+17 | N48: 5.76E+01 | O48: 2.04E+01 | P48: =P47+(K48-K47)*(O48*M48) -> 4.03E+14 | Q48: =Q47+(K48-K47)*(M48) -> 1.97E+13
A49: 3.69E-09 | B49: 1.44E+12 | C49: =B49*10000 -> 1.44E+16 | D49: 6.06E-03 | E49: 5.15E+01 | F49: =F48+(A49-A48)*(E49*C49) -> 1.24E+09 | G49: =G48+(A49-A48)*(C49) -> 2.13E+07 | K49: 3.69E-05 | L49: 6.12E+13 | M49: =L49*10000 -> 6.12E+17 | N49: 6.06E+01 | O49: 2.04E+01 | P49: =P48+(K49-K48)*(O49*M49) -> 4.37E+14 | Q49: =Q48+(K49-K48)*(M49) -> 2.14E+13
A50: 3.98E-09 | B50: 1.92E+12 | C50: =B50*10000 -> 1.92E+16 | D50: 6.36E-03 | E50: 5.04E+01 | F50: =F49+(A50-A49)*(E50*C50) -> 1.53E+09 | G50: =G49+(A50-A49)*(C50) -> 2.70E+07 | K50: 3.98E-05 | L50: 6.60E+13 | M50: =L50*10000 -> 6.60E+17 | N50: 6.36E+01 | O50: 2.04E+01 | P50: =P49+(K50-K49)*(O50*M50) -> 4.77E+14 | Q50: =Q49+(K50-K49)*(M50) -> 2.33E+13
A51: 4.30E-09 | B51: 2.29E+12 | C51: =B51*10000 -> 2.29E+16 | D51: 6.67E-03 | E51: 4.95E+01 | F51: =F50+(A51-A50)*(E51*C51) -> 1.89E+09 | G51: =G50+(A51-A50)*(C51) -> 3.42E+07 | K51: 4.30E-05 | L51: 6.45E+13 | M51: =L51*10000 -> 6.45E+17 | N51: 6.67E+01 | O51: 2.04E+01 | P51: =P50+(K51-K50)*(O51*M51) -> 5.18E+14 | Q51: =Q50+(K51-K50)*(M51) -> 2.53E+13
A52: 4.64E-09 | B52: 2.67E+12 | C52: =B52*10000 -> 2.67E+16 | D52: 6.97E-03 | E52: 4.85E+01 | F52: =F51+(A52-A51)*(E52*C52) -> 2.33E+09 | G52: =G51+(A52-A51)*(C52) -> 4.34E+07 | K52: 4.64E-05 | L52: 6.64E+13 | M52: =L52*10000 -> 6.64E+17 | N52: 6.97E+01 | O52: 2.04E+01 | P52: =P51+(K52-K51)*(O52*M52) -> 5.65E+14 | Q52: =Q51+(K52-K51)*(M52) -> 2.76E+13
A53: 5.01E-09 | B53: 2.14E+12 | C53: =B53*10000 -> 2.14E+16 | D53: 7.27E-03 | E53: 4.77E+01 | F53: =F52+(A53-A52)*(E53*C53) -> 2.71E+09 | G53: =G52+(A53-A52)*(C53) -> 5.13E+07 | K53: 5.01E-05 | L53: 6.45E+13 | M53: =L53*10000 -> 6.45E+17 | N53: 7.27E+01 | O53: 2.04E+01 | P53: =P52+(K53-K52)*(O53*M53) -> 6.14E+14 | Q53: =Q52+(K53-K52)*(M53) -> 3.00E+13
A54: 5.41E-09 | B54: 2.71E+12 | C54: =B54*10000 -> 2.71E+16 | D54: 7.58E-03 | E54: 4.69E+01 | F54: =F53+(A54-A53)*(E54*C54) -> 3.22E+09 | G54: =G53+(A54-A53)*(C54) -> 6.21E+07 | K54: 5.41E-05 | L54: 6.63E+13 | M54: =L54*10000 -> 6.63E+17 | N54: 7.58E+01 | O54: 2.04E+01 | P54: =P53+(K54-K53)*(O54*M54) -> 6.68E+14 | Q54: =Q53+(K54-K53)*(M54) -> 3.27E+13
A55: 5.84E-09 | B55: 3.09E+12 | C55: =B55*10000 -> 3.09E+16 | D55: 7.88E-03 | E55: 4.61E+01 | F55: =F54+(A55-A54)*(E55*C55) -> 3.83E+09 | G55: =G54+(A55-A54)*(C55) -> 7.55E+07 | K55: 5.84E-05 | L55: 6.24E+13 | M55: =L55*10000 -> 6.24E+17 | N55: 7.88E+01 | O55: 2.04E+01 | P55: =P54+(K55-K54)*(O55*M55) -> 7.23E+14 | Q55: =Q54+(K55-K54)*(M55) -> 3.54E+13
A56: 6.31E-09 | B56: 4.61E+12 | C56: =B56*10000 -> 4.61E+16 | D56: 8.18E-03 | E56: 4.54E+01 | F56: =F55+(A56-A55)*(E56*C56) -> 4.81E+09 | G56: =G55+(A56-A55)*(C56) -> 9.70E+07 | K56: 6.31E-05 | L56: 6.85E+13 | M56: =L56*10000 -> 6.85E+17 | N56: 8.18E+01 | O56: 2.04E+01 | P56: =P55+(K56-K55)*(O56*M56) -> 7.88E+14 | Q56: =Q55+(K56-K55)*(M56) -> 3.85E+13
A57: 6.81E-09 | B57: 6.12E+12 | C57: =B57*10000 -> 6.12E+16 | D57: 8.49E-03 | E57: 4.47E+01 | F57: =F56+(A57-A56)*(E57*C57) -> 6.19E+09 | G57: =G56+(A57-A56)*(C57) -> 1.28E+08 | K57: 6.81E-05 | L57: 6.37E+13 | M57: =L57*10000 -> 6.37E+17 | N57: 8.48E+01 | O57: 2.04E+01 | P57: =P56+(K57-K56)*(O57*M57) -> 8.54E+14 | Q57: =Q56+(K57-K56)*(M57) -> 4.18E+13
A58: 7.36E-09 | B58: 6.24E+12 | C58: =B58*10000 -> 6.24E+16 | D58: 8.79E-03 | E58: 4.41E+01 | F58: =F57+(A58-A57)*(E58*C58) -> 7.68E+09 | G58: =G57+(A58-A57)*(C58) -> 1.62E+08 | K58: 7.36E-05 | L58: 6.57E+13 | M58: =L58*10000 -> 6.57E+17 | N58: 8.79E+01 | O58: 2.04E+01 | P58: =P57+(K58-K57)*(O58*M58) -> 9.27E+14 | Q58: =Q57+(K58-K57)*(M58) -> 4.53E+13
A59: 7.94E-09 | B59: 6.35E+12 | C59: =B59*10000 -> 6.35E+16 | D59: 9.09E-03 | E59: 4.35E+01 | F59: =F58+(A59-A58)*(E59*C59) -> 9.30E+09 | G59: =G58+(A59-A58)*(C59) -> 1.99E+08 | K59: 7.94E-05 | L59: 6.56E+13 | M59: =L59*10000 -> 6.56E+17 | N59: 9.09E+01 | O59: 2.04E+01 | P59: =P58+(K59-K58)*(O59*M59) -> 1.01E+15 | Q59: =Q58+(K59-K58)*(M59) -> 4.92E+13
A60: 8.58E-09 | B60: 8.77E+12 | C60: =B60*10000 -> 8.77E+16 | D60: 9.39E-03 | E60: 4.29E+01 | F60: =F59+(A60-A59)*(E60*C60) -> 1.17E+10 | G60: =G59+(A60-A59)*(C60) -> 2.55E+08 | K60: 8.58E-05 | L60: 6.36E+13 | M60: =L60*10000 -> 6.36E+17 | N60: 9.39E+01 | O60: 2.04E+01 | P60: =P59+(K60-K59)*(O60*M60) -> 1.09E+15 | Q60: =Q59+(K60-K59)*(M60) -> 5.32E+13
A61: 9.26E-09 | B61: 8.42E+12 | C61: =B61*10000 -> 8.42E+16 | D61: 9.70E-03 | E61: 4.24E+01 | F61: =F60+(A61-A60)*(E61*C61) -> 1.41E+10 | G61: =G60+(A61-A60)*(C61) -> 3.12E+08 | K61: 9.26E-05 | L61: 6.76E+13 | M61: =L61*10000 -> 6.76E+17 | N61: 9.70E+01 | O61: 2.04E+01 | P61: =P60+(K61-K60)*(O61*M61) -> 1.18E+15 | Q61: =Q60+(K61-K60)*(M61) -> 5.78E+13
A62: 1.00E-08 | B62: 9.04E+12 | C62: =B62*10000 -> 9.04E+16 | D62: 1.00E-02 | E62: 4.19E+01 | F62: =F61+(A62-A61)*(E62*C62) -> 1.69E+10 | G62: =G61+(A62-A61)*(C62) -> 3.79E+08 | K62: 1.00E-04 | L62: 6.77E+13 | M62: =L62*10000 -> 6.77E+17 | N62: 1.00E+02 | O62: 2.04E+01 | P62: =P61+(K62-K61)*(O62*M62) -> 1.28E+15 | Q62: =Q61+(K62-K61)*(M62) -> 6.28E+13
A63: 1.08E-08 | B63: 1.23E+13 | C63: =B63*10000 -> 1.23E+17 | D63: 1.21E-02 | E63: 3.89E+01 | F63: =F62+(A63-A62)*(E63*C63) -> 2.08E+10 | G63: =G62+(A63-A62)*(C63) -> 4.78E+08 | K63: 1.08E-04 | L63: 6.45E+13 | M63: =L63*10000 -> 6.45E+17 | N63: 1.21E+02 | O63: 2.04E+01 | P63: =P62+(K63-K62)*(O63*M63) -> 1.39E+15 | Q63: =Q62+(K63-K62)*(M63) -> 6.80E+13
A64: 1.17E-08 | B64: 1.31E+13 | C64: =B64*10000 -> 1.31E+17 | D64: 1.52E-02 | E64: 3.59E+01 | F64: =F63+(A64-A63)*(E64*C64) -> 2.48E+10 | G64: =G63+(A64-A63)*(C64) -> 5.90E+08 | K64: 1.17E-04 | L64: 6.81E+13 | M64: =L64*10000 -> 6.81E+17 | N64: 1.52E+02 | O64: 2.04E+01 | P64: =P63+(K64-K63)*(O64*M64) -> 1.51E+15 | Q64: =Q63+(K64-K63)*(M64) -> 7.38E+13
A65: 1.26E-08 | B65: 1.51E+13 | C65: =B65*10000 -> 1.51E+17 | D65: 1.82E-02 | E65: 3.37E+01 | F65: =F64+(A65-A64)*(E65*C65) -> 2.95E+10 | G65: =G64+(A65-A64)*(C65) -> 7.31E+08 | K65: 1.26E-04 | L65: 6.70E+13 | M65: =L65*10000 -> 6.70E+17 | N65: 1.82E+02 | O65: 2.04E+01 | P65: =P64+(K65-K64)*(O65*M65) -> 1.64E+15 | Q65: =Q64+(K65-K64)*(M65) -> 8.01E+13
A66: 1.36E-08 | B66: 1.83E+13 | C66: =B66*10000 -> 1.83E+17 | D66: 2.12E-02 | E66: 3.21E+01 | F66: =F65+(A66-A65)*(E66*C66) -> 3.54E+10 | G66: =G65+(A66-A65)*(C66) -> 9.14E+08 | K66: 1.36E-04 | L66: 6.70E+13 | M66: =L66*10000 -> 6.70E+17 | N66: 2.12E+02 | O66: 2.04E+01 | P66: =P65+(K66-K65)*(O66*M66) -> 1.77E+15 | Q66: =Q65+(K66-K65)*(M66) -> 8.68E+13
A67: 1.47E-08 | B67: 1.91E+13 | C67: =B67*10000 -> 1.91E+17 | D67: 2.42E-02 | E67: 3.08E+01 | F67: =F66+(A67-A66)*(E67*C67) -> 4.18E+10 | G67: =G66+(A67-A66)*(C67) -> 1.12E+09 | K67: 1.47E-04 | L67: 6.82E+13 | M67: =L67*10000 -> 6.82E+17 | N67: 2.42E+02 | O67: 2.04E+01 | P67: =P66+(K67-K66)*(O67*M67) -> 1.92E+15 | Q67: =Q66+(K67-K66)*(M67) -> 9.42E+13
A68: 1.58E-08 | B68: 1.98E+13 | C68: =B68*10000 -> 1.98E+17 | D68: 2.73E-02 | E68: 2.98E+01 | F68: =F67+(A68-A67)*(E68*C68) -> 4.87E+10 | G68: =G67+(A68-A67)*(C68) -> 1.35E+09 | K68: 1.58E-04 | L68: 6.88E+13 | M68: =L68*10000 -> 6.88E+17 | N68: 2.73E+02 | O68: 2.04E+01 | P68: =P67+(K68-K67)*(O68*M68) -> 2.09E+15 | Q68: =Q67+(K68-K67)*(M68) -> 1.02E+14
A69: 1.71E-08 | B69: 2.64E+13 | C69: =B69*10000 -> 2.64E+17 | D69: 3.03E-02 | E69: 2.89E+01 | F69: =F68+(A69-A68)*(E69*C69) -> 5.84E+10 | G69: =G68+(A69-A68)*(C69) -> 1.69E+09 | K69: 1.71E-04 | L69: 6.93E+13 | M69: =L69*10000 -> 6.93E+17 | N69: 3.03E+02 | O69: 2.04E+01 | P69: =P68+(K69-K68)*(O69*M69) -> 2.27E+15 | Q69: =Q68+(K69-K68)*(M69) -> 1.11E+14
A70: 1.85E-08 | B70: 2.62E+13 | C70: =B70*10000 -> 2.62E+17 | D70: 3.33E-02 | E70: 2.82E+01 | F70: =F69+(A70-A69)*(E70*C70) -> 6.84E+10 | G70: =G69+(A70-A69)*(C70) -> 2.04E+09 | K70: 1.85E-04 | L70: 6.91E+13 | M70: =L70*10000 -> 6.91E+17 | N70: 3.33E+02 | O70: 2.04E+01 | P70: =P69+(K70-K69)*(O70*M70) -> 2.46E+15 | Q70: =Q69+(K70-K69)*(M70) -> 1.20E+14
A71: 2.00E-08 | B71: 3.06E+13 | C71: =B71*10000 -> 3.06E+17 | D71: 3.64E-02 | E71: 2.76E+01 | F71: =F70+(A71-A70)*(E71*C71) -> 8.09E+10 | G71: =G70+(A71-A70)*(C71) -> 2.50E+09 | K71: 2.00E-04 | L71: 7.14E+13 | M71: =L71*10000 -> 7.14E+17 | N71: 3.64E+02 | O71: 2.04E+01 | P71: =P70+(K71-K70)*(O71*M71) -> 2.68E+15 | Q71: =Q70+(K71-K70)*(M71) -> 1.31E+14
A72: 2.15E-08 | B72: 3.42E+13 | C72: =B72*10000 -> 3.42E+17 | D72: 3.94E-02 | E72: 2.71E+01 | F72: =F71+(A72-A71)*(E72*C72) -> 9.57E+10 | G72: =G71+(A72-A71)*(C72) -> 3.04E+09 | K72: 2.15E-04 | L72: 7.03E+13 | M72: =L72*10000 -> 7.03E+17 | N72: 3.94E+02 | O72: 2.04E+01 | P72: =P71+(K72-K71)*(O72*M72) -> 2.90E+15 | Q72: =Q71+(K72-K71)*(M72) -> 1.42E+14
A73: 2.33E-08 | B73: 3.97E+13 | C73: =B73*10000 -> 3.97E+17 | D73: 4.24E-02 | E73: 2.67E+01 | F73: =F72+(A73-A72)*(E73*C73) -> 1.14E+11 | G73: =G72+(A73-A72)*(C73) -> 3.72E+09 | K73: 2.33E-04 | L73: 6.51E+13 | M73: =L73*10000 -> 6.51E+17 | N73: 4.24E+02 | O73: 2.04E+01 | P73: =P72+(K73-K72)*(O73*M73) -> 3.13E+15 | Q73: =Q72+(K73-K72)*(M73) -> 1.53E+14
A74: 2.51E-08 | B74: 4.04E+13 | C74: =B74*10000 -> 4.04E+17 | D74: 4.55E-02 | E74: 2.63E+01 | F74: =F73+(A74-A73)*(E74*C74) -> 1.34E+11 | G74: =G73+(A74-A73)*(C74) -> 4.47E+09 | K74: 2.51E-04 | L74: 6.97E+13 | M74: =L74*10000 -> 6.97E+17 | N74: 4.55E+02 | O74: 2.04E+01 | P74: =P73+(K74-K73)*(O74*M74) -> 3.39E+15 | Q74: =Q73+(K74-K73)*(M74) -> 1.66E+14
A75: 2.71E-08 | B75: 4.77E+13 | C75: =B75*10000 -> 4.77E+17 | D75: 4.85E-02 | E75: 2.59E+01 | F75: =F74+(A75-A74)*(E75*C75) -> 1.58E+11 | G75: =G74+(A75-A74)*(C75) -> 5.43E+09 | K75: 2.71E-04 | L75: 7.14E+13 | M75: =L75*10000 -> 7.14E+17 | N75: 4.85E+02 | O75: 2.04E+01 | P75: =P74+(K75-K74)*(O75*M75) -> 3.69E+15 | Q75: =Q74+(K75-K74)*(M75) -> 1.81E+14
A76: 2.93E-08 | B76: 5.17E+13 | C76: =B76*10000 -> 5.17E+17 | D76: 5.15E-02 | E76: 2.56E+01 | F76: =F75+(A76-A75)*(E76*C76) -> 1.87E+11 | G76: =G75+(A76-A75)*(C76) -> 6.55E+09 | K76: 2.93E-04 | L76: 6.99E+13 | M76: =L76*10000 -> 6.99E+17 | N76: 5.15E+02 | O76: 2.04E+01 | P76: =P75+(K76-K75)*(O76*M76) -> 3.99E+15 | Q76: =Q75+(K76-K75)*(M76) -> 1.96E+14
A77: 3.16E-08 | B77: 5.73E+13 | C77: =B77*10000 -> 5.73E+17 | D77: 5.45E-02 | E77: 2.54E+01 | F77: =F76+(A77-A76)*(E77*C77) -> 2.21E+11 | G77: =G76+(A77-A76)*(C77) -> 7.89E+09 | K77: 3.16E-04 | L77: 7.30E+13 | M77: =L77*10000 -> 7.30E+17 | N77: 5.45E+02 | O77: 2.04E+01 | P77: =P76+(K77-K76)*(O77*M77) -> 4.34E+15 | Q77: =Q76+(K77-K76)*(M77) -> 2.13E+14
A78: 3.41E-08 | B78: 6.02E+13 | C78: =B78*10000 -> 6.02E+17 | D78: 5.76E-02 | E78: 2.51E+01 | F78: =F77+(A78-A77)*(E78*C78) -> 2.59E+11 | G78: =G77+(A78-A77)*(C78) -> 9.40E+09 | K78: 3.41E-04 | L78: 6.85E+13 | M78: =L78*10000 -> 6.85E+17 | N78: 5.76E+02 | O78: 2.04E+01 | P78: =P77+(K78-K77)*(O78*M78) -> 4.69E+15 | Q78: =Q77+(K78-K77)*(M78) -> 2.30E+14
A79: 3.69E-08 | B79: 6.64E+13 | C79: =B79*10000 -> 6.64E+17 | D79: 6.06E-02 | E79: 2.49E+01 | F79: =F78+(A79-A78)*(E79*C79) -> 3.04E+11 | G79: =G78+(A79-A78)*(C79) -> 1.12E+10 | K79: 3.69E-04 | L79: 6.82E+13 | M79: =L79*10000 -> 6.82E+17 | N79: 6.06E+02 | O79: 2.04E+01 | P79: =P78+(K79-K78)*(O79*M79) -> 5.07E+15 | Q79: =Q78+(K79-K78)*(M79) -> 2.49E+14
A80: 3.98E-08 | B80: 6.82E+13 | C80: =B80*10000 -> 6.82E+17 | D80: 6.36E-02 | E80: 2.47E+01 | F80: =F79+(A80-A79)*(E80*C80) -> 3.54E+11 | G80: =G79+(A80-A79)*(C80) -> 1.32E+10 | K80: 3.98E-04 | L80: 6.91E+13 | M80: =L80*10000 -> 6.91E+17 | N80: 6.36E+02 | O80: 2.04E+01 | P80: =P79+(K80-K79)*(O80*M80) -> 5.49E+15 | Q80: =Q79+(K80-K79)*(M80) -> 2.69E+14
A81: 4.30E-08 | B81: 7.55E+13 | C81: =B81*10000 -> 7.55E+17 | D81: 6.67E-02 | E81: 2.45E+01 | F81: =F80+(A81-A80)*(E81*C81) -> 4.13E+11 | G81: =G80+(A81-A80)*(C81) -> 1.56E+10 | K81: 4.30E-04 | L81: 7.23E+13 | M81: =L81*10000 -> 7.23E+17 | N81: 6.67E+02 | O81: 2.03E+01 | P81: =P80+(K81-K80)*(O81*M81) -> 5.95E+15 | Q81: =Q80+(K81-K80)*(M81) -> 2.92E+14
A82: 4.64E-08 | B82: 7.70E+13 | C82: =B82*10000 -> 7.70E+17 | D82: 6.97E-02 | E82: 2.43E+01 | F82: =F81+(A82-A81)*(E82*C82) -> 4.77E+11 | G82: =G81+(A82-A81)*(C82) -> 1.83E+10 | K82: 4.64E-04 | L82: 7.07E+13 | M82: =L82*10000 -> 7.07E+17 | N82: 6.97E+02 | O82: 2.03E+01 | P82: =P81+(K82-K81)*(O82*M82) -> 6.45E+15 | Q82: =Q81+(K82-K81)*(M82) -> 3.16E+14
A83: 5.01E-08 | B83: 8.52E+13 | C83: =B83*10000 -> 8.52E+17 | D83: 7.27E-02 | E83: 2.42E+01 | F83: =F82+(A83-A82)*(E83*C83) -> 5.53E+11 | G83: =G82+(A83-A82)*(C83) -> 2.14E+10 | K83: 5.01E-04 | L83: 7.49E+13 | M83: =L83*10000 -> 7.49E+17 | N83: 7.27E+02 | O83: 2.03E+01 | P83: =P82+(K83-K82)*(O83*M83) -> 7.01E+15 | Q83: =Q82+(K83-K82)*(M83) -> 3.44E+14
A84: 5.41E-08 | B84: 8.45E+13 | C84: =B84*10000 -> 8.45E+17 | D84: 7.58E-02 | E84: 2.40E+01 | F84: =F83+(A84-A83)*(E84*C84) -> 6.34E+11 | G84: =G83+(A84-A83)*(C84) -> 2.48E+10 | K84: 5.41E-04 | L84: 7.20E+13 | M84: =L84*10000 -> 7.20E+17 | N84: 7.58E+02 | O84: 2.03E+01 | P84: =P83+(K84-K83)*(O84*M84) -> 7.60E+15 | Q84: =Q83+(K84-K83)*(M84) -> 3.73E+14
A85: 5.84E-08 | B85: 9.04E+13 | C85: =B85*10000 -> 9.04E+17 | D85: 7.88E-02 | E85: 2.39E+01 | F85: =F84+(A85-A84)*(E85*C85) -> 7.28E+11 | G85: =G84+(A85-A84)*(C85) -> 2.87E+10 | K85: 5.84E-04 | L85: 7.31E+13 | M85: =L85*10000 -> 7.31E+17 | N85: 7.88E+02 | O85: 2.03E+01 | P85: =P84+(K85-K84)*(O85*M85) -> 8.24E+15 | Q85: =Q84+(K85-K84)*(M85) -> 4.04E+14
A86: 6.31E-08 | B86: 9.09E+13 | C86: =B86*10000 -> 9.09E+17 | D86: 8.18E-02 | E86: 2.38E+01 | F86: =F85+(A86-A85)*(E86*C86) -> 8.28E+11 | G86: =G85+(A86-A85)*(C86) -> 3.29E+10 | K86: 6.31E-04 | L86: 7.28E+13 | M86: =L86*10000 -> 7.28E+17 | N86: 8.18E+02 | O86: 2.03E+01 | P86: =P85+(K86-K85)*(O86*M86) -> 8.93E+15 | Q86: =Q85+(K86-K85)*(M86) -> 4.38E+14
A87: 6.81E-08 | B87: 9.03E+13 | C87: =B87*10000 -> 9.03E+17 | D87: 8.48E-02 | E87: 2.37E+01 | F87: =F86+(A87-A86)*(E87*C87) -> 9.36E+11 | G87: =G86+(A87-A86)*(C87) -> 3.75E+10 | K87: 6.81E-04 | L87: 7.10E+13 | M87: =L87*10000 -> 7.10E+17 | N87: 8.48E+02 | O87: 2.03E+01 | P87: =P86+(K87-K86)*(O87*M87) -> 9.65E+15 | Q87: =Q86+(K87-K86)*(M87) -> 4.74E+14
A88: 7.36E-08 | B88: 9.33E+13 | C88: =B88*10000 -> 9.33E+17 | D88: 8.79E-02 | E88: 2.36E+01 | F88: =F87+(A88-A87)*(E88*C88) -> 1.06E+12 | G88: =G87+(A88-A87)*(C88) -> 4.25E+10 | K88: 7.36E-04 | L88: 6.99E+13 | M88: =L88*10000 -> 6.99E+17 | N88: 8.79E+02 | O88: 2.03E+01 | P88: =P87+(K88-K87)*(O88*M88) -> 1.04E+16 | Q88: =Q87+(K88-K87)*(M88) -> 5.12E+14
A89: 7.94E-08 | B89: 9.07E+13 | C89: =B89*10000 -> 9.07E+17 | D89: 9.09E-02 | E89: 2.35E+01 | F89: =F88+(A89-A88)*(E89*C89) -> 1.18E+12 | G89: =G88+(A89-A88)*(C89) -> 4.79E+10 | K89: 7.94E-04 | L89: 7.19E+13 | M89: =L89*10000 -> 7.19E+17 | N89: 9.09E+02 | O89: 2.03E+01 | P89: =P88+(K89-K88)*(O89*M89) -> 1.13E+16 | Q89: =Q88+(K89-K88)*(M89) -> 5.54E+14
A90: 8.58E-08 | B90: 9.07E+13 | C90: =B90*10000 -> 9.07E+17 | D90: 9.09E-02 | E90: 2.35E+01 | F90: =F89+(A90-A89)*(E90*C90) -> 1.32E+12 | G90: =G89+(A90-A89)*(C90) -> 5.36E+10 | K90: 8.58E-04 | L90: 7.06E+13 | M90: =L90*10000 -> 7.06E+17 | N90: 9.39E+02 | O90: 2.03E+01 | P90: =P89+(K90-K89)*(O90*M90) -> 1.22E+16 | Q90: =Q89+(K90-K89)*(M90) -> 5.99E+14
A91: 9.26E-08 | B91: 9.09E+13 | C91: =B91*10000 -> 9.09E+17 | D91: 9.39E-02 | E91: 2.34E+01 | F91: =F90+(A91-A90)*(E91*C91) -> 1.46E+12 | G91: =G90+(A91-A90)*(C91) -> 5.98E+10 | K91: 9.26E-04 | L91: 7.54E+13 | M91: =L91*10000 -> 7.54E+17 | N91: 9.70E+02 | O91: 2.03E+01 | P91: =P90+(K91-K90)*(O91*M91) -> 1.32E+16 | Q91: =Q90+(K91-K90)*(M91) -> 6.50E+14
A92: 1.00E-07 | B92: 8.62E+13 | C92: =B92*10000 -> 8.62E+17 | D92: 9.70E-02 | E92: 2.33E+01 | F92: =F91+(A92-A91)*(E92*C92) -> 1.61E+12 | G92: =G91+(A92-A91)*(C92) -> 6.62E+10 | K92: 1.00E-03 | L92: 7.39E+13 | M92: =L92*10000 -> 7.39E+17 | N92: 1.00E+03 | O92: 2.03E+01 | P92: =P91+(K92-K91)*(O92*M92) -> 1.43E+16 | Q92: =Q91+(K92-K91)*(M92) -> 7.05E+14
A93: 1.08E-07 | B93: 8.47E+13 | C93: =B93*10000 -> 8.47E+17 | D93: 1.00E-01 | E93: 2.32E+01 | F93: =F92+(A93-A92)*(E93*C93) -> 1.77E+12 | G93: =G92+(A93-A92)*(C93) -> 7.30E+10 | K93: 1.08E-03 | L93: 7.44E+13 | M93: =L93*10000 -> 7.44E+17 | N93: 1.21E+03 | O93: 2.03E+01 | P93: =P92+(K93-K92)*(O93*M93) -> 1.56E+16 | Q93: =Q92+(K93-K92)*(M93) -> 7.64E+14
A94: 1.17E-07 | B94: 8.23E+13 | C94: =B94*10000 -> 8.23E+17 | D94: 1.21E-01 | E94: 2.27E+01 | F94: =F93+(A94-A93)*(E94*C94) -> 1.93E+12 | G94: =G93+(A94-A93)*(C94) -> 8.01E+10 | K94: 1.17E-03 | L94: 6.92E+13 | M94: =L94*10000 -> 6.92E+17 | N94: 1.52E+03 | O94: 2.02E+01 | P94: =P93+(K94-K93)*(O94*M94) -> 1.68E+16 | Q94: =Q93+(K94-K93)*(M94) -> 8.24E+14
A95: 1.26E-07 | B95: 8.14E+13 | C95: =B95*10000 -> 8.14E+17 | D95: 1.52E-01 | E95: 2.23E+01 | F95: =F94+(A95-A94)*(E95*C95) -> 2.10E+12 | G95: =G94+(A95-A94)*(C95) -> 8.76E+10 | K95: 1.26E-03 | L95: 7.13E+13 | M95: =L95*10000 -> 7.13E+17 | N95: 1.82E+03 | O95: 2.02E+01 | P95: =P94+(K95-K94)*(O95*M95) -> 1.81E+16 | Q95: =Q94+(K95-K94)*(M95) -> 8.90E+14
A96: 1.36E-07 | B96: 7.67E+13 | C96: =B96*10000 -> 7.67E+17 | D96: 1.82E-01 | E96: 2.20E+01 | F96: =F95+(A96-A95)*(E96*C96) -> 2.26E+12 | G96: =G95+(A96-A95)*(C96) -> 9.53E+10 | K96: 1.36E-03 | L96: 7.44E+13 | M96: =L96*10000 -> 7.44E+17 | N96: 2.12E+03 | O96: 2.02E+01 | P96: =P95+(K96-K95)*(O96*M96) -> 1.96E+16 | Q96: =Q95+(K96-K95)*(M96) -> 9.65E+14
A97: 1.47E-07 | B97: 7.16E+13 | C97: =B97*10000 -> 7.16E+17 | D97: 2.12E-01 | E97: 2.18E+01 | F97: =F96+(A97-A96)*(E97*C97) -> 2.43E+12 | G97: =G96+(A97-A96)*(C97) -> 1.03E+11 | K97: 1.47E-03 | L97: 7.10E+13 | M97: =L97*10000 -> 7.10E+17 | N97: 2.42E+03 | O97: 2.01E+01 | P97: =P96+(K97-K96)*(O97*M97) -> 2.12E+16 | Q97: =Q96+(K97-K96)*(M97) -> 1.04E+15
A98: 1.58E-07 | B98: 6.72E+13 | C98: =B98*10000 -> 6.72E+17 | D98: 2.42E-01 | E98: 2.16E+01 | F98: =F97+(A98-A97)*(E98*C98) -> 2.60E+12 | G98: =G97+(A98-A97)*(C98) -> 1.11E+11 | K98: 1.58E-03 | L98: 7.69E+13 | M98: =L98*10000 -> 7.69E+17 | N98: 2.73E+03 | O98: 2.01E+01 | P98: =P97+(K98-K97)*(O98*M98) -> 2.30E+16 | Q98: =Q97+(K98-K97)*(M98) -> 1.13E+15
A99: 1.71E-07 | B99: 6.70E+13 | C99: =B99*10000 -> 6.70E+17 | D99: 2.73E-01 | E99: 2.15E+01 | F99: =F98+(A99-A98)*(E99*C99) -> 2.79E+12 | G99: =G98+(A99-A98)*(C99) -> 1.19E+11 | K99: 1.71E-03 | L99: 7.62E+13 | M99: =L99*10000 -> 7.62E+17 | N99: 3.03E+03 | O99: 2.00E+01 | P99: =P98+(K99-K98)*(O99*M99) -> 2.49E+16 | Q99: =Q98+(K99-K98)*(M99) -> 1.23E+15
A100: 1.85E-07 | B100: 6.46E+13 | C100: =B100*10000 -> 6.46E+17 | D100: 3.03E-01 | E100: 2.14E+01 | F100: =F99+(A100-A99)*(E100*C100) -> 2.97E+12 | G100: =G99+(A100-A99)*(C100) -> 1.28E+11 | K100: 1.85E-03 | L100: 7.85E+13 | M100: =L100*10000 -> 7.85E+17 | N100: 3.33E+03 | O100: 2.00E+01 | P100: =P99+(K100-K99)*(O100*M100) -> 2.70E+16 | Q100: =Q99+(K100-K99)*(M100) -> 1.34E+15
A101: 2.00E-07 | B101: 6.34E+13 | C101: =B101*10000 -> 6.34E+17 | D101: 3.33E-01 | E101: 2.13E+01 | F101: =F100+(A101-A100)*(E101*C101) -> 3.17E+12 | G101: =G100+(A101-A100)*(C101) -> 1.38E+11 | K101: 2.00E-03 | L101: 7.51E+13 | M101: =L101*10000 -> 7.51E+17 | N101: 3.64E+03 | O101: 2.00E+01 | P101: =P100+(K101-K100)*(O101*M101) -> 2.92E+16 | Q101: =Q100+(K101-K100)*(M101) -> 1.45E+15
A102: 2.15E-07 | B102: 5.89E+13 | C102: =B102*10000 -> 5.89E+17 | D102: 3.64E-01 | E102: 2.12E+01 | F102: =F101+(A102-A101)*(E102*C102) -> 3.37E+12 | G102: =G101+(A102-A101)*(C102) -> 1.47E+11 | K102: 2.15E-03 | L102: 7.59E+13 | M102: =L102*10000 -> 7.59E+17 | N102: 3.94E+03 | O102: 1.99E+01 | P102: =P101+(K102-K101)*(O102*M102) -> 3.16E+16 | Q102: =Q101+(K102-K101)*(M102) -> 1.57E+15
A103: 2.33E-07 | B103: 5.77E+13 | C103: =B103*10000 -> 5.77E+17 | D103: 3.94E-01 | E103: 2.12E+01 | F103: =F102+(A103-A102)*(E103*C103) -> 3.58E+12 | G103: =G102+(A103-A102)*(C103) -> 1.57E+11 | K103: 2.33E-03 | L103: 7.58E+13 | M103: =L103*10000 -> 7.58E+17 | N103: 4.24E+03 | O103: 1.99E+01 | P103: =P102+(K103-K102)*(O103*M103) -> 3.42E+16 | Q103: =Q102+(K103-K102)*(M103) -> 1.70E+15
A104: 2.51E-07 | B104: 5.68E+13 | C104: =B104*10000 -> 5.68E+17 | D104: 4.24E-01 | E104: 2.11E+01 | F104: =F103+(A104-A103)*(E104*C104) -> 3.81E+12 | G104: =G103+(A104-A103)*(C104) -> 1.67E+11 | K104: 2.51E-03 | L104: 7.52E+13 | M104: =L104*10000 -> 7.52E+17 | N104: 4.55E+03 | O104: 1.98E+01 | P104: =P103+(K104-K103)*(O104*M104) -> 3.70E+16 | Q104: =Q103+(K104-K103)*(M104) -> 1.84E+15
A105: 2.71E-07 | B105: 5.55E+13 | C105: =B105*10000 -> 5.55E+17 | D105: 4.55E-01 | E105: 2.11E+01 | F105: =F104+(A105-A104)*(E105*C105) -> 4.04E+12 | G105: =G104+(A105-A104)*(C105) -> 1.79E+11 | K105: 2.71E-03 | L105: 7.45E+13 | M105: =L105*10000 -> 7.45E+17 | N105: 4.85E+03 | O105: 1.98E+01 | P105: =P104+(K105-K104)*(O105*M105) -> 4.00E+16 | Q105: =Q104+(K105-K104)*(M105) -> 1.99E+15
A106: 2.93E-07 | B106: 5.51E+13 | C106: =B106*10000 -> 5.51E+17 | D106: 4.85E-01 | E106: 2.10E+01 | F106: =F105+(A106-A105)*(E106*C106) -> 4.29E+12 | G106: =G105+(A106-A105)*(C106) -> 1.90E+11 | K106: 2.93E-03 | L106: 8.06E+13 | M106: =L106*10000 -> 8.06E+17 | N106: 5.15E+03 | O106: 1.98E+01 | P106: =P105+(K106-K105)*(O106*M106) -> 4.34E+16 | Q106: =Q105+(K106-K105)*(M106) -> 2.16E+15
A107: 3.16E-07 | B107: 5.52E+13 | C107: =B107*10000 -> 5.52E+17 | D107: 5.15E-01 | E107: 2.10E+01 | F107: =F106+(A107-A106)*(E107*C107) -> 4.56E+12 | G107: =G106+(A107-A106)*(C107) -> 2.03E+11 | K107: 3.16E-03 | L107: 7.13E+13 | M107: =L107*10000 -> 7.13E+17 | N107: 5.45E+03 | O107: 1.97E+01 | P107: =P106+(K107-K106)*(O107*M107) -> 4.67E+16 | Q107: =Q106+(K107-K106)*(M107) -> 2.33E+15
A108: 3.41E-07 | B108: 5.54E+13 | C108: =B108*10000 -> 5.54E+17 | D108: 5.45E-01 | E108: 2.10E+01 | F108: =F107+(A108-A107)*(E108*C108) -> 4.85E+12 | G108: =G107+(A108-A107)*(C108) -> 2.17E+11 | K108: 3.41E-03 | L108: 7.69E+13 | M108: =L108*10000 -> 7.69E+17 | N108: 5.76E+03 | O108: 1.97E+01 | P108: =P107+(K108-K107)*(O108*M108) -> 5.05E+16 | Q108: =Q107+(K108-K107)*(M108) -> 2.52E+15
A109: 3.69E-07 | B109: 5.59E+13 | C109: =B109*10000 -> 5.59E+17 | D109: 5.76E-01 | E109: 2.10E+01 | F109: =F108+(A109-A108)*(E109*C109) -> 5.17E+12 | G109: =G108+(A109-A108)*(C109) -> 2.33E+11 | K109: 3.69E-03 | L109: 7.68E+13 | M109: =L109*10000 -> 7.68E+17 | N109: 6.06E+03 | O109: 1.97E+01 | P109: =P108+(K109-K108)*(O109*M109) -> 5.46E+16 | Q109: =Q108+(K109-K108)*(M109) -> 2.73E+15
A110: 3.98E-07 | B110: 5.39E+13 | C110: =B110*10000 -> 5.39E+17 | D110: 6.06E-01 | E110: 2.09E+01 | F110: =F109+(A110-A109)*(E110*C110) -> 5.51E+12 | G110: =G109+(A110-A109)*(C110) -> 2.48E+11 | K110: 3.98E-03 | L110: 7.49E+13 | M110: =L110*10000 -> 7.49E+17 | N110: 6.36E+03 | O110: 1.96E+01 | P110: =P109+(K110-K109)*(O110*M110) -> 5.90E+16 | Q110: =Q109+(K110-K109)*(M110) -> 2.95E+15
A111: 4.30E-07 | B111: 5.70E+13 | C111: =B111*10000 -> 5.70E+17 | D111: 6.36E-01 | E111: 2.09E+01 | F111: =F110+(A111-A110)*(E111*C111) -> 5.88E+12 | G111: =G110+(A111-A110)*(C111) -> 2.67E+11 | K111: 4.30E-03 | L111: 7.61E+13 | M111: =L111*10000 -> 7.61E+17 | N111: 6.67E+03 | O111: 1.96E+01 | P111: =P110+(K111-K110)*(O111*M111) -> 6.37E+16 | Q111: =Q110+(K111-K110)*(M111) -> 3.19E+15
A112: 4.64E-07 | B112: 5.62E+13 | C112: =B112*10000 -> 5.62E+17 | D112: 6.67E-01 | E112: 2.09E+01 | F112: =F111+(A112-A111)*(E112*C112) -> 6.29E+12 | G112: =G111+(A112-A111)*(C112) -> 2.86E+11 | K112: 4.64E-03 | L112: 7.85E+13 | M112: =L112*10000 -> 7.85E+17 | N112: 6.97E+03 | O112: 1.95E+01 | P112: =P111+(K112-K111)*(O112*M112) -> 6.90E+16 | Q112: =Q111+(K112-K111)*(M112) -> 3.46E+15
A113: 5.01E-07 | B113: 5.57E+13 | C113: =B113*10000 -> 5.57E+17 | D113: 6.97E-01 | E113: 2.09E+01 | F113: =F112+(A113-A112)*(E113*C113) -> 6.72E+12 | G113: =G112+(A113-A112)*(C113) -> 3.06E+11 | K113: 5.01E-03 | L113: 8.06E+13 | M113: =L113*10000 -> 8.06E+17 | N113: 7.27E+03 | O113: 1.95E+01 | P113: =P112+(K113-K112)*(O113*M113) -> 7.48E+16 | Q113: =Q112+(K113-K112)*(M113) -> 3.76E+15
A114: 5.41E-07 | B114: 5.53E+13 | C114: =B114*10000 -> 5.53E+17 | D114: 7.27E-01 | E114: 2.09E+01 | F114: =F113+(A114-A113)*(E114*C114) -> 7.18E+12 | G114: =G113+(A114-A113)*(C114) -> 3.29E+11 | K114: 5.41E-03 | L114: 8.50E+13 | M114: =L114*10000 -> 8.50E+17 | N114: 7.58E+03 | O114: 1.95E+01 | P114: =P113+(K114-K113)*(O114*M114) -> 8.14E+16 | Q114: =Q113+(K114-K113)*(M114) -> 4.10E+15
A115: 5.84E-07 | B115: 5.64E+13 | C115: =B115*10000 -> 5.64E+17 | D115: 7.58E-01 | E115: 2.08E+01 | F115: =F114+(A115-A114)*(E115*C115) -> 7.69E+12 | G115: =G114+(A115-A114)*(C115) -> 3.53E+11 | K115: 5.84E-03 | L115: 8.07E+13 | M115: =L115*10000 -> 8.07E+17 | N115: 7.88E+03 | O115: 1.94E+01 | P115: =P114+(K115-K114)*(O115*M115) -> 8.82E+16 | Q115: =Q114+(K115-K114)*(M115) -> 4.45E+15
A116: 6.31E-07 | B116: 5.69E+13 | C116: =B116*10000 -> 5.69E+17 | D116: 7.88E-01 | E116: 2.08E+01 | F116: =F115+(A116-A115)*(E116*C116) -> 8.24E+12 | G116: =G115+(A116-A115)*(C116) -> 3.79E+11 | K116: 6.31E-03 | L116: 6.72E+13 | M116: =L116*10000 -> 6.72E+17 | N116: 8.18E+03 | O116: 1.94E+01 | P116: =P115+(K116-K115)*(O116*M116) -> 9.43E+16 | Q116: =Q115+(K116-K115)*(M116) -> 4.76E+15
A117: 6.81E-07 | B117: 5.71E+13 | C117: =B117*10000 -> 5.71E+17 | D117: 8.18E-01 | E117: 2.08E+01 | F117: =F116+(A117-A116)*(E117*C117) -> 8.84E+12 | G117: =G116+(A117-A116)*(C117) -> 4.08E+11 | K117: 6.81E-03 | L117: 8.38E+13 | M117: =L117*10000 -> 8.38E+17 | N117: 8.48E+03 | O117: 1.94E+01 | P117: =P116+(K117-K116)*(O117*M117) -> 1.02E+17 | Q117: =Q116+(K117-K116)*(M117) -> 5.18E+15
A118: 7.36E-07 | B118: 5.48E+13 | C118: =B118*10000 -> 5.48E+17 | D118: 8.48E-01 | E118: 2.08E+01 | F118: =F117+(A118-A117)*(E118*C118) -> 9.46E+12 | G118: =G117+(A118-A117)*(C118) -> 4.38E+11 | K118: 7.36E-03 | L118: 8.06E+13 | M118: =L118*10000 -> 8.06E+17 | N118: 8.79E+03 | O118: 1.93E+01 | P118: =P117+(K118-K117)*(O118*M118) -> 1.11E+17 | Q118: =Q117+(K118-K117)*(M118) -> 5.62E+15
A119: 7.94E-07 | B119: 5.49E+13 | C119: =B119*10000 -> 5.49E+17 | D119: 8.79E-01 | E119: 2.08E+01 | F119: =F118+(A119-A118)*(E119*C119) -> 1.01E+13 | G119: =G118+(A119-A118)*(C119) -> 4.70E+11 | K119: 7.94E-03 | L119: 8.61E+13 | M119: =L119*10000 -> 8.61E+17 | N119: 9.09E+03 | O119: 1.93E+01 | P119: =P118+(K119-K118)*(O119*M119) -> 1.21E+17 | Q119: =Q118+(K119-K118)*(M119) -> 6.13E+15
A120: 8.58E-07 | B120: 5.45E+13 | C120: =B120*10000 -> 5.45E+17 | D120: 9.09E-01 | E120: 2.08E+01 | F120: =F119+(A120-A119)*(E120*C120) -> 1.08E+13 | G120: =G119+(A120-A119)*(C120) -> 5.05E+11 | K120: 8.58E-03 | L120: 7.75E+13 | M120: =L120*10000 -> 7.75E+17 | N120: 9.39E+03 | O120: 1.93E+01 | P120: =P119+(K120-K119)*(O120*M120) -> 1.30E+17 | Q120: =Q119+(K120-K119)*(M120) -> 6.62E+15
A121: 9.26E-07 | B121: 5.44E+13 | C121: =B121*10000 -> 5.44E+17 | D121: 9.39E-01 | E121: 2.08E+01 | F121: =F120+(A121-A120)*(E121*C121) -> 1.16E+13 | G121: =G120+(A121-A120)*(C121) -> 5.42E+11 | K121: 9.26E-03 | L121: 8.35E+13 | M121: =L121*10000 -> 8.35E+17 | N121: 9.70E+03 | O121: 1.92E+01 | P121: =P120+(K121-K120)*(O121*M121) -> 1.41E+17 | Q121: =Q120+(K121-K120)*(M121) -> 7.19E+15
D122: 0.969697 | E122: 20.75763 | K122: 1.00E-02 | L122: 8.64E+13 | M122: =L122*10000 -> 8.64E+17 | N122: 1.00E+04 | O122: 19.18474 | P122: =P121+(K122-K121)*(O122*M122) -> 1.53E+17 | Q122: =Q121+(K122-K121)*(M122) -> 7.83E+15
K123: 1.08E-02 | L123: 8.89E+13 | M123: =L123*10000 -> 8.89E+17 | N123: 1.21E+04 | O123: 18.945959 | P123: =P122+(K123-K122)*(O123*M123) -> 1.67E+17 | Q123: =Q122+(K123-K122)*(M123) -> 8.54E+15
K124: 1.17E-02 | L124: 8.69E+13 | M124: =L124*10000 -> 8.69E+17 | N124: 1.52E+04 | O124: 18.606098 | P124: =P123+(K124-K123)*(O124*M124) -> 1.81E+17 | Q124: =Q123+(K124-K123)*(M124) -> 9.29E+15
K125: 1.26E-02 | L125: 9.36E+13 | M125: =L125*10000 -> 9.36E+17 | N125: 1.82E+04 | O125: 18.28732 | P125: =P124+(K125-K124)*(O125*M125) -> 1.97E+17 | Q125: =Q124+(K125-K124)*(M125) -> 1.02E+16
K126: 1.36E-02 | L126: 9.36E+13 | M126: =L126*10000 -> 9.36E+17 | N126: 2.12E+04 | O126: 17.986998 | P126: =P125+(K126-K125)*(O126*M126) -> 2.14E+17 | Q126: =Q125+(K126-K125)*(M126) -> 1.11E+16
K127: 1.47E-02 | L127: 9.88E+13 | M127: =L127*10000 -> 9.88E+17 | N127: 2.42E+04 | O127: 17.714131 | P127: =P126+(K127-K126)*(O127*M127) -> 2.32E+17 | Q127: =Q126+(K127-K126)*(M127) -> 1.22E+16
K128: 1.58E-02 | L128: 9.18E+13 | M128: =L128*10000 -> 9.18E+17 | N128: 2.73E+04 | O128: 17.441367 | P128: =P127+(K128-K127)*(O128*M128) -> 2.51E+17 | Q128: =Q127+(K128-K127)*(M128) -> 1.32E+16
K129: 1.71E-02 | L129: 7.93E+13 | M129: =L129*10000 -> 7.93E+17 | N129: 3.03E+04 | O129: 17.168602 | P129: =P128+(K129-K128)*(O129*M129) -> 2.68E+17 | Q129: =Q128+(K129-K128)*(M129) -> 1.42E+16
K130: 1.85E-02 | L130: 7.52E+13 | M130: =L130*10000 -> 7.52E+17 | N130: 3.33E+04 | O130: 16.89583 | P130: =P129+(K130-K129)*(O130*M130) -> 2.86E+17 | Q130: =Q129+(K130-K129)*(M130) -> 1.53E+16
K131: 2.00E-02 | L131: 7.15E+13 | M131: =L131*10000 -> 7.15E+17 | N131: 3.64E+04 | O131: 16.623156 | P131: =P130+(K131-K130)*(O131*M131) -> 3.03E+17 | Q131: =Q130+(K131-K130)*(M131) -> 1.63E+16
K132: 2.15E-02 | L132: 7.92E+13 | M132: =L132*10000 -> 7.92E+17 | N132: 3.94E+04 | O132: 16.350593 | P132: =P131+(K132-K131)*(O132*M132) -> 3.24E+17 | Q132: =Q131+(K132-K131)*(M132) -> 1.76E+16
K133: 2.33E-02 | L133: 9.09E+13 | M133: =L133*10000 -> 9.09E+17 | N133: 4.24E+04 | O133: 16.12279 | P133: =P132+(K133-K132)*(O133*M133) -> 3.49E+17 | Q133: =Q132+(K133-K132)*(M133) -> 1.91E+16
K134: 2.51E-02 | L134: 8.71E+13 | M134: =L134*10000 -> 8.71E+17 | N134: 4.55E+04 | O134: 15.906208 | P134: =P133+(K134-K133)*(O134*M134) -> 3.75E+17 | Q134: =Q133+(K134-K133)*(M134) -> 2.08E+16
K135: 2.71E-02 | L135: 1.06E+14 | M135: =L135*10000 -> 1.06E+18 | N135: 4.85E+04 | O135: 15.689796 | P135: =P134+(K135-K134)*(O135*M135) -> 4.08E+17 | Q135: =Q134+(K135-K134)*(M135) -> 2.29E+16
K136: 2.93E-02 | L136: 1.31E+14 | M136: =L136*10000 -> 1.31E+18 | N136: 5.15E+04 | O136: 15.473387 | P136: =P135+(K136-K135)*(O136*M136) -> 4.52E+17 | Q136: =Q135+(K136-K135)*(M136) -> 2.57E+16
K137: 3.16E-02 | L137: 1.48E+14 | M137: =L137*10000 -> 1.48E+18 | N137: 5.45E+04 | O137: 15.256981 | P137: =P136+(K137-K136)*(O137*M137) -> 5.05E+17 | Q137: =Q136+(K137-K136)*(M137) -> 2.92E+16
K138: 3.41E-02 | L138: 8.17E+13 | M138: =L138*10000 -> 8.17E+17 | N138: 5.76E+04 | O138: 15.040719 | P138: =P137+(K138-K137)*(O138*M138) -> 5.36E+17 | Q138: =Q137+(K138-K137)*(M138) -> 3.12E+16
K139: 3.69E-02 | L139: 4.50E+13 | M139: =L139*10000 -> 4.50E+17 | N139: 6.06E+04 | O139: 14.832498 | P139: =P138+(K139-K138)*(O139*M139) -> 5.54E+17 | Q139: =Q138+(K139-K138)*(M139) -> 3.25E+16
K140: 3.98E-02 | L140: 5.48E+13 | M140: =L140*10000 -> 5.48E+17 | N140: 6.36E+04 | O140: 14.656341 | P140: =P139+(K140-K139)*(O140*M140) -> 5.78E+17 | Q140: =Q139+(K140-K139)*(M140) -> 3.41E+16
K141: 4.30E-02 | L141: 7.88E+13 | M141: =L141*10000 -> 7.88E+17 | N141: 6.67E+04 | O141: 14.48028 | P141: =P140+(K141-K140)*(O141*M141) -> 6.14E+17 | Q141: =Q140+(K141-K140)*(M141) -> 3.66E+16
K142: 4.64E-02 | L142: 9.00E+13 | M142: =L142*10000 -> 9.00E+17 | N142: 6.97E+04 | O142: 14.304298 | P142: =P141+(K142-K141)*(O142*M142) -> 6.58E+17 | Q142: =Q141+(K142-K141)*(M142) -> 3.97E+16
K143: 5.01E-02 | L143: 1.06E+14 | M143: =L143*10000 -> 1.06E+18 | N143: 7.27E+04 | O143: 14.128382 | P143: =P142+(K143-K142)*(O143*M143) -> 7.13E+17 | Q143: =Q142+(K143-K142)*(M143) -> 4.36E+16
K144: 5.41E-02 | L144: 9.62E+13 | M144: =L144*10000 -> 9.62E+17 | N144: 7.58E+04 | O144: 13.952473 | P144: =P143+(K144-K143)*(O144*M144) -> 7.67E+17 | Q144: =Q143+(K144-K143)*(M144) -> 4.74E+16
K145: 5.84E-02 | L145: 1.05E+14 | M145: =L145*10000 -> 1.05E+18 | N145: 7.88E+04 | O145: 13.776564 | P145: =P144+(K145-K144)*(O145*M145) -> 8.30E+17 | Q145: =Q144+(K145-K144)*(M145) -> 5.20E+16
K146: 6.31E-02 | L146: 1.21E+14 | M146: =L146*10000 -> 1.21E+18 | N146: 8.18E+04 | O146: 13.618558 | P146: =P145+(K146-K145)*(O146*M146) -> 9.07E+17 | Q146: =Q145+(K146-K145)*(M146) -> 5.76E+16
K147: 6.81E-02 | L147: 1.39E+14 | M147: =L147*10000 -> 1.39E+18 | N147: 8.48E+04 | O147: 13.472488 | P147: =P146+(K147-K146)*(O147*M147) -> 1.00E+18 | Q147: =Q146+(K147-K146)*(M147) -> 6.46E+16
K148: 7.36E-02 | L148: 1.72E+14 | M148: =L148*10000 -> 1.72E+18 | N148: 8.79E+04 | O148: 13.326419 | P148: =P147+(K148-K147)*(O148*M148) -> 1.13E+18 | Q148: =Q147+(K148-K147)*(M148) -> 7.40E+16
K149: 7.94E-02 | L149: 1.68E+14 | M149: =L149*10000 -> 1.68E+18 | N149: 9.09E+04 | O149: 13.180403 | P149: =P148+(K149-K148)*(O149*M149) -> 1.26E+18 | Q149: =Q148+(K149-K148)*(M149) -> 8.38E+16
K150: 8.58E-02 | L150: 9.45E+13 | M150: =L150*10000 -> 9.45E+17 | N150: 9.39E+04 | O150: 13.034512 | P150: =P149+(K150-K149)*(O150*M150) -> 1.33E+18 | Q150: =Q149+(K150-K149)*(M150) -> 8.98E+16
K151: 9.26E-02 | L151: 5.68E+13 | M151: =L151*10000 -> 5.68E+17 | N151: 9.70E+04 | O151: 12.888621 | P151: =P150+(K151-K150)*(O151*M151) -> 1.38E+18 | Q151: =Q150+(K151-K150)*(M151) -> 9.37E+16
K152: 1.00E-01 | L152: 9.00E+13 | M152: =L152*10000 -> 9.00E+17 | N152: 1.00E+05 | O152: 12.74273 | P152: =P151+(K152-K151)*(O152*M152) -> 1.47E+18 | Q152: =Q151+(K152-K151)*(M152) -> 1.00E+17
K153: 1.08E-01 | L153: 1.27E+14 | M153: =L153*10000 -> 1.27E+18 | N153: 1.21E+05 | O153: 11.970787 | P153: =P152+(K153-K152)*(O153*M153) -> 1.59E+18 | Q153: =Q152+(K153-K152)*(M153) -> 1.11E+17
K154: 1.17E-01 | L154: 1.57E+14 | M154: =L154*10000 -> 1.57E+18 | N154: 1.52E+05 | O154: 10.885032 | P154: =P153+(K154-K153)*(O154*M154) -> 1.74E+18 | Q154: =Q153+(K154-K153)*(M154) -> 1.24E+17
K155: 1.26E-01 | L155: 1.33E+14 | M155: =L155*10000 -> 1.33E+18 | N155: 1.82E+05 | O155: 10.108876 | P155: =P154+(K155-K154)*(O155*M155) -> 1.86E+18 | Q155: =Q154+(K155-K154)*(M155) -> 1.36E+17
K156: 1.36E-01 | L156: 2.44E+14 | M156: =L156*10000 -> 2.44E+18 | N156: 2.12E+05 | O156: 9.438418 | P156: =P155+(K156-K155)*(O156*M156) -> 2.09E+18 | Q156: =Q155+(K156-K155)*(M156) -> 1.61E+17
K157: 1.47E-01 | L157: 1.36E+14 | M157: =L157*10000 -> 1.36E+18 | N157: 2.42E+05 | O157: 8.92574 | P157: =P156+(K157-K156)*(O157*M157) -> 2.23E+18 | Q157: =Q156+(K157-K156)*(M157) -> 1.76E+17
K158: 1.58E-01 | L158: 9.94E+13 | M158: =L158*10000 -> 9.94E+17 | N158: 2.73E+05 | O158: 8.413241 | P158: =P157+(K158-K157)*(O158*M158) -> 2.32E+18 | Q158: =Q157+(K158-K157)*(M158) -> 1.87E+17
K159: 1.71E-01 | L159: 1.15E+14 | M159: =L159*10000 -> 1.15E+18 | N159: 3.03E+05 | O159: 7.919667 | P159: =P158+(K159-K158)*(O159*M159) -> 2.44E+18 | Q159: =Q158+(K159-K158)*(M159) -> 2.02E+17
K160: 1.85E-01 | L160: 1.68E+14 | M160: =L160*10000 -> 1.68E+18 | N160: 3.33E+05 | O160: 7.593479 | P160: =P159+(K160-K159)*(O160*M160) -> 2.61E+18 | Q160: =Q159+(K160-K159)*(M160) -> 2.25E+17
K161: 2.00E-01 | L161: 1.88E+14 | M161: =L161*10000 -> 1.88E+18 | N161: 3.64E+05 | O161: 7.267607 | P161: =P160+(K161-K160)*(O161*M161) -> 2.81E+18 | Q161: =Q160+(K161-K160)*(M161) -> 2.53E+17
K162: 2.15E-01 | L162: 1.36E+14 | M162: =L162*10000 -> 1.36E+18 | N162: 3.94E+05 | O162: 6.941796 | P162: =P161+(K162-K161)*(O162*M162) -> 2.96E+18 | Q162: =Q161+(K162-K161)*(M162) -> 2.74E+17
K163: 2.33E-01 | L163: 1.62E+14 | M163: =L163*10000 -> 1.62E+18 | N163: 4.24E+05 | O163: 6.694491 | P163: =P162+(K163-K162)*(O163*M163) -> 3.15E+18 | Q163: =Q162+(K163-K162)*(M163) -> 3.02E+17
K164: 2.51E-01 | L164: 2.04E+14 | M164: =L164*10000 -> 2.04E+18 | N164: 4.55E+05 | O164: 6.466841 | P164: =P163+(K164-K163)*(O164*M164) -> 3.40E+18 | Q164: =Q163+(K164-K163)*(M164) -> 3.40E+17
K165: 2.71E-01 | L165: 2.54E+14 | M165: =L165*10000 -> 2.54E+18 | N165: 4.85E+05 | O165: 6.239348 | P165: =P164+(K165-K164)*(O165*M165) -> 3.71E+18 | Q165: =Q164+(K165-K164)*(M165) -> 3.91E+17
K166: 2.93E-01 | L166: 2.08E+14 | M166: =L166*10000 -> 2.08E+18 | N166: 5.15E+05 | O166: 6.040934 | P166: =P165+(K166-K165)*(O166*M166) -> 3.98E+18 | Q166: =Q165+(K166-K165)*(M166) -> 4.36E+17
K167: 3.16E-01 | L167: 1.98E+14 | M167: =L167*10000 -> 1.98E+18 | N167: 5.45E+05 | O167: 5.871597 | P167: =P166+(K167-K166)*(O167*M167) -> 4.26E+18 | Q167: =Q166+(K167-K166)*(M167) -> 4.82E+17
K168: 3.41E-01 | L168: 2.39E+14 | M168: =L168*10000 -> 2.39E+18 | N168: 5.76E+05 | O168: 5.702367 | P168: =P167+(K168-K167)*(O168*M168) -> 4.60E+18 | Q168: =Q167+(K168-K167)*(M168) -> 5.42E+17
K169: 3.69E-01 | L169: 2.54E+14 | M169: =L169*10000 -> 2.54E+18 | N169: 6.06E+05 | O169: 5.540633 | P169: =P168+(K169-K168)*(O169*M169) -> 4.98E+18 | Q169: =Q168+(K169-K168)*(M169) -> 6.11E+17
K170: 3.98E-01 | L170: 2.57E+14 | M170: =L170*10000 -> 2.57E+18 | N170: 6.36E+05 | O170: 5.408802 | P170: =P169+(K170-K169)*(O170*M170) -> 5.39E+18 | Q170: =Q169+(K170-K169)*(M170) -> 6.87E+17
K171: 4.30E-01 | L171: 2.21E+14 | M171: =L171*10000 -> 2.21E+18 | N171: 6.67E+05 | O171: 5.277021 | P171: =P170+(K171-K170)*(O171*M171) -> 5.76E+18 | Q171: =Q170+(K171-K170)*(M171) -> 7.57E+17
K172: 4.64E-01 | L172: 2.12E+14 | M172: =L172*10000 -> 2.12E+18 | N172: 6.97E+05 | O172: 5.145281 | P172: =P171+(K172-K171)*(O172*M172) -> 6.14E+18 | Q172: =Q171+(K172-K171)*(M172) -> 8.30E+17
K173: 5.01E-01 | L173: 2.71E+14 | M173: =L173*10000 -> 2.71E+18 | N173: 7.27E+05 | O173: 5.036528 | P173: =P172+(K173-K172)*(O173*M173) -> 6.64E+18 | Q173: =Q172+(K173-K172)*(M173) -> 9.30E+17
K174: 5.41E-01 | L174: 2.83E+14 | M174: =L174*10000 -> 2.83E+18 | N174: 7.58E+05 | O174: 4.93033 | P174: =P173+(K174-K173)*(O174*M174) -> 7.20E+18 | Q174: =Q173+(K174-K173)*(M174) -> 1.04E+18
K175: 5.84E-01 | L175: 2.93E+14 | M175: =L175*10000 -> 2.93E+18 | N175: 7.88E+05 | O175: 4.824131 | P175: =P174+(K175-K174)*(O175*M175) -> 7.81E+18 | Q175: =Q174+(K175-K174)*(M175) -> 1.17E+18
K176: 6.31E-01 | L176: 3.29E+14 | M176: =L176*10000 -> 3.29E+18 | N176: 8.18E+05 | O176: 4.728905 | P176: =P175+(K176-K175)*(O176*M176) -> 8.54E+18 | Q176: =Q175+(K176-K175)*(M176) -> 1.32E+18
K177: 6.81E-01 | L177: 3.15E+14 | M177: =L177*10000 -> 3.15E+18 | N177: 8.48E+05 | O177: 4.640993 | P177: =P176+(K177-K176)*(O177*M177) -> 9.27E+18 | Q177: =Q176+(K177-K176)*(M177) -> 1.48E+18
K178: 7.36E-01 | L178: 3.87E+14 | M178: =L178*10000 -> 3.87E+18 | N178: 8.79E+05 | O178: 4.55308 | P178: =P177+(K178-K177)*(O178*M178) -> 1.02E+19 | Q178: =Q177+(K178-K177)*(M178) -> 1.69E+18
K179: 7.94E-01 | L179: 3.56E+14 | M179: =L179*10000 -> 3.56E+18 | N179: 9.09E+05 | O179: 4.469236 | P179: =P178+(K179-K178)*(O179*M179) -> 1.12E+19 | Q179: =Q178+(K179-K178)*(M179) -> 1.90E+18
K180: 8.58E-01 | L180: 3.24E+14 | M180: =L180*10000 -> 3.24E+18 | N180: 9.39E+05 | O180: 4.394884 | P180: =P179+(K180-K179)*(O180*M180) -> 1.21E+19 | Q180: =Q179+(K180-K179)*(M180) -> 2.11E+18
K181: 9.26E-01 | L181: 3.25E+14 | M181: =L181*10000 -> 3.25E+18 | N181: 9.70E+05 | O181: 4.320532 | P181: =P180+(K181-K180)*(O181*M181) -> 1.30E+19 | Q181: =Q180+(K181-K180)*(M181) -> 2.33E+18
K182: 1.00E+00 | L182: 3.31E+14 | M182: =L182*10000 -> 3.31E+18 | N182: 1.00E+06 | O182: 4.24618 | P182: =P181+(K182-K181)*(O182*M182) -> 1.41E+19 | Q182: =Q181+(K182-K181)*(M182) -> 2.57E+18
K183: 1.08E+00 | L183: 3.49E+14 | M183: =L183*10000 -> 3.49E+18 | N183: 1.21E+06 | O183: 3.831821 | P183: =P182+(K183-K182)*(O183*M183) -> 1.51E+19 | Q183: =Q182+(K183-K182)*(M183) -> 2.85E+18
K184: 1.17E+00 | L184: 3.52E+14 | M184: =L184*10000 -> 3.52E+18 | N184: 1.52E+06 | O184: 3.397621 | P184: =P183+(K184-K183)*(O184*M184) -> 1.62E+19 | Q184: =Q183+(K184-K183)*(M184) -> 3.16E+18
K185: 1.26E+00 | L185: 3.40E+14 | M185: =L185*10000 -> 3.40E+18 | N185: 1.82E+06 | O185: 3.066011 | P185: =P184+(K185-K184)*(O185*M185) -> 1.71E+19 | Q185: =Q184+(K185-K184)*(M185) -> 3.47E+18
K186: 1.36E+00 | L186: 3.62E+14 | M186: =L186*10000 -> 3.62E+18 | N186: 2.12E+06 | O186: 2.809687 | P186: =P185+(K186-K185)*(O186*M186) -> 1.82E+19 | Q186: =Q185+(K186-K185)*(M186) -> 3.84E+18
K187: 1.47E+00 | L187: 3.73E+14 | M187: =L187*10000 -> 3.73E+18 | N187: 2.42E+06 | O187: 2.597201 | P187: =P186+(K187-K186)*(O187*M187) -> 1.92E+19 | Q187: =Q186+(K187-K186)*(M187) -> 4.24E+18
K188: 1.58E+00 | L188: 3.62E+14 | M188: =L188*10000 -> 3.62E+18 | N188: 2.73E+06 | O188: 2.420577 | P188: =P187+(K188-K187)*(O188*M188) -> 2.02E+19 | Q188: =Q187+(K188-K187)*(M188) -> 4.66E+18
K189: 1.71E+00 | L189: 3.65E+14 | M189: =L189*10000 -> 3.65E+18 | N189: 3.03E+06 | O189: 2.267842 | P189: =P188+(K189-K188)*(O189*M189) -> 2.13E+19 | Q189: =Q188+(K189-K188)*(M189) -> 5.13E+18
K190: 1.85E+00 | L190: 3.61E+14 | M190: =L190*10000 -> 3.61E+18 | N190: 3.33E+06 | O190: 2.135646 | P190: =P189+(K190-K189)*(O190*M190) -> 2.23E+19 | Q190: =Q189+(K190-K189)*(M190) -> 5.62E+18
K191: 2.00E+00 | L191: 3.41E+14 | M191: =L191*10000 -> 3.41E+18 | N191: 3.64E+06 | O191: 2.018435 | P191: =P190+(K191-K190)*(O191*M191) -> 2.33E+19 | Q191: =Q190+(K191-K190)*(M191) -> 6.12E+18
K192: 2.15E+00 | L192: 3.25E+14 | M192: =L192*10000 -> 3.25E+18 | N192: 3.94E+06 | O192: 1.914381 | P192: =P191+(K192-K191)*(O192*M192) -> 2.43E+19 | Q192: =Q191+(K192-K191)*(M192) -> 6.64E+18
K193: 2.33E+00 | L193: 3.25E+14 | M193: =L193*10000 -> 3.25E+18 | N193: 4.24E+06 | O193: 1.820603 | P193: =P192+(K193-K192)*(O193*M193) -> 2.54E+19 | Q193: =Q192+(K193-K192)*(M193) -> 7.20E+18
K194: 2.51E+00 | L194: 3.56E+14 | M194: =L194*10000 -> 3.56E+18 | N194: 4.55E+06 | O194: 1.735897 | P194: =P193+(K194-K193)*(O194*M194) -> 2.65E+19 | Q194: =Q193+(K194-K193)*(M194) -> 7.86E+18
K195: 2.71E+00 | L195: 2.96E+14 | M195: =L195*10000 -> 2.96E+18 | N195: 4.85E+06 | O195: 1.658676 | P195: =P194+(K195-K194)*(O195*M195) -> 2.75E+19 | Q195: =Q194+(K195-K194)*(M195) -> 8.45E+18
K196: 2.93E+00 | L196: 2.73E+14 | M196: =L196*10000 -> 2.73E+18 | N196: 5.15E+06 | O196: 1.589394 | P196: =P195+(K196-K195)*(O196*M196) -> 2.84E+19 | Q196: =Q195+(K196-K195)*(M196) -> 9.04E+18
K197: 3.16E+00 | L197: 2.54E+14 | M197: =L197*10000 -> 2.54E+18 | N197: 5.45E+06 | O197: 1.523476 | P197: =P196+(K197-K196)*(O197*M197) -> 2.93E+19 | Q197: =Q196+(K197-K196)*(M197) -> 9.64E+18
K198: 3.41E+00 | L198: 2.20E+14 | M198: =L198*10000 -> 2.20E+18 | N198: 5.76E+06 | O198: 1.464444 | P198: =P197+(K198-K197)*(O198*M198) -> 3.01E+19 | Q198: =Q197+(K198-K197)*(M198) -> 1.02E+19
K199: 3.69E+00 | L199: 1.87E+14 | M199: =L199*10000 -> 1.87E+18 | N199: 6.06E+06 | O199: 1.407955 | P199: =P198+(K199-K198)*(O199*M199) -> 3.09E+19 | Q199: =Q198+(K199-K198)*(M199) -> 1.07E+19
K200: 3.98E+00 | L200: 1.66E+14 | M200: =L200*10000 -> 1.66E+18 | N200: 6.36E+06 | O200: 1.356774 | P200: =P199+(K200-K199)*(O200*M200) -> 3.15E+19 | Q200: =Q199+(K200-K199)*(M200) -> 1.12E+19
... 42 more rows

Sheet H-1 s
A1: Energy (MeV) | B1: Flux (n/cm2-s) | C1: Flux (n/m2-s) | D1: E(JANIS) | E1: sigma (b) | F1: Int(s*F) | G1: Int(F) | I1: Value | K1: Energy (MeV) | L1: Flux (n/cm2-s) | M1: Flux (n/m2-s) | N1: E(JANIS) | O1: sigma (b) | P1: Int(s*F) | Q1: Int(F) | S1: Value
A2: 1.00E-10 | B2: 0.00E+00 | C2: =B2*10000 -> 0.00E+00 | I2: =F121/G121 -> 2.14E+01 | K2: 1.00E-06 | L2: 5.55E+13 | M2: =L2*10000 -> 5.55E+17 | S2: =P121/Q121 -> 1.96E+01
A3: 1.08E-10 | B3: 0.00E+00 | C3: =B3*10000 -> 0.00E+00 | D3: 1.21E-04 | E3: 3.39E+02 | F3: =F2+(A3-A2)*(E3*C3) -> 0.00E+00 | G3: =G2+(A3-A2)*(C3) -> 0.00E+00 | K3: 1.08E-06 | L3: 5.59E+13 | M3: =L3*10000 -> 5.59E+17 | N3: 1.21E+00 | O3: 2.07E+01 | P3: =P2+(K3-K2)*(O3*M3) -> 9.23E+11 | Q3: =Q2+(K3-K2)*(M3) -> 4.46E+10
A4: 1.17E-10 | B4: 0.00E+00 | C4: =B4*10000 -> 0.00E+00 | D4: 1.52E-04 | E4: 3.03E+02 | F4: =F3+(A4-A3)*(E4*C4) -> 0.00E+00 | G4: =G3+(A4-A3)*(C4) -> 0.00E+00 | K4: 1.17E-06 | L4: 5.42E+13 | M4: =L4*10000 -> 5.42E+17 | N4: 1.52E+00 | O4: 2.07E+01 | P4: =P3+(K4-K3)*(O4*M4) -> 1.89E+12 | Q4: =Q3+(K4-K3)*(M4) -> 9.13E+10
A5: 1.26E-10 | B5: 0.00E+00 | C5: =B5*10000 -> 0.00E+00 | D5: 1.82E-04 | E5: 2.77E+02 | F5: =F4+(A5-A4)*(E5*C5) -> 0.00E+00 | G5: =G4+(A5-A4)*(C5) -> 0.00E+00 | K5: 1.26E-06 | L5: 5.59E+13 | M5: =L5*10000 -> 5.59E+17 | N5: 1.82E+00 | O5: 2.06E+01 | P5: =P4+(K5-K4)*(O5*M5) -> 2.96E+12 | Q5: =Q4+(K5-K4)*(M5) -> 1.43E+11
A6: 1.36E-10 | B6: 0.00E+00 | C6: =B6*10000 -> 0.00E+00 | D6: 2.12E-04 | E6: 2.56E+02 | F6: =F5+(A6-A5)*(E6*C6) -> 0.00E+00 | G6: =G5+(A6-A5)*(C6) -> 0.00E+00 | K6: 1.36E-06 | L6: 5.68E+13 | M6: =L6*10000 -> 5.68E+17 | N6: 2.12E+00 | O6: 2.06E+01 | P6: =P5+(K6-K5)*(O6*M6) -> 4.13E+12 | Q6: =Q5+(K6-K5)*(M6) -> 2.00E+11
A7: 1.47E-10 | B7: 0.00E+00 | C7: =B7*10000 -> 0.00E+00 | D7: 2.42E-04 | E7: 2.40E+02 | F7: =F6+(A7-A6)*(E7*C7) -> 0.00E+00 | G7: =G6+(A7-A6)*(C7) -> 0.00E+00 | K7: 1.47E-06 | L7: 5.47E+13 | M7: =L7*10000 -> 5.47E+17 | N7: 2.42E+00 | O7: 2.06E+01 | P7: =P6+(K7-K6)*(O7*M7) -> 5.35E+12 | Q7: =Q6+(K7-K6)*(M7) -> 2.60E+11
A8: 1.58E-10 | B8: 0.00E+00 | C8: =B8*10000 -> 0.00E+00 | D8: 2.73E-04 | E8: 2.26E+02 | F8: =F7+(A8-A7)*(E8*C8) -> 0.00E+00 | G8: =G7+(A8-A7)*(C8) -> 0.00E+00 | K8: 1.58E-06 | L8: 5.38E+13 | M8: =L8*10000 -> 5.38E+17 | N8: 2.73E+00 | O8: 2.06E+01 | P8: =P7+(K8-K7)*(O8*M8) -> 6.65E+12 | Q8: =Q7+(K8-K7)*(M8) -> 3.23E+11
A9: 1.71E-10 | B9: 0.00E+00 | C9: =B9*10000 -> 0.00E+00 | D9: 3.03E-04 | E9: 2.15E+02 | F9: =F8+(A9-A8)*(E9*C9) -> 0.00E+00 | G9: =G8+(A9-A8)*(C9) -> 0.00E+00 | K9: 1.71E-06 | L9: 5.52E+13 | M9: =L9*10000 -> 5.52E+17 | N9: 3.03E+00 | O9: 2.06E+01 | P9: =P8+(K9-K8)*(O9*M9) -> 8.08E+12 | Q9: =Q8+(K9-K8)*(M9) -> 3.92E+11
A10: 1.85E-10 | B10: 0.00E+00 | C10: =B10*10000 -> 0.00E+00 | D10: 3.33E-04 | E10: 2.05E+02 | F10: =F9+(A10-A9)*(E10*C10) -> 0.00E+00 | G10: =G9+(A10-A9)*(C10) -> 0.00E+00 | K10: 1.85E-06 | L10: 5.47E+13 | M10: =L10*10000 -> 5.47E+17 | N10: 3.33E+00 | O10: 2.05E+01 | P10: =P9+(K10-K9)*(O10*M10) -> 9.62E+12 | Q10: =Q9+(K10-K9)*(M10) -> 4.67E+11
A11: 2.00E-10 | B11: 0.00E+00 | C11: =B11*10000 -> 0.00E+00 | D11: 3.64E-04 | E11: 1.96E+02 | F11: =F10+(A11-A10)*(E11*C11) -> 0.00E+00 | G11: =G10+(A11-A10)*(C11) -> 0.00E+00 | K11: 2.00E-06 | L11: 5.68E+13 | M11: =L11*10000 -> 5.68E+17 | N11: 3.64E+00 | O11: 2.05E+01 | P11: =P10+(K11-K10)*(O11*M11) -> 1.13E+13 | Q11: =Q10+(K11-K10)*(M11) -> 5.51E+11
A12: 2.15E-10 | B12: 0.00E+00 | C12: =B12*10000 -> 0.00E+00 | D12: 3.94E-04 | E12: 1.89E+02 | F12: =F11+(A12-A11)*(E12*C12) -> 0.00E+00 | G12: =G11+(A12-A11)*(C12) -> 0.00E+00 | K12: 2.15E-06 | L12: 5.57E+13 | M12: =L12*10000 -> 5.57E+17 | N12: 3.94E+00 | O12: 2.05E+01 | P12: =P11+(K12-K11)*(O12*M12) -> 1.32E+13 | Q12: =Q11+(K12-K11)*(M12) -> 6.39E+11
A13: 2.33E-10 | B13: 0.00E+00 | C13: =B13*10000 -> 0.00E+00 | D13: 4.24E-04 | E13: 1.82E+02 | F13: =F12+(A13-A12)*(E13*C13) -> 0.00E+00 | G13: =G12+(A13-A12)*(C13) -> 0.00E+00 | K13: 2.33E-06 | L13: 5.56E+13 | M13: =L13*10000 -> 5.56E+17 | N13: 4.24E+00 | O13: 2.05E+01 | P13: =P12+(K13-K12)*(O13*M13) -> 1.51E+13 | Q13: =Q12+(K13-K12)*(M13) -> 7.35E+11
A14: 2.51E-10 | B14: 0.00E+00 | C14: =B14*10000 -> 0.00E+00 | D14: 4.55E-04 | E14: 1.76E+02 | F14: =F13+(A14-A13)*(E14*C14) -> 0.00E+00 | G14: =G13+(A14-A13)*(C14) -> 0.00E+00 | K14: 2.51E-06 | L14: 5.65E+13 | M14: =L14*10000 -> 5.65E+17 | N14: 4.55E+00 | O14: 2.05E+01 | P14: =P13+(K14-K13)*(O14*M14) -> 1.73E+13 | Q14: =Q13+(K14-K13)*(M14) -> 8.40E+11
A15: 2.71E-10 | B15: 0.00E+00 | C15: =B15*10000 -> 0.00E+00 | D15: 4.85E-04 | E15: 1.70E+02 | F15: =F14+(A15-A14)*(E15*C15) -> 0.00E+00 | G15: =G14+(A15-A14)*(C15) -> 0.00E+00 | K15: 2.71E-06 | L15: 5.32E+13 | M15: =L15*10000 -> 5.32E+17 | N15: 4.85E+00 | O15: 2.05E+01 | P15: =P14+(K15-K14)*(O15*M15) -> 1.95E+13 | Q15: =Q14+(K15-K14)*(M15) -> 9.47E+11
A16: 2.93E-10 | B16: 3.02E+10 | C16: =B16*10000 -> 3.02E+14 | D16: 5.15E-04 | E16: 1.65E+02 | F16: =F15+(A16-A15)*(E16*C16) -> 1.08E+06 | G16: =G15+(A16-A15)*(C16) -> 6.54E+03 | K16: 2.93E-06 | L16: 5.44E+13 | M16: =L16*10000 -> 5.44E+17 | N16: 5.15E+00 | O16: 2.05E+01 | P16: =P15+(K16-K15)*(O16*M16) -> 2.19E+13 | Q16: =Q15+(K16-K15)*(M16) -> 1.06E+12
A17: 3.16E-10 | B17: 2.75E+10 | C17: =B17*10000 -> 2.75E+14 | D17: 5.45E-04 | E17: 1.61E+02 | F17: =F16+(A17-A16)*(E17*C17) -> 2.11E+06 | G17: =G16+(A17-A16)*(C17) -> 1.30E+04 | K17: 3.16E-06 | L17: 5.39E+13 | M17: =L17*10000 -> 5.39E+17 | N17: 5.45E+00 | O17: 2.05E+01 | P17: =P16+(K17-K16)*(O17*M17) -> 2.45E+13 | Q17: =Q16+(K17-K16)*(M17) -> 1.19E+12
A18: 3.41E-10 | B18: 0.00E+00 | C18: =B18*10000 -> 0.00E+00 | D18: 5.76E-04 | E18: 1.56E+02 | F18: =F17+(A18-A17)*(E18*C18) -> 2.11E+06 | G18: =G17+(A18-A17)*(C18) -> 1.30E+04 | K18: 3.41E-06 | L18: 5.38E+13 | M18: =L18*10000 -> 5.38E+17 | N18: 5.76E+00 | O18: 2.05E+01 | P18: =P17+(K18-K17)*(O18*M18) -> 2.72E+13 | Q18: =Q17+(K18-K17)*(M18) -> 1.33E+12
A19: 3.69E-10 | B19: 1.02E+10 | C19: =B19*10000 -> 1.02E+14 | D19: 6.06E-04 | E19: 1.52E+02 | F19: =F18+(A19-A18)*(E19*C19) -> 2.54E+06 | G19: =G18+(A19-A18)*(C19) -> 1.58E+04 | K19: 3.69E-06 | L19: 5.56E+13 | M19: =L19*10000 -> 5.56E+17 | N19: 6.06E+00 | O19: 2.05E+01 | P19: =P18+(K19-K18)*(O19*M19) -> 3.03E+13 | Q19: =Q18+(K19-K18)*(M19) -> 1.48E+12
A20: 3.98E-10 | B20: 0.00E+00 | C20: =B20*10000 -> 0.00E+00 | D20: 6.36E-04 | E20: 1.49E+02 | F20: =F19+(A20-A19)*(E20*C20) -> 2.54E+06 | G20: =G19+(A20-A19)*(C20) -> 1.58E+04 | K20: 3.98E-06 | L20: 5.65E+13 | M20: =L20*10000 -> 5.65E+17 | N20: 6.36E+00 | O20: 2.05E+01 | P20: =P19+(K20-K19)*(O20*M20) -> 3.38E+13 | Q20: =Q19+(K20-K19)*(M20) -> 1.64E+12
A21: 4.30E-10 | B21: 1.26E+10 | C21: =B21*10000 -> 1.26E+14 | D21: 6.67E-04 | E21: 1.46E+02 | F21: =F20+(A21-A20)*(E21*C21) -> 3.12E+06 | G21: =G20+(A21-A20)*(C21) -> 1.98E+04 | K21: 4.30E-06 | L21: 5.56E+13 | M21: =L21*10000 -> 5.56E+17 | N21: 6.67E+00 | O21: 2.05E+01 | P21: =P20+(K21-K20)*(O21*M21) -> 3.74E+13 | Q21: =Q20+(K21-K20)*(M21) -> 1.82E+12
A22: 4.64E-10 | B22: 7.95E+09 | C22: =B22*10000 -> 7.95E+13 | D22: 6.97E-04 | E22: 1.42E+02 | F22: =F21+(A22-A21)*(E22*C22) -> 3.51E+06 | G22: =G21+(A22-A21)*(C22) -> 2.25E+04 | K22: 4.64E-06 | L22: 5.38E+13 | M22: =L22*10000 -> 5.38E+17 | N22: 6.97E+00 | O22: 2.05E+01 | P22: =P21+(K22-K21)*(O22*M22) -> 4.12E+13 | Q22: =Q21+(K22-K21)*(M22) -> 2.00E+12
A23: 5.01E-10 | B23: 7.77E+09 | C23: =B23*10000 -> 7.77E+13 | D23: 7.27E-04 | E23: 1.39E+02 | F23: =F22+(A23-A22)*(E23*C23) -> 3.91E+06 | G23: =G22+(A23-A22)*(C23) -> 2.54E+04 | K23: 5.01E-06 | L23: 5.23E+13 | M23: =L23*10000 -> 5.23E+17 | N23: 7.27E+00 | O23: 2.05E+01 | P23: =P22+(K23-K22)*(O23*M23) -> 4.51E+13 | Q23: =Q22+(K23-K22)*(M23) -> 2.20E+12
A24: 5.41E-10 | B24: 6.15E+10 | C24: =B24*10000 -> 6.15E+14 | D24: 7.58E-04 | E24: 1.37E+02 | F24: =F23+(A24-A23)*(E24*C24) -> 7.27E+06 | G24: =G23+(A24-A23)*(C24) -> 4.99E+04 | K24: 5.41E-06 | L24: 5.55E+13 | M24: =L24*10000 -> 5.55E+17 | N24: 7.58E+00 | O24: 2.05E+01 | P24: =P23+(K24-K23)*(O24*M24) -> 4.97E+13 | Q24: =Q23+(K24-K23)*(M24) -> 2.42E+12
A25: 5.84E-10 | B25: 1.72E+10 | C25: =B25*10000 -> 1.72E+14 | D25: 7.88E-04 | E25: 1.34E+02 | F25: =F24+(A25-A24)*(E25*C25) -> 8.26E+06 | G25: =G24+(A25-A24)*(C25) -> 5.74E+04 | K25: 5.84E-06 | L25: 5.83E+13 | M25: =L25*10000 -> 5.83E+17 | N25: 7.88E+00 | O25: 2.05E+01 | P25: =P24+(K25-K24)*(O25*M25) -> 5.48E+13 | Q25: =Q24+(K25-K24)*(M25) -> 2.67E+12
A26: 6.31E-10 | B26: 7.71E+10 | C26: =B26*10000 -> 7.71E+14 | D26: 8.18E-04 | E26: 1.32E+02 | F26: =F25+(A26-A25)*(E26*C26) -> 1.30E+07 | G26: =G25+(A26-A25)*(C26) -> 9.33E+04 | K26: 6.31E-06 | L26: 5.67E+13 | M26: =L26*10000 -> 5.67E+17 | N26: 8.18E+00 | O26: 2.05E+01 | P26: =P25+(K26-K25)*(O26*M26) -> 6.02E+13 | Q26: =Q25+(K26-K25)*(M26) -> 2.94E+12
A27: 6.81E-10 | B27: 1.54E+10 | C27: =B27*10000 -> 1.54E+14 | D27: 8.48E-04 | E27: 1.29E+02 | F27: =F26+(A27-A26)*(E27*C27) -> 1.40E+07 | G27: =G26+(A27-A26)*(C27) -> 1.01E+05 | K27: 6.81E-06 | L27: 5.50E+13 | M27: =L27*10000 -> 5.50E+17 | N27: 8.48E+00 | O27: 2.05E+01 | P27: =P26+(K27-K26)*(O27*M27) -> 6.59E+13 | Q27: =Q26+(K27-K26)*(M27) -> 3.21E+12
A28: 7.36E-10 | B28: 4.12E+10 | C28: =B28*10000 -> 4.12E+14 | D28: 8.79E-04 | E28: 1.27E+02 | F28: =F27+(A28-A27)*(E28*C28) -> 1.68E+07 | G28: =G27+(A28-A27)*(C28) -> 1.23E+05 | K28: 7.36E-06 | L28: 5.72E+13 | M28: =L28*10000 -> 5.72E+17 | N28: 8.79E+00 | O28: 2.05E+01 | P28: =P27+(K28-K27)*(O28*M28) -> 7.23E+13 | Q28: =Q27+(K28-K27)*(M28) -> 3.52E+12
A29: 7.94E-10 | B29: 8.22E+10 | C29: =B29*10000 -> 8.22E+14 | D29: 9.09E-04 | E29: 1.25E+02 | F29: =F28+(A29-A28)*(E29*C29) -> 2.29E+07 | G29: =G28+(A29-A28)*(C29) -> 1.72E+05 | K29: 7.94E-06 | L29: 5.84E+13 | M29: =L29*10000 -> 5.84E+17 | N29: 9.09E+00 | O29: 2.05E+01 | P29: =P28+(K29-K28)*(O29*M29) -> 7.93E+13 | Q29: =Q28+(K29-K28)*(M29) -> 3.87E+12
A30: 8.58E-10 | B30: 1.79E+11 | C30: =B30*10000 -> 1.79E+15 | D30: 9.39E-04 | E30: 1.23E+02 | F30: =F29+(A30-A29)*(E30*C30) -> 3.68E+07 | G30: =G29+(A30-A29)*(C30) -> 2.85E+05 | K30: 8.58E-06 | L30: 5.75E+13 | M30: =L30*10000 -> 5.75E+17 | N30: 9.39E+00 | O30: 2.05E+01 | P30: =P29+(K30-K29)*(O30*M30) -> 8.68E+13 | Q30: =Q29+(K30-K29)*(M30) -> 4.23E+12
A31: 9.26E-10 | B31: 1.38E+11 | C31: =B31*10000 -> 1.38E+15 | D31: 9.70E-04 | E31: 1.21E+02 | F31: =F30+(A31-A30)*(E31*C31) -> 4.82E+07 | G31: =G30+(A31-A30)*(C31) -> 3.79E+05 | K31: 9.26E-06 | L31: 5.55E+13 | M31: =L31*10000 -> 5.55E+17 | N31: 9.70E+00 | O31: 2.05E+01 | P31: =P30+(K31-K30)*(O31*M31) -> 9.45E+13 | Q31: =Q30+(K31-K30)*(M31) -> 4.61E+12
A32: 1.00E-09 | B32: 7.31E+10 | C32: =B32*10000 -> 7.31E+14 | D32: 1.00E-03 | E32: 1.19E+02 | F32: =F31+(A32-A31)*(E32*C32) -> 5.47E+07 | G32: =G31+(A32-A31)*(C32) -> 4.33E+05 | K32: 1.00E-05 | L32: 5.82E+13 | M32: =L32*10000 -> 5.82E+17 | N32: 1.00E+01 | O32: 2.05E+01 | P32: =P31+(K32-K31)*(O32*M32) -> 1.03E+14 | Q32: =Q31+(K32-K31)*(M32) -> 5.04E+12
A33: 1.08E-09 | B33: 1.03E+11 | C33: =B33*10000 -> 1.03E+15 | D33: 1.21E-03 | E33: 1.09E+02 | F33: =F32+(A33-A32)*(E33*C33) -> 6.36E+07 | G33: =G32+(A33-A32)*(C33) -> 5.16E+05 | K33: 1.08E-05 | L33: 5.69E+13 | M33: =L33*10000 -> 5.69E+17 | N33: 1.21E+01 | O33: 2.05E+01 | P33: =P32+(K33-K32)*(O33*M33) -> 1.13E+14 | Q33: =Q32+(K33-K32)*(M33) -> 5.50E+12
A34: 1.17E-09 | B34: 2.34E+11 | C34: =B34*10000 -> 2.34E+15 | D34: 1.52E-03 | E34: 9.75E+01 | F34: =F33+(A34-A33)*(E34*C34) -> 8.32E+07 | G34: =G33+(A34-A33)*(C34) -> 7.17E+05 | K34: 1.17E-05 | L34: 5.71E+13 | M34: =L34*10000 -> 5.71E+17 | N34: 1.52E+01 | O34: 2.05E+01 | P34: =P33+(K34-K33)*(O34*M34) -> 1.23E+14 | Q34: =Q33+(K34-K33)*(M34) -> 5.99E+12
A35: 1.26E-09 | B35: 1.62E+11 | C35: =B35*10000 -> 1.62E+15 | D35: 1.82E-03 | E35: 8.94E+01 | F35: =F34+(A35-A34)*(E35*C35) -> 9.67E+07 | G35: =G34+(A35-A34)*(C35) -> 8.68E+05 | K35: 1.26E-05 | L35: 5.40E+13 | M35: =L35*10000 -> 5.40E+17 | N35: 1.82E+01 | O35: 2.05E+01 | P35: =P34+(K35-K34)*(O35*M35) -> 1.33E+14 | Q35: =Q34+(K35-K34)*(M35) -> 6.49E+12
A36: 1.36E-09 | B36: 1.17E+11 | C36: =B36*10000 -> 1.17E+15 | D36: 2.12E-03 | E36: 8.31E+01 | F36: =F35+(A36-A35)*(E36*C36) -> 1.06E+08 | G36: =G35+(A36-A35)*(C36) -> 9.85E+05 | K36: 1.36E-05 | L36: 5.94E+13 | M36: =L36*10000 -> 5.94E+17 | N36: 2.12E+01 | O36: 2.05E+01 | P36: =P35+(K36-K35)*(O36*M36) -> 1.45E+14 | Q36: =Q35+(K36-K35)*(M36) -> 7.09E+12
A37: 1.47E-09 | B37: 2.33E+11 | C37: =B37*10000 -> 2.33E+15 | D37: 2.42E-03 | E37: 7.80E+01 | F37: =F36+(A37-A36)*(E37*C37) -> 1.26E+08 | G37: =G36+(A37-A36)*(C37) -> 1.24E+06 | K37: 1.47E-05 | L37: 5.95E+13 | M37: =L37*10000 -> 5.95E+17 | N37: 2.42E+01 | O37: 2.05E+01 | P37: =P36+(K37-K36)*(O37*M37) -> 1.58E+14 | Q37: =Q36+(K37-K36)*(M37) -> 7.73E+12
A38: 1.58E-09 | B38: 3.17E+11 | C38: =B38*10000 -> 3.17E+15 | D38: 2.73E-03 | E38: 7.38E+01 | F38: =F37+(A38-A37)*(E38*C38) -> 1.54E+08 | G38: =G37+(A38-A37)*(C38) -> 1.61E+06 | K38: 1.58E-05 | L38: 5.94E+13 | M38: =L38*10000 -> 5.94E+17 | N38: 2.73E+01 | O38: 2.05E+01 | P38: =P37+(K38-K37)*(O38*M38) -> 1.73E+14 | Q38: =Q37+(K38-K37)*(M38) -> 8.43E+12
A39: 1.71E-09 | B39: 3.29E+11 | C39: =B39*10000 -> 3.29E+15 | D39: 3.03E-03 | E39: 7.03E+01 | F39: =F38+(A39-A38)*(E39*C39) -> 1.83E+08 | G39: =G38+(A39-A38)*(C39) -> 2.03E+06 | K39: 1.71E-05 | L39: 5.76E+13 | M39: =L39*10000 -> 5.76E+17 | N39: 3.03E+01 | O39: 2.05E+01 | P39: =P38+(K39-K38)*(O39*M39) -> 1.88E+14 | Q39: =Q38+(K39-K38)*(M39) -> 9.15E+12
A40: 1.85E-09 | B40: 2.40E+11 | C40: =B40*10000 -> 2.40E+15 | D40: 3.33E-03 | E40: 6.72E+01 | F40: =F39+(A40-A39)*(E40*C40) -> 2.05E+08 | G40: =G39+(A40-A39)*(C40) -> 2.35E+06 | K40: 1.85E-05 | L40: 6.06E+13 | M40: =L40*10000 -> 6.06E+17 | N40: 3.33E+01 | O40: 2.04E+01 | P40: =P39+(K40-K39)*(O40*M40) -> 2.04E+14 | Q40: =Q39+(K40-K39)*(M40) -> 9.98E+12
A41: 2.00E-09 | B41: 5.05E+11 | C41: =B41*10000 -> 5.05E+15 | D41: 3.64E-03 | E41: 6.47E+01 | F41: =F40+(A41-A40)*(E41*C41) -> 2.53E+08 | G41: =G40+(A41-A40)*(C41) -> 3.10E+06 | K41: 2.00E-05 | L41: 5.93E+13 | M41: =L41*10000 -> 5.93E+17 | N41: 3.64E+01 | O41: 2.04E+01 | P41: =P40+(K41-K40)*(O41*M41) -> 2.22E+14 | Q41: =Q40+(K41-K40)*(M41) -> 1.09E+13
A42: 2.15E-09 | B42: 3.15E+11 | C42: =B42*10000 -> 3.15E+15 | D42: 3.94E-03 | E42: 6.23E+01 | F42: =F41+(A42-A41)*(E42*C42) -> 2.84E+08 | G42: =G41+(A42-A41)*(C42) -> 3.60E+06 | K42: 2.15E-05 | L42: 6.02E+13 | M42: =L42*10000 -> 6.02E+17 | N42: 3.94E+01 | O42: 2.04E+01 | P42: =P41+(K42-K41)*(O42*M42) -> 2.42E+14 | Q42: =Q41+(K42-K41)*(M42) -> 1.18E+13
A43: 2.33E-09 | B43: 5.45E+11 | C43: =B43*10000 -> 5.45E+15 | D43: 4.24E-03 | E43: 6.02E+01 | F43: =F42+(A43-A42)*(E43*C43) -> 3.41E+08 | G43: =G42+(A43-A42)*(C43) -> 4.54E+06 | K43: 2.33E-05 | L43: 6.24E+13 | M43: =L43*10000 -> 6.24E+17 | N43: 4.24E+01 | O43: 2.04E+01 | P43: =P42+(K43-K42)*(O43*M43) -> 2.64E+14 | Q43: =Q42+(K43-K42)*(M43) -> 1.29E+13
A44: 2.51E-09 | B44: 5.21E+11 | C44: =B44*10000 -> 5.21E+15 | D44: 4.55E-03 | E44: 5.84E+01 | F44: =F43+(A44-A43)*(E44*C44) -> 3.97E+08 | G44: =G43+(A44-A43)*(C44) -> 5.50E+06 | K44: 2.51E-05 | L44: 6.32E+13 | M44: =L44*10000 -> 6.32E+17 | N44: 4.55E+01 | O44: 2.04E+01 | P44: =P43+(K44-K43)*(O44*M44) -> 2.88E+14 | Q44: =Q43+(K44-K43)*(M44) -> 1.41E+13
A45: 2.71E-09 | B45: 7.35E+11 | C45: =B45*10000 -> 7.35E+15 | D45: 4.85E-03 | E45: 5.68E+01 | F45: =F44+(A45-A44)*(E45*C45) -> 4.81E+08 | G45: =G44+(A45-A44)*(C45) -> 6.97E+06 | K45: 2.71E-05 | L45: 6.22E+13 | M45: =L45*10000 -> 6.22E+17 | N45: 4.85E+01 | O45: 2.04E+01 | P45: =P44+(K45-K44)*(O45*M45) -> 3.13E+14 | Q45: =Q44+(K45-K44)*(M45) -> 1.53E+13
A46: 2.93E-09 | B46: 1.37E+12 | C46: =B46*10000 -> 1.37E+16 | D46: 5.15E-03 | E46: 5.53E+01 | F46: =F45+(A46-A45)*(E46*C46) -> 6.44E+08 | G46: =G45+(A46-A45)*(C46) -> 9.94E+06 | K46: 2.93E-05 | L46: 6.21E+13 | M46: =L46*10000 -> 6.21E+17 | N46: 5.15E+01 | O46: 2.04E+01 | P46: =P45+(K46-K45)*(O46*M46) -> 3.41E+14 | Q46: =Q45+(K46-K45)*(M46) -> 1.67E+13
A47: 3.16E-09 | B47: 1.44E+12 | C47: =B47*10000 -> 1.44E+16 | D47: 5.46E-03 | E47: 5.39E+01 | F47: =F46+(A47-A46)*(E47*C47) -> 8.26E+08 | G47: =G46+(A47-A46)*(C47) -> 1.33E+07 | K47: 3.16E-05 | L47: 6.24E+13 | M47: =L47*10000 -> 6.24E+17 | N47: 5.45E+01 | O47: 2.04E+01 | P47: =P46+(K47-K46)*(O47*M47) -> 3.71E+14 | Q47: =Q46+(K47-K46)*(M47) -> 1.81E+13
A48: 3.41E-09 | B48: 1.61E+12 | C48: =B48*10000 -> 1.61E+16 | D48: 5.76E-03 | E48: 5.27E+01 | F48: =F47+(A48-A47)*(E48*C48) -> 1.04E+09 | G48: =G47+(A48-A47)*(C48) -> 1.74E+07 | K48: 3.41E-05 | L48: 6.26E+13 | M48: =L48*10000 -> 6.26E+17 | N48: 5.76E+01 | O48: 2.04E+01 | P48: =P47+(K48-K47)*(O48*M48) -> 4.03E+14 | Q48: =Q47+(K48-K47)*(M48) -> 1.97E+13
A49: 3.69E-09 | B49: 1.44E+12 | C49: =B49*10000 -> 1.44E+16 | D49: 6.06E-03 | E49: 5.15E+01 | F49: =F48+(A49-A48)*(E49*C49) -> 1.24E+09 | G49: =G48+(A49-A48)*(C49) -> 2.13E+07 | K49: 3.69E-05 | L49: 6.12E+13 | M49: =L49*10000 -> 6.12E+17 | N49: 6.06E+01 | O49: 2.04E+01 | P49: =P48+(K49-K48)*(O49*M49) -> 4.37E+14 | Q49: =Q48+(K49-K48)*(M49) -> 2.14E+13
A50: 3.98E-09 | B50: 1.92E+12 | C50: =B50*10000 -> 1.92E+16 | D50: 6.36E-03 | E50: 5.04E+01 | F50: =F49+(A50-A49)*(E50*C50) -> 1.53E+09 | G50: =G49+(A50-A49)*(C50) -> 2.70E+07 | K50: 3.98E-05 | L50: 6.60E+13 | M50: =L50*10000 -> 6.60E+17 | N50: 6.36E+01 | O50: 2.04E+01 | P50: =P49+(K50-K49)*(O50*M50) -> 4.77E+14 | Q50: =Q49+(K50-K49)*(M50) -> 2.33E+13
A51: 4.30E-09 | B51: 2.29E+12 | C51: =B51*10000 -> 2.29E+16 | D51: 6.67E-03 | E51: 4.95E+01 | F51: =F50+(A51-A50)*(E51*C51) -> 1.89E+09 | G51: =G50+(A51-A50)*(C51) -> 3.42E+07 | K51: 4.30E-05 | L51: 6.45E+13 | M51: =L51*10000 -> 6.45E+17 | N51: 6.67E+01 | O51: 2.04E+01 | P51: =P50+(K51-K50)*(O51*M51) -> 5.18E+14 | Q51: =Q50+(K51-K50)*(M51) -> 2.53E+13
A52: 4.64E-09 | B52: 2.67E+12 | C52: =B52*10000 -> 2.67E+16 | D52: 6.97E-03 | E52: 4.85E+01 | F52: =F51+(A52-A51)*(E52*C52) -> 2.33E+09 | G52: =G51+(A52-A51)*(C52) -> 4.34E+07 | K52: 4.64E-05 | L52: 6.64E+13 | M52: =L52*10000 -> 6.64E+17 | N52: 6.97E+01 | O52: 2.04E+01 | P52: =P51+(K52-K51)*(O52*M52) -> 5.65E+14 | Q52: =Q51+(K52-K51)*(M52) -> 2.76E+13
A53: 5.01E-09 | B53: 2.14E+12 | C53: =B53*10000 -> 2.14E+16 | D53: 7.27E-03 | E53: 4.77E+01 | F53: =F52+(A53-A52)*(E53*C53) -> 2.71E+09 | G53: =G52+(A53-A52)*(C53) -> 5.13E+07 | K53: 5.01E-05 | L53: 6.45E+13 | M53: =L53*10000 -> 6.45E+17 | N53: 7.27E+01 | O53: 2.04E+01 | P53: =P52+(K53-K52)*(O53*M53) -> 6.14E+14 | Q53: =Q52+(K53-K52)*(M53) -> 3.00E+13
A54: 5.41E-09 | B54: 2.71E+12 | C54: =B54*10000 -> 2.71E+16 | D54: 7.58E-03 | E54: 4.69E+01 | F54: =F53+(A54-A53)*(E54*C54) -> 3.22E+09 | G54: =G53+(A54-A53)*(C54) -> 6.21E+07 | K54: 5.41E-05 | L54: 6.63E+13 | M54: =L54*10000 -> 6.63E+17 | N54: 7.58E+01 | O54: 2.04E+01 | P54: =P53+(K54-K53)*(O54*M54) -> 6.68E+14 | Q54: =Q53+(K54-K53)*(M54) -> 3.27E+13
A55: 5.84E-09 | B55: 3.09E+12 | C55: =B55*10000 -> 3.09E+16 | D55: 7.88E-03 | E55: 4.61E+01 | F55: =F54+(A55-A54)*(E55*C55) -> 3.83E+09 | G55: =G54+(A55-A54)*(C55) -> 7.55E+07 | K55: 5.84E-05 | L55: 6.24E+13 | M55: =L55*10000 -> 6.24E+17 | N55: 7.88E+01 | O55: 2.04E+01 | P55: =P54+(K55-K54)*(O55*M55) -> 7.23E+14 | Q55: =Q54+(K55-K54)*(M55) -> 3.54E+13
A56: 6.31E-09 | B56: 4.61E+12 | C56: =B56*10000 -> 4.61E+16 | D56: 8.18E-03 | E56: 4.54E+01 | F56: =F55+(A56-A55)*(E56*C56) -> 4.81E+09 | G56: =G55+(A56-A55)*(C56) -> 9.70E+07 | K56: 6.31E-05 | L56: 6.85E+13 | M56: =L56*10000 -> 6.85E+17 | N56: 8.18E+01 | O56: 2.04E+01 | P56: =P55+(K56-K55)*(O56*M56) -> 7.88E+14 | Q56: =Q55+(K56-K55)*(M56) -> 3.85E+13
A57: 6.81E-09 | B57: 6.12E+12 | C57: =B57*10000 -> 6.12E+16 | D57: 8.49E-03 | E57: 4.47E+01 | F57: =F56+(A57-A56)*(E57*C57) -> 6.19E+09 | G57: =G56+(A57-A56)*(C57) -> 1.28E+08 | K57: 6.81E-05 | L57: 6.37E+13 | M57: =L57*10000 -> 6.37E+17 | N57: 8.48E+01 | O57: 2.04E+01 | P57: =P56+(K57-K56)*(O57*M57) -> 8.54E+14 | Q57: =Q56+(K57-K56)*(M57) -> 4.18E+13
A58: 7.36E-09 | B58: 6.24E+12 | C58: =B58*10000 -> 6.24E+16 | D58: 8.79E-03 | E58: 4.41E+01 | F58: =F57+(A58-A57)*(E58*C58) -> 7.68E+09 | G58: =G57+(A58-A57)*(C58) -> 1.62E+08 | K58: 7.36E-05 | L58: 6.57E+13 | M58: =L58*10000 -> 6.57E+17 | N58: 8.79E+01 | O58: 2.04E+01 | P58: =P57+(K58-K57)*(O58*M58) -> 9.27E+14 | Q58: =Q57+(K58-K57)*(M58) -> 4.53E+13
A59: 7.94E-09 | B59: 6.35E+12 | C59: =B59*10000 -> 6.35E+16 | D59: 9.09E-03 | E59: 4.35E+01 | F59: =F58+(A59-A58)*(E59*C59) -> 9.30E+09 | G59: =G58+(A59-A58)*(C59) -> 1.99E+08 | K59: 7.94E-05 | L59: 6.56E+13 | M59: =L59*10000 -> 6.56E+17 | N59: 9.09E+01 | O59: 2.04E+01 | P59: =P58+(K59-K58)*(O59*M59) -> 1.01E+15 | Q59: =Q58+(K59-K58)*(M59) -> 4.92E+13
A60: 8.58E-09 | B60: 8.77E+12 | C60: =B60*10000 -> 8.77E+16 | D60: 9.39E-03 | E60: 4.29E+01 | F60: =F59+(A60-A59)*(E60*C60) -> 1.17E+10 | G60: =G59+(A60-A59)*(C60) -> 2.55E+08 | K60: 8.58E-05 | L60: 6.36E+13 | M60: =L60*10000 -> 6.36E+17 | N60: 9.39E+01 | O60: 2.04E+01 | P60: =P59+(K60-K59)*(O60*M60) -> 1.09E+15 | Q60: =Q59+(K60-K59)*(M60) -> 5.32E+13
A61: 9.26E-09 | B61: 8.42E+12 | C61: =B61*10000 -> 8.42E+16 | D61: 9.70E-03 | E61: 4.24E+01 | F61: =F60+(A61-A60)*(E61*C61) -> 1.41E+10 | G61: =G60+(A61-A60)*(C61) -> 3.12E+08 | K61: 9.26E-05 | L61: 6.76E+13 | M61: =L61*10000 -> 6.76E+17 | N61: 9.70E+01 | O61: 2.04E+01 | P61: =P60+(K61-K60)*(O61*M61) -> 1.18E+15 | Q61: =Q60+(K61-K60)*(M61) -> 5.78E+13
A62: 1.00E-08 | B62: 9.04E+12 | C62: =B62*10000 -> 9.04E+16 | D62: 1.00E-02 | E62: 4.19E+01 | F62: =F61+(A62-A61)*(E62*C62) -> 1.69E+10 | G62: =G61+(A62-A61)*(C62) -> 3.79E+08 | K62: 1.00E-04 | L62: 6.77E+13 | M62: =L62*10000 -> 6.77E+17 | N62: 1.00E+02 | O62: 2.04E+01 | P62: =P61+(K62-K61)*(O62*M62) -> 1.28E+15 | Q62: =Q61+(K62-K61)*(M62) -> 6.28E+13
A63: 1.08E-08 | B63: 1.23E+13 | C63: =B63*10000 -> 1.23E+17 | D63: 1.21E-02 | E63: 3.89E+01 | F63: =F62+(A63-A62)*(E63*C63) -> 2.08E+10 | G63: =G62+(A63-A62)*(C63) -> 4.78E+08 | K63: 1.08E-04 | L63: 6.45E+13 | M63: =L63*10000 -> 6.45E+17 | N63: 1.21E+02 | O63: 2.04E+01 | P63: =P62+(K63-K62)*(O63*M63) -> 1.39E+15 | Q63: =Q62+(K63-K62)*(M63) -> 6.80E+13
A64: 1.17E-08 | B64: 1.31E+13 | C64: =B64*10000 -> 1.31E+17 | D64: 1.52E-02 | E64: 3.59E+01 | F64: =F63+(A64-A63)*(E64*C64) -> 2.48E+10 | G64: =G63+(A64-A63)*(C64) -> 5.90E+08 | K64: 1.17E-04 | L64: 6.81E+13 | M64: =L64*10000 -> 6.81E+17 | N64: 1.52E+02 | O64: 2.04E+01 | P64: =P63+(K64-K63)*(O64*M64) -> 1.51E+15 | Q64: =Q63+(K64-K63)*(M64) -> 7.38E+13
A65: 1.26E-08 | B65: 1.51E+13 | C65: =B65*10000 -> 1.51E+17 | D65: 1.82E-02 | E65: 3.37E+01 | F65: =F64+(A65-A64)*(E65*C65) -> 2.95E+10 | G65: =G64+(A65-A64)*(C65) -> 7.31E+08 | K65: 1.26E-04 | L65: 6.70E+13 | M65: =L65*10000 -> 6.70E+17 | N65: 1.82E+02 | O65: 2.04E+01 | P65: =P64+(K65-K64)*(O65*M65) -> 1.64E+15 | Q65: =Q64+(K65-K64)*(M65) -> 8.01E+13
A66: 1.36E-08 | B66: 1.83E+13 | C66: =B66*10000 -> 1.83E+17 | D66: 2.12E-02 | E66: 3.21E+01 | F66: =F65+(A66-A65)*(E66*C66) -> 3.54E+10 | G66: =G65+(A66-A65)*(C66) -> 9.14E+08 | K66: 1.36E-04 | L66: 6.70E+13 | M66: =L66*10000 -> 6.70E+17 | N66: 2.12E+02 | O66: 2.04E+01 | P66: =P65+(K66-K65)*(O66*M66) -> 1.77E+15 | Q66: =Q65+(K66-K65)*(M66) -> 8.68E+13
A67: 1.47E-08 | B67: 1.91E+13 | C67: =B67*10000 -> 1.91E+17 | D67: 2.42E-02 | E67: 3.08E+01 | F67: =F66+(A67-A66)*(E67*C67) -> 4.18E+10 | G67: =G66+(A67-A66)*(C67) -> 1.12E+09 | K67: 1.47E-04 | L67: 6.82E+13 | M67: =L67*10000 -> 6.82E+17 | N67: 2.42E+02 | O67: 2.04E+01 | P67: =P66+(K67-K66)*(O67*M67) -> 1.92E+15 | Q67: =Q66+(K67-K66)*(M67) -> 9.42E+13
A68: 1.58E-08 | B68: 1.98E+13 | C68: =B68*10000 -> 1.98E+17 | D68: 2.73E-02 | E68: 2.98E+01 | F68: =F67+(A68-A67)*(E68*C68) -> 4.87E+10 | G68: =G67+(A68-A67)*(C68) -> 1.35E+09 | K68: 1.58E-04 | L68: 6.88E+13 | M68: =L68*10000 -> 6.88E+17 | N68: 2.73E+02 | O68: 2.04E+01 | P68: =P67+(K68-K67)*(O68*M68) -> 2.09E+15 | Q68: =Q67+(K68-K67)*(M68) -> 1.02E+14
A69: 1.71E-08 | B69: 2.64E+13 | C69: =B69*10000 -> 2.64E+17 | D69: 3.03E-02 | E69: 2.89E+01 | F69: =F68+(A69-A68)*(E69*C69) -> 5.84E+10 | G69: =G68+(A69-A68)*(C69) -> 1.69E+09 | K69: 1.71E-04 | L69: 6.93E+13 | M69: =L69*10000 -> 6.93E+17 | N69: 3.03E+02 | O69: 2.04E+01 | P69: =P68+(K69-K68)*(O69*M69) -> 2.27E+15 | Q69: =Q68+(K69-K68)*(M69) -> 1.11E+14
A70: 1.85E-08 | B70: 2.62E+13 | C70: =B70*10000 -> 2.62E+17 | D70: 3.33E-02 | E70: 2.82E+01 | F70: =F69+(A70-A69)*(E70*C70) -> 6.84E+10 | G70: =G69+(A70-A69)*(C70) -> 2.04E+09 | K70: 1.85E-04 | L70: 6.91E+13 | M70: =L70*10000 -> 6.91E+17 | N70: 3.33E+02 | O70: 2.04E+01 | P70: =P69+(K70-K69)*(O70*M70) -> 2.46E+15 | Q70: =Q69+(K70-K69)*(M70) -> 1.20E+14
A71: 2.00E-08 | B71: 3.06E+13 | C71: =B71*10000 -> 3.06E+17 | D71: 3.64E-02 | E71: 2.76E+01 | F71: =F70+(A71-A70)*(E71*C71) -> 8.09E+10 | G71: =G70+(A71-A70)*(C71) -> 2.50E+09 | K71: 2.00E-04 | L71: 7.14E+13 | M71: =L71*10000 -> 7.14E+17 | N71: 3.64E+02 | O71: 2.04E+01 | P71: =P70+(K71-K70)*(O71*M71) -> 2.68E+15 | Q71: =Q70+(K71-K70)*(M71) -> 1.31E+14
A72: 2.15E-08 | B72: 3.42E+13 | C72: =B72*10000 -> 3.42E+17 | D72: 3.94E-02 | E72: 2.71E+01 | F72: =F71+(A72-A71)*(E72*C72) -> 9.57E+10 | G72: =G71+(A72-A71)*(C72) -> 3.04E+09 | K72: 2.15E-04 | L72: 7.03E+13 | M72: =L72*10000 -> 7.03E+17 | N72: 3.94E+02 | O72: 2.04E+01 | P72: =P71+(K72-K71)*(O72*M72) -> 2.90E+15 | Q72: =Q71+(K72-K71)*(M72) -> 1.42E+14
A73: 2.33E-08 | B73: 3.97E+13 | C73: =B73*10000 -> 3.97E+17 | D73: 4.24E-02 | E73: 2.67E+01 | F73: =F72+(A73-A72)*(E73*C73) -> 1.14E+11 | G73: =G72+(A73-A72)*(C73) -> 3.72E+09 | K73: 2.33E-04 | L73: 6.51E+13 | M73: =L73*10000 -> 6.51E+17 | N73: 4.24E+02 | O73: 2.04E+01 | P73: =P72+(K73-K72)*(O73*M73) -> 3.13E+15 | Q73: =Q72+(K73-K72)*(M73) -> 1.53E+14
A74: 2.51E-08 | B74: 4.04E+13 | C74: =B74*10000 -> 4.04E+17 | D74: 4.55E-02 | E74: 2.63E+01 | F74: =F73+(A74-A73)*(E74*C74) -> 1.34E+11 | G74: =G73+(A74-A73)*(C74) -> 4.47E+09 | K74: 2.51E-04 | L74: 6.97E+13 | M74: =L74*10000 -> 6.97E+17 | N74: 4.55E+02 | O74: 2.04E+01 | P74: =P73+(K74-K73)*(O74*M74) -> 3.39E+15 | Q74: =Q73+(K74-K73)*(M74) -> 1.66E+14
A75: 2.71E-08 | B75: 4.77E+13 | C75: =B75*10000 -> 4.77E+17 | D75: 4.85E-02 | E75: 2.59E+01 | F75: =F74+(A75-A74)*(E75*C75) -> 1.58E+11 | G75: =G74+(A75-A74)*(C75) -> 5.43E+09 | K75: 2.71E-04 | L75: 7.14E+13 | M75: =L75*10000 -> 7.14E+17 | N75: 4.85E+02 | O75: 2.04E+01 | P75: =P74+(K75-K74)*(O75*M75) -> 3.69E+15 | Q75: =Q74+(K75-K74)*(M75) -> 1.81E+14
A76: 2.93E-08 | B76: 5.17E+13 | C76: =B76*10000 -> 5.17E+17 | D76: 5.15E-02 | E76: 2.56E+01 | F76: =F75+(A76-A75)*(E76*C76) -> 1.87E+11 | G76: =G75+(A76-A75)*(C76) -> 6.55E+09 | K76: 2.93E-04 | L76: 6.99E+13 | M76: =L76*10000 -> 6.99E+17 | N76: 5.15E+02 | O76: 2.04E+01 | P76: =P75+(K76-K75)*(O76*M76) -> 3.99E+15 | Q76: =Q75+(K76-K75)*(M76) -> 1.96E+14
A77: 3.16E-08 | B77: 5.73E+13 | C77: =B77*10000 -> 5.73E+17 | D77: 5.45E-02 | E77: 2.54E+01 | F77: =F76+(A77-A76)*(E77*C77) -> 2.21E+11 | G77: =G76+(A77-A76)*(C77) -> 7.89E+09 | K77: 3.16E-04 | L77: 7.30E+13 | M77: =L77*10000 -> 7.30E+17 | N77: 5.45E+02 | O77: 2.04E+01 | P77: =P76+(K77-K76)*(O77*M77) -> 4.34E+15 | Q77: =Q76+(K77-K76)*(M77) -> 2.13E+14
A78: 3.41E-08 | B78: 6.02E+13 | C78: =B78*10000 -> 6.02E+17 | D78: 5.76E-02 | E78: 2.51E+01 | F78: =F77+(A78-A77)*(E78*C78) -> 2.59E+11 | G78: =G77+(A78-A77)*(C78) -> 9.40E+09 | K78: 3.41E-04 | L78: 6.85E+13 | M78: =L78*10000 -> 6.85E+17 | N78: 5.76E+02 | O78: 2.04E+01 | P78: =P77+(K78-K77)*(O78*M78) -> 4.69E+15 | Q78: =Q77+(K78-K77)*(M78) -> 2.30E+14
A79: 3.69E-08 | B79: 6.64E+13 | C79: =B79*10000 -> 6.64E+17 | D79: 6.06E-02 | E79: 2.49E+01 | F79: =F78+(A79-A78)*(E79*C79) -> 3.04E+11 | G79: =G78+(A79-A78)*(C79) -> 1.12E+10 | K79: 3.69E-04 | L79: 6.82E+13 | M79: =L79*10000 -> 6.82E+17 | N79: 6.06E+02 | O79: 2.04E+01 | P79: =P78+(K79-K78)*(O79*M79) -> 5.07E+15 | Q79: =Q78+(K79-K78)*(M79) -> 2.49E+14
A80: 3.98E-08 | B80: 6.82E+13 | C80: =B80*10000 -> 6.82E+17 | D80: 6.36E-02 | E80: 2.47E+01 | F80: =F79+(A80-A79)*(E80*C80) -> 3.54E+11 | G80: =G79+(A80-A79)*(C80) -> 1.32E+10 | K80: 3.98E-04 | L80: 6.91E+13 | M80: =L80*10000 -> 6.91E+17 | N80: 6.36E+02 | O80: 2.04E+01 | P80: =P79+(K80-K79)*(O80*M80) -> 5.49E+15 | Q80: =Q79+(K80-K79)*(M80) -> 2.69E+14
A81: 4.30E-08 | B81: 7.55E+13 | C81: =B81*10000 -> 7.55E+17 | D81: 6.67E-02 | E81: 2.45E+01 | F81: =F80+(A81-A80)*(E81*C81) -> 4.13E+11 | G81: =G80+(A81-A80)*(C81) -> 1.56E+10 | K81: 4.30E-04 | L81: 7.23E+13 | M81: =L81*10000 -> 7.23E+17 | N81: 6.67E+02 | O81: 2.03E+01 | P81: =P80+(K81-K80)*(O81*M81) -> 5.95E+15 | Q81: =Q80+(K81-K80)*(M81) -> 2.92E+14
A82: 4.64E-08 | B82: 7.70E+13 | C82: =B82*10000 -> 7.70E+17 | D82: 6.97E-02 | E82: 2.43E+01 | F82: =F81+(A82-A81)*(E82*C82) -> 4.77E+11 | G82: =G81+(A82-A81)*(C82) -> 1.83E+10 | K82: 4.64E-04 | L82: 7.07E+13 | M82: =L82*10000 -> 7.07E+17 | N82: 6.97E+02 | O82: 2.03E+01 | P82: =P81+(K82-K81)*(O82*M82) -> 6.45E+15 | Q82: =Q81+(K82-K81)*(M82) -> 3.16E+14
A83: 5.01E-08 | B83: 8.52E+13 | C83: =B83*10000 -> 8.52E+17 | D83: 7.27E-02 | E83: 2.42E+01 | F83: =F82+(A83-A82)*(E83*C83) -> 5.53E+11 | G83: =G82+(A83-A82)*(C83) -> 2.14E+10 | K83: 5.01E-04 | L83: 7.49E+13 | M83: =L83*10000 -> 7.49E+17 | N83: 7.27E+02 | O83: 2.03E+01 | P83: =P82+(K83-K82)*(O83*M83) -> 7.01E+15 | Q83: =Q82+(K83-K82)*(M83) -> 3.44E+14
A84: 5.41E-08 | B84: 8.45E+13 | C84: =B84*10000 -> 8.45E+17 | D84: 7.58E-02 | E84: 2.40E+01 | F84: =F83+(A84-A83)*(E84*C84) -> 6.34E+11 | G84: =G83+(A84-A83)*(C84) -> 2.48E+10 | K84: 5.41E-04 | L84: 7.20E+13 | M84: =L84*10000 -> 7.20E+17 | N84: 7.58E+02 | O84: 2.03E+01 | P84: =P83+(K84-K83)*(O84*M84) -> 7.60E+15 | Q84: =Q83+(K84-K83)*(M84) -> 3.73E+14
A85: 5.84E-08 | B85: 9.04E+13 | C85: =B85*10000 -> 9.04E+17 | D85: 7.88E-02 | E85: 2.39E+01 | F85: =F84+(A85-A84)*(E85*C85) -> 7.28E+11 | G85: =G84+(A85-A84)*(C85) -> 2.87E+10 | K85: 5.84E-04 | L85: 7.31E+13 | M85: =L85*10000 -> 7.31E+17 | N85: 7.88E+02 | O85: 2.03E+01 | P85: =P84+(K85-K84)*(O85*M85) -> 8.24E+15 | Q85: =Q84+(K85-K84)*(M85) -> 4.04E+14
A86: 6.31E-08 | B86: 9.09E+13 | C86: =B86*10000 -> 9.09E+17 | D86: 8.18E-02 | E86: 2.38E+01 | F86: =F85+(A86-A85)*(E86*C86) -> 8.28E+11 | G86: =G85+(A86-A85)*(C86) -> 3.29E+10 | K86: 6.31E-04 | L86: 7.28E+13 | M86: =L86*10000 -> 7.28E+17 | N86: 8.18E+02 | O86: 2.03E+01 | P86: =P85+(K86-K85)*(O86*M86) -> 8.93E+15 | Q86: =Q85+(K86-K85)*(M86) -> 4.38E+14
A87: 6.81E-08 | B87: 9.03E+13 | C87: =B87*10000 -> 9.03E+17 | D87: 8.48E-02 | E87: 2.37E+01 | F87: =F86+(A87-A86)*(E87*C87) -> 9.36E+11 | G87: =G86+(A87-A86)*(C87) -> 3.75E+10 | K87: 6.81E-04 | L87: 7.10E+13 | M87: =L87*10000 -> 7.10E+17 | N87: 8.48E+02 | O87: 2.03E+01 | P87: =P86+(K87-K86)*(O87*M87) -> 9.65E+15 | Q87: =Q86+(K87-K86)*(M87) -> 4.74E+14
A88: 7.36E-08 | B88: 9.33E+13 | C88: =B88*10000 -> 9.33E+17 | D88: 8.79E-02 | E88: 2.36E+01 | F88: =F87+(A88-A87)*(E88*C88) -> 1.06E+12 | G88: =G87+(A88-A87)*(C88) -> 4.25E+10 | K88: 7.36E-04 | L88: 6.99E+13 | M88: =L88*10000 -> 6.99E+17 | N88: 8.79E+02 | O88: 2.03E+01 | P88: =P87+(K88-K87)*(O88*M88) -> 1.04E+16 | Q88: =Q87+(K88-K87)*(M88) -> 5.12E+14
A89: 7.94E-08 | B89: 9.07E+13 | C89: =B89*10000 -> 9.07E+17 | D89: 9.09E-02 | E89: 2.35E+01 | F89: =F88+(A89-A88)*(E89*C89) -> 1.18E+12 | G89: =G88+(A89-A88)*(C89) -> 4.79E+10 | K89: 7.94E-04 | L89: 7.19E+13 | M89: =L89*10000 -> 7.19E+17 | N89: 9.09E+02 | O89: 2.03E+01 | P89: =P88+(K89-K88)*(O89*M89) -> 1.13E+16 | Q89: =Q88+(K89-K88)*(M89) -> 5.54E+14
A90: 8.58E-08 | B90: 9.07E+13 | C90: =B90*10000 -> 9.07E+17 | D90: 9.09E-02 | E90: 2.35E+01 | F90: =F89+(A90-A89)*(E90*C90) -> 1.32E+12 | G90: =G89+(A90-A89)*(C90) -> 5.36E+10 | K90: 8.58E-04 | L90: 7.06E+13 | M90: =L90*10000 -> 7.06E+17 | N90: 9.39E+02 | O90: 2.03E+01 | P90: =P89+(K90-K89)*(O90*M90) -> 1.22E+16 | Q90: =Q89+(K90-K89)*(M90) -> 5.99E+14
A91: 9.26E-08 | B91: 9.09E+13 | C91: =B91*10000 -> 9.09E+17 | D91: 9.39E-02 | E91: 2.34E+01 | F91: =F90+(A91-A90)*(E91*C91) -> 1.46E+12 | G91: =G90+(A91-A90)*(C91) -> 5.98E+10 | K91: 9.26E-04 | L91: 7.54E+13 | M91: =L91*10000 -> 7.54E+17 | N91: 9.70E+02 | O91: 2.03E+01 | P91: =P90+(K91-K90)*(O91*M91) -> 1.32E+16 | Q91: =Q90+(K91-K90)*(M91) -> 6.50E+14
A92: 1.00E-07 | B92: 8.62E+13 | C92: =B92*10000 -> 8.62E+17 | D92: 9.70E-02 | E92: 2.33E+01 | F92: =F91+(A92-A91)*(E92*C92) -> 1.61E+12 | G92: =G91+(A92-A91)*(C92) -> 6.62E+10 | K92: 1.00E-03 | L92: 7.39E+13 | M92: =L92*10000 -> 7.39E+17 | N92: 1.00E+03 | O92: 2.03E+01 | P92: =P91+(K92-K91)*(O92*M92) -> 1.43E+16 | Q92: =Q91+(K92-K91)*(M92) -> 7.05E+14
A93: 1.08E-07 | B93: 8.47E+13 | C93: =B93*10000 -> 8.47E+17 | D93: 1.00E-01 | E93: 2.32E+01 | F93: =F92+(A93-A92)*(E93*C93) -> 1.77E+12 | G93: =G92+(A93-A92)*(C93) -> 7.30E+10 | K93: 1.08E-03 | L93: 7.44E+13 | M93: =L93*10000 -> 7.44E+17 | N93: 1.21E+03 | O93: 2.03E+01 | P93: =P92+(K93-K92)*(O93*M93) -> 1.56E+16 | Q93: =Q92+(K93-K92)*(M93) -> 7.64E+14
A94: 1.17E-07 | B94: 8.23E+13 | C94: =B94*10000 -> 8.23E+17 | D94: 1.21E-01 | E94: 2.27E+01 | F94: =F93+(A94-A93)*(E94*C94) -> 1.93E+12 | G94: =G93+(A94-A93)*(C94) -> 8.01E+10 | K94: 1.17E-03 | L94: 6.92E+13 | M94: =L94*10000 -> 6.92E+17 | N94: 1.52E+03 | O94: 2.02E+01 | P94: =P93+(K94-K93)*(O94*M94) -> 1.68E+16 | Q94: =Q93+(K94-K93)*(M94) -> 8.24E+14
A95: 1.26E-07 | B95: 8.14E+13 | C95: =B95*10000 -> 8.14E+17 | D95: 1.52E-01 | E95: 2.23E+01 | F95: =F94+(A95-A94)*(E95*C95) -> 2.10E+12 | G95: =G94+(A95-A94)*(C95) -> 8.76E+10 | K95: 1.26E-03 | L95: 7.13E+13 | M95: =L95*10000 -> 7.13E+17 | N95: 1.82E+03 | O95: 2.02E+01 | P95: =P94+(K95-K94)*(O95*M95) -> 1.81E+16 | Q95: =Q94+(K95-K94)*(M95) -> 8.90E+14
A96: 1.36E-07 | B96: 7.67E+13 | C96: =B96*10000 -> 7.67E+17 | D96: 1.82E-01 | E96: 2.20E+01 | F96: =F95+(A96-A95)*(E96*C96) -> 2.26E+12 | G96: =G95+(A96-A95)*(C96) -> 9.53E+10 | K96: 1.36E-03 | L96: 7.44E+13 | M96: =L96*10000 -> 7.44E+17 | N96: 2.12E+03 | O96: 2.02E+01 | P96: =P95+(K96-K95)*(O96*M96) -> 1.96E+16 | Q96: =Q95+(K96-K95)*(M96) -> 9.65E+14
A97: 1.47E-07 | B97: 7.16E+13 | C97: =B97*10000 -> 7.16E+17 | D97: 2.12E-01 | E97: 2.18E+01 | F97: =F96+(A97-A96)*(E97*C97) -> 2.43E+12 | G97: =G96+(A97-A96)*(C97) -> 1.03E+11 | K97: 1.47E-03 | L97: 7.10E+13 | M97: =L97*10000 -> 7.10E+17 | N97: 2.42E+03 | O97: 2.01E+01 | P97: =P96+(K97-K96)*(O97*M97) -> 2.12E+16 | Q97: =Q96+(K97-K96)*(M97) -> 1.04E+15
A98: 1.58E-07 | B98: 6.72E+13 | C98: =B98*10000 -> 6.72E+17 | D98: 2.42E-01 | E98: 2.16E+01 | F98: =F97+(A98-A97)*(E98*C98) -> 2.60E+12 | G98: =G97+(A98-A97)*(C98) -> 1.11E+11 | K98: 1.58E-03 | L98: 7.69E+13 | M98: =L98*10000 -> 7.69E+17 | N98: 2.73E+03 | O98: 2.01E+01 | P98: =P97+(K98-K97)*(O98*M98) -> 2.30E+16 | Q98: =Q97+(K98-K97)*(M98) -> 1.13E+15
A99: 1.71E-07 | B99: 6.70E+13 | C99: =B99*10000 -> 6.70E+17 | D99: 2.73E-01 | E99: 2.15E+01 | F99: =F98+(A99-A98)*(E99*C99) -> 2.79E+12 | G99: =G98+(A99-A98)*(C99) -> 1.19E+11 | K99: 1.71E-03 | L99: 7.62E+13 | M99: =L99*10000 -> 7.62E+17 | N99: 3.03E+03 | O99: 2.00E+01 | P99: =P98+(K99-K98)*(O99*M99) -> 2.49E+16 | Q99: =Q98+(K99-K98)*(M99) -> 1.23E+15
A100: 1.85E-07 | B100: 6.46E+13 | C100: =B100*10000 -> 6.46E+17 | D100: 3.03E-01 | E100: 2.14E+01 | F100: =F99+(A100-A99)*(E100*C100) -> 2.97E+12 | G100: =G99+(A100-A99)*(C100) -> 1.28E+11 | K100: 1.85E-03 | L100: 7.85E+13 | M100: =L100*10000 -> 7.85E+17 | N100: 3.33E+03 | O100: 2.00E+01 | P100: =P99+(K100-K99)*(O100*M100) -> 2.70E+16 | Q100: =Q99+(K100-K99)*(M100) -> 1.34E+15
A101: 2.00E-07 | B101: 6.34E+13 | C101: =B101*10000 -> 6.34E+17 | D101: 3.33E-01 | E101: 2.13E+01 | F101: =F100+(A101-A100)*(E101*C101) -> 3.17E+12 | G101: =G100+(A101-A100)*(C101) -> 1.38E+11 | K101: 2.00E-03 | L101: 7.51E+13 | M101: =L101*10000 -> 7.51E+17 | N101: 3.64E+03 | O101: 2.00E+01 | P101: =P100+(K101-K100)*(O101*M101) -> 2.92E+16 | Q101: =Q100+(K101-K100)*(M101) -> 1.45E+15
A102: 2.15E-07 | B102: 5.89E+13 | C102: =B102*10000 -> 5.89E+17 | D102: 3.64E-01 | E102: 2.12E+01 | F102: =F101+(A102-A101)*(E102*C102) -> 3.37E+12 | G102: =G101+(A102-A101)*(C102) -> 1.47E+11 | K102: 2.15E-03 | L102: 7.59E+13 | M102: =L102*10000 -> 7.59E+17 | N102: 3.94E+03 | O102: 1.99E+01 | P102: =P101+(K102-K101)*(O102*M102) -> 3.16E+16 | Q102: =Q101+(K102-K101)*(M102) -> 1.57E+15
A103: 2.33E-07 | B103: 5.77E+13 | C103: =B103*10000 -> 5.77E+17 | D103: 3.94E-01 | E103: 2.12E+01 | F103: =F102+(A103-A102)*(E103*C103) -> 3.58E+12 | G103: =G102+(A103-A102)*(C103) -> 1.57E+11 | K103: 2.33E-03 | L103: 7.58E+13 | M103: =L103*10000 -> 7.58E+17 | N103: 4.24E+03 | O103: 1.99E+01 | P103: =P102+(K103-K102)*(O103*M103) -> 3.42E+16 | Q103: =Q102+(K103-K102)*(M103) -> 1.70E+15
A104: 2.51E-07 | B104: 5.68E+13 | C104: =B104*10000 -> 5.68E+17 | D104: 4.24E-01 | E104: 2.11E+01 | F104: =F103+(A104-A103)*(E104*C104) -> 3.81E+12 | G104: =G103+(A104-A103)*(C104) -> 1.67E+11 | K104: 2.51E-03 | L104: 7.52E+13 | M104: =L104*10000 -> 7.52E+17 | N104: 4.55E+03 | O104: 1.98E+01 | P104: =P103+(K104-K103)*(O104*M104) -> 3.70E+16 | Q104: =Q103+(K104-K103)*(M104) -> 1.84E+15
A105: 2.71E-07 | B105: 5.55E+13 | C105: =B105*10000 -> 5.55E+17 | D105: 4.55E-01 | E105: 2.11E+01 | F105: =F104+(A105-A104)*(E105*C105) -> 4.04E+12 | G105: =G104+(A105-A104)*(C105) -> 1.79E+11 | K105: 2.71E-03 | L105: 7.45E+13 | M105: =L105*10000 -> 7.45E+17 | N105: 4.85E+03 | O105: 1.98E+01 | P105: =P104+(K105-K104)*(O105*M105) -> 4.00E+16 | Q105: =Q104+(K105-K104)*(M105) -> 1.99E+15
A106: 2.93E-07 | B106: 5.51E+13 | C106: =B106*10000 -> 5.51E+17 | D106: 4.85E-01 | E106: 2.10E+01 | F106: =F105+(A106-A105)*(E106*C106) -> 4.29E+12 | G106: =G105+(A106-A105)*(C106) -> 1.90E+11 | K106: 2.93E-03 | L106: 8.06E+13 | M106: =L106*10000 -> 8.06E+17 | N106: 5.15E+03 | O106: 1.98E+01 | P106: =P105+(K106-K105)*(O106*M106) -> 4.34E+16 | Q106: =Q105+(K106-K105)*(M106) -> 2.16E+15
A107: 3.16E-07 | B107: 5.52E+13 | C107: =B107*10000 -> 5.52E+17 | D107: 5.15E-01 | E107: 2.10E+01 | F107: =F106+(A107-A106)*(E107*C107) -> 4.56E+12 | G107: =G106+(A107-A106)*(C107) -> 2.03E+11 | K107: 3.16E-03 | L107: 7.13E+13 | M107: =L107*10000 -> 7.13E+17 | N107: 5.45E+03 | O107: 1.97E+01 | P107: =P106+(K107-K106)*(O107*M107) -> 4.67E+16 | Q107: =Q106+(K107-K106)*(M107) -> 2.33E+15
A108: 3.41E-07 | B108: 5.54E+13 | C108: =B108*10000 -> 5.54E+17 | D108: 5.45E-01 | E108: 2.10E+01 | F108: =F107+(A108-A107)*(E108*C108) -> 4.85E+12 | G108: =G107+(A108-A107)*(C108) -> 2.17E+11 | K108: 3.41E-03 | L108: 7.69E+13 | M108: =L108*10000 -> 7.69E+17 | N108: 5.76E+03 | O108: 1.97E+01 | P108: =P107+(K108-K107)*(O108*M108) -> 5.05E+16 | Q108: =Q107+(K108-K107)*(M108) -> 2.52E+15
A109: 3.69E-07 | B109: 5.59E+13 | C109: =B109*10000 -> 5.59E+17 | D109: 5.76E-01 | E109: 2.10E+01 | F109: =F108+(A109-A108)*(E109*C109) -> 5.17E+12 | G109: =G108+(A109-A108)*(C109) -> 2.33E+11 | K109: 3.69E-03 | L109: 7.68E+13 | M109: =L109*10000 -> 7.68E+17 | N109: 6.06E+03 | O109: 1.97E+01 | P109: =P108+(K109-K108)*(O109*M109) -> 5.46E+16 | Q109: =Q108+(K109-K108)*(M109) -> 2.73E+15
A110: 3.98E-07 | B110: 5.39E+13 | C110: =B110*10000 -> 5.39E+17 | D110: 6.06E-01 | E110: 2.09E+01 | F110: =F109+(A110-A109)*(E110*C110) -> 5.51E+12 | G110: =G109+(A110-A109)*(C110) -> 2.48E+11 | K110: 3.98E-03 | L110: 7.49E+13 | M110: =L110*10000 -> 7.49E+17 | N110: 6.36E+03 | O110: 1.96E+01 | P110: =P109+(K110-K109)*(O110*M110) -> 5.90E+16 | Q110: =Q109+(K110-K109)*(M110) -> 2.95E+15
A111: 4.30E-07 | B111: 5.70E+13 | C111: =B111*10000 -> 5.70E+17 | D111: 6.36E-01 | E111: 2.09E+01 | F111: =F110+(A111-A110)*(E111*C111) -> 5.88E+12 | G111: =G110+(A111-A110)*(C111) -> 2.67E+11 | K111: 4.30E-03 | L111: 7.61E+13 | M111: =L111*10000 -> 7.61E+17 | N111: 6.67E+03 | O111: 1.96E+01 | P111: =P110+(K111-K110)*(O111*M111) -> 6.37E+16 | Q111: =Q110+(K111-K110)*(M111) -> 3.19E+15
A112: 4.64E-07 | B112: 5.62E+13 | C112: =B112*10000 -> 5.62E+17 | D112: 6.67E-01 | E112: 2.09E+01 | F112: =F111+(A112-A111)*(E112*C112) -> 6.29E+12 | G112: =G111+(A112-A111)*(C112) -> 2.86E+11 | K112: 4.64E-03 | L112: 7.85E+13 | M112: =L112*10000 -> 7.85E+17 | N112: 6.97E+03 | O112: 1.95E+01 | P112: =P111+(K112-K111)*(O112*M112) -> 6.90E+16 | Q112: =Q111+(K112-K111)*(M112) -> 3.46E+15
A113: 5.01E-07 | B113: 5.57E+13 | C113: =B113*10000 -> 5.57E+17 | D113: 6.97E-01 | E113: 2.09E+01 | F113: =F112+(A113-A112)*(E113*C113) -> 6.72E+12 | G113: =G112+(A113-A112)*(C113) -> 3.06E+11 | K113: 5.01E-03 | L113: 8.06E+13 | M113: =L113*10000 -> 8.06E+17 | N113: 7.27E+03 | O113: 1.95E+01 | P113: =P112+(K113-K112)*(O113*M113) -> 7.48E+16 | Q113: =Q112+(K113-K112)*(M113) -> 3.76E+15
A114: 5.41E-07 | B114: 5.53E+13 | C114: =B114*10000 -> 5.53E+17 | D114: 7.27E-01 | E114: 2.09E+01 | F114: =F113+(A114-A113)*(E114*C114) -> 7.18E+12 | G114: =G113+(A114-A113)*(C114) -> 3.29E+11 | K114: 5.41E-03 | L114: 8.50E+13 | M114: =L114*10000 -> 8.50E+17 | N114: 7.58E+03 | O114: 1.95E+01 | P114: =P113+(K114-K113)*(O114*M114) -> 8.14E+16 | Q114: =Q113+(K114-K113)*(M114) -> 4.10E+15
A115: 5.84E-07 | B115: 5.64E+13 | C115: =B115*10000 -> 5.64E+17 | D115: 7.58E-01 | E115: 2.08E+01 | F115: =F114+(A115-A114)*(E115*C115) -> 7.69E+12 | G115: =G114+(A115-A114)*(C115) -> 3.53E+11 | K115: 5.84E-03 | L115: 8.07E+13 | M115: =L115*10000 -> 8.07E+17 | N115: 7.88E+03 | O115: 1.94E+01 | P115: =P114+(K115-K114)*(O115*M115) -> 8.82E+16 | Q115: =Q114+(K115-K114)*(M115) -> 4.45E+15
A116: 6.31E-07 | B116: 5.69E+13 | C116: =B116*10000 -> 5.69E+17 | D116: 7.88E-01 | E116: 2.08E+01 | F116: =F115+(A116-A115)*(E116*C116) -> 8.24E+12 | G116: =G115+(A116-A115)*(C116) -> 3.79E+11 | K116: 6.31E-03 | L116: 6.72E+13 | M116: =L116*10000 -> 6.72E+17 | N116: 8.18E+03 | O116: 1.94E+01 | P116: =P115+(K116-K115)*(O116*M116) -> 9.43E+16 | Q116: =Q115+(K116-K115)*(M116) -> 4.76E+15
A117: 6.81E-07 | B117: 5.71E+13 | C117: =B117*10000 -> 5.71E+17 | D117: 8.18E-01 | E117: 2.08E+01 | F117: =F116+(A117-A116)*(E117*C117) -> 8.84E+12 | G117: =G116+(A117-A116)*(C117) -> 4.08E+11 | K117: 6.81E-03 | L117: 8.38E+13 | M117: =L117*10000 -> 8.38E+17 | N117: 8.48E+03 | O117: 1.94E+01 | P117: =P116+(K117-K116)*(O117*M117) -> 1.02E+17 | Q117: =Q116+(K117-K116)*(M117) -> 5.18E+15
A118: 7.36E-07 | B118: 5.48E+13 | C118: =B118*10000 -> 5.48E+17 | D118: 8.48E-01 | E118: 2.08E+01 | F118: =F117+(A118-A117)*(E118*C118) -> 9.46E+12 | G118: =G117+(A118-A117)*(C118) -> 4.38E+11 | K118: 7.36E-03 | L118: 8.06E+13 | M118: =L118*10000 -> 8.06E+17 | N118: 8.79E+03 | O118: 1.93E+01 | P118: =P117+(K118-K117)*(O118*M118) -> 1.11E+17 | Q118: =Q117+(K118-K117)*(M118) -> 5.62E+15
A119: 7.94E-07 | B119: 5.49E+13 | C119: =B119*10000 -> 5.49E+17 | D119: 8.79E-01 | E119: 2.08E+01 | F119: =F118+(A119-A118)*(E119*C119) -> 1.01E+13 | G119: =G118+(A119-A118)*(C119) -> 4.70E+11 | K119: 7.94E-03 | L119: 8.61E+13 | M119: =L119*10000 -> 8.61E+17 | N119: 9.09E+03 | O119: 1.93E+01 | P119: =P118+(K119-K118)*(O119*M119) -> 1.21E+17 | Q119: =Q118+(K119-K118)*(M119) -> 6.13E+15
A120: 8.58E-07 | B120: 5.45E+13 | C120: =B120*10000 -> 5.45E+17 | D120: 9.09E-01 | E120: 2.08E+01 | F120: =F119+(A120-A119)*(E120*C120) -> 1.08E+13 | G120: =G119+(A120-A119)*(C120) -> 5.05E+11 | K120: 8.58E-03 | L120: 7.75E+13 | M120: =L120*10000 -> 7.75E+17 | N120: 9.39E+03 | O120: 1.93E+01 | P120: =P119+(K120-K119)*(O120*M120) -> 1.30E+17 | Q120: =Q119+(K120-K119)*(M120) -> 6.62E+15
A121: 9.26E-07 | B121: 5.44E+13 | C121: =B121*10000 -> 5.44E+17 | D121: 9.39E-01 | E121: 2.08E+01 | F121: =F120+(A121-A120)*(E121*C121) -> 1.16E+13 | G121: =G120+(A121-A120)*(C121) -> 5.42E+11 | K121: 9.26E-03 | L121: 8.35E+13 | M121: =L121*10000 -> 8.35E+17 | N121: 9.70E+03 | O121: 1.92E+01 | P121: =P120+(K121-K120)*(O121*M121) -> 1.41E+17 | Q121: =Q120+(K121-K120)*(M121) -> 7.19E+15
D122: 0.969697 | E122: 20.75763 | K122: 1.00E-02 | L122: 8.64E+13 | M122: =L122*10000 -> 8.64E+17 | N122: 1.00E+04 | O122: 19.18474 | P122: =P121+(K122-K121)*(O122*M122) -> 1.53E+17 | Q122: =Q121+(K122-K121)*(M122) -> 7.83E+15
K123: 1.08E-02 | L123: 8.89E+13 | M123: =L123*10000 -> 8.89E+17 | N123: 1.21E+04 | O123: 18.945959 | P123: =P122+(K123-K122)*(O123*M123) -> 1.67E+17 | Q123: =Q122+(K123-K122)*(M123) -> 8.54E+15
K124: 1.17E-02 | L124: 8.69E+13 | M124: =L124*10000 -> 8.69E+17 | N124: 1.52E+04 | O124: 18.606098 | P124: =P123+(K124-K123)*(O124*M124) -> 1.81E+17 | Q124: =Q123+(K124-K123)*(M124) -> 9.29E+15
K125: 1.26E-02 | L125: 9.36E+13 | M125: =L125*10000 -> 9.36E+17 | N125: 1.82E+04 | O125: 18.28732 | P125: =P124+(K125-K124)*(O125*M125) -> 1.97E+17 | Q125: =Q124+(K125-K124)*(M125) -> 1.02E+16
K126: 1.36E-02 | L126: 9.36E+13 | M126: =L126*10000 -> 9.36E+17 | N126: 2.12E+04 | O126: 17.986998 | P126: =P125+(K126-K125)*(O126*M126) -> 2.14E+17 | Q126: =Q125+(K126-K125)*(M126) -> 1.11E+16
K127: 1.47E-02 | L127: 9.88E+13 | M127: =L127*10000 -> 9.88E+17 | N127: 2.42E+04 | O127: 17.714131 | P127: =P126+(K127-K126)*(O127*M127) -> 2.32E+17 | Q127: =Q126+(K127-K126)*(M127) -> 1.22E+16
K128: 1.58E-02 | L128: 9.18E+13 | M128: =L128*10000 -> 9.18E+17 | N128: 2.73E+04 | O128: 17.441367 | P128: =P127+(K128-K127)*(O128*M128) -> 2.51E+17 | Q128: =Q127+(K128-K127)*(M128) -> 1.32E+16
K129: 1.71E-02 | L129: 7.93E+13 | M129: =L129*10000 -> 7.93E+17 | N129: 3.03E+04 | O129: 17.168602 | P129: =P128+(K129-K128)*(O129*M129) -> 2.68E+17 | Q129: =Q128+(K129-K128)*(M129) -> 1.42E+16
K130: 1.85E-02 | L130: 7.52E+13 | M130: =L130*10000 -> 7.52E+17 | N130: 3.33E+04 | O130: 16.89583 | P130: =P129+(K130-K129)*(O130*M130) -> 2.86E+17 | Q130: =Q129+(K130-K129)*(M130) -> 1.53E+16
K131: 2.00E-02 | L131: 7.15E+13 | M131: =L131*10000 -> 7.15E+17 | N131: 3.64E+04 | O131: 16.623156 | P131: =P130+(K131-K130)*(O131*M131) -> 3.03E+17 | Q131: =Q130+(K131-K130)*(M131) -> 1.63E+16
K132: 2.15E-02 | L132: 7.92E+13 | M132: =L132*10000 -> 7.92E+17 | N132: 3.94E+04 | O132: 16.350593 | P132: =P131+(K132-K131)*(O132*M132) -> 3.24E+17 | Q132: =Q131+(K132-K131)*(M132) -> 1.76E+16
K133: 2.33E-02 | L133: 9.09E+13 | M133: =L133*10000 -> 9.09E+17 | N133: 4.24E+04 | O133: 16.12279 | P133: =P132+(K133-K132)*(O133*M133) -> 3.49E+17 | Q133: =Q132+(K133-K132)*(M133) -> 1.91E+16
K134: 2.51E-02 | L134: 8.71E+13 | M134: =L134*10000 -> 8.71E+17 | N134: 4.55E+04 | O134: 15.906208 | P134: =P133+(K134-K133)*(O134*M134) -> 3.75E+17 | Q134: =Q133+(K134-K133)*(M134) -> 2.08E+16
K135: 2.71E-02 | L135: 1.06E+14 | M135: =L135*10000 -> 1.06E+18 | N135: 4.85E+04 | O135: 15.689796 | P135: =P134+(K135-K134)*(O135*M135) -> 4.08E+17 | Q135: =Q134+(K135-K134)*(M135) -> 2.29E+16
K136: 2.93E-02 | L136: 1.31E+14 | M136: =L136*10000 -> 1.31E+18 | N136: 5.15E+04 | O136: 15.473387 | P136: =P135+(K136-K135)*(O136*M136) -> 4.52E+17 | Q136: =Q135+(K136-K135)*(M136) -> 2.57E+16
K137: 3.16E-02 | L137: 1.48E+14 | M137: =L137*10000 -> 1.48E+18 | N137: 5.45E+04 | O137: 15.256981 | P137: =P136+(K137-K136)*(O137*M137) -> 5.05E+17 | Q137: =Q136+(K137-K136)*(M137) -> 2.92E+16
K138: 3.41E-02 | L138: 8.17E+13 | M138: =L138*10000 -> 8.17E+17 | N138: 5.76E+04 | O138: 15.040719 | P138: =P137+(K138-K137)*(O138*M138) -> 5.36E+17 | Q138: =Q137+(K138-K137)*(M138) -> 3.12E+16
K139: 3.69E-02 | L139: 4.50E+13 | M139: =L139*10000 -> 4.50E+17 | N139: 6.06E+04 | O139: 14.832498 | P139: =P138+(K139-K138)*(O139*M139) -> 5.54E+17 | Q139: =Q138+(K139-K138)*(M139) -> 3.25E+16
K140: 3.98E-02 | L140: 5.48E+13 | M140: =L140*10000 -> 5.48E+17 | N140: 6.36E+04 | O140: 14.656341 | P140: =P139+(K140-K139)*(O140*M140) -> 5.78E+17 | Q140: =Q139+(K140-K139)*(M140) -> 3.41E+16
K141: 4.30E-02 | L141: 7.88E+13 | M141: =L141*10000 -> 7.88E+17 | N141: 6.67E+04 | O141: 14.48028 | P141: =P140+(K141-K140)*(O141*M141) -> 6.14E+17 | Q141: =Q140+(K141-K140)*(M141) -> 3.66E+16
K142: 4.64E-02 | L142: 9.00E+13 | M142: =L142*10000 -> 9.00E+17 | N142: 6.97E+04 | O142: 14.304298 | P142: =P141+(K142-K141)*(O142*M142) -> 6.58E+17 | Q142: =Q141+(K142-K141)*(M142) -> 3.97E+16
K143: 5.01E-02 | L143: 1.06E+14 | M143: =L143*10000 -> 1.06E+18 | N143: 7.27E+04 | O143: 14.128382 | P143: =P142+(K143-K142)*(O143*M143) -> 7.13E+17 | Q143: =Q142+(K143-K142)*(M143) -> 4.36E+16
K144: 5.41E-02 | L144: 9.62E+13 | M144: =L144*10000 -> 9.62E+17 | N144: 7.58E+04 | O144: 13.952473 | P144: =P143+(K144-K143)*(O144*M144) -> 7.67E+17 | Q144: =Q143+(K144-K143)*(M144) -> 4.74E+16
K145: 5.84E-02 | L145: 1.05E+14 | M145: =L145*10000 -> 1.05E+18 | N145: 7.88E+04 | O145: 13.776564 | P145: =P144+(K145-K144)*(O145*M145) -> 8.30E+17 | Q145: =Q144+(K145-K144)*(M145) -> 5.20E+16
K146: 6.31E-02 | L146: 1.21E+14 | M146: =L146*10000 -> 1.21E+18 | N146: 8.18E+04 | O146: 13.618558 | P146: =P145+(K146-K145)*(O146*M146) -> 9.07E+17 | Q146: =Q145+(K146-K145)*(M146) -> 5.76E+16
K147: 6.81E-02 | L147: 1.39E+14 | M147: =L147*10000 -> 1.39E+18 | N147: 8.48E+04 | O147: 13.472488 | P147: =P146+(K147-K146)*(O147*M147) -> 1.00E+18 | Q147: =Q146+(K147-K146)*(M147) -> 6.46E+16
K148: 7.36E-02 | L148: 1.72E+14 | M148: =L148*10000 -> 1.72E+18 | N148: 8.79E+04 | O148: 13.326419 | P148: =P147+(K148-K147)*(O148*M148) -> 1.13E+18 | Q148: =Q147+(K148-K147)*(M148) -> 7.40E+16
K149: 7.94E-02 | L149: 1.68E+14 | M149: =L149*10000 -> 1.68E+18 | N149: 9.09E+04 | O149: 13.180403 | P149: =P148+(K149-K148)*(O149*M149) -> 1.26E+18 | Q149: =Q148+(K149-K148)*(M149) -> 8.38E+16
K150: 8.58E-02 | L150: 9.45E+13 | M150: =L150*10000 -> 9.45E+17 | N150: 9.39E+04 | O150: 13.034512 | P150: =P149+(K150-K149)*(O150*M150) -> 1.33E+18 | Q150: =Q149+(K150-K149)*(M150) -> 8.98E+16
K151: 9.26E-02 | L151: 5.68E+13 | M151: =L151*10000 -> 5.68E+17 | N151: 9.70E+04 | O151: 12.888621 | P151: =P150+(K151-K150)*(O151*M151) -> 1.38E+18 | Q151: =Q150+(K151-K150)*(M151) -> 9.37E+16
K152: 1.00E-01 | L152: 9.00E+13 | M152: =L152*10000 -> 9.00E+17 | N152: 1.00E+05 | O152: 12.74273 | P152: =P151+(K152-K151)*(O152*M152) -> 1.47E+18 | Q152: =Q151+(K152-K151)*(M152) -> 1.00E+17
K153: 1.08E-01 | L153: 1.27E+14 | M153: =L153*10000 -> 1.27E+18 | N153: 1.21E+05 | O153: 11.970787 | P153: =P152+(K153-K152)*(O153*M153) -> 1.59E+18 | Q153: =Q152+(K153-K152)*(M153) -> 1.11E+17
K154: 1.17E-01 | L154: 1.57E+14 | M154: =L154*10000 -> 1.57E+18 | N154: 1.52E+05 | O154: 10.885032 | P154: =P153+(K154-K153)*(O154*M154) -> 1.74E+18 | Q154: =Q153+(K154-K153)*(M154) -> 1.24E+17
K155: 1.26E-01 | L155: 1.33E+14 | M155: =L155*10000 -> 1.33E+18 | N155: 1.82E+05 | O155: 10.108876 | P155: =P154+(K155-K154)*(O155*M155) -> 1.86E+18 | Q155: =Q154+(K155-K154)*(M155) -> 1.36E+17
K156: 1.36E-01 | L156: 2.44E+14 | M156: =L156*10000 -> 2.44E+18 | N156: 2.12E+05 | O156: 9.438418 | P156: =P155+(K156-K155)*(O156*M156) -> 2.09E+18 | Q156: =Q155+(K156-K155)*(M156) -> 1.61E+17
K157: 1.47E-01 | L157: 1.36E+14 | M157: =L157*10000 -> 1.36E+18 | N157: 2.42E+05 | O157: 8.92574 | P157: =P156+(K157-K156)*(O157*M157) -> 2.23E+18 | Q157: =Q156+(K157-K156)*(M157) -> 1.76E+17
K158: 1.58E-01 | L158: 9.94E+13 | M158: =L158*10000 -> 9.94E+17 | N158: 2.73E+05 | O158: 8.413241 | P158: =P157+(K158-K157)*(O158*M158) -> 2.32E+18 | Q158: =Q157+(K158-K157)*(M158) -> 1.87E+17
K159: 1.71E-01 | L159: 1.15E+14 | M159: =L159*10000 -> 1.15E+18 | N159: 3.03E+05 | O159: 7.919667 | P159: =P158+(K159-K158)*(O159*M159) -> 2.44E+18 | Q159: =Q158+(K159-K158)*(M159) -> 2.02E+17
K160: 1.85E-01 | L160: 1.68E+14 | M160: =L160*10000 -> 1.68E+18 | N160: 3.33E+05 | O160: 7.593479 | P160: =P159+(K160-K159)*(O160*M160) -> 2.61E+18 | Q160: =Q159+(K160-K159)*(M160) -> 2.25E+17
K161: 2.00E-01 | L161: 1.88E+14 | M161: =L161*10000 -> 1.88E+18 | N161: 3.64E+05 | O161: 7.267607 | P161: =P160+(K161-K160)*(O161*M161) -> 2.81E+18 | Q161: =Q160+(K161-K160)*(M161) -> 2.53E+17
K162: 2.15E-01 | L162: 1.36E+14 | M162: =L162*10000 -> 1.36E+18 | N162: 3.94E+05 | O162: 6.941796 | P162: =P161+(K162-K161)*(O162*M162) -> 2.96E+18 | Q162: =Q161+(K162-K161)*(M162) -> 2.74E+17
K163: 2.33E-01 | L163: 1.62E+14 | M163: =L163*10000 -> 1.62E+18 | N163: 4.24E+05 | O163: 6.694491 | P163: =P162+(K163-K162)*(O163*M163) -> 3.15E+18 | Q163: =Q162+(K163-K162)*(M163) -> 3.02E+17
K164: 2.51E-01 | L164: 2.04E+14 | M164: =L164*10000 -> 2.04E+18 | N164: 4.55E+05 | O164: 6.466841 | P164: =P163+(K164-K163)*(O164*M164) -> 3.40E+18 | Q164: =Q163+(K164-K163)*(M164) -> 3.40E+17
K165: 2.71E-01 | L165: 2.54E+14 | M165: =L165*10000 -> 2.54E+18 | N165: 4.85E+05 | O165: 6.239348 | P165: =P164+(K165-K164)*(O165*M165) -> 3.71E+18 | Q165: =Q164+(K165-K164)*(M165) -> 3.91E+17
K166: 2.93E-01 | L166: 2.08E+14 | M166: =L166*10000 -> 2.08E+18 | N166: 5.15E+05 | O166: 6.040934 | P166: =P165+(K166-K165)*(O166*M166) -> 3.98E+18 | Q166: =Q165+(K166-K165)*(M166) -> 4.36E+17
K167: 3.16E-01 | L167: 1.98E+14 | M167: =L167*10000 -> 1.98E+18 | N167: 5.45E+05 | O167: 5.871597 | P167: =P166+(K167-K166)*(O167*M167) -> 4.26E+18 | Q167: =Q166+(K167-K166)*(M167) -> 4.82E+17
K168: 3.41E-01 | L168: 2.39E+14 | M168: =L168*10000 -> 2.39E+18 | N168: 5.76E+05 | O168: 5.702367 | P168: =P167+(K168-K167)*(O168*M168) -> 4.60E+18 | Q168: =Q167+(K168-K167)*(M168) -> 5.42E+17
K169: 3.69E-01 | L169: 2.54E+14 | M169: =L169*10000 -> 2.54E+18 | N169: 6.06E+05 | O169: 5.540633 | P169: =P168+(K169-K168)*(O169*M169) -> 4.98E+18 | Q169: =Q168+(K169-K168)*(M169) -> 6.11E+17
K170: 3.98E-01 | L170: 2.57E+14 | M170: =L170*10000 -> 2.57E+18 | N170: 6.36E+05 | O170: 5.408802 | P170: =P169+(K170-K169)*(O170*M170) -> 5.39E+18 | Q170: =Q169+(K170-K169)*(M170) -> 6.87E+17
K171: 4.30E-01 | L171: 2.21E+14 | M171: =L171*10000 -> 2.21E+18 | N171: 6.67E+05 | O171: 5.277021 | P171: =P170+(K171-K170)*(O171*M171) -> 5.76E+18 | Q171: =Q170+(K171-K170)*(M171) -> 7.57E+17
K172: 4.64E-01 | L172: 2.12E+14 | M172: =L172*10000 -> 2.12E+18 | N172: 6.97E+05 | O172: 5.145281 | P172: =P171+(K172-K171)*(O172*M172) -> 6.14E+18 | Q172: =Q171+(K172-K171)*(M172) -> 8.30E+17
K173: 5.01E-01 | L173: 2.71E+14 | M173: =L173*10000 -> 2.71E+18 | N173: 7.27E+05 | O173: 5.036528 | P173: =P172+(K173-K172)*(O173*M173) -> 6.64E+18 | Q173: =Q172+(K173-K172)*(M173) -> 9.30E+17
K174: 5.41E-01 | L174: 2.83E+14 | M174: =L174*10000 -> 2.83E+18 | N174: 7.58E+05 | O174: 4.93033 | P174: =P173+(K174-K173)*(O174*M174) -> 7.20E+18 | Q174: =Q173+(K174-K173)*(M174) -> 1.04E+18
K175: 5.84E-01 | L175: 2.93E+14 | M175: =L175*10000 -> 2.93E+18 | N175: 7.88E+05 | O175: 4.824131 | P175: =P174+(K175-K174)*(O175*M175) -> 7.81E+18 | Q175: =Q174+(K175-K174)*(M175) -> 1.17E+18
K176: 6.31E-01 | L176: 3.29E+14 | M176: =L176*10000 -> 3.29E+18 | N176: 8.18E+05 | O176: 4.728905 | P176: =P175+(K176-K175)*(O176*M176) -> 8.54E+18 | Q176: =Q175+(K176-K175)*(M176) -> 1.32E+18
K177: 6.81E-01 | L177: 3.15E+14 | M177: =L177*10000 -> 3.15E+18 | N177: 8.48E+05 | O177: 4.640993 | P177: =P176+(K177-K176)*(O177*M177) -> 9.27E+18 | Q177: =Q176+(K177-K176)*(M177) -> 1.48E+18
K178: 7.36E-01 | L178: 3.87E+14 | M178: =L178*10000 -> 3.87E+18 | N178: 8.79E+05 | O178: 4.55308 | P178: =P177+(K178-K177)*(O178*M178) -> 1.02E+19 | Q178: =Q177+(K178-K177)*(M178) -> 1.69E+18
K179: 7.94E-01 | L179: 3.56E+14 | M179: =L179*10000 -> 3.56E+18 | N179: 9.09E+05 | O179: 4.469236 | P179: =P178+(K179-K178)*(O179*M179) -> 1.12E+19 | Q179: =Q178+(K179-K178)*(M179) -> 1.90E+18
K180: 8.58E-01 | L180: 3.24E+14 | M180: =L180*10000 -> 3.24E+18 | N180: 9.39E+05 | O180: 4.394884 | P180: =P179+(K180-K179)*(O180*M180) -> 1.21E+19 | Q180: =Q179+(K180-K179)*(M180) -> 2.11E+18
K181: 9.26E-01 | L181: 3.25E+14 | M181: =L181*10000 -> 3.25E+18 | N181: 9.70E+05 | O181: 4.320532 | P181: =P180+(K181-K180)*(O181*M181) -> 1.30E+19 | Q181: =Q180+(K181-K180)*(M181) -> 2.33E+18
K182: 1.00E+00 | L182: 3.31E+14 | M182: =L182*10000 -> 3.31E+18 | N182: 1.00E+06 | O182: 4.24618 | P182: =P181+(K182-K181)*(O182*M182) -> 1.41E+19 | Q182: =Q181+(K182-K181)*(M182) -> 2.57E+18
K183: 1.08E+00 | L183: 3.49E+14 | M183: =L183*10000 -> 3.49E+18 | N183: 1.21E+06 | O183: 3.831821 | P183: =P182+(K183-K182)*(O183*M183) -> 1.51E+19 | Q183: =Q182+(K183-K182)*(M183) -> 2.85E+18
K184: 1.17E+00 | L184: 3.52E+14 | M184: =L184*10000 -> 3.52E+18 | N184: 1.52E+06 | O184: 3.397621 | P184: =P183+(K184-K183)*(O184*M184) -> 1.62E+19 | Q184: =Q183+(K184-K183)*(M184) -> 3.16E+18
K185: 1.26E+00 | L185: 3.40E+14 | M185: =L185*10000 -> 3.40E+18 | N185: 1.82E+06 | O185: 3.066011 | P185: =P184+(K185-K184)*(O185*M185) -> 1.71E+19 | Q185: =Q184+(K185-K184)*(M185) -> 3.47E+18
K186: 1.36E+00 | L186: 3.62E+14 | M186: =L186*10000 -> 3.62E+18 | N186: 2.12E+06 | O186: 2.809687 | P186: =P185+(K186-K185)*(O186*M186) -> 1.82E+19 | Q186: =Q185+(K186-K185)*(M186) -> 3.84E+18
K187: 1.47E+00 | L187: 3.73E+14 | M187: =L187*10000 -> 3.73E+18 | N187: 2.42E+06 | O187: 2.597201 | P187: =P186+(K187-K186)*(O187*M187) -> 1.92E+19 | Q187: =Q186+(K187-K186)*(M187) -> 4.24E+18
K188: 1.58E+00 | L188: 3.62E+14 | M188: =L188*10000 -> 3.62E+18 | N188: 2.73E+06 | O188: 2.420577 | P188: =P187+(K188-K187)*(O188*M188) -> 2.02E+19 | Q188: =Q187+(K188-K187)*(M188) -> 4.66E+18
K189: 1.71E+00 | L189: 3.65E+14 | M189: =L189*10000 -> 3.65E+18 | N189: 3.03E+06 | O189: 2.267842 | P189: =P188+(K189-K188)*(O189*M189) -> 2.13E+19 | Q189: =Q188+(K189-K188)*(M189) -> 5.13E+18
K190: 1.85E+00 | L190: 3.61E+14 | M190: =L190*10000 -> 3.61E+18 | N190: 3.33E+06 | O190: 2.135646 | P190: =P189+(K190-K189)*(O190*M190) -> 2.23E+19 | Q190: =Q189+(K190-K189)*(M190) -> 5.62E+18
K191: 2.00E+00 | L191: 3.41E+14 | M191: =L191*10000 -> 3.41E+18 | N191: 3.64E+06 | O191: 2.018435 | P191: =P190+(K191-K190)*(O191*M191) -> 2.33E+19 | Q191: =Q190+(K191-K190)*(M191) -> 6.12E+18
K192: 2.15E+00 | L192: 3.25E+14 | M192: =L192*10000 -> 3.25E+18 | N192: 3.94E+06 | O192: 1.914381 | P192: =P191+(K192-K191)*(O192*M192) -> 2.43E+19 | Q192: =Q191+(K192-K191)*(M192) -> 6.64E+18
K193: 2.33E+00 | L193: 3.25E+14 | M193: =L193*10000 -> 3.25E+18 | N193: 4.24E+06 | O193: 1.820603 | P193: =P192+(K193-K192)*(O193*M193) -> 2.54E+19 | Q193: =Q192+(K193-K192)*(M193) -> 7.20E+18
K194: 2.51E+00 | L194: 3.56E+14 | M194: =L194*10000 -> 3.56E+18 | N194: 4.55E+06 | O194: 1.735897 | P194: =P193+(K194-K193)*(O194*M194) -> 2.65E+19 | Q194: =Q193+(K194-K193)*(M194) -> 7.86E+18
K195: 2.71E+00 | L195: 2.96E+14 | M195: =L195*10000 -> 2.96E+18 | N195: 4.85E+06 | O195: 1.658676 | P195: =P194+(K195-K194)*(O195*M195) -> 2.75E+19 | Q195: =Q194+(K195-K194)*(M195) -> 8.45E+18
K196: 2.93E+00 | L196: 2.73E+14 | M196: =L196*10000 -> 2.73E+18 | N196: 5.15E+06 | O196: 1.589394 | P196: =P195+(K196-K195)*(O196*M196) -> 2.84E+19 | Q196: =Q195+(K196-K195)*(M196) -> 9.04E+18
K197: 3.16E+00 | L197: 2.54E+14 | M197: =L197*10000 -> 2.54E+18 | N197: 5.45E+06 | O197: 1.523476 | P197: =P196+(K197-K196)*(O197*M197) -> 2.93E+19 | Q197: =Q196+(K197-K196)*(M197) -> 9.64E+18
K198: 3.41E+00 | L198: 2.20E+14 | M198: =L198*10000 -> 2.20E+18 | N198: 5.76E+06 | O198: 1.464444 | P198: =P197+(K198-K197)*(O198*M198) -> 3.01E+19 | Q198: =Q197+(K198-K197)*(M198) -> 1.02E+19
K199: 3.69E+00 | L199: 1.87E+14 | M199: =L199*10000 -> 1.87E+18 | N199: 6.06E+06 | O199: 1.407955 | P199: =P198+(K199-K198)*(O199*M199) -> 3.09E+19 | Q199: =Q198+(K199-K198)*(M199) -> 1.07E+19
K200: 3.98E+00 | L200: 1.66E+14 | M200: =L200*10000 -> 1.66E+18 | N200: 6.36E+06 | O200: 1.356774 | P200: =P199+(K200-K199)*(O200*M200) -> 3.15E+19 | Q200: =Q199+(K200-K199)*(M200) -> 1.12E+19
... 42 more rows

Sheet O-16 t
A1: Energy (MeV) | B1: Flux (n/cm2-s) | C1: Flux (n/m2-s) | D1: E(JANIS) | E1: sigma (b) | F1: Int(s*F) | G1: Int(F) | I1: Value | K1: Energy (MeV) | L1: Flux (n/cm2-s) | M1: Flux (n/m2-s) | N1: E(JANIS) | O1: sigma (b) | P1: Int(s*F) | Q1: Int(F) | S1: Value
A2: 1.00E-10 | B2: 0.00E+00 | C2: =B2*10000 -> 0.00E+00 | I2: =F121/G121 -> 3.86E+00 | K2: 1.00E-06 | L2: 5.55E+13 | M2: =L2*10000 -> 5.55E+17 | S2: =P121/Q121 -> 3.84E+00
A3: 1.08E-10 | B3: 0.00E+00 | C3: =B3*10000 -> 0.00E+00 | D3: 1.21E-04 | E3: 1.62E+01 | F3: =F2+(A3-A2)*(E3*C3) -> 0.00E+00 | G3: =G2+(A3-A2)*(C3) -> 0.00E+00 | K3: 1.08E-06 | L3: 5.59E+13 | M3: =L3*10000 -> 5.59E+17 | N3: 1.21E+00 | O3: 3.85E+00 | P3: =P2+(K3-K2)*(O3*M3) -> 1.72E+11 | Q3: =Q2+(K3-K2)*(M3) -> 4.46E+10
A4: 1.17E-10 | B4: 0.00E+00 | C4: =B4*10000 -> 0.00E+00 | D4: 1.52E-04 | E4: 1.46E+01 | F4: =F3+(A4-A3)*(E4*C4) -> 0.00E+00 | G4: =G3+(A4-A3)*(C4) -> 0.00E+00 | K4: 1.17E-06 | L4: 5.42E+13 | M4: =L4*10000 -> 5.42E+17 | N4: 1.52E+00 | O4: 3.85E+00 | P4: =P3+(K4-K3)*(O4*M4) -> 3.52E+11 | Q4: =Q3+(K4-K3)*(M4) -> 9.13E+10
A5: 1.26E-10 | B5: 0.00E+00 | C5: =B5*10000 -> 0.00E+00 | D5: 1.82E-04 | E5: 1.34E+01 | F5: =F4+(A5-A4)*(E5*C5) -> 0.00E+00 | G5: =G4+(A5-A4)*(C5) -> 0.00E+00 | K5: 1.26E-06 | L5: 5.59E+13 | M5: =L5*10000 -> 5.59E+17 | N5: 1.82E+00 | O5: 3.85E+00 | P5: =P4+(K5-K4)*(O5*M5) -> 5.52E+11 | Q5: =Q4+(K5-K4)*(M5) -> 1.43E+11
A6: 1.36E-10 | B6: 0.00E+00 | C6: =B6*10000 -> 0.00E+00 | D6: 2.12E-04 | E6: 1.24E+01 | F6: =F5+(A6-A5)*(E6*C6) -> 0.00E+00 | G6: =G5+(A6-A5)*(C6) -> 0.00E+00 | K6: 1.36E-06 | L6: 5.68E+13 | M6: =L6*10000 -> 5.68E+17 | N6: 2.12E+00 | O6: 3.85E+00 | P6: =P5+(K6-K5)*(O6*M6) -> 7.72E+11 | Q6: =Q5+(K6-K5)*(M6) -> 2.00E+11
A7: 1.47E-10 | B7: 0.00E+00 | C7: =B7*10000 -> 0.00E+00 | D7: 2.42E-04 | E7: 1.17E+01 | F7: =F6+(A7-A6)*(E7*C7) -> 0.00E+00 | G7: =G6+(A7-A6)*(C7) -> 0.00E+00 | K7: 1.47E-06 | L7: 5.47E+13 | M7: =L7*10000 -> 5.47E+17 | N7: 2.42E+00 | O7: 3.85E+00 | P7: =P6+(K7-K6)*(O7*M7) -> 1.00E+12 | Q7: =Q6+(K7-K6)*(M7) -> 2.60E+11
A8: 1.58E-10 | B8: 0.00E+00 | C8: =B8*10000 -> 0.00E+00 | D8: 2.73E-04 | E8: 1.11E+01 | F8: =F7+(A8-A7)*(E8*C8) -> 0.00E+00 | G8: =G7+(A8-A7)*(C8) -> 0.00E+00 | K8: 1.58E-06 | L8: 5.38E+13 | M8: =L8*10000 -> 5.38E+17 | N8: 2.73E+00 | O8: 3.85E+00 | P8: =P7+(K8-K7)*(O8*M8) -> 1.24E+12 | Q8: =Q7+(K8-K7)*(M8) -> 3.23E+11
A9: 1.71E-10 | B9: 0.00E+00 | C9: =B9*10000 -> 0.00E+00 | D9: 3.03E-04 | E9: 1.06E+01 | F9: =F8+(A9-A8)*(E9*C9) -> 0.00E+00 | G9: =G8+(A9-A8)*(C9) -> 0.00E+00 | K9: 1.71E-06 | L9: 5.52E+13 | M9: =L9*10000 -> 5.52E+17 | N9: 3.03E+00 | O9: 3.85E+00 | P9: =P8+(K9-K8)*(O9*M9) -> 1.51E+12 | Q9: =Q8+(K9-K8)*(M9) -> 3.92E+11
A10: 1.85E-10 | B10: 0.00E+00 | C10: =B10*10000 -> 0.00E+00 | D10: 3.33E-04 | E10: 1.02E+01 | F10: =F9+(A10-A9)*(E10*C10) -> 0.00E+00 | G10: =G9+(A10-A9)*(C10) -> 0.00E+00 | K10: 1.85E-06 | L10: 5.47E+13 | M10: =L10*10000 -> 5.47E+17 | N10: 3.33E+00 | O10: 3.85E+00 | P10: =P9+(K10-K9)*(O10*M10) -> 1.80E+12 | Q10: =Q9+(K10-K9)*(M10) -> 4.67E+11
A11: 2.00E-10 | B11: 0.00E+00 | C11: =B11*10000 -> 0.00E+00 | D11: 3.64E-04 | E11: 9.78E+00 | F11: =F10+(A11-A10)*(E11*C11) -> 0.00E+00 | G11: =G10+(A11-A10)*(C11) -> 0.00E+00 | K11: 2.00E-06 | L11: 5.68E+13 | M11: =L11*10000 -> 5.68E+17 | N11: 3.64E+00 | O11: 3.85E+00 | P11: =P10+(K11-K10)*(O11*M11) -> 2.12E+12 | Q11: =Q10+(K11-K10)*(M11) -> 5.51E+11
A12: 2.15E-10 | B12: 0.00E+00 | C12: =B12*10000 -> 0.00E+00 | D12: 3.94E-04 | E12: 9.45E+00 | F12: =F11+(A12-A11)*(E12*C12) -> 0.00E+00 | G12: =G11+(A12-A11)*(C12) -> 0.00E+00 | K12: 2.15E-06 | L12: 5.57E+13 | M12: =L12*10000 -> 5.57E+17 | N12: 3.94E+00 | O12: 3.85E+00 | P12: =P11+(K12-K11)*(O12*M12) -> 2.46E+12 | Q12: =Q11+(K12-K11)*(M12) -> 6.39E+11
A13: 2.33E-10 | B13: 0.00E+00 | C13: =B13*10000 -> 0.00E+00 | D13: 4.24E-04 | E13: 9.16E+00 | F13: =F12+(A13-A12)*(E13*C13) -> 0.00E+00 | G13: =G12+(A13-A12)*(C13) -> 0.00E+00 | K13: 2.33E-06 | L13: 5.56E+13 | M13: =L13*10000 -> 5.56E+17 | N13: 4.24E+00 | O13: 3.85E+00 | P13: =P12+(K13-K12)*(O13*M13) -> 2.83E+12 | Q13: =Q12+(K13-K12)*(M13) -> 7.35E+11
A14: 2.51E-10 | B14: 0.00E+00 | C14: =B14*10000 -> 0.00E+00 | D14: 4.55E-04 | E14: 8.90E+00 | F14: =F13+(A14-A13)*(E14*C14) -> 0.00E+00 | G14: =G13+(A14-A13)*(C14) -> 0.00E+00 | K14: 2.51E-06 | L14: 5.65E+13 | M14: =L14*10000 -> 5.65E+17 | N14: 4.55E+00 | O14: 3.85E+00 | P14: =P13+(K14-K13)*(O14*M14) -> 3.24E+12 | Q14: =Q13+(K14-K13)*(M14) -> 8.40E+11
A15: 2.71E-10 | B15: 0.00E+00 | C15: =B15*10000 -> 0.00E+00 | D15: 4.85E-04 | E15: 8.67E+00 | F15: =F14+(A15-A14)*(E15*C15) -> 0.00E+00 | G15: =G14+(A15-A14)*(C15) -> 0.00E+00 | K15: 2.71E-06 | L15: 5.32E+13 | M15: =L15*10000 -> 5.32E+17 | N15: 4.85E+00 | O15: 3.85E+00 | P15: =P14+(K15-K14)*(O15*M15) -> 3.65E+12 | Q15: =Q14+(K15-K14)*(M15) -> 9.47E+11
A16: 2.93E-10 | B16: 3.02E+10 | C16: =B16*10000 -> 3.02E+14 | D16: 5.15E-04 | E16: 8.45E+00 | F16: =F15+(A16-A15)*(E16*C16) -> 5.52E+04 | G16: =G15+(A16-A15)*(C16) -> 6.54E+03 | K16: 2.93E-06 | L16: 5.44E+13 | M16: =L16*10000 -> 5.44E+17 | N16: 5.15E+00 | O16: 3.85E+00 | P16: =P15+(K16-K15)*(O16*M16) -> 4.10E+12 | Q16: =Q15+(K16-K15)*(M16) -> 1.06E+12
A17: 3.16E-10 | B17: 2.75E+10 | C17: =B17*10000 -> 2.75E+14 | D17: 5.45E-04 | E17: 8.26E+00 | F17: =F16+(A17-A16)*(E17*C17) -> 1.08E+05 | G17: =G16+(A17-A16)*(C17) -> 1.30E+04 | K17: 3.16E-06 | L17: 5.39E+13 | M17: =L17*10000 -> 5.39E+17 | N17: 5.45E+00 | O17: 3.85E+00 | P17: =P16+(K17-K16)*(O17*M17) -> 4.59E+12 | Q17: =Q16+(K17-K16)*(M17) -> 1.19E+12
A18: 3.41E-10 | B18: 0.00E+00 | C18: =B18*10000 -> 0.00E+00 | D18: 5.76E-04 | E18: 8.08E+00 | F18: =F17+(A18-A17)*(E18*C18) -> 1.08E+05 | G18: =G17+(A18-A17)*(C18) -> 1.30E+04 | K18: 3.41E-06 | L18: 5.38E+13 | M18: =L18*10000 -> 5.38E+17 | N18: 5.76E+00 | O18: 3.85E+00 | P18: =P17+(K18-K17)*(O18*M18) -> 5.11E+12 | Q18: =Q17+(K18-K17)*(M18) -> 1.33E+12
A19: 3.69E-10 | B19: 1.02E+10 | C19: =B19*10000 -> 1.02E+14 | D19: 6.06E-04 | E19: 7.91E+00 | F19: =F18+(A19-A18)*(E19*C19) -> 1.30E+05 | G19: =G18+(A19-A18)*(C19) -> 1.58E+04 | K19: 3.69E-06 | L19: 5.56E+13 | M19: =L19*10000 -> 5.56E+17 | N19: 6.06E+00 | O19: 3.85E+00 | P19: =P18+(K19-K18)*(O19*M19) -> 5.69E+12 | Q19: =Q18+(K19-K18)*(M19) -> 1.48E+12
A20: 3.98E-10 | B20: 0.00E+00 | C20: =B20*10000 -> 0.00E+00 | D20: 6.36E-04 | E20: 7.77E+00 | F20: =F19+(A20-A19)*(E20*C20) -> 1.30E+05 | G20: =G19+(A20-A19)*(C20) -> 1.58E+04 | K20: 3.98E-06 | L20: 5.65E+13 | M20: =L20*10000 -> 5.65E+17 | N20: 6.36E+00 | O20: 3.85E+00 | P20: =P19+(K20-K19)*(O20*M20) -> 6.33E+12 | Q20: =Q19+(K20-K19)*(M20) -> 1.64E+12
A21: 4.30E-10 | B21: 1.26E+10 | C21: =B21*10000 -> 1.26E+14 | D21: 6.67E-04 | E21: 7.63E+00 | F21: =F20+(A21-A20)*(E21*C21) -> 1.61E+05 | G21: =G20+(A21-A20)*(C21) -> 1.98E+04 | K21: 4.30E-06 | L21: 5.56E+13 | M21: =L21*10000 -> 5.56E+17 | N21: 6.67E+00 | O21: 3.85E+00 | P21: =P20+(K21-K20)*(O21*M21) -> 7.01E+12 | Q21: =Q20+(K21-K20)*(M21) -> 1.82E+12
A22: 4.64E-10 | B22: 7.95E+09 | C22: =B22*10000 -> 7.95E+13 | D22: 6.97E-04 | E22: 7.50E+00 | F22: =F21+(A22-A21)*(E22*C22) -> 1.81E+05 | G22: =G21+(A22-A21)*(C22) -> 2.25E+04 | K22: 4.64E-06 | L22: 5.38E+13 | M22: =L22*10000 -> 5.38E+17 | N22: 6.97E+00 | O22: 3.85E+00 | P22: =P21+(K22-K21)*(O22*M22) -> 7.72E+12 | Q22: =Q21+(K22-K21)*(M22) -> 2.00E+12
A23: 5.01E-10 | B23: 7.77E+09 | C23: =B23*10000 -> 7.77E+13 | D23: 7.27E-04 | E23: 7.38E+00 | F23: =F22+(A23-A22)*(E23*C23) -> 2.03E+05 | G23: =G22+(A23-A22)*(C23) -> 2.54E+04 | K23: 5.01E-06 | L23: 5.23E+13 | M23: =L23*10000 -> 5.23E+17 | N23: 7.27E+00 | O23: 3.85E+00 | P23: =P22+(K23-K22)*(O23*M23) -> 8.47E+12 | Q23: =Q22+(K23-K22)*(M23) -> 2.20E+12
A24: 5.41E-10 | B24: 6.15E+10 | C24: =B24*10000 -> 6.15E+14 | D24: 7.58E-04 | E24: 7.26E+00 | F24: =F23+(A24-A23)*(E24*C24) -> 3.81E+05 | G24: =G23+(A24-A23)*(C24) -> 4.99E+04 | K24: 5.41E-06 | L24: 5.55E+13 | M24: =L24*10000 -> 5.55E+17 | N24: 7.58E+00 | O24: 3.85E+00 | P24: =P23+(K24-K23)*(O24*M24) -> 9.33E+12 | Q24: =Q23+(K24-K23)*(M24) -> 2.42E+12
A25: 5.84E-10 | B25: 1.72E+10 | C25: =B25*10000 -> 1.72E+14 | D25: 7.88E-04 | E25: 7.16E+00 | F25: =F24+(A25-A24)*(E25*C25) -> 4.34E+05 | G25: =G24+(A25-A24)*(C25) -> 5.74E+04 | K25: 5.84E-06 | L25: 5.83E+13 | M25: =L25*10000 -> 5.83E+17 | N25: 7.88E+00 | O25: 3.85E+00 | P25: =P24+(K25-K24)*(O25*M25) -> 1.03E+13 | Q25: =Q24+(K25-K24)*(M25) -> 2.67E+12
A26: 6.31E-10 | B26: 7.71E+10 | C26: =B26*10000 -> 7.71E+14 | D26: 8.18E-04 | E26: 7.06E+00 | F26: =F25+(A26-A25)*(E26*C26) -> 6.88E+05 | G26: =G25+(A26-A25)*(C26) -> 9.33E+04 | K26: 6.31E-06 | L26: 5.67E+13 | M26: =L26*10000 -> 5.67E+17 | N26: 8.18E+00 | O26: 3.85E+00 | P26: =P25+(K26-K25)*(O26*M26) -> 1.13E+13 | Q26: =Q25+(K26-K25)*(M26) -> 2.94E+12
A27: 6.81E-10 | B27: 1.54E+10 | C27: =B27*10000 -> 1.54E+14 | D27: 8.48E-04 | E27: 6.97E+00 | F27: =F26+(A27-A26)*(E27*C27) -> 7.42E+05 | G27: =G26+(A27-A26)*(C27) -> 1.01E+05 | K27: 6.81E-06 | L27: 5.50E+13 | M27: =L27*10000 -> 5.50E+17 | N27: 8.48E+00 | O27: 3.85E+00 | P27: =P26+(K27-K26)*(O27*M27) -> 1.24E+13 | Q27: =Q26+(K27-K26)*(M27) -> 3.21E+12
A28: 7.36E-10 | B28: 4.12E+10 | C28: =B28*10000 -> 4.12E+14 | D28: 8.79E-04 | E28: 6.88E+00 | F28: =F27+(A28-A27)*(E28*C28) -> 8.96E+05 | G28: =G27+(A28-A27)*(C28) -> 1.23E+05 | K28: 7.36E-06 | L28: 5.72E+13 | M28: =L28*10000 -> 5.72E+17 | N28: 8.79E+00 | O28: 3.85E+00 | P28: =P27+(K28-K27)*(O28*M28) -> 1.36E+13 | Q28: =Q27+(K28-K27)*(M28) -> 3.52E+12
A29: 7.94E-10 | B29: 8.22E+10 | C29: =B29*10000 -> 8.22E+14 | D29: 9.09E-04 | E29: 6.80E+00 | F29: =F28+(A29-A28)*(E29*C29) -> 1.22E+06 | G29: =G28+(A29-A28)*(C29) -> 1.72E+05 | K29: 7.94E-06 | L29: 5.84E+13 | M29: =L29*10000 -> 5.84E+17 | N29: 9.09E+00 | O29: 3.85E+00 | P29: =P28+(K29-K28)*(O29*M29) -> 1.49E+13 | Q29: =Q28+(K29-K28)*(M29) -> 3.87E+12
A30: 8.58E-10 | B30: 1.79E+11 | C30: =B30*10000 -> 1.79E+15 | D30: 9.39E-04 | E30: 6.72E+00 | F30: =F29+(A30-A29)*(E30*C30) -> 1.99E+06 | G30: =G29+(A30-A29)*(C30) -> 2.85E+05 | K30: 8.58E-06 | L30: 5.75E+13 | M30: =L30*10000 -> 5.75E+17 | N30: 9.39E+00 | O30: 3.85E+00 | P30: =P29+(K30-K29)*(O30*M30) -> 1.63E+13 | Q30: =Q29+(K30-K29)*(M30) -> 4.23E+12
A31: 9.26E-10 | B31: 1.38E+11 | C31: =B31*10000 -> 1.38E+15 | D31: 9.70E-04 | E31: 6.64E+00 | F31: =F30+(A31-A30)*(E31*C31) -> 2.61E+06 | G31: =G30+(A31-A30)*(C31) -> 3.79E+05 | K31: 9.26E-06 | L31: 5.55E+13 | M31: =L31*10000 -> 5.55E+17 | N31: 9.70E+00 | O31: 3.85E+00 | P31: =P30+(K31-K30)*(O31*M31) -> 1.78E+13 | Q31: =Q30+(K31-K30)*(M31) -> 4.61E+12
A32: 1.00E-09 | B32: 7.31E+10 | C32: =B32*10000 -> 7.31E+14 | D32: 1.00E-03 | E32: 6.57E+00 | F32: =F31+(A32-A31)*(E32*C32) -> 2.97E+06 | G32: =G31+(A32-A31)*(C32) -> 4.33E+05 | K32: 1.00E-05 | L32: 5.82E+13 | M32: =L32*10000 -> 5.82E+17 | N32: 1.00E+01 | O32: 3.85E+00 | P32: =P31+(K32-K31)*(O32*M32) -> 1.94E+13 | Q32: =Q31+(K32-K31)*(M32) -> 5.04E+12
A33: 1.08E-09 | B33: 1.03E+11 | C33: =B33*10000 -> 1.03E+15 | D33: 1.21E-03 | E33: 6.16E+00 | F33: =F32+(A33-A32)*(E33*C33) -> 3.47E+06 | G33: =G32+(A33-A32)*(C33) -> 5.16E+05 | K33: 1.08E-05 | L33: 5.69E+13 | M33: =L33*10000 -> 5.69E+17 | N33: 1.21E+01 | O33: 3.85E+00 | P33: =P32+(K33-K32)*(O33*M33) -> 2.12E+13 | Q33: =Q32+(K33-K32)*(M33) -> 5.50E+12
A34: 1.17E-09 | B34: 2.34E+11 | C34: =B34*10000 -> 2.34E+15 | D34: 1.52E-03 | E34: 5.76E+00 | F34: =F33+(A34-A33)*(E34*C34) -> 4.63E+06 | G34: =G33+(A34-A33)*(C34) -> 7.17E+05 | K34: 1.17E-05 | L34: 5.71E+13 | M34: =L34*10000 -> 5.71E+17 | N34: 1.52E+01 | O34: 3.85E+00 | P34: =P33+(K34-K33)*(O34*M34) -> 2.31E+13 | Q34: =Q33+(K34-K33)*(M34) -> 5.99E+12
A35: 1.26E-09 | B35: 1.62E+11 | C35: =B35*10000 -> 1.62E+15 | D35: 1.82E-03 | E35: 5.47E+00 | F35: =F34+(A35-A34)*(E35*C35) -> 5.46E+06 | G35: =G34+(A35-A34)*(C35) -> 8.68E+05 | K35: 1.26E-05 | L35: 5.40E+13 | M35: =L35*10000 -> 5.40E+17 | N35: 1.82E+01 | O35: 3.85E+00 | P35: =P34+(K35-K34)*(O35*M35) -> 2.50E+13 | Q35: =Q34+(K35-K34)*(M35) -> 6.49E+12
A36: 1.36E-09 | B36: 1.17E+11 | C36: =B36*10000 -> 1.17E+15 | D36: 2.12E-03 | E36: 5.25E+00 | F36: =F35+(A36-A35)*(E36*C36) -> 6.07E+06 | G36: =G35+(A36-A35)*(C36) -> 9.85E+05 | K36: 1.36E-05 | L36: 5.94E+13 | M36: =L36*10000 -> 5.94E+17 | N36: 2.12E+01 | O36: 3.85E+00 | P36: =P35+(K36-K35)*(O36*M36) -> 2.73E+13 | Q36: =Q35+(K36-K35)*(M36) -> 7.09E+12
A37: 1.47E-09 | B37: 2.33E+11 | C37: =B37*10000 -> 2.33E+15 | D37: 2.42E-03 | E37: 5.09E+00 | F37: =F36+(A37-A36)*(E37*C37) -> 7.36E+06 | G37: =G36+(A37-A36)*(C37) -> 1.24E+06 | K37: 1.47E-05 | L37: 5.95E+13 | M37: =L37*10000 -> 5.95E+17 | N37: 2.42E+01 | O37: 3.85E+00 | P37: =P36+(K37-K36)*(O37*M37) -> 2.98E+13 | Q37: =Q36+(K37-K36)*(M37) -> 7.73E+12
A38: 1.58E-09 | B38: 3.17E+11 | C38: =B38*10000 -> 3.17E+15 | D38: 2.73E-03 | E38: 4.96E+00 | F38: =F37+(A38-A37)*(E38*C38) -> 9.20E+06 | G38: =G37+(A38-A37)*(C38) -> 1.61E+06 | K38: 1.58E-05 | L38: 5.94E+13 | M38: =L38*10000 -> 5.94E+17 | N38: 2.73E+01 | O38: 3.85E+00 | P38: =P37+(K38-K37)*(O38*M38) -> 3.25E+13 | Q38: =Q37+(K38-K37)*(M38) -> 8.43E+12
A39: 1.71E-09 | B39: 3.29E+11 | C39: =B39*10000 -> 3.29E+15 | D39: 3.03E-03 | E39: 4.85E+00 | F39: =F38+(A39-A38)*(E39*C39) -> 1.12E+07 | G39: =G38+(A39-A38)*(C39) -> 2.03E+06 | K39: 1.71E-05 | L39: 5.76E+13 | M39: =L39*10000 -> 5.76E+17 | N39: 3.03E+01 | O39: 3.85E+00 | P39: =P38+(K39-K38)*(O39*M39) -> 3.53E+13 | Q39: =Q38+(K39-K38)*(M39) -> 9.15E+12
A40: 1.85E-09 | B40: 2.40E+11 | C40: =B40*10000 -> 2.40E+15 | D40: 3.33E-03 | E40: 4.77E+00 | F40: =F39+(A40-A39)*(E40*C40) -> 1.28E+07 | G40: =G39+(A40-A39)*(C40) -> 2.35E+06 | K40: 1.85E-05 | L40: 6.06E+13 | M40: =L40*10000 -> 6.06E+17 | N40: 3.33E+01 | O40: 3.85E+00 | P40: =P39+(K40-K39)*(O40*M40) -> 3.85E+13 | Q40: =Q39+(K40-K39)*(M40) -> 9.98E+12
A41: 2.00E-09 | B41: 5.05E+11 | C41: =B41*10000 -> 5.05E+15 | D41: 3.64E-03 | E41: 4.69E+00 | F41: =F40+(A41-A40)*(E41*C41) -> 1.63E+07 | G41: =G40+(A41-A40)*(C41) -> 3.10E+06 | K41: 2.00E-05 | L41: 5.93E+13 | M41: =L41*10000 -> 5.93E+17 | N41: 3.64E+01 | O41: 3.85E+00 | P41: =P40+(K41-K40)*(O41*M41) -> 4.18E+13 | Q41: =Q40+(K41-K40)*(M41) -> 1.09E+13
A42: 2.15E-09 | B42: 3.15E+11 | C42: =B42*10000 -> 3.15E+15 | D42: 3.94E-03 | E42: 4.63E+00 | F42: =F41+(A42-A41)*(E42*C42) -> 1.86E+07 | G42: =G41+(A42-A41)*(C42) -> 3.60E+06 | K42: 2.15E-05 | L42: 6.02E+13 | M42: =L42*10000 -> 6.02E+17 | N42: 3.94E+01 | O42: 3.85E+00 | P42: =P41+(K42-K41)*(O42*M42) -> 4.55E+13 | Q42: =Q41+(K42-K41)*(M42) -> 1.18E+13
A43: 2.33E-09 | B43: 5.45E+11 | C43: =B43*10000 -> 5.45E+15 | D43: 4.24E-03 | E43: 4.57E+00 | F43: =F42+(A43-A42)*(E43*C43) -> 2.29E+07 | G43: =G42+(A43-A42)*(C43) -> 4.54E+06 | K43: 2.33E-05 | L43: 6.24E+13 | M43: =L43*10000 -> 6.24E+17 | N43: 4.24E+01 | O43: 3.85E+00 | P43: =P42+(K43-K42)*(O43*M43) -> 4.96E+13 | Q43: =Q42+(K43-K42)*(M43) -> 1.29E+13
A44: 2.51E-09 | B44: 5.21E+11 | C44: =B44*10000 -> 5.21E+15 | D44: 4.55E-03 | E44: 4.53E+00 | F44: =F43+(A44-A43)*(E44*C44) -> 2.73E+07 | G44: =G43+(A44-A43)*(C44) -> 5.50E+06 | K44: 2.51E-05 | L44: 6.32E+13 | M44: =L44*10000 -> 6.32E+17 | N44: 4.55E+01 | O44: 3.85E+00 | P44: =P43+(K44-K43)*(O44*M44) -> 5.42E+13 | Q44: =Q43+(K44-K43)*(M44) -> 1.41E+13
A45: 2.71E-09 | B45: 7.35E+11 | C45: =B45*10000 -> 7.35E+15 | D45: 4.85E-03 | E45: 4.49E+00 | F45: =F44+(A45-A44)*(E45*C45) -> 3.39E+07 | G45: =G44+(A45-A44)*(C45) -> 6.97E+06 | K45: 2.71E-05 | L45: 6.22E+13 | M45: =L45*10000 -> 6.22E+17 | N45: 4.85E+01 | O45: 3.85E+00 | P45: =P44+(K45-K44)*(O45*M45) -> 5.90E+13 | Q45: =Q44+(K45-K44)*(M45) -> 1.53E+13
A46: 2.93E-09 | B46: 1.37E+12 | C46: =B46*10000 -> 1.37E+16 | D46: 5.15E-03 | E46: 4.45E+00 | F46: =F45+(A46-A45)*(E46*C46) -> 4.70E+07 | G46: =G45+(A46-A45)*(C46) -> 9.94E+06 | K46: 2.93E-05 | L46: 6.21E+13 | M46: =L46*10000 -> 6.21E+17 | N46: 5.15E+01 | O46: 3.85E+00 | P46: =P45+(K46-K45)*(O46*M46) -> 6.41E+13 | Q46: =Q45+(K46-K45)*(M46) -> 1.67E+13
A47: 3.16E-09 | B47: 1.44E+12 | C47: =B47*10000 -> 1.44E+16 | D47: 5.46E-03 | E47: 4.41E+00 | F47: =F46+(A47-A46)*(E47*C47) -> 6.19E+07 | G47: =G46+(A47-A46)*(C47) -> 1.33E+07 | K47: 3.16E-05 | L47: 6.24E+13 | M47: =L47*10000 -> 6.24E+17 | N47: 5.45E+01 | O47: 3.85E+00 | P47: =P46+(K47-K46)*(O47*M47) -> 6.98E+13 | Q47: =Q46+(K47-K46)*(M47) -> 1.81E+13
A48: 3.41E-09 | B48: 1.61E+12 | C48: =B48*10000 -> 1.61E+16 | D48: 5.76E-03 | E48: 4.39E+00 | F48: =F47+(A48-A47)*(E48*C48) -> 7.98E+07 | G48: =G47+(A48-A47)*(C48) -> 1.74E+07 | K48: 3.41E-05 | L48: 6.26E+13 | M48: =L48*10000 -> 6.26E+17 | N48: 5.76E+01 | O48: 3.85E+00 | P48: =P47+(K48-K47)*(O48*M48) -> 7.58E+13 | Q48: =Q47+(K48-K47)*(M48) -> 1.97E+13
A49: 3.69E-09 | B49: 1.44E+12 | C49: =B49*10000 -> 1.44E+16 | D49: 6.06E-03 | E49: 4.36E+00 | F49: =F48+(A49-A48)*(E49*C49) -> 9.69E+07 | G49: =G48+(A49-A48)*(C49) -> 2.13E+07 | K49: 3.69E-05 | L49: 6.12E+13 | M49: =L49*10000 -> 6.12E+17 | N49: 6.06E+01 | O49: 3.85E+00 | P49: =P48+(K49-K48)*(O49*M49) -> 8.23E+13 | Q49: =Q48+(K49-K48)*(M49) -> 2.14E+13
A50: 3.98E-09 | B50: 1.92E+12 | C50: =B50*10000 -> 1.92E+16 | D50: 6.36E-03 | E50: 4.34E+00 | F50: =F49+(A50-A49)*(E50*C50) -> 1.21E+08 | G50: =G49+(A50-A49)*(C50) -> 2.70E+07 | K50: 3.98E-05 | L50: 6.60E+13 | M50: =L50*10000 -> 6.60E+17 | N50: 6.36E+01 | O50: 3.85E+00 | P50: =P49+(K50-K49)*(O50*M50) -> 8.97E+13 | Q50: =Q49+(K50-K49)*(M50) -> 2.33E+13
A51: 4.30E-09 | B51: 2.29E+12 | C51: =B51*10000 -> 2.29E+16 | D51: 6.67E-03 | E51: 4.31E+00 | F51: =F50+(A51-A50)*(E51*C51) -> 1.53E+08 | G51: =G50+(A51-A50)*(C51) -> 3.42E+07 | K51: 4.30E-05 | L51: 6.45E+13 | M51: =L51*10000 -> 6.45E+17 | N51: 6.67E+01 | O51: 3.85E+00 | P51: =P50+(K51-K50)*(O51*M51) -> 9.76E+13 | Q51: =Q50+(K51-K50)*(M51) -> 2.53E+13
A52: 4.64E-09 | B52: 2.67E+12 | C52: =B52*10000 -> 2.67E+16 | D52: 6.97E-03 | E52: 4.29E+00 | F52: =F51+(A52-A51)*(E52*C52) -> 1.92E+08 | G52: =G51+(A52-A51)*(C52) -> 4.34E+07 | K52: 4.64E-05 | L52: 6.64E+13 | M52: =L52*10000 -> 6.64E+17 | N52: 6.97E+01 | O52: 3.85E+00 | P52: =P51+(K52-K51)*(O52*M52) -> 1.06E+14 | Q52: =Q51+(K52-K51)*(M52) -> 2.76E+13
A53: 5.01E-09 | B53: 2.14E+12 | C53: =B53*10000 -> 2.14E+16 | D53: 7.27E-03 | E53: 4.28E+00 | F53: =F52+(A53-A52)*(E53*C53) -> 2.26E+08 | G53: =G52+(A53-A52)*(C53) -> 5.13E+07 | K53: 5.01E-05 | L53: 6.45E+13 | M53: =L53*10000 -> 6.45E+17 | N53: 7.27E+01 | O53: 3.85E+00 | P53: =P52+(K53-K52)*(O53*M53) -> 1.16E+14 | Q53: =Q52+(K53-K52)*(M53) -> 3.00E+13
A54: 5.41E-09 | B54: 2.71E+12 | C54: =B54*10000 -> 2.71E+16 | D54: 7.58E-03 | E54: 4.26E+00 | F54: =F53+(A54-A53)*(E54*C54) -> 2.72E+08 | G54: =G53+(A54-A53)*(C54) -> 6.21E+07 | K54: 5.41E-05 | L54: 6.63E+13 | M54: =L54*10000 -> 6.63E+17 | N54: 7.58E+01 | O54: 3.85E+00 | P54: =P53+(K54-K53)*(O54*M54) -> 1.26E+14 | Q54: =Q53+(K54-K53)*(M54) -> 3.27E+13
A55: 5.84E-09 | B55: 3.09E+12 | C55: =B55*10000 -> 3.09E+16 | D55: 7.88E-03 | E55: 4.24E+00 | F55: =F54+(A55-A54)*(E55*C55) -> 3.29E+08 | G55: =G54+(A55-A54)*(C55) -> 7.55E+07 | K55: 5.84E-05 | L55: 6.24E+13 | M55: =L55*10000 -> 6.24E+17 | N55: 7.88E+01 | O55: 3.85E+00 | P55: =P54+(K55-K54)*(O55*M55) -> 1.36E+14 | Q55: =Q54+(K55-K54)*(M55) -> 3.54E+13
A56: 6.31E-09 | B56: 4.61E+12 | C56: =B56*10000 -> 4.61E+16 | D56: 8.18E-03 | E56: 4.23E+00 | F56: =F55+(A56-A55)*(E56*C56) -> 4.20E+08 | G56: =G55+(A56-A55)*(C56) -> 9.70E+07 | K56: 6.31E-05 | L56: 6.85E+13 | M56: =L56*10000 -> 6.85E+17 | N56: 8.18E+01 | O56: 3.85E+00 | P56: =P55+(K56-K55)*(O56*M56) -> 1.48E+14 | Q56: =Q55+(K56-K55)*(M56) -> 3.85E+13
A57: 6.81E-09 | B57: 6.12E+12 | C57: =B57*10000 -> 6.12E+16 | D57: 8.49E-03 | E57: 4.21E+00 | F57: =F56+(A57-A56)*(E57*C57) -> 5.49E+08 | G57: =G56+(A57-A56)*(C57) -> 1.28E+08 | K57: 6.81E-05 | L57: 6.37E+13 | M57: =L57*10000 -> 6.37E+17 | N57: 8.48E+01 | O57: 3.85E+00 | P57: =P56+(K57-K56)*(O57*M57) -> 1.61E+14 | Q57: =Q56+(K57-K56)*(M57) -> 4.18E+13
A58: 7.36E-09 | B58: 6.24E+12 | C58: =B58*10000 -> 6.24E+16 | D58: 8.79E-03 | E58: 4.20E+00 | F58: =F57+(A58-A57)*(E58*C58) -> 6.92E+08 | G58: =G57+(A58-A57)*(C58) -> 1.62E+08 | K58: 7.36E-05 | L58: 6.57E+13 | M58: =L58*10000 -> 6.57E+17 | N58: 8.79E+01 | O58: 3.85E+00 | P58: =P57+(K58-K57)*(O58*M58) -> 1.75E+14 | Q58: =Q57+(K58-K57)*(M58) -> 4.53E+13
A59: 7.94E-09 | B59: 6.35E+12 | C59: =B59*10000 -> 6.35E+16 | D59: 9.09E-03 | E59: 4.19E+00 | F59: =F58+(A59-A58)*(E59*C59) -> 8.48E+08 | G59: =G58+(A59-A58)*(C59) -> 1.99E+08 | K59: 7.94E-05 | L59: 6.56E+13 | M59: =L59*10000 -> 6.56E+17 | N59: 9.09E+01 | O59: 3.85E+00 | P59: =P58+(K59-K58)*(O59*M59) -> 1.89E+14 | Q59: =Q58+(K59-K58)*(M59) -> 4.92E+13
A60: 8.58E-09 | B60: 8.77E+12 | C60: =B60*10000 -> 8.77E+16 | D60: 9.39E-03 | E60: 4.18E+00 | F60: =F59+(A60-A59)*(E60*C60) -> 1.08E+09 | G60: =G59+(A60-A59)*(C60) -> 2.55E+08 | K60: 8.58E-05 | L60: 6.36E+13 | M60: =L60*10000 -> 6.36E+17 | N60: 9.39E+01 | O60: 3.85E+00 | P60: =P59+(K60-K59)*(O60*M60) -> 2.05E+14 | Q60: =Q59+(K60-K59)*(M60) -> 5.32E+13
A61: 9.26E-09 | B61: 8.42E+12 | C61: =B61*10000 -> 8.42E+16 | D61: 9.70E-03 | E61: 4.17E+00 | F61: =F60+(A61-A60)*(E61*C61) -> 1.32E+09 | G61: =G60+(A61-A60)*(C61) -> 3.12E+08 | K61: 9.26E-05 | L61: 6.76E+13 | M61: =L61*10000 -> 6.76E+17 | N61: 9.70E+01 | O61: 3.85E+00 | P61: =P60+(K61-K60)*(O61*M61) -> 2.23E+14 | Q61: =Q60+(K61-K60)*(M61) -> 5.78E+13
A62: 1.00E-08 | B62: 9.04E+12 | C62: =B62*10000 -> 9.04E+16 | D62: 1.00E-02 | E62: 4.16E+00 | F62: =F61+(A62-A61)*(E62*C62) -> 1.60E+09 | G62: =G61+(A62-A61)*(C62) -> 3.79E+08 | K62: 1.00E-04 | L62: 6.77E+13 | M62: =L62*10000 -> 6.77E+17 | N62: 1.00E+02 | O62: 3.85E+00 | P62: =P61+(K62-K61)*(O62*M62) -> 2.42E+14 | Q62: =Q61+(K62-K61)*(M62) -> 6.28E+13
A63: 1.08E-08 | B63: 1.23E+13 | C63: =B63*10000 -> 1.23E+17 | D63: 1.21E-02 | E63: 4.11E+00 | F63: =F62+(A63-A62)*(E63*C63) -> 2.00E+09 | G63: =G62+(A63-A62)*(C63) -> 4.78E+08 | K63: 1.08E-04 | L63: 6.45E+13 | M63: =L63*10000 -> 6.45E+17 | N63: 1.21E+02 | O63: 3.85E+00 | P63: =P62+(K63-K62)*(O63*M63) -> 2.62E+14 | Q63: =Q62+(K63-K62)*(M63) -> 6.80E+13
A64: 1.17E-08 | B64: 1.31E+13 | C64: =B64*10000 -> 1.31E+17 | D64: 1.52E-02 | E64: 4.05E+00 | F64: =F63+(A64-A63)*(E64*C64) -> 2.46E+09 | G64: =G63+(A64-A63)*(C64) -> 5.90E+08 | K64: 1.17E-04 | L64: 6.81E+13 | M64: =L64*10000 -> 6.81E+17 | N64: 1.52E+02 | O64: 3.85E+00 | P64: =P63+(K64-K63)*(O64*M64) -> 2.84E+14 | Q64: =Q63+(K64-K63)*(M64) -> 7.38E+13
A65: 1.26E-08 | B65: 1.51E+13 | C65: =B65*10000 -> 1.51E+17 | D65: 1.82E-02 | E65: 4.02E+00 | F65: =F64+(A65-A64)*(E65*C65) -> 3.03E+09 | G65: =G64+(A65-A64)*(C65) -> 7.31E+08 | K65: 1.26E-04 | L65: 6.70E+13 | M65: =L65*10000 -> 6.70E+17 | N65: 1.82E+02 | O65: 3.85E+00 | P65: =P64+(K65-K64)*(O65*M65) -> 3.08E+14 | Q65: =Q64+(K65-K64)*(M65) -> 8.01E+13
A66: 1.36E-08 | B66: 1.83E+13 | C66: =B66*10000 -> 1.83E+17 | D66: 2.12E-02 | E66: 4.00E+00 | F66: =F65+(A66-A65)*(E66*C66) -> 3.76E+09 | G66: =G65+(A66-A65)*(C66) -> 9.14E+08 | K66: 1.36E-04 | L66: 6.70E+13 | M66: =L66*10000 -> 6.70E+17 | N66: 2.12E+02 | O66: 3.85E+00 | P66: =P65+(K66-K65)*(O66*M66) -> 3.34E+14 | Q66: =Q65+(K66-K65)*(M66) -> 8.68E+13
A67: 1.47E-08 | B67: 1.91E+13 | C67: =B67*10000 -> 1.91E+17 | D67: 2.42E-02 | E67: 3.98E+00 | F67: =F66+(A67-A66)*(E67*C67) -> 4.58E+09 | G67: =G66+(A67-A66)*(C67) -> 1.12E+09 | K67: 1.47E-04 | L67: 6.82E+13 | M67: =L67*10000 -> 6.82E+17 | N67: 2.42E+02 | O67: 3.85E+00 | P67: =P66+(K67-K66)*(O67*M67) -> 3.63E+14 | Q67: =Q66+(K67-K66)*(M67) -> 9.42E+13
A68: 1.58E-08 | B68: 1.98E+13 | C68: =B68*10000 -> 1.98E+17 | D68: 2.73E-02 | E68: 3.96E+00 | F68: =F67+(A68-A67)*(E68*C68) -> 5.50E+09 | G68: =G67+(A68-A67)*(C68) -> 1.35E+09 | K68: 1.58E-04 | L68: 6.88E+13 | M68: =L68*10000 -> 6.88E+17 | N68: 2.73E+02 | O68: 3.85E+00 | P68: =P67+(K68-K67)*(O68*M68) -> 3.94E+14 | Q68: =Q67+(K68-K67)*(M68) -> 1.02E+14
A69: 1.71E-08 | B69: 2.64E+13 | C69: =B69*10000 -> 2.64E+17 | D69: 3.03E-02 | E69: 3.95E+00 | F69: =F68+(A69-A68)*(E69*C69) -> 6.82E+09 | G69: =G68+(A69-A68)*(C69) -> 1.69E+09 | K69: 1.71E-04 | L69: 6.93E+13 | M69: =L69*10000 -> 6.93E+17 | N69: 3.03E+02 | O69: 3.85E+00 | P69: =P68+(K69-K68)*(O69*M69) -> 4.28E+14 | Q69: =Q68+(K69-K68)*(M69) -> 1.11E+14
A70: 1.85E-08 | B70: 2.62E+13 | C70: =B70*10000 -> 2.62E+17 | D70: 3.33E-02 | E70: 3.94E+00 | F70: =F69+(A70-A69)*(E70*C70) -> 8.23E+09 | G70: =G69+(A70-A69)*(C70) -> 2.04E+09 | K70: 1.85E-04 | L70: 6.91E+13 | M70: =L70*10000 -> 6.91E+17 | N70: 3.33E+02 | O70: 3.85E+00 | P70: =P69+(K70-K69)*(O70*M70) -> 4.64E+14 | Q70: =Q69+(K70-K69)*(M70) -> 1.20E+14
A71: 2.00E-08 | B71: 3.06E+13 | C71: =B71*10000 -> 3.06E+17 | D71: 3.64E-02 | E71: 3.94E+00 | F71: =F70+(A71-A70)*(E71*C71) -> 1.00E+10 | G71: =G70+(A71-A70)*(C71) -> 2.50E+09 | K71: 2.00E-04 | L71: 7.14E+13 | M71: =L71*10000 -> 7.14E+17 | N71: 3.64E+02 | O71: 3.85E+00 | P71: =P70+(K71-K70)*(O71*M71) -> 5.05E+14 | Q71: =Q70+(K71-K70)*(M71) -> 1.31E+14
A72: 2.15E-08 | B72: 3.42E+13 | C72: =B72*10000 -> 3.42E+17 | D72: 3.94E-02 | E72: 3.93E+00 | F72: =F71+(A72-A71)*(E72*C72) -> 1.21E+10 | G72: =G71+(A72-A71)*(C72) -> 3.04E+09 | K72: 2.15E-04 | L72: 7.03E+13 | M72: =L72*10000 -> 7.03E+17 | N72: 3.94E+02 | O72: 3.85E+00 | P72: =P71+(K72-K71)*(O72*M72) -> 5.48E+14 | Q72: =Q71+(K72-K71)*(M72) -> 1.42E+14
A73: 2.33E-08 | B73: 3.97E+13 | C73: =B73*10000 -> 3.97E+17 | D73: 4.24E-02 | E73: 3.92E+00 | F73: =F72+(A73-A72)*(E73*C73) -> 1.48E+10 | G73: =G72+(A73-A72)*(C73) -> 3.72E+09 | K73: 2.33E-04 | L73: 6.51E+13 | M73: =L73*10000 -> 6.51E+17 | N73: 4.24E+02 | O73: 3.85E+00 | P73: =P72+(K73-K72)*(O73*M73) -> 5.91E+14 | Q73: =Q72+(K73-K72)*(M73) -> 1.53E+14
A74: 2.51E-08 | B74: 4.04E+13 | C74: =B74*10000 -> 4.04E+17 | D74: 4.55E-02 | E74: 3.92E+00 | F74: =F73+(A74-A73)*(E74*C74) -> 1.78E+10 | G74: =G73+(A74-A73)*(C74) -> 4.47E+09 | K74: 2.51E-04 | L74: 6.97E+13 | M74: =L74*10000 -> 6.97E+17 | N74: 4.55E+02 | O74: 3.85E+00 | P74: =P73+(K74-K73)*(O74*M74) -> 6.41E+14 | Q74: =Q73+(K74-K73)*(M74) -> 1.66E+14
A75: 2.71E-08 | B75: 4.77E+13 | C75: =B75*10000 -> 4.77E+17 | D75: 4.85E-02 | E75: 3.92E+00 | F75: =F74+(A75-A74)*(E75*C75) -> 2.15E+10 | G75: =G74+(A75-A74)*(C75) -> 5.43E+09 | K75: 2.71E-04 | L75: 7.14E+13 | M75: =L75*10000 -> 7.14E+17 | N75: 4.85E+02 | O75: 3.85E+00 | P75: =P74+(K75-K74)*(O75*M75) -> 6.96E+14 | Q75: =Q74+(K75-K74)*(M75) -> 1.81E+14
A76: 2.93E-08 | B76: 5.17E+13 | C76: =B76*10000 -> 5.17E+17 | D76: 5.15E-02 | E76: 3.91E+00 | F76: =F75+(A76-A75)*(E76*C76) -> 2.59E+10 | G76: =G75+(A76-A75)*(C76) -> 6.55E+09 | K76: 2.93E-04 | L76: 6.99E+13 | M76: =L76*10000 -> 6.99E+17 | N76: 5.15E+02 | O76: 3.85E+00 | P76: =P75+(K76-K75)*(O76*M76) -> 7.54E+14 | Q76: =Q75+(K76-K75)*(M76) -> 1.96E+14
A77: 3.16E-08 | B77: 5.73E+13 | C77: =B77*10000 -> 5.73E+17 | D77: 5.45E-02 | E77: 3.91E+00 | F77: =F76+(A77-A76)*(E77*C77) -> 3.11E+10 | G77: =G76+(A77-A76)*(C77) -> 7.89E+09 | K77: 3.16E-04 | L77: 7.30E+13 | M77: =L77*10000 -> 7.30E+17 | N77: 5.45E+02 | O77: 3.85E+00 | P77: =P76+(K77-K76)*(O77*M77) -> 8.20E+14 | Q77: =Q76+(K77-K76)*(M77) -> 2.13E+14
A78: 3.41E-08 | B78: 6.02E+13 | C78: =B78*10000 -> 6.02E+17 | D78: 5.76E-02 | E78: 3.91E+00 | F78: =F77+(A78-A77)*(E78*C78) -> 3.70E+10 | G78: =G77+(A78-A77)*(C78) -> 9.40E+09 | K78: 3.41E-04 | L78: 6.85E+13 | M78: =L78*10000 -> 6.85E+17 | N78: 5.76E+02 | O78: 3.85E+00 | P78: =P77+(K78-K77)*(O78*M78) -> 8.86E+14 | Q78: =Q77+(K78-K77)*(M78) -> 2.30E+14
A79: 3.69E-08 | B79: 6.64E+13 | C79: =B79*10000 -> 6.64E+17 | D79: 6.06E-02 | E79: 3.90E+00 | F79: =F78+(A79-A78)*(E79*C79) -> 4.41E+10 | G79: =G78+(A79-A78)*(C79) -> 1.12E+10 | K79: 3.69E-04 | L79: 6.82E+13 | M79: =L79*10000 -> 6.82E+17 | N79: 6.06E+02 | O79: 3.85E+00 | P79: =P78+(K79-K78)*(O79*M79) -> 9.58E+14 | Q79: =Q78+(K79-K78)*(M79) -> 2.49E+14
A80: 3.98E-08 | B80: 6.82E+13 | C80: =B80*10000 -> 6.82E+17 | D80: 6.36E-02 | E80: 3.90E+00 | F80: =F79+(A80-A79)*(E80*C80) -> 5.19E+10 | G80: =G79+(A80-A79)*(C80) -> 1.32E+10 | K80: 3.98E-04 | L80: 6.91E+13 | M80: =L80*10000 -> 6.91E+17 | N80: 6.36E+02 | O80: 3.85E+00 | P80: =P79+(K80-K79)*(O80*M80) -> 1.04E+15 | Q80: =Q79+(K80-K79)*(M80) -> 2.69E+14
A81: 4.30E-08 | B81: 7.55E+13 | C81: =B81*10000 -> 7.55E+17 | D81: 6.67E-02 | E81: 3.90E+00 | F81: =F80+(A81-A80)*(E81*C81) -> 6.13E+10 | G81: =G80+(A81-A80)*(C81) -> 1.56E+10 | K81: 4.30E-04 | L81: 7.23E+13 | M81: =L81*10000 -> 7.23E+17 | N81: 6.67E+02 | O81: 3.85E+00 | P81: =P80+(K81-K80)*(O81*M81) -> 1.12E+15 | Q81: =Q80+(K81-K80)*(M81) -> 2.92E+14
A82: 4.64E-08 | B82: 7.70E+13 | C82: =B82*10000 -> 7.70E+17 | D82: 6.97E-02 | E82: 3.90E+00 | F82: =F81+(A82-A81)*(E82*C82) -> 7.16E+10 | G82: =G81+(A82-A81)*(C82) -> 1.83E+10 | K82: 4.64E-04 | L82: 7.07E+13 | M82: =L82*10000 -> 7.07E+17 | N82: 6.97E+02 | O82: 3.85E+00 | P82: =P81+(K82-K81)*(O82*M82) -> 1.22E+15 | Q82: =Q81+(K82-K81)*(M82) -> 3.16E+14
A83: 5.01E-08 | B83: 8.52E+13 | C83: =B83*10000 -> 8.52E+17 | D83: 7.27E-02 | E83: 3.89E+00 | F83: =F82+(A83-A82)*(E83*C83) -> 8.38E+10 | G83: =G82+(A83-A82)*(C83) -> 2.14E+10 | K83: 5.01E-04 | L83: 7.49E+13 | M83: =L83*10000 -> 7.49E+17 | N83: 7.27E+02 | O83: 3.85E+00 | P83: =P82+(K83-K82)*(O83*M83) -> 1.32E+15 | Q83: =Q82+(K83-K82)*(M83) -> 3.44E+14
A84: 5.41E-08 | B84: 8.45E+13 | C84: =B84*10000 -> 8.45E+17 | D84: 7.58E-02 | E84: 3.89E+00 | F84: =F83+(A84-A83)*(E84*C84) -> 9.70E+10 | G84: =G83+(A84-A83)*(C84) -> 2.48E+10 | K84: 5.41E-04 | L84: 7.20E+13 | M84: =L84*10000 -> 7.20E+17 | N84: 7.58E+02 | O84: 3.85E+00 | P84: =P83+(K84-K83)*(O84*M84) -> 1.44E+15 | Q84: =Q83+(K84-K83)*(M84) -> 3.73E+14
A85: 5.84E-08 | B85: 9.04E+13 | C85: =B85*10000 -> 9.04E+17 | D85: 7.88E-02 | E85: 3.89E+00 | F85: =F84+(A85-A84)*(E85*C85) -> 1.12E+11 | G85: =G84+(A85-A84)*(C85) -> 2.87E+10 | K85: 5.84E-04 | L85: 7.31E+13 | M85: =L85*10000 -> 7.31E+17 | N85: 7.88E+02 | O85: 3.85E+00 | P85: =P84+(K85-K84)*(O85*M85) -> 1.56E+15 | Q85: =Q84+(K85-K84)*(M85) -> 4.04E+14
A86: 6.31E-08 | B86: 9.09E+13 | C86: =B86*10000 -> 9.09E+17 | D86: 8.18E-02 | E86: 3.89E+00 | F86: =F85+(A86-A85)*(E86*C86) -> 1.29E+11 | G86: =G85+(A86-A85)*(C86) -> 3.29E+10 | K86: 6.31E-04 | L86: 7.28E+13 | M86: =L86*10000 -> 7.28E+17 | N86: 8.18E+02 | O86: 3.85E+00 | P86: =P85+(K86-K85)*(O86*M86) -> 1.69E+15 | Q86: =Q85+(K86-K85)*(M86) -> 4.38E+14
A87: 6.81E-08 | B87: 9.03E+13 | C87: =B87*10000 -> 9.03E+17 | D87: 8.48E-02 | E87: 3.89E+00 | F87: =F86+(A87-A86)*(E87*C87) -> 1.46E+11 | G87: =G86+(A87-A86)*(C87) -> 3.75E+10 | K87: 6.81E-04 | L87: 7.10E+13 | M87: =L87*10000 -> 7.10E+17 | N87: 8.48E+02 | O87: 3.85E+00 | P87: =P86+(K87-K86)*(O87*M87) -> 1.82E+15 | Q87: =Q86+(K87-K86)*(M87) -> 4.74E+14
A88: 7.36E-08 | B88: 9.33E+13 | C88: =B88*10000 -> 9.33E+17 | D88: 8.79E-02 | E88: 3.89E+00 | F88: =F87+(A88-A87)*(E88*C88) -> 1.66E+11 | G88: =G87+(A88-A87)*(C88) -> 4.25E+10 | K88: 7.36E-04 | L88: 6.99E+13 | M88: =L88*10000 -> 6.99E+17 | N88: 8.79E+02 | O88: 3.85E+00 | P88: =P87+(K88-K87)*(O88*M88) -> 1.97E+15 | Q88: =Q87+(K88-K87)*(M88) -> 5.12E+14
A89: 7.94E-08 | B89: 9.07E+13 | C89: =B89*10000 -> 9.07E+17 | D89: 9.09E-02 | E89: 3.89E+00 | F89: =F88+(A89-A88)*(E89*C89) -> 1.87E+11 | G89: =G88+(A89-A88)*(C89) -> 4.79E+10 | K89: 7.94E-04 | L89: 7.19E+13 | M89: =L89*10000 -> 7.19E+17 | N89: 9.09E+02 | O89: 3.85E+00 | P89: =P88+(K89-K88)*(O89*M89) -> 2.13E+15 | Q89: =Q88+(K89-K88)*(M89) -> 5.54E+14
A90: 8.58E-08 | B90: 9.07E+13 | C90: =B90*10000 -> 9.07E+17 | D90: 9.09E-02 | E90: 3.89E+00 | F90: =F89+(A90-A89)*(E90*C90) -> 2.09E+11 | G90: =G89+(A90-A89)*(C90) -> 5.36E+10 | K90: 8.58E-04 | L90: 7.06E+13 | M90: =L90*10000 -> 7.06E+17 | N90: 9.39E+02 | O90: 3.85E+00 | P90: =P89+(K90-K89)*(O90*M90) -> 2.31E+15 | Q90: =Q89+(K90-K89)*(M90) -> 5.99E+14
A91: 9.26E-08 | B91: 9.09E+13 | C91: =B91*10000 -> 9.09E+17 | D91: 9.39E-02 | E91: 3.88E+00 | F91: =F90+(A91-A90)*(E91*C91) -> 2.33E+11 | G91: =G90+(A91-A90)*(C91) -> 5.98E+10 | K91: 9.26E-04 | L91: 7.54E+13 | M91: =L91*10000 -> 7.54E+17 | N91: 9.70E+02 | O91: 3.85E+00 | P91: =P90+(K91-K90)*(O91*M91) -> 2.50E+15 | Q91: =Q90+(K91-K90)*(M91) -> 6.50E+14
A92: 1.00E-07 | B92: 8.62E+13 | C92: =B92*10000 -> 8.62E+17 | D92: 9.70E-02 | E92: 3.88E+00 | F92: =F91+(A92-A91)*(E92*C92) -> 2.58E+11 | G92: =G91+(A92-A91)*(C92) -> 6.62E+10 | K92: 1.00E-03 | L92: 7.39E+13 | M92: =L92*10000 -> 7.39E+17 | N92: 1.00E+03 | O92: 3.85E+00 | P92: =P91+(K92-K91)*(O92*M92) -> 2.71E+15 | Q92: =Q91+(K92-K91)*(M92) -> 7.05E+14
A93: 1.08E-07 | B93: 8.47E+13 | C93: =B93*10000 -> 8.47E+17 | D93: 1.00E-01 | E93: 3.88E+00 | F93: =F92+(A93-A92)*(E93*C93) -> 2.84E+11 | G93: =G92+(A93-A92)*(C93) -> 7.30E+10 | K93: 1.08E-03 | L93: 7.44E+13 | M93: =L93*10000 -> 7.44E+17 | N93: 1.21E+03 | O93: 3.85E+00 | P93: =P92+(K93-K92)*(O93*M93) -> 2.94E+15 | Q93: =Q92+(K93-K92)*(M93) -> 7.64E+14
A94: 1.17E-07 | B94: 8.23E+13 | C94: =B94*10000 -> 8.23E+17 | D94: 1.21E-01 | E94: 3.88E+00 | F94: =F93+(A94-A93)*(E94*C94) -> 3.12E+11 | G94: =G93+(A94-A93)*(C94) -> 8.01E+10 | K94: 1.17E-03 | L94: 6.92E+13 | M94: =L94*10000 -> 6.92E+17 | N94: 1.52E+03 | O94: 3.85E+00 | P94: =P93+(K94-K93)*(O94*M94) -> 3.17E+15 | Q94: =Q93+(K94-K93)*(M94) -> 8.24E+14
A95: 1.26E-07 | B95: 8.14E+13 | C95: =B95*10000 -> 8.14E+17 | D95: 1.52E-01 | E95: 3.87E+00 | F95: =F94+(A95-A94)*(E95*C95) -> 3.41E+11 | G95: =G94+(A95-A94)*(C95) -> 8.76E+10 | K95: 1.26E-03 | L95: 7.13E+13 | M95: =L95*10000 -> 7.13E+17 | N95: 1.82E+03 | O95: 3.85E+00 | P95: =P94+(K95-K94)*(O95*M95) -> 3.43E+15 | Q95: =Q94+(K95-K94)*(M95) -> 8.90E+14
A96: 1.36E-07 | B96: 7.67E+13 | C96: =B96*10000 -> 7.67E+17 | D96: 1.82E-01 | E96: 3.87E+00 | F96: =F95+(A96-A95)*(E96*C96) -> 3.71E+11 | G96: =G95+(A96-A95)*(C96) -> 9.53E+10 | K96: 1.36E-03 | L96: 7.44E+13 | M96: =L96*10000 -> 7.44E+17 | N96: 2.12E+03 | O96: 3.85E+00 | P96: =P95+(K96-K95)*(O96*M96) -> 3.72E+15 | Q96: =Q95+(K96-K95)*(M96) -> 9.65E+14
A97: 1.47E-07 | B97: 7.16E+13 | C97: =B97*10000 -> 7.16E+17 | D97: 2.12E-01 | E97: 3.87E+00 | F97: =F96+(A97-A96)*(E97*C97) -> 4.01E+11 | G97: =G96+(A97-A96)*(C97) -> 1.03E+11 | K97: 1.47E-03 | L97: 7.10E+13 | M97: =L97*10000 -> 7.10E+17 | N97: 2.42E+03 | O97: 3.85E+00 | P97: =P96+(K97-K96)*(O97*M97) -> 4.01E+15 | Q97: =Q96+(K97-K96)*(M97) -> 1.04E+15
A98: 1.58E-07 | B98: 6.72E+13 | C98: =B98*10000 -> 6.72E+17 | D98: 2.42E-01 | E98: 3.86E+00 | F98: =F97+(A98-A97)*(E98*C98) -> 4.31E+11 | G98: =G97+(A98-A97)*(C98) -> 1.11E+11 | K98: 1.58E-03 | L98: 7.69E+13 | M98: =L98*10000 -> 7.69E+17 | N98: 2.73E+03 | O98: 3.85E+00 | P98: =P97+(K98-K97)*(O98*M98) -> 4.36E+15 | Q98: =Q97+(K98-K97)*(M98) -> 1.13E+15
A99: 1.71E-07 | B99: 6.70E+13 | C99: =B99*10000 -> 6.70E+17 | D99: 2.73E-01 | E99: 3.86E+00 | F99: =F98+(A99-A98)*(E99*C99) -> 4.64E+11 | G99: =G98+(A99-A98)*(C99) -> 1.19E+11 | K99: 1.71E-03 | L99: 7.62E+13 | M99: =L99*10000 -> 7.62E+17 | N99: 3.03E+03 | O99: 3.85E+00 | P99: =P98+(K99-K98)*(O99*M99) -> 4.73E+15 | Q99: =Q98+(K99-K98)*(M99) -> 1.23E+15
A100: 1.85E-07 | B100: 6.46E+13 | C100: =B100*10000 -> 6.46E+17 | D100: 3.03E-01 | E100: 3.86E+00 | F100: =F99+(A100-A99)*(E100*C100) -> 4.98E+11 | G100: =G99+(A100-A99)*(C100) -> 1.28E+11 | K100: 1.85E-03 | L100: 7.85E+13 | M100: =L100*10000 -> 7.85E+17 | N100: 3.33E+03 | O100: 3.84E+00 | P100: =P99+(K100-K99)*(O100*M100) -> 5.14E+15 | Q100: =Q99+(K100-K99)*(M100) -> 1.34E+15
A101: 2.00E-07 | B101: 6.34E+13 | C101: =B101*10000 -> 6.34E+17 | D101: 3.33E-01 | E101: 3.86E+00 | F101: =F100+(A101-A100)*(E101*C101) -> 5.34E+11 | G101: =G100+(A101-A100)*(C101) -> 1.38E+11 | K101: 2.00E-03 | L101: 7.51E+13 | M101: =L101*10000 -> 7.51E+17 | N101: 3.64E+03 | O101: 3.84E+00 | P101: =P100+(K101-K100)*(O101*M101) -> 5.57E+15 | Q101: =Q100+(K101-K100)*(M101) -> 1.45E+15
A102: 2.15E-07 | B102: 5.89E+13 | C102: =B102*10000 -> 5.89E+17 | D102: 3.64E-01 | E102: 3.86E+00 | F102: =F101+(A102-A101)*(E102*C102) -> 5.70E+11 | G102: =G101+(A102-A101)*(C102) -> 1.47E+11 | K102: 2.15E-03 | L102: 7.59E+13 | M102: =L102*10000 -> 7.59E+17 | N102: 3.94E+03 | O102: 3.84E+00 | P102: =P101+(K102-K101)*(O102*M102) -> 6.03E+15 | Q102: =Q101+(K102-K101)*(M102) -> 1.57E+15
A103: 2.33E-07 | B103: 5.77E+13 | C103: =B103*10000 -> 5.77E+17 | D103: 3.94E-01 | E103: 3.86E+00 | F103: =F102+(A103-A102)*(E103*C103) -> 6.09E+11 | G103: =G102+(A103-A102)*(C103) -> 1.57E+11 | K103: 2.33E-03 | L103: 7.58E+13 | M103: =L103*10000 -> 7.58E+17 | N103: 4.24E+03 | O103: 3.84E+00 | P103: =P102+(K103-K102)*(O103*M103) -> 6.53E+15 | Q103: =Q102+(K103-K102)*(M103) -> 1.70E+15
A104: 2.51E-07 | B104: 5.68E+13 | C104: =B104*10000 -> 5.68E+17 | D104: 4.24E-01 | E104: 3.86E+00 | F104: =F103+(A104-A103)*(E104*C104) -> 6.49E+11 | G104: =G103+(A104-A103)*(C104) -> 1.67E+11 | K104: 2.51E-03 | L104: 7.52E+13 | M104: =L104*10000 -> 7.52E+17 | N104: 4.55E+03 | O104: 3.84E+00 | P104: =P103+(K104-K103)*(O104*M104) -> 7.07E+15 | Q104: =Q103+(K104-K103)*(M104) -> 1.84E+15
A105: 2.71E-07 | B105: 5.55E+13 | C105: =B105*10000 -> 5.55E+17 | D105: 4.55E-01 | E105: 3.86E+00 | F105: =F104+(A105-A104)*(E105*C105) -> 6.92E+11 | G105: =G104+(A105-A104)*(C105) -> 1.79E+11 | K105: 2.71E-03 | L105: 7.45E+13 | M105: =L105*10000 -> 7.45E+17 | N105: 4.85E+03 | O105: 3.84E+00 | P105: =P104+(K105-K104)*(O105*M105) -> 7.64E+15 | Q105: =Q104+(K105-K104)*(M105) -> 1.99E+15
A106: 2.93E-07 | B106: 5.51E+13 | C106: =B106*10000 -> 5.51E+17 | D106: 4.85E-01 | E106: 3.86E+00 | F106: =F105+(A106-A105)*(E106*C106) -> 7.38E+11 | G106: =G105+(A106-A105)*(C106) -> 1.90E+11 | K106: 2.93E-03 | L106: 8.06E+13 | M106: =L106*10000 -> 8.06E+17 | N106: 5.15E+03 | O106: 3.84E+00 | P106: =P105+(K106-K105)*(O106*M106) -> 8.31E+15 | Q106: =Q105+(K106-K105)*(M106) -> 2.16E+15
A107: 3.16E-07 | B107: 5.52E+13 | C107: =B107*10000 -> 5.52E+17 | D107: 5.15E-01 | E107: 3.86E+00 | F107: =F106+(A107-A106)*(E107*C107) -> 7.88E+11 | G107: =G106+(A107-A106)*(C107) -> 2.03E+11 | K107: 3.16E-03 | L107: 7.13E+13 | M107: =L107*10000 -> 7.13E+17 | N107: 5.45E+03 | O107: 3.84E+00 | P107: =P106+(K107-K106)*(O107*M107) -> 8.95E+15 | Q107: =Q106+(K107-K106)*(M107) -> 2.33E+15
A108: 3.41E-07 | B108: 5.54E+13 | C108: =B108*10000 -> 5.54E+17 | D108: 5.45E-01 | E108: 3.86E+00 | F108: =F107+(A108-A107)*(E108*C108) -> 8.42E+11 | G108: =G107+(A108-A107)*(C108) -> 2.17E+11 | K108: 3.41E-03 | L108: 7.69E+13 | M108: =L108*10000 -> 7.69E+17 | N108: 5.76E+03 | O108: 3.84E+00 | P108: =P107+(K108-K107)*(O108*M108) -> 9.69E+15 | Q108: =Q107+(K108-K107)*(M108) -> 2.52E+15
A109: 3.69E-07 | B109: 5.59E+13 | C109: =B109*10000 -> 5.59E+17 | D109: 5.76E-01 | E109: 3.86E+00 | F109: =F108+(A109-A108)*(E109*C109) -> 9.01E+11 | G109: =G108+(A109-A108)*(C109) -> 2.33E+11 | K109: 3.69E-03 | L109: 7.68E+13 | M109: =L109*10000 -> 7.68E+17 | N109: 6.06E+03 | O109: 3.84E+00 | P109: =P108+(K109-K108)*(O109*M109) -> 1.05E+16 | Q109: =Q108+(K109-K108)*(M109) -> 2.73E+15
A110: 3.98E-07 | B110: 5.39E+13 | C110: =B110*10000 -> 5.39E+17 | D110: 6.06E-01 | E110: 3.86E+00 | F110: =F109+(A110-A109)*(E110*C110) -> 9.62E+11 | G110: =G109+(A110-A109)*(C110) -> 2.48E+11 | K110: 3.98E-03 | L110: 7.49E+13 | M110: =L110*10000 -> 7.49E+17 | N110: 6.36E+03 | O110: 3.84E+00 | P110: =P109+(K110-K109)*(O110*M110) -> 1.13E+16 | Q110: =Q109+(K110-K109)*(M110) -> 2.95E+15
A111: 4.30E-07 | B111: 5.70E+13 | C111: =B111*10000 -> 5.70E+17 | D111: 6.36E-01 | E111: 3.86E+00 | F111: =F110+(A111-A110)*(E111*C111) -> 1.03E+12 | G111: =G110+(A111-A110)*(C111) -> 2.67E+11 | K111: 4.30E-03 | L111: 7.61E+13 | M111: =L111*10000 -> 7.61E+17 | N111: 6.67E+03 | O111: 3.84E+00 | P111: =P110+(K111-K110)*(O111*M111) -> 1.23E+16 | Q111: =Q110+(K111-K110)*(M111) -> 3.19E+15
A112: 4.64E-07 | B112: 5.62E+13 | C112: =B112*10000 -> 5.62E+17 | D112: 6.67E-01 | E112: 3.86E+00 | F112: =F111+(A112-A111)*(E112*C112) -> 1.11E+12 | G112: =G111+(A112-A111)*(C112) -> 2.86E+11 | K112: 4.64E-03 | L112: 7.85E+13 | M112: =L112*10000 -> 7.85E+17 | N112: 6.97E+03 | O112: 3.84E+00 | P112: =P111+(K112-K111)*(O112*M112) -> 1.33E+16 | Q112: =Q111+(K112-K111)*(M112) -> 3.46E+15
A113: 5.01E-07 | B113: 5.57E+13 | C113: =B113*10000 -> 5.57E+17 | D113: 6.97E-01 | E113: 3.86E+00 | F113: =F112+(A113-A112)*(E113*C113) -> 1.19E+12 | G113: =G112+(A113-A112)*(C113) -> 3.06E+11 | K113: 5.01E-03 | L113: 8.06E+13 | M113: =L113*10000 -> 8.06E+17 | N113: 7.27E+03 | O113: 3.84E+00 | P113: =P112+(K113-K112)*(O113*M113) -> 1.44E+16 | Q113: =Q112+(K113-K112)*(M113) -> 3.76E+15
A114: 5.41E-07 | B114: 5.53E+13 | C114: =B114*10000 -> 5.53E+17 | D114: 7.27E-01 | E114: 3.86E+00 | F114: =F113+(A114-A113)*(E114*C114) -> 1.27E+12 | G114: =G113+(A114-A113)*(C114) -> 3.29E+11 | K114: 5.41E-03 | L114: 8.50E+13 | M114: =L114*10000 -> 8.50E+17 | N114: 7.58E+03 | O114: 3.84E+00 | P114: =P113+(K114-K113)*(O114*M114) -> 1.58E+16 | Q114: =Q113+(K114-K113)*(M114) -> 4.10E+15
A115: 5.84E-07 | B115: 5.64E+13 | C115: =B115*10000 -> 5.64E+17 | D115: 7.58E-01 | E115: 3.86E+00 | F115: =F114+(A115-A114)*(E115*C115) -> 1.36E+12 | G115: =G114+(A115-A114)*(C115) -> 3.53E+11 | K115: 5.84E-03 | L115: 8.07E+13 | M115: =L115*10000 -> 8.07E+17 | N115: 7.88E+03 | O115: 3.83E+00 | P115: =P114+(K115-K114)*(O115*M115) -> 1.71E+16 | Q115: =Q114+(K115-K114)*(M115) -> 4.45E+15
A116: 6.31E-07 | B116: 5.69E+13 | C116: =B116*10000 -> 5.69E+17 | D116: 7.88E-01 | E116: 3.86E+00 | F116: =F115+(A116-A115)*(E116*C116) -> 1.47E+12 | G116: =G115+(A116-A115)*(C116) -> 3.79E+11 | K116: 6.31E-03 | L116: 6.72E+13 | M116: =L116*10000 -> 6.72E+17 | N116: 8.18E+03 | O116: 3.83E+00 | P116: =P115+(K116-K115)*(O116*M116) -> 1.83E+16 | Q116: =Q115+(K116-K115)*(M116) -> 4.76E+15
A117: 6.81E-07 | B117: 5.71E+13 | C117: =B117*10000 -> 5.71E+17 | D117: 8.18E-01 | E117: 3.86E+00 | F117: =F116+(A117-A116)*(E117*C117) -> 1.58E+12 | G117: =G116+(A117-A116)*(C117) -> 4.08E+11 | K117: 6.81E-03 | L117: 8.38E+13 | M117: =L117*10000 -> 8.38E+17 | N117: 8.48E+03 | O117: 3.83E+00 | P117: =P116+(K117-K116)*(O117*M117) -> 1.99E+16 | Q117: =Q116+(K117-K116)*(M117) -> 5.18E+15
A118: 7.36E-07 | B118: 5.48E+13 | C118: =B118*10000 -> 5.48E+17 | D118: 8.48E-01 | E118: 3.86E+00 | F118: =F117+(A118-A117)*(E118*C118) -> 1.69E+12 | G118: =G117+(A118-A117)*(C118) -> 4.38E+11 | K118: 7.36E-03 | L118: 8.06E+13 | M118: =L118*10000 -> 8.06E+17 | N118: 8.79E+03 | O118: 3.83E+00 | P118: =P117+(K118-K117)*(O118*M118) -> 2.16E+16 | Q118: =Q117+(K118-K117)*(M118) -> 5.62E+15
A119: 7.94E-07 | B119: 5.49E+13 | C119: =B119*10000 -> 5.49E+17 | D119: 8.79E-01 | E119: 3.86E+00 | F119: =F118+(A119-A118)*(E119*C119) -> 1.82E+12 | G119: =G118+(A119-A118)*(C119) -> 4.70E+11 | K119: 7.94E-03 | L119: 8.61E+13 | M119: =L119*10000 -> 8.61E+17 | N119: 9.09E+03 | O119: 3.83E+00 | P119: =P118+(K119-K118)*(O119*M119) -> 2.35E+16 | Q119: =Q118+(K119-K118)*(M119) -> 6.13E+15
A120: 8.58E-07 | B120: 5.45E+13 | C120: =B120*10000 -> 5.45E+17 | D120: 9.09E-01 | E120: 3.86E+00 | F120: =F119+(A120-A119)*(E120*C120) -> 1.95E+12 | G120: =G119+(A120-A119)*(C120) -> 5.05E+11 | K120: 8.58E-03 | L120: 7.75E+13 | M120: =L120*10000 -> 7.75E+17 | N120: 9.39E+03 | O120: 3.83E+00 | P120: =P119+(K120-K119)*(O120*M120) -> 2.54E+16 | Q120: =Q119+(K120-K119)*(M120) -> 6.62E+15
A121: 9.26E-07 | B121: 5.44E+13 | C121: =B121*10000 -> 5.44E+17 | D121: 9.39E-01 | E121: 3.86E+00 | F121: =F120+(A121-A120)*(E121*C121) -> 2.09E+12 | G121: =G120+(A121-A120)*(C121) -> 5.42E+11 | K121: 9.26E-03 | L121: 8.35E+13 | M121: =L121*10000 -> 8.35E+17 | N121: 9.70E+03 | O121: 3.83E+00 | P121: =P120+(K121-K120)*(O121*M121) -> 2.76E+16 | Q121: =Q120+(K121-K120)*(M121) -> 7.19E+15
D122: 0.969697 | E122: 3.855188 | K122: 1.00E-02 | L122: 8.64E+13 | M122: =L122*10000 -> 8.64E+17 | N122: 1.00E+04 | O122: 3.83E+00 | P122: =P121+(K122-K121)*(O122*M122) -> 3.00E+16 | Q122: =Q121+(K122-K121)*(M122) -> 7.83E+15
K123: 1.08E-02 | L123: 8.89E+13 | M123: =L123*10000 -> 8.89E+17 | N123: 1.21E+04 | O123: 3.83E+00 | P123: =P122+(K123-K122)*(O123*M123) -> 3.28E+16 | Q123: =Q122+(K123-K122)*(M123) -> 8.54E+15
K124: 1.17E-02 | L124: 8.69E+13 | M124: =L124*10000 -> 8.69E+17 | N124: 1.52E+04 | O124: 3.82E+00 | P124: =P123+(K124-K123)*(O124*M124) -> 3.56E+16 | Q124: =Q123+(K124-K123)*(M124) -> 9.29E+15
K125: 1.26E-02 | L125: 9.36E+13 | M125: =L125*10000 -> 9.36E+17 | N125: 1.82E+04 | O125: 3.81E+00 | P125: =P124+(K125-K124)*(O125*M125) -> 3.89E+16 | Q125: =Q124+(K125-K124)*(M125) -> 1.02E+16
K126: 1.36E-02 | L126: 9.36E+13 | M126: =L126*10000 -> 9.36E+17 | N126: 2.12E+04 | O126: 3.81E+00 | P126: =P125+(K126-K125)*(O126*M126) -> 4.25E+16 | Q126: =Q125+(K126-K125)*(M126) -> 1.11E+16
K127: 1.47E-02 | L127: 9.88E+13 | M127: =L127*10000 -> 9.88E+17 | N127: 2.42E+04 | O127: 3.80E+00 | P127: =P126+(K127-K126)*(O127*M127) -> 4.66E+16 | Q127: =Q126+(K127-K126)*(M127) -> 1.22E+16
K128: 1.58E-02 | L128: 9.18E+13 | M128: =L128*10000 -> 9.18E+17 | N128: 2.73E+04 | O128: 3.79E+00 | P128: =P127+(K128-K127)*(O128*M128) -> 5.07E+16 | Q128: =Q127+(K128-K127)*(M128) -> 1.32E+16
K129: 1.71E-02 | L129: 7.93E+13 | M129: =L129*10000 -> 7.93E+17 | N129: 3.03E+04 | O129: 3.79E+00 | P129: =P128+(K129-K128)*(O129*M129) -> 5.44E+16 | Q129: =Q128+(K129-K128)*(M129) -> 1.42E+16
K130: 1.85E-02 | L130: 7.52E+13 | M130: =L130*10000 -> 7.52E+17 | N130: 3.33E+04 | O130: 3.78E+00 | P130: =P129+(K130-K129)*(O130*M130) -> 5.83E+16 | Q130: =Q129+(K130-K129)*(M130) -> 1.53E+16
K131: 2.00E-02 | L131: 7.15E+13 | M131: =L131*10000 -> 7.15E+17 | N131: 3.64E+04 | O131: 3.77E+00 | P131: =P130+(K131-K130)*(O131*M131) -> 6.23E+16 | Q131: =Q130+(K131-K130)*(M131) -> 1.63E+16
K132: 2.15E-02 | L132: 7.92E+13 | M132: =L132*10000 -> 7.92E+17 | N132: 3.94E+04 | O132: 3.77E+00 | P132: =P131+(K132-K131)*(O132*M132) -> 6.71E+16 | Q132: =Q131+(K132-K131)*(M132) -> 1.76E+16
K133: 2.33E-02 | L133: 9.09E+13 | M133: =L133*10000 -> 9.09E+17 | N133: 4.24E+04 | O133: 3.76E+00 | P133: =P132+(K133-K132)*(O133*M133) -> 7.29E+16 | Q133: =Q132+(K133-K132)*(M133) -> 1.91E+16
K134: 2.51E-02 | L134: 8.71E+13 | M134: =L134*10000 -> 8.71E+17 | N134: 4.55E+04 | O134: 3.75E+00 | P134: =P133+(K134-K133)*(O134*M134) -> 7.90E+16 | Q134: =Q133+(K134-K133)*(M134) -> 2.08E+16
K135: 2.71E-02 | L135: 1.06E+14 | M135: =L135*10000 -> 1.06E+18 | N135: 4.85E+04 | O135: 3.75E+00 | P135: =P134+(K135-K134)*(O135*M135) -> 8.70E+16 | Q135: =Q134+(K135-K134)*(M135) -> 2.29E+16
K136: 2.93E-02 | L136: 1.31E+14 | M136: =L136*10000 -> 1.31E+18 | N136: 5.15E+04 | O136: 3.74E+00 | P136: =P135+(K136-K135)*(O136*M136) -> 9.75E+16 | Q136: =Q135+(K136-K135)*(M136) -> 2.57E+16
K137: 3.16E-02 | L137: 1.48E+14 | M137: =L137*10000 -> 1.48E+18 | N137: 5.45E+04 | O137: 3.73E+00 | P137: =P136+(K137-K136)*(O137*M137) -> 1.10E+17 | Q137: =Q136+(K137-K136)*(M137) -> 2.92E+16
K138: 3.41E-02 | L138: 8.17E+13 | M138: =L138*10000 -> 8.17E+17 | N138: 5.76E+04 | O138: 3.73E+00 | P138: =P137+(K138-K137)*(O138*M138) -> 1.18E+17 | Q138: =Q137+(K138-K137)*(M138) -> 3.12E+16
K139: 3.69E-02 | L139: 4.50E+13 | M139: =L139*10000 -> 4.50E+17 | N139: 6.06E+04 | O139: 3.72E+00 | P139: =P138+(K139-K138)*(O139*M139) -> 1.23E+17 | Q139: =Q138+(K139-K138)*(M139) -> 3.25E+16
K140: 3.98E-02 | L140: 5.48E+13 | M140: =L140*10000 -> 5.48E+17 | N140: 6.36E+04 | O140: 3.72E+00 | P140: =P139+(K140-K139)*(O140*M140) -> 1.29E+17 | Q140: =Q139+(K140-K139)*(M140) -> 3.41E+16
K141: 4.30E-02 | L141: 7.88E+13 | M141: =L141*10000 -> 7.88E+17 | N141: 6.67E+04 | O141: 3.71E+00 | P141: =P140+(K141-K140)*(O141*M141) -> 1.38E+17 | Q141: =Q140+(K141-K140)*(M141) -> 3.66E+16
K142: 4.64E-02 | L142: 9.00E+13 | M142: =L142*10000 -> 9.00E+17 | N142: 6.97E+04 | O142: 3.70E+00 | P142: =P141+(K142-K141)*(O142*M142) -> 1.49E+17 | Q142: =Q141+(K142-K141)*(M142) -> 3.97E+16
K143: 5.01E-02 | L143: 1.06E+14 | M143: =L143*10000 -> 1.06E+18 | N143: 7.27E+04 | O143: 3.70E+00 | P143: =P142+(K143-K142)*(O143*M143) -> 1.64E+17 | Q143: =Q142+(K143-K142)*(M143) -> 4.36E+16
K144: 5.41E-02 | L144: 9.62E+13 | M144: =L144*10000 -> 9.62E+17 | N144: 7.58E+04 | O144: 3.69E+00 | P144: =P143+(K144-K143)*(O144*M144) -> 1.78E+17 | Q144: =Q143+(K144-K143)*(M144) -> 4.74E+16
K145: 5.84E-02 | L145: 1.05E+14 | M145: =L145*10000 -> 1.05E+18 | N145: 7.88E+04 | O145: 3.69E+00 | P145: =P144+(K145-K144)*(O145*M145) -> 1.95E+17 | Q145: =Q144+(K145-K144)*(M145) -> 5.20E+16
K146: 6.31E-02 | L146: 1.21E+14 | M146: =L146*10000 -> 1.21E+18 | N146: 8.18E+04 | O146: 3.68E+00 | P146: =P145+(K146-K145)*(O146*M146) -> 2.16E+17 | Q146: =Q145+(K146-K145)*(M146) -> 5.76E+16
K147: 6.81E-02 | L147: 1.39E+14 | M147: =L147*10000 -> 1.39E+18 | N147: 8.48E+04 | O147: 3.67E+00 | P147: =P146+(K147-K146)*(O147*M147) -> 2.41E+17 | Q147: =Q146+(K147-K146)*(M147) -> 6.46E+16
K148: 7.36E-02 | L148: 1.72E+14 | M148: =L148*10000 -> 1.72E+18 | N148: 8.79E+04 | O148: 3.67E+00 | P148: =P147+(K148-K147)*(O148*M148) -> 2.76E+17 | Q148: =Q147+(K148-K147)*(M148) -> 7.40E+16
K149: 7.94E-02 | L149: 1.68E+14 | M149: =L149*10000 -> 1.68E+18 | N149: 9.09E+04 | O149: 3.66E+00 | P149: =P148+(K149-K148)*(O149*M149) -> 3.12E+17 | Q149: =Q148+(K149-K148)*(M149) -> 8.38E+16
K150: 8.58E-02 | L150: 9.45E+13 | M150: =L150*10000 -> 9.45E+17 | N150: 9.39E+04 | O150: 3.66E+00 | P150: =P149+(K150-K149)*(O150*M150) -> 3.34E+17 | Q150: =Q149+(K150-K149)*(M150) -> 8.98E+16
K151: 9.26E-02 | L151: 5.68E+13 | M151: =L151*10000 -> 5.68E+17 | N151: 9.70E+04 | O151: 3.65E+00 | P151: =P150+(K151-K150)*(O151*M151) -> 3.48E+17 | Q151: =Q150+(K151-K150)*(M151) -> 9.37E+16
K152: 1.00E-01 | L152: 9.00E+13 | M152: =L152*10000 -> 9.00E+17 | N152: 1.00E+05 | O152: 3.64E+00 | P152: =P151+(K152-K151)*(O152*M152) -> 3.72E+17 | Q152: =Q151+(K152-K151)*(M152) -> 1.00E+17
K153: 1.08E-01 | L153: 1.27E+14 | M153: =L153*10000 -> 1.27E+18 | N153: 1.21E+05 | O153: 3.60E+00 | P153: =P152+(K153-K152)*(O153*M153) -> 4.09E+17 | Q153: =Q152+(K153-K152)*(M153) -> 1.11E+17
K154: 1.17E-01 | L154: 1.57E+14 | M154: =L154*10000 -> 1.57E+18 | N154: 1.52E+05 | O154: 3.55E+00 | P154: =P153+(K154-K153)*(O154*M154) -> 4.57E+17 | Q154: =Q153+(K154-K153)*(M154) -> 1.24E+17
K155: 1.26E-01 | L155: 1.33E+14 | M155: =L155*10000 -> 1.33E+18 | N155: 1.82E+05 | O155: 3.50E+00 | P155: =P154+(K155-K154)*(O155*M155) -> 5.00E+17 | Q155: =Q154+(K155-K154)*(M155) -> 1.36E+17
K156: 1.36E-01 | L156: 2.44E+14 | M156: =L156*10000 -> 2.44E+18 | N156: 2.12E+05 | O156: 3.46E+00 | P156: =P155+(K156-K155)*(O156*M156) -> 5.85E+17 | Q156: =Q155+(K156-K155)*(M156) -> 1.61E+17
K157: 1.47E-01 | L157: 1.36E+14 | M157: =L157*10000 -> 1.36E+18 | N157: 2.42E+05 | O157: 3.44E+00 | P157: =P156+(K157-K156)*(O157*M157) -> 6.36E+17 | Q157: =Q156+(K157-K156)*(M157) -> 1.76E+17
K158: 1.58E-01 | L158: 9.94E+13 | M158: =L158*10000 -> 9.94E+17 | N158: 2.73E+05 | O158: 3.44E+00 | P158: =P157+(K158-K157)*(O158*M158) -> 6.76E+17 | Q158: =Q157+(K158-K157)*(M158) -> 1.87E+17
K159: 1.71E-01 | L159: 1.15E+14 | M159: =L159*10000 -> 1.15E+18 | N159: 3.03E+05 | O159: 3.48E+00 | P159: =P158+(K159-K158)*(O159*M159) -> 7.26E+17 | Q159: =Q158+(K159-K158)*(M159) -> 2.02E+17
K160: 1.85E-01 | L160: 1.68E+14 | M160: =L160*10000 -> 1.68E+18 | N160: 3.33E+05 | O160: 3.64E+00 | P160: =P159+(K160-K159)*(O160*M160) -> 8.10E+17 | Q160: =Q159+(K160-K159)*(M160) -> 2.25E+17
K161: 2.00E-01 | L161: 1.88E+14 | M161: =L161*10000 -> 1.88E+18 | N161: 3.64E+05 | O161: 4.14E+00 | P161: =P160+(K161-K160)*(O161*M161) -> 9.25E+17 | Q161: =Q160+(K161-K160)*(M161) -> 2.53E+17
K162: 2.15E-01 | L162: 1.36E+14 | M162: =L162*10000 -> 1.36E+18 | N162: 3.94E+05 | O162: 6.03E+00 | P162: =P161+(K162-K161)*(O162*M162) -> 1.05E+18 | Q162: =Q161+(K162-K161)*(M162) -> 2.74E+17
K163: 2.33E-01 | L163: 1.62E+14 | M163: =L163*10000 -> 1.62E+18 | N163: 4.24E+05 | O163: 1.42E+01 | P163: =P162+(K163-K162)*(O163*M163) -> 1.45E+18 | Q163: =Q162+(K163-K162)*(M163) -> 3.02E+17
K164: 2.51E-01 | L164: 2.04E+14 | M164: =L164*10000 -> 2.04E+18 | N164: 4.55E+05 | O164: 1.06E+01 | P164: =P163+(K164-K163)*(O164*M164) -> 1.85E+18 | Q164: =Q163+(K164-K163)*(M164) -> 3.40E+17
K165: 2.71E-01 | L165: 2.54E+14 | M165: =L165*10000 -> 2.54E+18 | N165: 4.85E+05 | O165: 5.40E+00 | P165: =P164+(K165-K164)*(O165*M165) -> 2.13E+18 | Q165: =Q164+(K165-K164)*(M165) -> 3.91E+17
K166: 2.93E-01 | L166: 2.08E+14 | M166: =L166*10000 -> 2.08E+18 | N166: 5.15E+05 | O166: 4.05E+00 | P166: =P165+(K166-K165)*(O166*M166) -> 2.31E+18 | Q166: =Q165+(K166-K165)*(M166) -> 4.36E+17
K167: 3.16E-01 | L167: 1.98E+14 | M167: =L167*10000 -> 1.98E+18 | N167: 5.45E+05 | O167: 3.52E+00 | P167: =P166+(K167-K166)*(O167*M167) -> 2.47E+18 | Q167: =Q166+(K167-K166)*(M167) -> 4.82E+17
K168: 3.41E-01 | L168: 2.39E+14 | M168: =L168*10000 -> 2.39E+18 | N168: 5.76E+05 | O168: 3.25E+00 | P168: =P167+(K168-K167)*(O168*M168) -> 2.67E+18 | Q168: =Q167+(K168-K167)*(M168) -> 5.42E+17
K169: 3.69E-01 | L169: 2.54E+14 | M169: =L169*10000 -> 2.54E+18 | N169: 6.06E+05 | O169: 3.08E+00 | P169: =P168+(K169-K168)*(O169*M169) -> 2.88E+18 | Q169: =Q168+(K169-K168)*(M169) -> 6.11E+17
K170: 3.98E-01 | L170: 2.57E+14 | M170: =L170*10000 -> 2.57E+18 | N170: 6.36E+05 | O170: 2.97E+00 | P170: =P169+(K170-K169)*(O170*M170) -> 3.11E+18 | Q170: =Q169+(K170-K169)*(M170) -> 6.87E+17
K171: 4.30E-01 | L171: 2.21E+14 | M171: =L171*10000 -> 2.21E+18 | N171: 6.67E+05 | O171: 2.88E+00 | P171: =P170+(K171-K170)*(O171*M171) -> 3.31E+18 | Q171: =Q170+(K171-K170)*(M171) -> 7.57E+17
K172: 4.64E-01 | L172: 2.12E+14 | M172: =L172*10000 -> 2.12E+18 | N172: 6.97E+05 | O172: 2.81E+00 | P172: =P171+(K172-K171)*(O172*M172) -> 3.51E+18 | Q172: =Q171+(K172-K171)*(M172) -> 8.30E+17
K173: 5.01E-01 | L173: 2.71E+14 | M173: =L173*10000 -> 2.71E+18 | N173: 7.27E+05 | O173: 2.76E+00 | P173: =P172+(K173-K172)*(O173*M173) -> 3.79E+18 | Q173: =Q172+(K173-K172)*(M173) -> 9.30E+17
K174: 5.41E-01 | L174: 2.83E+14 | M174: =L174*10000 -> 2.83E+18 | N174: 7.58E+05 | O174: 2.73E+00 | P174: =P173+(K174-K173)*(O174*M174) -> 4.10E+18 | Q174: =Q173+(K174-K173)*(M174) -> 1.04E+18
K175: 5.84E-01 | L175: 2.93E+14 | M175: =L175*10000 -> 2.93E+18 | N175: 7.88E+05 | O175: 2.72E+00 | P175: =P174+(K175-K174)*(O175*M175) -> 4.44E+18 | Q175: =Q174+(K175-K174)*(M175) -> 1.17E+18
K176: 6.31E-01 | L176: 3.29E+14 | M176: =L176*10000 -> 3.29E+18 | N176: 8.18E+05 | O176: 2.74E+00 | P176: =P175+(K176-K175)*(O176*M176) -> 4.86E+18 | Q176: =Q175+(K176-K175)*(M176) -> 1.32E+18
K177: 6.81E-01 | L177: 3.15E+14 | M177: =L177*10000 -> 3.15E+18 | N177: 8.48E+05 | O177: 2.82E+00 | P177: =P176+(K177-K176)*(O177*M177) -> 5.31E+18 | Q177: =Q176+(K177-K176)*(M177) -> 1.48E+18
K178: 7.36E-01 | L178: 3.87E+14 | M178: =L178*10000 -> 3.87E+18 | N178: 8.79E+05 | O178: 3.01E+00 | P178: =P177+(K178-K177)*(O178*M178) -> 5.94E+18 | Q178: =Q177+(K178-K177)*(M178) -> 1.69E+18
K179: 7.94E-01 | L179: 3.56E+14 | M179: =L179*10000 -> 3.56E+18 | N179: 9.09E+05 | O179: 3.43E+00 | P179: =P178+(K179-K178)*(O179*M179) -> 6.66E+18 | Q179: =Q178+(K179-K178)*(M179) -> 1.90E+18
K180: 8.58E-01 | L180: 3.24E+14 | M180: =L180*10000 -> 3.24E+18 | N180: 9.39E+05 | O180: 4.43E+00 | P180: =P179+(K180-K179)*(O180*M180) -> 7.57E+18 | Q180: =Q179+(K180-K179)*(M180) -> 2.11E+18
K181: 9.26E-01 | L181: 3.25E+14 | M181: =L181*10000 -> 3.25E+18 | N181: 9.70E+05 | O181: 6.48E+00 | P181: =P180+(K181-K180)*(O181*M181) -> 9.01E+18 | Q181: =Q180+(K181-K180)*(M181) -> 2.33E+18
K182: 1.00E+00 | L182: 3.31E+14 | M182: =L182*10000 -> 3.31E+18 | N182: 1.00E+06 | O182: 8.15E+00 | P182: =P181+(K182-K181)*(O182*M182) -> 1.10E+19 | Q182: =Q181+(K182-K181)*(M182) -> 2.57E+18
K183: 1.08E+00 | L183: 3.49E+14 | M183: =L183*10000 -> 3.49E+18 | N183: 1.21E+06 | O183: 2.67E+00 | P183: =P182+(K183-K182)*(O183*M183) -> 1.17E+19 | Q183: =Q182+(K183-K182)*(M183) -> 2.85E+18
K184: 1.17E+00 | L184: 3.52E+14 | M184: =L184*10000 -> 3.52E+18 | N184: 1.52E+06 | O184: 2.03E+00 | P184: =P183+(K184-K183)*(O184*M184) -> 1.24E+19 | Q184: =Q183+(K184-K183)*(M184) -> 3.16E+18
K185: 1.26E+00 | L185: 3.40E+14 | M185: =L185*10000 -> 3.40E+18 | N185: 1.82E+06 | O185: 1.57E+00 | P185: =P184+(K185-K184)*(O185*M185) -> 1.29E+19 | Q185: =Q184+(K185-K184)*(M185) -> 3.47E+18
K186: 1.36E+00 | L186: 3.62E+14 | M186: =L186*10000 -> 3.62E+18 | N186: 2.12E+06 | O186: 1.39E+00 | P186: =P185+(K186-K185)*(O186*M186) -> 1.34E+19 | Q186: =Q185+(K186-K185)*(M186) -> 3.84E+18
K187: 1.47E+00 | L187: 3.73E+14 | M187: =L187*10000 -> 3.73E+18 | N187: 2.42E+06 | O187: 6.91E-01 | P187: =P186+(K187-K186)*(O187*M187) -> 1.36E+19 | Q187: =Q186+(K187-K186)*(M187) -> 4.24E+18
K188: 1.58E+00 | L188: 3.62E+14 | M188: =L188*10000 -> 3.62E+18 | N188: 2.73E+06 | O188: 1.09E+00 | P188: =P187+(K188-K187)*(O188*M188) -> 1.41E+19 | Q188: =Q187+(K188-K187)*(M188) -> 4.66E+18
K189: 1.71E+00 | L189: 3.65E+14 | M189: =L189*10000 -> 3.65E+18 | N189: 3.03E+06 | O189: 1.26E+00 | P189: =P188+(K189-K188)*(O189*M189) -> 1.47E+19 | Q189: =Q188+(K189-K188)*(M189) -> 5.13E+18
K190: 1.85E+00 | L190: 3.61E+14 | M190: =L190*10000 -> 3.61E+18 | N190: 3.33E+06 | O190: 3.19E+00 | P190: =P189+(K190-K189)*(O190*M190) -> 1.63E+19 | Q190: =Q189+(K190-K189)*(M190) -> 5.62E+18
K191: 2.00E+00 | L191: 3.41E+14 | M191: =L191*10000 -> 3.41E+18 | N191: 3.64E+06 | O191: 3.08E+00 | P191: =P190+(K191-K190)*(O191*M191) -> 1.78E+19 | Q191: =Q190+(K191-K190)*(M191) -> 6.12E+18
K192: 2.15E+00 | L192: 3.25E+14 | M192: =L192*10000 -> 3.25E+18 | N192: 3.94E+06 | O192: 2.15E+00 | P192: =P191+(K192-K191)*(O192*M192) -> 1.89E+19 | Q192: =Q191+(K192-K191)*(M192) -> 6.64E+18
K193: 2.33E+00 | L193: 3.25E+14 | M193: =L193*10000 -> 3.25E+18 | N193: 4.24E+06 | O193: 1.70E+00 | P193: =P192+(K193-K192)*(O193*M193) -> 1.99E+19 | Q193: =Q192+(K193-K192)*(M193) -> 7.20E+18
K194: 2.51E+00 | L194: 3.56E+14 | M194: =L194*10000 -> 3.56E+18 | N194: 4.55E+06 | O194: 1.72E+00 | P194: =P193+(K194-K193)*(O194*M194) -> 2.10E+19 | Q194: =Q193+(K194-K193)*(M194) -> 7.86E+18
K195: 2.71E+00 | L195: 2.96E+14 | M195: =L195*10000 -> 2.96E+18 | N195: 4.85E+06 | O195: 1.98E+00 | P195: =P194+(K195-K194)*(O195*M195) -> 2.22E+19 | Q195: =Q194+(K195-K194)*(M195) -> 8.45E+18
K196: 2.93E+00 | L196: 2.73E+14 | M196: =L196*10000 -> 2.73E+18 | N196: 5.15E+06 | O196: 1.95E+00 | P196: =P195+(K196-K195)*(O196*M196) -> 2.33E+19 | Q196: =Q195+(K196-K195)*(M196) -> 9.04E+18
K197: 3.16E+00 | L197: 2.54E+14 | M197: =L197*10000 -> 2.54E+18 | N197: 5.45E+06 | O197: 9.29E-01 | P197: =P196+(K197-K196)*(O197*M197) -> 2.39E+19 | Q197: =Q196+(K197-K196)*(M197) -> 9.64E+18
K198: 3.41E+00 | L198: 2.20E+14 | M198: =L198*10000 -> 2.20E+18 | N198: 5.76E+06 | O198: 1.39E+00 | P198: =P197+(K198-K197)*(O198*M198) -> 2.47E+19 | Q198: =Q197+(K198-K197)*(M198) -> 1.02E+19
K199: 3.69E+00 | L199: 1.87E+14 | M199: =L199*10000 -> 1.87E+18 | N199: 6.06E+06 | O199: 1.10E+00 | P199: =P198+(K199-K198)*(O199*M199) -> 2.52E+19 | Q199: =Q198+(K199-K198)*(M199) -> 1.07E+19
K200: 3.98E+00 | L200: 1.66E+14 | M200: =L200*10000 -> 1.66E+18 | N200: 6.36E+06 | O200: 1.06E+00 | P200: =P199+(K200-K199)*(O200*M200) -> 2.57E+19 | Q200: =Q199+(K200-K199)*(M200) -> 1.12E+19
... 42 more rows

Sheet O-16 s
A1: Energy (MeV) | B1: Flux (n/cm2-s) | C1: Flux (n/m2-s) | D1: E(JANIS) | E1: sigma (b) | F1: Int(s*F) | G1: Int(F) | I1: Value | K1: Energy (MeV) | L1: Flux (n/cm2-s) | M1: Flux (n/m2-s) | N1: E(JANIS) | O1: sigma (b) | P1: Int(s*F) | Q1: Int(F) | S1: Value
A2: 1.00E-10 | B2: 0.00E+00 | C2: =B2*10000 -> 0.00E+00 | I2: =F121/G121 -> 3.86E+00 | K2: 1.00E-06 | L2: 5.55E+13 | M2: =L2*10000 -> 5.55E+17 | S2: =P121/Q121 -> 3.84E+00
A3: 1.08E-10 | B3: 0.00E+00 | C3: =B3*10000 -> 0.00E+00 | D3: 1.21E-04 | E3: 1.62E+01 | F3: =F2+(A3-A2)*(E3*C3) -> 0.00E+00 | G3: =G2+(A3-A2)*(C3) -> 0.00E+00 | K3: 1.08E-06 | L3: 5.59E+13 | M3: =L3*10000 -> 5.59E+17 | N3: 1.21E+00 | O3: 3.85E+00 | P3: =P2+(K3-K2)*(O3*M3) -> 1.72E+11 | Q3: =Q2+(K3-K2)*(M3) -> 4.46E+10
A4: 1.17E-10 | B4: 0.00E+00 | C4: =B4*10000 -> 0.00E+00 | D4: 1.52E-04 | E4: 1.45E+01 | F4: =F3+(A4-A3)*(E4*C4) -> 0.00E+00 | G4: =G3+(A4-A3)*(C4) -> 0.00E+00 | K4: 1.17E-06 | L4: 5.42E+13 | M4: =L4*10000 -> 5.42E+17 | N4: 1.52E+00 | O4: 3.85E+00 | P4: =P3+(K4-K3)*(O4*M4) -> 3.52E+11 | Q4: =Q3+(K4-K3)*(M4) -> 9.13E+10
A5: 1.26E-10 | B5: 0.00E+00 | C5: =B5*10000 -> 0.00E+00 | D5: 1.82E-04 | E5: 1.34E+01 | F5: =F4+(A5-A4)*(E5*C5) -> 0.00E+00 | G5: =G4+(A5-A4)*(C5) -> 0.00E+00 | K5: 1.26E-06 | L5: 5.59E+13 | M5: =L5*10000 -> 5.59E+17 | N5: 1.82E+00 | O5: 3.85E+00 | P5: =P4+(K5-K4)*(O5*M5) -> 5.52E+11 | Q5: =Q4+(K5-K4)*(M5) -> 1.43E+11
A6: 1.36E-10 | B6: 0.00E+00 | C6: =B6*10000 -> 0.00E+00 | D6: 2.12E-04 | E6: 1.24E+01 | F6: =F5+(A6-A5)*(E6*C6) -> 0.00E+00 | G6: =G5+(A6-A5)*(C6) -> 0.00E+00 | K6: 1.36E-06 | L6: 5.68E+13 | M6: =L6*10000 -> 5.68E+17 | N6: 2.12E+00 | O6: 3.85E+00 | P6: =P5+(K6-K5)*(O6*M6) -> 7.72E+11 | Q6: =Q5+(K6-K5)*(M6) -> 2.00E+11
A7: 1.47E-10 | B7: 0.00E+00 | C7: =B7*10000 -> 0.00E+00 | D7: 2.42E-04 | E7: 1.17E+01 | F7: =F6+(A7-A6)*(E7*C7) -> 0.00E+00 | G7: =G6+(A7-A6)*(C7) -> 0.00E+00 | K7: 1.47E-06 | L7: 5.47E+13 | M7: =L7*10000 -> 5.47E+17 | N7: 2.42E+00 | O7: 3.85E+00 | P7: =P6+(K7-K6)*(O7*M7) -> 1.00E+12 | Q7: =Q6+(K7-K6)*(M7) -> 2.60E+11
A8: 1.58E-10 | B8: 0.00E+00 | C8: =B8*10000 -> 0.00E+00 | D8: 2.73E-04 | E8: 1.11E+01 | F8: =F7+(A8-A7)*(E8*C8) -> 0.00E+00 | G8: =G7+(A8-A7)*(C8) -> 0.00E+00 | K8: 1.58E-06 | L8: 5.38E+13 | M8: =L8*10000 -> 5.38E+17 | N8: 2.73E+00 | O8: 3.85E+00 | P8: =P7+(K8-K7)*(O8*M8) -> 1.24E+12 | Q8: =Q7+(K8-K7)*(M8) -> 3.23E+11
A9: 1.71E-10 | B9: 0.00E+00 | C9: =B9*10000 -> 0.00E+00 | D9: 3.03E-04 | E9: 1.06E+01 | F9: =F8+(A9-A8)*(E9*C9) -> 0.00E+00 | G9: =G8+(A9-A8)*(C9) -> 0.00E+00 | K9: 1.71E-06 | L9: 5.52E+13 | M9: =L9*10000 -> 5.52E+17 | N9: 3.03E+00 | O9: 3.85E+00 | P9: =P8+(K9-K8)*(O9*M9) -> 1.51E+12 | Q9: =Q8+(K9-K8)*(M9) -> 3.92E+11
A10: 1.85E-10 | B10: 0.00E+00 | C10: =B10*10000 -> 0.00E+00 | D10: 3.33E-04 | E10: 1.02E+01 | F10: =F9+(A10-A9)*(E10*C10) -> 0.00E+00 | G10: =G9+(A10-A9)*(C10) -> 0.00E+00 | K10: 1.85E-06 | L10: 5.47E+13 | M10: =L10*10000 -> 5.47E+17 | N10: 3.33E+00 | O10: 3.85E+00 | P10: =P9+(K10-K9)*(O10*M10) -> 1.80E+12 | Q10: =Q9+(K10-K9)*(M10) -> 4.67E+11
A11: 2.00E-10 | B11: 0.00E+00 | C11: =B11*10000 -> 0.00E+00 | D11: 3.64E-04 | E11: 9.78E+00 | F11: =F10+(A11-A10)*(E11*C11) -> 0.00E+00 | G11: =G10+(A11-A10)*(C11) -> 0.00E+00 | K11: 2.00E-06 | L11: 5.68E+13 | M11: =L11*10000 -> 5.68E+17 | N11: 3.64E+00 | O11: 3.85E+00 | P11: =P10+(K11-K10)*(O11*M11) -> 2.12E+12 | Q11: =Q10+(K11-K10)*(M11) -> 5.51E+11
A12: 2.15E-10 | B12: 0.00E+00 | C12: =B12*10000 -> 0.00E+00 | D12: 3.94E-04 | E12: 9.45E+00 | F12: =F11+(A12-A11)*(E12*C12) -> 0.00E+00 | G12: =G11+(A12-A11)*(C12) -> 0.00E+00 | K12: 2.15E-06 | L12: 5.57E+13 | M12: =L12*10000 -> 5.57E+17 | N12: 3.94E+00 | O12: 3.85E+00 | P12: =P11+(K12-K11)*(O12*M12) -> 2.46E+12 | Q12: =Q11+(K12-K11)*(M12) -> 6.39E+11
A13: 2.33E-10 | B13: 0.00E+00 | C13: =B13*10000 -> 0.00E+00 | D13: 4.24E-04 | E13: 9.16E+00 | F13: =F12+(A13-A12)*(E13*C13) -> 0.00E+00 | G13: =G12+(A13-A12)*(C13) -> 0.00E+00 | K13: 2.33E-06 | L13: 5.56E+13 | M13: =L13*10000 -> 5.56E+17 | N13: 4.24E+00 | O13: 3.85E+00 | P13: =P12+(K13-K12)*(O13*M13) -> 2.83E+12 | Q13: =Q12+(K13-K12)*(M13) -> 7.35E+11
A14: 2.51E-10 | B14: 0.00E+00 | C14: =B14*10000 -> 0.00E+00 | D14: 4.55E-04 | E14: 8.89E+00 | F14: =F13+(A14-A13)*(E14*C14) -> 0.00E+00 | G14: =G13+(A14-A13)*(C14) -> 0.00E+00 | K14: 2.51E-06 | L14: 5.65E+13 | M14: =L14*10000 -> 5.65E+17 | N14: 4.55E+00 | O14: 3.85E+00 | P14: =P13+(K14-K13)*(O14*M14) -> 3.24E+12 | Q14: =Q13+(K14-K13)*(M14) -> 8.40E+11
A15: 2.71E-10 | B15: 0.00E+00 | C15: =B15*10000 -> 0.00E+00 | D15: 4.85E-04 | E15: 8.66E+00 | F15: =F14+(A15-A14)*(E15*C15) -> 0.00E+00 | G15: =G14+(A15-A14)*(C15) -> 0.00E+00 | K15: 2.71E-06 | L15: 5.32E+13 | M15: =L15*10000 -> 5.32E+17 | N15: 4.85E+00 | O15: 3.85E+00 | P15: =P14+(K15-K14)*(O15*M15) -> 3.65E+12 | Q15: =Q14+(K15-K14)*(M15) -> 9.47E+11
A16: 2.93E-10 | B16: 3.02E+10 | C16: =B16*10000 -> 3.02E+14 | D16: 5.15E-04 | E16: 8.45E+00 | F16: =F15+(A16-A15)*(E16*C16) -> 5.52E+04 | G16: =G15+(A16-A15)*(C16) -> 6.54E+03 | K16: 2.93E-06 | L16: 5.44E+13 | M16: =L16*10000 -> 5.44E+17 | N16: 5.15E+00 | O16: 3.85E+00 | P16: =P15+(K16-K15)*(O16*M16) -> 4.10E+12 | Q16: =Q15+(K16-K15)*(M16) -> 1.06E+12
A17: 3.16E-10 | B17: 2.75E+10 | C17: =B17*10000 -> 2.75E+14 | D17: 5.45E-04 | E17: 8.25E+00 | F17: =F16+(A17-A16)*(E17*C17) -> 1.08E+05 | G17: =G16+(A17-A16)*(C17) -> 1.30E+04 | K17: 3.16E-06 | L17: 5.39E+13 | M17: =L17*10000 -> 5.39E+17 | N17: 5.45E+00 | O17: 3.85E+00 | P17: =P16+(K17-K16)*(O17*M17) -> 4.59E+12 | Q17: =Q16+(K17-K16)*(M17) -> 1.19E+12
A18: 3.41E-10 | B18: 0.00E+00 | C18: =B18*10000 -> 0.00E+00 | D18: 5.76E-04 | E18: 8.08E+00 | F18: =F17+(A18-A17)*(E18*C18) -> 1.08E+05 | G18: =G17+(A18-A17)*(C18) -> 1.30E+04 | K18: 3.41E-06 | L18: 5.38E+13 | M18: =L18*10000 -> 5.38E+17 | N18: 5.76E+00 | O18: 3.85E+00 | P18: =P17+(K18-K17)*(O18*M18) -> 5.11E+12 | Q18: =Q17+(K18-K17)*(M18) -> 1.33E+12
A19: 3.69E-10 | B19: 1.02E+10 | C19: =B19*10000 -> 1.02E+14 | D19: 6.06E-04 | E19: 7.91E+00 | F19: =F18+(A19-A18)*(E19*C19) -> 1.30E+05 | G19: =G18+(A19-A18)*(C19) -> 1.58E+04 | K19: 3.69E-06 | L19: 5.56E+13 | M19: =L19*10000 -> 5.56E+17 | N19: 6.06E+00 | O19: 3.85E+00 | P19: =P18+(K19-K18)*(O19*M19) -> 5.69E+12 | Q19: =Q18+(K19-K18)*(M19) -> 1.48E+12
A20: 3.98E-10 | B20: 0.00E+00 | C20: =B20*10000 -> 0.00E+00 | D20: 6.36E-04 | E20: 7.76E+00 | F20: =F19+(A20-A19)*(E20*C20) -> 1.30E+05 | G20: =G19+(A20-A19)*(C20) -> 1.58E+04 | K20: 3.98E-06 | L20: 5.65E+13 | M20: =L20*10000 -> 5.65E+17 | N20: 6.36E+00 | O20: 3.85E+00 | P20: =P19+(K20-K19)*(O20*M20) -> 6.33E+12 | Q20: =Q19+(K20-K19)*(M20) -> 1.64E+12
A21: 4.30E-10 | B21: 1.26E+10 | C21: =B21*10000 -> 1.26E+14 | D21: 6.67E-04 | E21: 7.63E+00 | F21: =F20+(A21-A20)*(E21*C21) -> 1.61E+05 | G21: =G20+(A21-A20)*(C21) -> 1.98E+04 | K21: 4.30E-06 | L21: 5.56E+13 | M21: =L21*10000 -> 5.56E+17 | N21: 6.67E+00 | O21: 3.85E+00 | P21: =P20+(K21-K20)*(O21*M21) -> 7.01E+12 | Q21: =Q20+(K21-K20)*(M21) -> 1.82E+12
A22: 4.64E-10 | B22: 7.95E+09 | C22: =B22*10000 -> 7.95E+13 | D22: 6.97E-04 | E22: 7.50E+00 | F22: =F21+(A22-A21)*(E22*C22) -> 1.81E+05 | G22: =G21+(A22-A21)*(C22) -> 2.25E+04 | K22: 4.64E-06 | L22: 5.38E+13 | M22: =L22*10000 -> 5.38E+17 | N22: 6.97E+00 | O22: 3.85E+00 | P22: =P21+(K22-K21)*(O22*M22) -> 7.72E+12 | Q22: =Q21+(K22-K21)*(M22) -> 2.00E+12
A23: 5.01E-10 | B23: 7.77E+09 | C23: =B23*10000 -> 7.77E+13 | D23: 7.27E-04 | E23: 7.38E+00 | F23: =F22+(A23-A22)*(E23*C23) -> 2.03E+05 | G23: =G22+(A23-A22)*(C23) -> 2.54E+04 | K23: 5.01E-06 | L23: 5.23E+13 | M23: =L23*10000 -> 5.23E+17 | N23: 7.27E+00 | O23: 3.85E+00 | P23: =P22+(K23-K22)*(O23*M23) -> 8.47E+12 | Q23: =Q22+(K23-K22)*(M23) -> 2.20E+12
A24: 5.41E-10 | B24: 6.15E+10 | C24: =B24*10000 -> 6.15E+14 | D24: 7.58E-04 | E24: 7.26E+00 | F24: =F23+(A24-A23)*(E24*C24) -> 3.81E+05 | G24: =G23+(A24-A23)*(C24) -> 4.99E+04 | K24: 5.41E-06 | L24: 5.55E+13 | M24: =L24*10000 -> 5.55E+17 | N24: 7.58E+00 | O24: 3.85E+00 | P24: =P23+(K24-K23)*(O24*M24) -> 9.33E+12 | Q24: =Q23+(K24-K23)*(M24) -> 2.42E+12
A25: 5.84E-10 | B25: 1.72E+10 | C25: =B25*10000 -> 1.72E+14 | D25: 7.88E-04 | E25: 7.16E+00 | F25: =F24+(A25-A24)*(E25*C25) -> 4.34E+05 | G25: =G24+(A25-A24)*(C25) -> 5.74E+04 | K25: 5.84E-06 | L25: 5.83E+13 | M25: =L25*10000 -> 5.83E+17 | N25: 7.88E+00 | O25: 3.85E+00 | P25: =P24+(K25-K24)*(O25*M25) -> 1.03E+13 | Q25: =Q24+(K25-K24)*(M25) -> 2.67E+12
A26: 6.31E-10 | B26: 7.71E+10 | C26: =B26*10000 -> 7.71E+14 | D26: 8.18E-04 | E26: 7.06E+00 | F26: =F25+(A26-A25)*(E26*C26) -> 6.88E+05 | G26: =G25+(A26-A25)*(C26) -> 9.33E+04 | K26: 6.31E-06 | L26: 5.67E+13 | M26: =L26*10000 -> 5.67E+17 | N26: 8.18E+00 | O26: 3.85E+00 | P26: =P25+(K26-K25)*(O26*M26) -> 1.13E+13 | Q26: =Q25+(K26-K25)*(M26) -> 2.94E+12
A27: 6.81E-10 | B27: 1.54E+10 | C27: =B27*10000 -> 1.54E+14 | D27: 8.48E-04 | E27: 6.97E+00 | F27: =F26+(A27-A26)*(E27*C27) -> 7.42E+05 | G27: =G26+(A27-A26)*(C27) -> 1.01E+05 | K27: 6.81E-06 | L27: 5.50E+13 | M27: =L27*10000 -> 5.50E+17 | N27: 8.48E+00 | O27: 3.85E+00 | P27: =P26+(K27-K26)*(O27*M27) -> 1.24E+13 | Q27: =Q26+(K27-K26)*(M27) -> 3.21E+12
A28: 7.36E-10 | B28: 4.12E+10 | C28: =B28*10000 -> 4.12E+14 | D28: 8.79E-04 | E28: 6.88E+00 | F28: =F27+(A28-A27)*(E28*C28) -> 8.96E+05 | G28: =G27+(A28-A27)*(C28) -> 1.23E+05 | K28: 7.36E-06 | L28: 5.72E+13 | M28: =L28*10000 -> 5.72E+17 | N28: 8.79E+00 | O28: 3.85E+00 | P28: =P27+(K28-K27)*(O28*M28) -> 1.36E+13 | Q28: =Q27+(K28-K27)*(M28) -> 3.52E+12
A29: 7.94E-10 | B29: 8.22E+10 | C29: =B29*10000 -> 8.22E+14 | D29: 9.09E-04 | E29: 6.80E+00 | F29: =F28+(A29-A28)*(E29*C29) -> 1.22E+06 | G29: =G28+(A29-A28)*(C29) -> 1.72E+05 | K29: 7.94E-06 | L29: 5.84E+13 | M29: =L29*10000 -> 5.84E+17 | N29: 9.09E+00 | O29: 3.85E+00 | P29: =P28+(K29-K28)*(O29*M29) -> 1.49E+13 | Q29: =Q28+(K29-K28)*(M29) -> 3.87E+12
A30: 8.58E-10 | B30: 1.79E+11 | C30: =B30*10000 -> 1.79E+15 | D30: 9.39E-04 | E30: 6.72E+00 | F30: =F29+(A30-A29)*(E30*C30) -> 1.99E+06 | G30: =G29+(A30-A29)*(C30) -> 2.85E+05 | K30: 8.58E-06 | L30: 5.75E+13 | M30: =L30*10000 -> 5.75E+17 | N30: 9.39E+00 | O30: 3.85E+00 | P30: =P29+(K30-K29)*(O30*M30) -> 1.63E+13 | Q30: =Q29+(K30-K29)*(M30) -> 4.23E+12
A31: 9.26E-10 | B31: 1.38E+11 | C31: =B31*10000 -> 1.38E+15 | D31: 9.70E-04 | E31: 6.64E+00 | F31: =F30+(A31-A30)*(E31*C31) -> 2.61E+06 | G31: =G30+(A31-A30)*(C31) -> 3.79E+05 | K31: 9.26E-06 | L31: 5.55E+13 | M31: =L31*10000 -> 5.55E+17 | N31: 9.70E+00 | O31: 3.85E+00 | P31: =P30+(K31-K30)*(O31*M31) -> 1.78E+13 | Q31: =Q30+(K31-K30)*(M31) -> 4.61E+12
A32: 1.00E-09 | B32: 7.31E+10 | C32: =B32*10000 -> 7.31E+14 | D32: 1.00E-03 | E32: 6.57E+00 | F32: =F31+(A32-A31)*(E32*C32) -> 2.97E+06 | G32: =G31+(A32-A31)*(C32) -> 4.33E+05 | K32: 1.00E-05 | L32: 5.82E+13 | M32: =L32*10000 -> 5.82E+17 | N32: 1.00E+01 | O32: 3.85E+00 | P32: =P31+(K32-K31)*(O32*M32) -> 1.94E+13 | Q32: =Q31+(K32-K31)*(M32) -> 5.04E+12
A33: 1.08E-09 | B33: 1.03E+11 | C33: =B33*10000 -> 1.03E+15 | D33: 1.21E-03 | E33: 6.16E+00 | F33: =F32+(A33-A32)*(E33*C33) -> 3.47E+06 | G33: =G32+(A33-A32)*(C33) -> 5.16E+05 | K33: 1.08E-05 | L33: 5.69E+13 | M33: =L33*10000 -> 5.69E+17 | N33: 1.21E+01 | O33: 3.85E+00 | P33: =P32+(K33-K32)*(O33*M33) -> 2.12E+13 | Q33: =Q32+(K33-K32)*(M33) -> 5.50E+12
A34: 1.17E-09 | B34: 2.34E+11 | C34: =B34*10000 -> 2.34E+15 | D34: 1.52E-03 | E34: 5.75E+00 | F34: =F33+(A34-A33)*(E34*C34) -> 4.63E+06 | G34: =G33+(A34-A33)*(C34) -> 7.17E+05 | K34: 1.17E-05 | L34: 5.71E+13 | M34: =L34*10000 -> 5.71E+17 | N34: 1.52E+01 | O34: 3.85E+00 | P34: =P33+(K34-K33)*(O34*M34) -> 2.31E+13 | Q34: =Q33+(K34-K33)*(M34) -> 5.99E+12
A35: 1.26E-09 | B35: 1.62E+11 | C35: =B35*10000 -> 1.62E+15 | D35: 1.82E-03 | E35: 5.47E+00 | F35: =F34+(A35-A34)*(E35*C35) -> 5.46E+06 | G35: =G34+(A35-A34)*(C35) -> 8.68E+05 | K35: 1.26E-05 | L35: 5.40E+13 | M35: =L35*10000 -> 5.40E+17 | N35: 1.82E+01 | O35: 3.85E+00 | P35: =P34+(K35-K34)*(O35*M35) -> 2.50E+13 | Q35: =Q34+(K35-K34)*(M35) -> 6.49E+12
A36: 1.36E-09 | B36: 1.17E+11 | C36: =B36*10000 -> 1.17E+15 | D36: 2.12E-03 | E36: 5.25E+00 | F36: =F35+(A36-A35)*(E36*C36) -> 6.07E+06 | G36: =G35+(A36-A35)*(C36) -> 9.85E+05 | K36: 1.36E-05 | L36: 5.94E+13 | M36: =L36*10000 -> 5.94E+17 | N36: 2.12E+01 | O36: 3.85E+00 | P36: =P35+(K36-K35)*(O36*M36) -> 2.73E+13 | Q36: =Q35+(K36-K35)*(M36) -> 7.09E+12
A37: 1.47E-09 | B37: 2.33E+11 | C37: =B37*10000 -> 2.33E+15 | D37: 2.42E-03 | E37: 5.09E+00 | F37: =F36+(A37-A36)*(E37*C37) -> 7.36E+06 | G37: =G36+(A37-A36)*(C37) -> 1.24E+06 | K37: 1.47E-05 | L37: 5.95E+13 | M37: =L37*10000 -> 5.95E+17 | N37: 2.42E+01 | O37: 3.85E+00 | P37: =P36+(K37-K36)*(O37*M37) -> 2.98E+13 | Q37: =Q36+(K37-K36)*(M37) -> 7.73E+12
A38: 1.58E-09 | B38: 3.17E+11 | C38: =B38*10000 -> 3.17E+15 | D38: 2.73E-03 | E38: 4.96E+00 | F38: =F37+(A38-A37)*(E38*C38) -> 9.20E+06 | G38: =G37+(A38-A37)*(C38) -> 1.61E+06 | K38: 1.58E-05 | L38: 5.94E+13 | M38: =L38*10000 -> 5.94E+17 | N38: 2.73E+01 | O38: 3.85E+00 | P38: =P37+(K38-K37)*(O38*M38) -> 3.25E+13 | Q38: =Q37+(K38-K37)*(M38) -> 8.43E+12
A39: 1.71E-09 | B39: 3.29E+11 | C39: =B39*10000 -> 3.29E+15 | D39: 3.03E-03 | E39: 4.85E+00 | F39: =F38+(A39-A38)*(E39*C39) -> 1.12E+07 | G39: =G38+(A39-A38)*(C39) -> 2.03E+06 | K39: 1.71E-05 | L39: 5.76E+13 | M39: =L39*10000 -> 5.76E+17 | N39: 3.03E+01 | O39: 3.85E+00 | P39: =P38+(K39-K38)*(O39*M39) -> 3.53E+13 | Q39: =Q38+(K39-K38)*(M39) -> 9.15E+12
A40: 1.85E-09 | B40: 2.40E+11 | C40: =B40*10000 -> 2.40E+15 | D40: 3.33E-03 | E40: 4.76E+00 | F40: =F39+(A40-A39)*(E40*C40) -> 1.28E+07 | G40: =G39+(A40-A39)*(C40) -> 2.35E+06 | K40: 1.85E-05 | L40: 6.06E+13 | M40: =L40*10000 -> 6.06E+17 | N40: 3.33E+01 | O40: 3.85E+00 | P40: =P39+(K40-K39)*(O40*M40) -> 3.85E+13 | Q40: =Q39+(K40-K39)*(M40) -> 9.98E+12
A41: 2.00E-09 | B41: 5.05E+11 | C41: =B41*10000 -> 5.05E+15 | D41: 3.64E-03 | E41: 4.69E+00 | F41: =F40+(A41-A40)*(E41*C41) -> 1.63E+07 | G41: =G40+(A41-A40)*(C41) -> 3.10E+06 | K41: 2.00E-05 | L41: 5.93E+13 | M41: =L41*10000 -> 5.93E+17 | N41: 3.64E+01 | O41: 3.85E+00 | P41: =P40+(K41-K40)*(O41*M41) -> 4.18E+13 | Q41: =Q40+(K41-K40)*(M41) -> 1.09E+13
A42: 2.15E-09 | B42: 3.15E+11 | C42: =B42*10000 -> 3.15E+15 | D42: 3.94E-03 | E42: 4.63E+00 | F42: =F41+(A42-A41)*(E42*C42) -> 1.86E+07 | G42: =G41+(A42-A41)*(C42) -> 3.60E+06 | K42: 2.15E-05 | L42: 6.02E+13 | M42: =L42*10000 -> 6.02E+17 | N42: 3.94E+01 | O42: 3.85E+00 | P42: =P41+(K42-K41)*(O42*M42) -> 4.55E+13 | Q42: =Q41+(K42-K41)*(M42) -> 1.18E+13
A43: 2.33E-09 | B43: 5.45E+11 | C43: =B43*10000 -> 5.45E+15 | D43: 4.24E-03 | E43: 4.57E+00 | F43: =F42+(A43-A42)*(E43*C43) -> 2.29E+07 | G43: =G42+(A43-A42)*(C43) -> 4.54E+06 | K43: 2.33E-05 | L43: 6.24E+13 | M43: =L43*10000 -> 6.24E+17 | N43: 4.24E+01 | O43: 3.85E+00 | P43: =P42+(K43-K42)*(O43*M43) -> 4.96E+13 | Q43: =Q42+(K43-K42)*(M43) -> 1.29E+13
A44: 2.51E-09 | B44: 5.21E+11 | C44: =B44*10000 -> 5.21E+15 | D44: 4.55E-03 | E44: 4.53E+00 | F44: =F43+(A44-A43)*(E44*C44) -> 2.73E+07 | G44: =G43+(A44-A43)*(C44) -> 5.50E+06 | K44: 2.51E-05 | L44: 6.32E+13 | M44: =L44*10000 -> 6.32E+17 | N44: 4.55E+01 | O44: 3.85E+00 | P44: =P43+(K44-K43)*(O44*M44) -> 5.42E+13 | Q44: =Q43+(K44-K43)*(M44) -> 1.41E+13
A45: 2.71E-09 | B45: 7.35E+11 | C45: =B45*10000 -> 7.35E+15 | D45: 4.85E-03 | E45: 4.49E+00 | F45: =F44+(A45-A44)*(E45*C45) -> 3.39E+07 | G45: =G44+(A45-A44)*(C45) -> 6.97E+06 | K45: 2.71E-05 | L45: 6.22E+13 | M45: =L45*10000 -> 6.22E+17 | N45: 4.85E+01 | O45: 3.85E+00 | P45: =P44+(K45-K44)*(O45*M45) -> 5.90E+13 | Q45: =Q44+(K45-K44)*(M45) -> 1.53E+13
A46: 2.93E-09 | B46: 1.37E+12 | C46: =B46*10000 -> 1.37E+16 | D46: 5.15E-03 | E46: 4.45E+00 | F46: =F45+(A46-A45)*(E46*C46) -> 4.70E+07 | G46: =G45+(A46-A45)*(C46) -> 9.94E+06 | K46: 2.93E-05 | L46: 6.21E+13 | M46: =L46*10000 -> 6.21E+17 | N46: 5.15E+01 | O46: 3.85E+00 | P46: =P45+(K46-K45)*(O46*M46) -> 6.41E+13 | Q46: =Q45+(K46-K45)*(M46) -> 1.67E+13
A47: 3.16E-09 | B47: 1.44E+12 | C47: =B47*10000 -> 1.44E+16 | D47: 5.46E-03 | E47: 4.41E+00 | F47: =F46+(A47-A46)*(E47*C47) -> 6.19E+07 | G47: =G46+(A47-A46)*(C47) -> 1.33E+07 | K47: 3.16E-05 | L47: 6.24E+13 | M47: =L47*10000 -> 6.24E+17 | N47: 5.45E+01 | O47: 3.85E+00 | P47: =P46+(K47-K46)*(O47*M47) -> 6.98E+13 | Q47: =Q46+(K47-K46)*(M47) -> 1.81E+13
A48: 3.41E-09 | B48: 1.61E+12 | C48: =B48*10000 -> 1.61E+16 | D48: 5.76E-03 | E48: 4.39E+00 | F48: =F47+(A48-A47)*(E48*C48) -> 7.98E+07 | G48: =G47+(A48-A47)*(C48) -> 1.74E+07 | K48: 3.41E-05 | L48: 6.26E+13 | M48: =L48*10000 -> 6.26E+17 | N48: 5.76E+01 | O48: 3.85E+00 | P48: =P47+(K48-K47)*(O48*M48) -> 7.58E+13 | Q48: =Q47+(K48-K47)*(M48) -> 1.97E+13
A49: 3.69E-09 | B49: 1.44E+12 | C49: =B49*10000 -> 1.44E+16 | D49: 6.06E-03 | E49: 4.36E+00 | F49: =F48+(A49-A48)*(E49*C49) -> 9.69E+07 | G49: =G48+(A49-A48)*(C49) -> 2.13E+07 | K49: 3.69E-05 | L49: 6.12E+13 | M49: =L49*10000 -> 6.12E+17 | N49: 6.06E+01 | O49: 3.85E+00 | P49: =P48+(K49-K48)*(O49*M49) -> 8.23E+13 | Q49: =Q48+(K49-K48)*(M49) -> 2.14E+13
A50: 3.98E-09 | B50: 1.92E+12 | C50: =B50*10000 -> 1.92E+16 | D50: 6.36E-03 | E50: 4.33E+00 | F50: =F49+(A50-A49)*(E50*C50) -> 1.21E+08 | G50: =G49+(A50-A49)*(C50) -> 2.70E+07 | K50: 3.98E-05 | L50: 6.60E+13 | M50: =L50*10000 -> 6.60E+17 | N50: 6.36E+01 | O50: 3.85E+00 | P50: =P49+(K50-K49)*(O50*M50) -> 8.97E+13 | Q50: =Q49+(K50-K49)*(M50) -> 2.33E+13
A51: 4.30E-09 | B51: 2.29E+12 | C51: =B51*10000 -> 2.29E+16 | D51: 6.67E-03 | E51: 4.31E+00 | F51: =F50+(A51-A50)*(E51*C51) -> 1.53E+08 | G51: =G50+(A51-A50)*(C51) -> 3.42E+07 | K51: 4.30E-05 | L51: 6.45E+13 | M51: =L51*10000 -> 6.45E+17 | N51: 6.67E+01 | O51: 3.85E+00 | P51: =P50+(K51-K50)*(O51*M51) -> 9.76E+13 | Q51: =Q50+(K51-K50)*(M51) -> 2.53E+13
A52: 4.64E-09 | B52: 2.67E+12 | C52: =B52*10000 -> 2.67E+16 | D52: 6.97E-03 | E52: 4.29E+00 | F52: =F51+(A52-A51)*(E52*C52) -> 1.92E+08 | G52: =G51+(A52-A51)*(C52) -> 4.34E+07 | K52: 4.64E-05 | L52: 6.64E+13 | M52: =L52*10000 -> 6.64E+17 | N52: 6.97E+01 | O52: 3.85E+00 | P52: =P51+(K52-K51)*(O52*M52) -> 1.06E+14 | Q52: =Q51+(K52-K51)*(M52) -> 2.76E+13
A53: 5.01E-09 | B53: 2.14E+12 | C53: =B53*10000 -> 2.14E+16 | D53: 7.27E-03 | E53: 4.27E+00 | F53: =F52+(A53-A52)*(E53*C53) -> 2.26E+08 | G53: =G52+(A53-A52)*(C53) -> 5.13E+07 | K53: 5.01E-05 | L53: 6.45E+13 | M53: =L53*10000 -> 6.45E+17 | N53: 7.27E+01 | O53: 3.85E+00 | P53: =P52+(K53-K52)*(O53*M53) -> 1.16E+14 | Q53: =Q52+(K53-K52)*(M53) -> 3.00E+13
A54: 5.41E-09 | B54: 2.71E+12 | C54: =B54*10000 -> 2.71E+16 | D54: 7.58E-03 | E54: 4.26E+00 | F54: =F53+(A54-A53)*(E54*C54) -> 2.72E+08 | G54: =G53+(A54-A53)*(C54) -> 6.21E+07 | K54: 5.41E-05 | L54: 6.63E+13 | M54: =L54*10000 -> 6.63E+17 | N54: 7.58E+01 | O54: 3.85E+00 | P54: =P53+(K54-K53)*(O54*M54) -> 1.26E+14 | Q54: =Q53+(K54-K53)*(M54) -> 3.27E+13
A55: 5.84E-09 | B55: 3.09E+12 | C55: =B55*10000 -> 3.09E+16 | D55: 7.88E-03 | E55: 4.24E+00 | F55: =F54+(A55-A54)*(E55*C55) -> 3.29E+08 | G55: =G54+(A55-A54)*(C55) -> 7.55E+07 | K55: 5.84E-05 | L55: 6.24E+13 | M55: =L55*10000 -> 6.24E+17 | N55: 7.88E+01 | O55: 3.85E+00 | P55: =P54+(K55-K54)*(O55*M55) -> 1.36E+14 | Q55: =Q54+(K55-K54)*(M55) -> 3.54E+13
A56: 6.31E-09 | B56: 4.61E+12 | C56: =B56*10000 -> 4.61E+16 | D56: 8.18E-03 | E56: 4.23E+00 | F56: =F55+(A56-A55)*(E56*C56) -> 4.19E+08 | G56: =G55+(A56-A55)*(C56) -> 9.70E+07 | K56: 6.31E-05 | L56: 6.85E+13 | M56: =L56*10000 -> 6.85E+17 | N56: 8.18E+01 | O56: 3.85E+00 | P56: =P55+(K56-K55)*(O56*M56) -> 1.48E+14 | Q56: =Q55+(K56-K55)*(M56) -> 3.85E+13
A57: 6.81E-09 | B57: 6.12E+12 | C57: =B57*10000 -> 6.12E+16 | D57: 8.49E-03 | E57: 4.21E+00 | F57: =F56+(A57-A56)*(E57*C57) -> 5.49E+08 | G57: =G56+(A57-A56)*(C57) -> 1.28E+08 | K57: 6.81E-05 | L57: 6.37E+13 | M57: =L57*10000 -> 6.37E+17 | N57: 8.48E+01 | O57: 3.85E+00 | P57: =P56+(K57-K56)*(O57*M57) -> 1.61E+14 | Q57: =Q56+(K57-K56)*(M57) -> 4.18E+13
A58: 7.36E-09 | B58: 6.24E+12 | C58: =B58*10000 -> 6.24E+16 | D58: 8.79E-03 | E58: 4.20E+00 | F58: =F57+(A58-A57)*(E58*C58) -> 6.92E+08 | G58: =G57+(A58-A57)*(C58) -> 1.62E+08 | K58: 7.36E-05 | L58: 6.57E+13 | M58: =L58*10000 -> 6.57E+17 | N58: 8.79E+01 | O58: 3.85E+00 | P58: =P57+(K58-K57)*(O58*M58) -> 1.75E+14 | Q58: =Q57+(K58-K57)*(M58) -> 4.53E+13
A59: 7.94E-09 | B59: 6.35E+12 | C59: =B59*10000 -> 6.35E+16 | D59: 9.09E-03 | E59: 4.19E+00 | F59: =F58+(A59-A58)*(E59*C59) -> 8.48E+08 | G59: =G58+(A59-A58)*(C59) -> 1.99E+08 | K59: 7.94E-05 | L59: 6.56E+13 | M59: =L59*10000 -> 6.56E+17 | N59: 9.09E+01 | O59: 3.85E+00 | P59: =P58+(K59-K58)*(O59*M59) -> 1.89E+14 | Q59: =Q58+(K59-K58)*(M59) -> 4.92E+13
A60: 8.58E-09 | B60: 8.77E+12 | C60: =B60*10000 -> 8.77E+16 | D60: 9.39E-03 | E60: 4.18E+00 | F60: =F59+(A60-A59)*(E60*C60) -> 1.08E+09 | G60: =G59+(A60-A59)*(C60) -> 2.55E+08 | K60: 8.58E-05 | L60: 6.36E+13 | M60: =L60*10000 -> 6.36E+17 | N60: 9.39E+01 | O60: 3.85E+00 | P60: =P59+(K60-K59)*(O60*M60) -> 2.05E+14 | Q60: =Q59+(K60-K59)*(M60) -> 5.32E+13
A61: 9.26E-09 | B61: 8.42E+12 | C61: =B61*10000 -> 8.42E+16 | D61: 9.70E-03 | E61: 4.17E+00 | F61: =F60+(A61-A60)*(E61*C61) -> 1.32E+09 | G61: =G60+(A61-A60)*(C61) -> 3.12E+08 | K61: 9.26E-05 | L61: 6.76E+13 | M61: =L61*10000 -> 6.76E+17 | N61: 9.70E+01 | O61: 3.85E+00 | P61: =P60+(K61-K60)*(O61*M61) -> 2.23E+14 | Q61: =Q60+(K61-K60)*(M61) -> 5.78E+13
A62: 1.00E-08 | B62: 9.04E+12 | C62: =B62*10000 -> 9.04E+16 | D62: 1.00E-02 | E62: 4.16E+00 | F62: =F61+(A62-A61)*(E62*C62) -> 1.60E+09 | G62: =G61+(A62-A61)*(C62) -> 3.79E+08 | K62: 1.00E-04 | L62: 6.77E+13 | M62: =L62*10000 -> 6.77E+17 | N62: 1.00E+02 | O62: 3.85E+00 | P62: =P61+(K62-K61)*(O62*M62) -> 2.42E+14 | Q62: =Q61+(K62-K61)*(M62) -> 6.28E+13
A63: 1.08E-08 | B63: 1.23E+13 | C63: =B63*10000 -> 1.23E+17 | D63: 1.21E-02 | E63: 4.11E+00 | F63: =F62+(A63-A62)*(E63*C63) -> 2.00E+09 | G63: =G62+(A63-A62)*(C63) -> 4.78E+08 | K63: 1.08E-04 | L63: 6.45E+13 | M63: =L63*10000 -> 6.45E+17 | N63: 1.21E+02 | O63: 3.85E+00 | P63: =P62+(K63-K62)*(O63*M63) -> 2.62E+14 | Q63: =Q62+(K63-K62)*(M63) -> 6.80E+13
A64: 1.17E-08 | B64: 1.31E+13 | C64: =B64*10000 -> 1.31E+17 | D64: 1.52E-02 | E64: 4.05E+00 | F64: =F63+(A64-A63)*(E64*C64) -> 2.46E+09 | G64: =G63+(A64-A63)*(C64) -> 5.90E+08 | K64: 1.17E-04 | L64: 6.81E+13 | M64: =L64*10000 -> 6.81E+17 | N64: 1.52E+02 | O64: 3.85E+00 | P64: =P63+(K64-K63)*(O64*M64) -> 2.84E+14 | Q64: =Q63+(K64-K63)*(M64) -> 7.38E+13
A65: 1.26E-08 | B65: 1.51E+13 | C65: =B65*10000 -> 1.51E+17 | D65: 1.82E-02 | E65: 4.02E+00 | F65: =F64+(A65-A64)*(E65*C65) -> 3.03E+09 | G65: =G64+(A65-A64)*(C65) -> 7.31E+08 | K65: 1.26E-04 | L65: 6.70E+13 | M65: =L65*10000 -> 6.70E+17 | N65: 1.82E+02 | O65: 3.85E+00 | P65: =P64+(K65-K64)*(O65*M65) -> 3.08E+14 | Q65: =Q64+(K65-K64)*(M65) -> 8.01E+13
A66: 1.36E-08 | B66: 1.83E+13 | C66: =B66*10000 -> 1.83E+17 | D66: 2.12E-02 | E66: 4.00E+00 | F66: =F65+(A66-A65)*(E66*C66) -> 3.76E+09 | G66: =G65+(A66-A65)*(C66) -> 9.14E+08 | K66: 1.36E-04 | L66: 6.70E+13 | M66: =L66*10000 -> 6.70E+17 | N66: 2.12E+02 | O66: 3.85E+00 | P66: =P65+(K66-K65)*(O66*M66) -> 3.34E+14 | Q66: =Q65+(K66-K65)*(M66) -> 8.68E+13
A67: 1.47E-08 | B67: 1.91E+13 | C67: =B67*10000 -> 1.91E+17 | D67: 2.42E-02 | E67: 3.98E+00 | F67: =F66+(A67-A66)*(E67*C67) -> 4.58E+09 | G67: =G66+(A67-A66)*(C67) -> 1.12E+09 | K67: 1.47E-04 | L67: 6.82E+13 | M67: =L67*10000 -> 6.82E+17 | N67: 2.42E+02 | O67: 3.85E+00 | P67: =P66+(K67-K66)*(O67*M67) -> 3.63E+14 | Q67: =Q66+(K67-K66)*(M67) -> 9.42E+13
A68: 1.58E-08 | B68: 1.98E+13 | C68: =B68*10000 -> 1.98E+17 | D68: 2.73E-02 | E68: 3.96E+00 | F68: =F67+(A68-A67)*(E68*C68) -> 5.50E+09 | G68: =G67+(A68-A67)*(C68) -> 1.35E+09 | K68: 1.58E-04 | L68: 6.88E+13 | M68: =L68*10000 -> 6.88E+17 | N68: 2.73E+02 | O68: 3.85E+00 | P68: =P67+(K68-K67)*(O68*M68) -> 3.94E+14 | Q68: =Q67+(K68-K67)*(M68) -> 1.02E+14
A69: 1.71E-08 | B69: 2.64E+13 | C69: =B69*10000 -> 2.64E+17 | D69: 3.03E-02 | E69: 3.95E+00 | F69: =F68+(A69-A68)*(E69*C69) -> 6.82E+09 | G69: =G68+(A69-A68)*(C69) -> 1.69E+09 | K69: 1.71E-04 | L69: 6.93E+13 | M69: =L69*10000 -> 6.93E+17 | N69: 3.03E+02 | O69: 3.85E+00 | P69: =P68+(K69-K68)*(O69*M69) -> 4.28E+14 | Q69: =Q68+(K69-K68)*(M69) -> 1.11E+14
A70: 1.85E-08 | B70: 2.62E+13 | C70: =B70*10000 -> 2.62E+17 | D70: 3.33E-02 | E70: 3.94E+00 | F70: =F69+(A70-A69)*(E70*C70) -> 8.23E+09 | G70: =G69+(A70-A69)*(C70) -> 2.04E+09 | K70: 1.85E-04 | L70: 6.91E+13 | M70: =L70*10000 -> 6.91E+17 | N70: 3.33E+02 | O70: 3.85E+00 | P70: =P69+(K70-K69)*(O70*M70) -> 4.64E+14 | Q70: =Q69+(K70-K69)*(M70) -> 1.20E+14
A71: 2.00E-08 | B71: 3.06E+13 | C71: =B71*10000 -> 3.06E+17 | D71: 3.64E-02 | E71: 3.94E+00 | F71: =F70+(A71-A70)*(E71*C71) -> 1.00E+10 | G71: =G70+(A71-A70)*(C71) -> 2.50E+09 | K71: 2.00E-04 | L71: 7.14E+13 | M71: =L71*10000 -> 7.14E+17 | N71: 3.64E+02 | O71: 3.85E+00 | P71: =P70+(K71-K70)*(O71*M71) -> 5.05E+14 | Q71: =Q70+(K71-K70)*(M71) -> 1.31E+14
A72: 2.15E-08 | B72: 3.42E+13 | C72: =B72*10000 -> 3.42E+17 | D72: 3.94E-02 | E72: 3.93E+00 | F72: =F71+(A72-A71)*(E72*C72) -> 1.21E+10 | G72: =G71+(A72-A71)*(C72) -> 3.04E+09 | K72: 2.15E-04 | L72: 7.03E+13 | M72: =L72*10000 -> 7.03E+17 | N72: 3.94E+02 | O72: 3.85E+00 | P72: =P71+(K72-K71)*(O72*M72) -> 5.48E+14 | Q72: =Q71+(K72-K71)*(M72) -> 1.42E+14
A73: 2.33E-08 | B73: 3.97E+13 | C73: =B73*10000 -> 3.97E+17 | D73: 4.24E-02 | E73: 3.92E+00 | F73: =F72+(A73-A72)*(E73*C73) -> 1.48E+10 | G73: =G72+(A73-A72)*(C73) -> 3.72E+09 | K73: 2.33E-04 | L73: 6.51E+13 | M73: =L73*10000 -> 6.51E+17 | N73: 4.24E+02 | O73: 3.85E+00 | P73: =P72+(K73-K72)*(O73*M73) -> 5.91E+14 | Q73: =Q72+(K73-K72)*(M73) -> 1.53E+14
A74: 2.51E-08 | B74: 4.04E+13 | C74: =B74*10000 -> 4.04E+17 | D74: 4.55E-02 | E74: 3.92E+00 | F74: =F73+(A74-A73)*(E74*C74) -> 1.78E+10 | G74: =G73+(A74-A73)*(C74) -> 4.47E+09 | K74: 2.51E-04 | L74: 6.97E+13 | M74: =L74*10000 -> 6.97E+17 | N74: 4.55E+02 | O74: 3.85E+00 | P74: =P73+(K74-K73)*(O74*M74) -> 6.41E+14 | Q74: =Q73+(K74-K73)*(M74) -> 1.66E+14
A75: 2.71E-08 | B75: 4.77E+13 | C75: =B75*10000 -> 4.77E+17 | D75: 4.85E-02 | E75: 3.92E+00 | F75: =F74+(A75-A74)*(E75*C75) -> 2.15E+10 | G75: =G74+(A75-A74)*(C75) -> 5.43E+09 | K75: 2.71E-04 | L75: 7.14E+13 | M75: =L75*10000 -> 7.14E+17 | N75: 4.85E+02 | O75: 3.85E+00 | P75: =P74+(K75-K74)*(O75*M75) -> 6.96E+14 | Q75: =Q74+(K75-K74)*(M75) -> 1.81E+14
A76: 2.93E-08 | B76: 5.17E+13 | C76: =B76*10000 -> 5.17E+17 | D76: 5.15E-02 | E76: 3.91E+00 | F76: =F75+(A76-A75)*(E76*C76) -> 2.59E+10 | G76: =G75+(A76-A75)*(C76) -> 6.55E+09 | K76: 2.93E-04 | L76: 6.99E+13 | M76: =L76*10000 -> 6.99E+17 | N76: 5.15E+02 | O76: 3.85E+00 | P76: =P75+(K76-K75)*(O76*M76) -> 7.54E+14 | Q76: =Q75+(K76-K75)*(M76) -> 1.96E+14
A77: 3.16E-08 | B77: 5.73E+13 | C77: =B77*10000 -> 5.73E+17 | D77: 5.45E-02 | E77: 3.91E+00 | F77: =F76+(A77-A76)*(E77*C77) -> 3.11E+10 | G77: =G76+(A77-A76)*(C77) -> 7.89E+09 | K77: 3.16E-04 | L77: 7.30E+13 | M77: =L77*10000 -> 7.30E+17 | N77: 5.45E+02 | O77: 3.85E+00 | P77: =P76+(K77-K76)*(O77*M77) -> 8.20E+14 | Q77: =Q76+(K77-K76)*(M77) -> 2.13E+14
A78: 3.41E-08 | B78: 6.02E+13 | C78: =B78*10000 -> 6.02E+17 | D78: 5.76E-02 | E78: 3.91E+00 | F78: =F77+(A78-A77)*(E78*C78) -> 3.70E+10 | G78: =G77+(A78-A77)*(C78) -> 9.40E+09 | K78: 3.41E-04 | L78: 6.85E+13 | M78: =L78*10000 -> 6.85E+17 | N78: 5.76E+02 | O78: 3.85E+00 | P78: =P77+(K78-K77)*(O78*M78) -> 8.86E+14 | Q78: =Q77+(K78-K77)*(M78) -> 2.30E+14
A79: 3.69E-08 | B79: 6.64E+13 | C79: =B79*10000 -> 6.64E+17 | D79: 6.06E-02 | E79: 3.90E+00 | F79: =F78+(A79-A78)*(E79*C79) -> 4.41E+10 | G79: =G78+(A79-A78)*(C79) -> 1.12E+10 | K79: 3.69E-04 | L79: 6.82E+13 | M79: =L79*10000 -> 6.82E+17 | N79: 6.06E+02 | O79: 3.85E+00 | P79: =P78+(K79-K78)*(O79*M79) -> 9.57E+14 | Q79: =Q78+(K79-K78)*(M79) -> 2.49E+14
A80: 3.98E-08 | B80: 6.82E+13 | C80: =B80*10000 -> 6.82E+17 | D80: 6.36E-02 | E80: 3.90E+00 | F80: =F79+(A80-A79)*(E80*C80) -> 5.19E+10 | G80: =G79+(A80-A79)*(C80) -> 1.32E+10 | K80: 3.98E-04 | L80: 6.91E+13 | M80: =L80*10000 -> 6.91E+17 | N80: 6.36E+02 | O80: 3.85E+00 | P80: =P79+(K80-K79)*(O80*M80) -> 1.04E+15 | Q80: =Q79+(K80-K79)*(M80) -> 2.69E+14
A81: 4.30E-08 | B81: 7.55E+13 | C81: =B81*10000 -> 7.55E+17 | D81: 6.67E-02 | E81: 3.90E+00 | F81: =F80+(A81-A80)*(E81*C81) -> 6.13E+10 | G81: =G80+(A81-A80)*(C81) -> 1.56E+10 | K81: 4.30E-04 | L81: 7.23E+13 | M81: =L81*10000 -> 7.23E+17 | N81: 6.67E+02 | O81: 3.85E+00 | P81: =P80+(K81-K80)*(O81*M81) -> 1.12E+15 | Q81: =Q80+(K81-K80)*(M81) -> 2.92E+14
A82: 4.64E-08 | B82: 7.70E+13 | C82: =B82*10000 -> 7.70E+17 | D82: 6.97E-02 | E82: 3.90E+00 | F82: =F81+(A82-A81)*(E82*C82) -> 7.16E+10 | G82: =G81+(A82-A81)*(C82) -> 1.83E+10 | K82: 4.64E-04 | L82: 7.07E+13 | M82: =L82*10000 -> 7.07E+17 | N82: 6.97E+02 | O82: 3.85E+00 | P82: =P81+(K82-K81)*(O82*M82) -> 1.22E+15 | Q82: =Q81+(K82-K81)*(M82) -> 3.16E+14
A83: 5.01E-08 | B83: 8.52E+13 | C83: =B83*10000 -> 8.52E+17 | D83: 7.27E-02 | E83: 3.89E+00 | F83: =F82+(A83-A82)*(E83*C83) -> 8.38E+10 | G83: =G82+(A83-A82)*(C83) -> 2.14E+10 | K83: 5.01E-04 | L83: 7.49E+13 | M83: =L83*10000 -> 7.49E+17 | N83: 7.27E+02 | O83: 3.85E+00 | P83: =P82+(K83-K82)*(O83*M83) -> 1.32E+15 | Q83: =Q82+(K83-K82)*(M83) -> 3.44E+14
A84: 5.41E-08 | B84: 8.45E+13 | C84: =B84*10000 -> 8.45E+17 | D84: 7.58E-02 | E84: 3.89E+00 | F84: =F83+(A84-A83)*(E84*C84) -> 9.70E+10 | G84: =G83+(A84-A83)*(C84) -> 2.48E+10 | K84: 5.41E-04 | L84: 7.20E+13 | M84: =L84*10000 -> 7.20E+17 | N84: 7.58E+02 | O84: 3.85E+00 | P84: =P83+(K84-K83)*(O84*M84) -> 1.44E+15 | Q84: =Q83+(K84-K83)*(M84) -> 3.73E+14
A85: 5.84E-08 | B85: 9.04E+13 | C85: =B85*10000 -> 9.04E+17 | D85: 7.88E-02 | E85: 3.89E+00 | F85: =F84+(A85-A84)*(E85*C85) -> 1.12E+11 | G85: =G84+(A85-A84)*(C85) -> 2.87E+10 | K85: 5.84E-04 | L85: 7.31E+13 | M85: =L85*10000 -> 7.31E+17 | N85: 7.88E+02 | O85: 3.85E+00 | P85: =P84+(K85-K84)*(O85*M85) -> 1.56E+15 | Q85: =Q84+(K85-K84)*(M85) -> 4.04E+14
A86: 6.31E-08 | B86: 9.09E+13 | C86: =B86*10000 -> 9.09E+17 | D86: 8.18E-02 | E86: 3.89E+00 | F86: =F85+(A86-A85)*(E86*C86) -> 1.29E+11 | G86: =G85+(A86-A85)*(C86) -> 3.29E+10 | K86: 6.31E-04 | L86: 7.28E+13 | M86: =L86*10000 -> 7.28E+17 | N86: 8.18E+02 | O86: 3.85E+00 | P86: =P85+(K86-K85)*(O86*M86) -> 1.69E+15 | Q86: =Q85+(K86-K85)*(M86) -> 4.38E+14
A87: 6.81E-08 | B87: 9.03E+13 | C87: =B87*10000 -> 9.03E+17 | D87: 8.48E-02 | E87: 3.89E+00 | F87: =F86+(A87-A86)*(E87*C87) -> 1.46E+11 | G87: =G86+(A87-A86)*(C87) -> 3.75E+10 | K87: 6.81E-04 | L87: 7.10E+13 | M87: =L87*10000 -> 7.10E+17 | N87: 8.48E+02 | O87: 3.85E+00 | P87: =P86+(K87-K86)*(O87*M87) -> 1.82E+15 | Q87: =Q86+(K87-K86)*(M87) -> 4.74E+14
A88: 7.36E-08 | B88: 9.33E+13 | C88: =B88*10000 -> 9.33E+17 | D88: 8.79E-02 | E88: 3.89E+00 | F88: =F87+(A88-A87)*(E88*C88) -> 1.66E+11 | G88: =G87+(A88-A87)*(C88) -> 4.25E+10 | K88: 7.36E-04 | L88: 6.99E+13 | M88: =L88*10000 -> 6.99E+17 | N88: 8.79E+02 | O88: 3.85E+00 | P88: =P87+(K88-K87)*(O88*M88) -> 1.97E+15 | Q88: =Q87+(K88-K87)*(M88) -> 5.12E+14
A89: 7.94E-08 | B89: 9.07E+13 | C89: =B89*10000 -> 9.07E+17 | D89: 9.09E-02 | E89: 3.89E+00 | F89: =F88+(A89-A88)*(E89*C89) -> 1.87E+11 | G89: =G88+(A89-A88)*(C89) -> 4.79E+10 | K89: 7.94E-04 | L89: 7.19E+13 | M89: =L89*10000 -> 7.19E+17 | N89: 9.09E+02 | O89: 3.85E+00 | P89: =P88+(K89-K88)*(O89*M89) -> 2.13E+15 | Q89: =Q88+(K89-K88)*(M89) -> 5.54E+14
A90: 8.58E-08 | B90: 9.07E+13 | C90: =B90*10000 -> 9.07E+17 | D90: 9.09E-02 | E90: 3.89E+00 | F90: =F89+(A90-A89)*(E90*C90) -> 2.09E+11 | G90: =G89+(A90-A89)*(C90) -> 5.36E+10 | K90: 8.58E-04 | L90: 7.06E+13 | M90: =L90*10000 -> 7.06E+17 | N90: 9.39E+02 | O90: 3.85E+00 | P90: =P89+(K90-K89)*(O90*M90) -> 2.31E+15 | Q90: =Q89+(K90-K89)*(M90) -> 5.99E+14
A91: 9.26E-08 | B91: 9.09E+13 | C91: =B91*10000 -> 9.09E+17 | D91: 9.39E-02 | E91: 3.88E+00 | F91: =F90+(A91-A90)*(E91*C91) -> 2.33E+11 | G91: =G90+(A91-A90)*(C91) -> 5.98E+10 | K91: 9.26E-04 | L91: 7.54E+13 | M91: =L91*10000 -> 7.54E+17 | N91: 9.70E+02 | O91: 3.85E+00 | P91: =P90+(K91-K90)*(O91*M91) -> 2.50E+15 | Q91: =Q90+(K91-K90)*(M91) -> 6.50E+14
A92: 1.00E-07 | B92: 8.62E+13 | C92: =B92*10000 -> 8.62E+17 | D92: 9.70E-02 | E92: 3.88E+00 | F92: =F91+(A92-A91)*(E92*C92) -> 2.58E+11 | G92: =G91+(A92-A91)*(C92) -> 6.62E+10 | K92: 1.00E-03 | L92: 7.39E+13 | M92: =L92*10000 -> 7.39E+17 | N92: 1.00E+03 | O92: 3.85E+00 | P92: =P91+(K92-K91)*(O92*M92) -> 2.71E+15 | Q92: =Q91+(K92-K91)*(M92) -> 7.05E+14
A93: 1.08E-07 | B93: 8.47E+13 | C93: =B93*10000 -> 8.47E+17 | D93: 1.00E-01 | E93: 3.88E+00 | F93: =F92+(A93-A92)*(E93*C93) -> 2.84E+11 | G93: =G92+(A93-A92)*(C93) -> 7.30E+10 | K93: 1.08E-03 | L93: 7.44E+13 | M93: =L93*10000 -> 7.44E+17 | N93: 1.21E+03 | O93: 3.85E+00 | P93: =P92+(K93-K92)*(O93*M93) -> 2.94E+15 | Q93: =Q92+(K93-K92)*(M93) -> 7.64E+14
A94: 1.17E-07 | B94: 8.23E+13 | C94: =B94*10000 -> 8.23E+17 | D94: 1.21E-01 | E94: 3.88E+00 | F94: =F93+(A94-A93)*(E94*C94) -> 3.12E+11 | G94: =G93+(A94-A93)*(C94) -> 8.01E+10 | K94: 1.17E-03 | L94: 6.92E+13 | M94: =L94*10000 -> 6.92E+17 | N94: 1.52E+03 | O94: 3.85E+00 | P94: =P93+(K94-K93)*(O94*M94) -> 3.17E+15 | Q94: =Q93+(K94-K93)*(M94) -> 8.24E+14
A95: 1.26E-07 | B95: 8.14E+13 | C95: =B95*10000 -> 8.14E+17 | D95: 1.52E-01 | E95: 3.87E+00 | F95: =F94+(A95-A94)*(E95*C95) -> 3.41E+11 | G95: =G94+(A95-A94)*(C95) -> 8.76E+10 | K95: 1.26E-03 | L95: 7.13E+13 | M95: =L95*10000 -> 7.13E+17 | N95: 1.82E+03 | O95: 3.85E+00 | P95: =P94+(K95-K94)*(O95*M95) -> 3.43E+15 | Q95: =Q94+(K95-K94)*(M95) -> 8.90E+14
A96: 1.36E-07 | B96: 7.67E+13 | C96: =B96*10000 -> 7.67E+17 | D96: 1.82E-01 | E96: 3.87E+00 | F96: =F95+(A96-A95)*(E96*C96) -> 3.71E+11 | G96: =G95+(A96-A95)*(C96) -> 9.53E+10 | K96: 1.36E-03 | L96: 7.44E+13 | M96: =L96*10000 -> 7.44E+17 | N96: 2.12E+03 | O96: 3.85E+00 | P96: =P95+(K96-K95)*(O96*M96) -> 3.72E+15 | Q96: =Q95+(K96-K95)*(M96) -> 9.65E+14
A97: 1.47E-07 | B97: 7.16E+13 | C97: =B97*10000 -> 7.16E+17 | D97: 2.12E-01 | E97: 3.87E+00 | F97: =F96+(A97-A96)*(E97*C97) -> 4.01E+11 | G97: =G96+(A97-A96)*(C97) -> 1.03E+11 | K97: 1.47E-03 | L97: 7.10E+13 | M97: =L97*10000 -> 7.10E+17 | N97: 2.42E+03 | O97: 3.85E+00 | P97: =P96+(K97-K96)*(O97*M97) -> 4.01E+15 | Q97: =Q96+(K97-K96)*(M97) -> 1.04E+15
A98: 1.58E-07 | B98: 6.72E+13 | C98: =B98*10000 -> 6.72E+17 | D98: 2.42E-01 | E98: 3.86E+00 | F98: =F97+(A98-A97)*(E98*C98) -> 4.31E+11 | G98: =G97+(A98-A97)*(C98) -> 1.11E+11 | K98: 1.58E-03 | L98: 7.69E+13 | M98: =L98*10000 -> 7.69E+17 | N98: 2.73E+03 | O98: 3.85E+00 | P98: =P97+(K98-K97)*(O98*M98) -> 4.36E+15 | Q98: =Q97+(K98-K97)*(M98) -> 1.13E+15
A99: 1.71E-07 | B99: 6.70E+13 | C99: =B99*10000 -> 6.70E+17 | D99: 2.73E-01 | E99: 3.86E+00 | F99: =F98+(A99-A98)*(E99*C99) -> 4.64E+11 | G99: =G98+(A99-A98)*(C99) -> 1.19E+11 | K99: 1.71E-03 | L99: 7.62E+13 | M99: =L99*10000 -> 7.62E+17 | N99: 3.03E+03 | O99: 3.85E+00 | P99: =P98+(K99-K98)*(O99*M99) -> 4.73E+15 | Q99: =Q98+(K99-K98)*(M99) -> 1.23E+15
A100: 1.85E-07 | B100: 6.46E+13 | C100: =B100*10000 -> 6.46E+17 | D100: 3.03E-01 | E100: 3.86E+00 | F100: =F99+(A100-A99)*(E100*C100) -> 4.98E+11 | G100: =G99+(A100-A99)*(C100) -> 1.28E+11 | K100: 1.85E-03 | L100: 7.85E+13 | M100: =L100*10000 -> 7.85E+17 | N100: 3.33E+03 | O100: 3.84E+00 | P100: =P99+(K100-K99)*(O100*M100) -> 5.14E+15 | Q100: =Q99+(K100-K99)*(M100) -> 1.34E+15
A101: 2.00E-07 | B101: 6.34E+13 | C101: =B101*10000 -> 6.34E+17 | D101: 3.33E-01 | E101: 3.86E+00 | F101: =F100+(A101-A100)*(E101*C101) -> 5.34E+11 | G101: =G100+(A101-A100)*(C101) -> 1.38E+11 | K101: 2.00E-03 | L101: 7.51E+13 | M101: =L101*10000 -> 7.51E+17 | N101: 3.64E+03 | O101: 3.84E+00 | P101: =P100+(K101-K100)*(O101*M101) -> 5.57E+15 | Q101: =Q100+(K101-K100)*(M101) -> 1.45E+15
A102: 2.15E-07 | B102: 5.89E+13 | C102: =B102*10000 -> 5.89E+17 | D102: 3.64E-01 | E102: 3.86E+00 | F102: =F101+(A102-A101)*(E102*C102) -> 5.70E+11 | G102: =G101+(A102-A101)*(C102) -> 1.47E+11 | K102: 2.15E-03 | L102: 7.59E+13 | M102: =L102*10000 -> 7.59E+17 | N102: 3.94E+03 | O102: 3.84E+00 | P102: =P101+(K102-K101)*(O102*M102) -> 6.03E+15 | Q102: =Q101+(K102-K101)*(M102) -> 1.57E+15
A103: 2.33E-07 | B103: 5.77E+13 | C103: =B103*10000 -> 5.77E+17 | D103: 3.94E-01 | E103: 3.86E+00 | F103: =F102+(A103-A102)*(E103*C103) -> 6.09E+11 | G103: =G102+(A103-A102)*(C103) -> 1.57E+11 | K103: 2.33E-03 | L103: 7.58E+13 | M103: =L103*10000 -> 7.58E+17 | N103: 4.24E+03 | O103: 3.84E+00 | P103: =P102+(K103-K102)*(O103*M103) -> 6.53E+15 | Q103: =Q102+(K103-K102)*(M103) -> 1.70E+15
A104: 2.51E-07 | B104: 5.68E+13 | C104: =B104*10000 -> 5.68E+17 | D104: 4.24E-01 | E104: 3.86E+00 | F104: =F103+(A104-A103)*(E104*C104) -> 6.49E+11 | G104: =G103+(A104-A103)*(C104) -> 1.67E+11 | K104: 2.51E-03 | L104: 7.52E+13 | M104: =L104*10000 -> 7.52E+17 | N104: 4.55E+03 | O104: 3.84E+00 | P104: =P103+(K104-K103)*(O104*M104) -> 7.07E+15 | Q104: =Q103+(K104-K103)*(M104) -> 1.84E+15
A105: 2.71E-07 | B105: 5.55E+13 | C105: =B105*10000 -> 5.55E+17 | D105: 4.55E-01 | E105: 3.86E+00 | F105: =F104+(A105-A104)*(E105*C105) -> 6.92E+11 | G105: =G104+(A105-A104)*(C105) -> 1.79E+11 | K105: 2.71E-03 | L105: 7.45E+13 | M105: =L105*10000 -> 7.45E+17 | N105: 4.85E+03 | O105: 3.84E+00 | P105: =P104+(K105-K104)*(O105*M105) -> 7.64E+15 | Q105: =Q104+(K105-K104)*(M105) -> 1.99E+15
A106: 2.93E-07 | B106: 5.51E+13 | C106: =B106*10000 -> 5.51E+17 | D106: 4.85E-01 | E106: 3.86E+00 | F106: =F105+(A106-A105)*(E106*C106) -> 7.38E+11 | G106: =G105+(A106-A105)*(C106) -> 1.90E+11 | K106: 2.93E-03 | L106: 8.06E+13 | M106: =L106*10000 -> 8.06E+17 | N106: 5.15E+03 | O106: 3.84E+00 | P106: =P105+(K106-K105)*(O106*M106) -> 8.31E+15 | Q106: =Q105+(K106-K105)*(M106) -> 2.16E+15
A107: 3.16E-07 | B107: 5.52E+13 | C107: =B107*10000 -> 5.52E+17 | D107: 5.15E-01 | E107: 3.86E+00 | F107: =F106+(A107-A106)*(E107*C107) -> 7.88E+11 | G107: =G106+(A107-A106)*(C107) -> 2.03E+11 | K107: 3.16E-03 | L107: 7.13E+13 | M107: =L107*10000 -> 7.13E+17 | N107: 5.45E+03 | O107: 3.84E+00 | P107: =P106+(K107-K106)*(O107*M107) -> 8.95E+15 | Q107: =Q106+(K107-K106)*(M107) -> 2.33E+15
A108: 3.41E-07 | B108: 5.54E+13 | C108: =B108*10000 -> 5.54E+17 | D108: 5.45E-01 | E108: 3.86E+00 | F108: =F107+(A108-A107)*(E108*C108) -> 8.42E+11 | G108: =G107+(A108-A107)*(C108) -> 2.17E+11 | K108: 3.41E-03 | L108: 7.69E+13 | M108: =L108*10000 -> 7.69E+17 | N108: 5.76E+03 | O108: 3.84E+00 | P108: =P107+(K108-K107)*(O108*M108) -> 9.69E+15 | Q108: =Q107+(K108-K107)*(M108) -> 2.52E+15
A109: 3.69E-07 | B109: 5.59E+13 | C109: =B109*10000 -> 5.59E+17 | D109: 5.76E-01 | E109: 3.86E+00 | F109: =F108+(A109-A108)*(E109*C109) -> 9.01E+11 | G109: =G108+(A109-A108)*(C109) -> 2.33E+11 | K109: 3.69E-03 | L109: 7.68E+13 | M109: =L109*10000 -> 7.68E+17 | N109: 6.06E+03 | O109: 3.84E+00 | P109: =P108+(K109-K108)*(O109*M109) -> 1.05E+16 | Q109: =Q108+(K109-K108)*(M109) -> 2.73E+15
A110: 3.98E-07 | B110: 5.39E+13 | C110: =B110*10000 -> 5.39E+17 | D110: 6.06E-01 | E110: 3.86E+00 | F110: =F109+(A110-A109)*(E110*C110) -> 9.62E+11 | G110: =G109+(A110-A109)*(C110) -> 2.48E+11 | K110: 3.98E-03 | L110: 7.49E+13 | M110: =L110*10000 -> 7.49E+17 | N110: 6.36E+03 | O110: 3.84E+00 | P110: =P109+(K110-K109)*(O110*M110) -> 1.13E+16 | Q110: =Q109+(K110-K109)*(M110) -> 2.95E+15
A111: 4.30E-07 | B111: 5.70E+13 | C111: =B111*10000 -> 5.70E+17 | D111: 6.36E-01 | E111: 3.86E+00 | F111: =F110+(A111-A110)*(E111*C111) -> 1.03E+12 | G111: =G110+(A111-A110)*(C111) -> 2.67E+11 | K111: 4.30E-03 | L111: 7.61E+13 | M111: =L111*10000 -> 7.61E+17 | N111: 6.67E+03 | O111: 3.84E+00 | P111: =P110+(K111-K110)*(O111*M111) -> 1.23E+16 | Q111: =Q110+(K111-K110)*(M111) -> 3.19E+15
A112: 4.64E-07 | B112: 5.62E+13 | C112: =B112*10000 -> 5.62E+17 | D112: 6.67E-01 | E112: 3.86E+00 | F112: =F111+(A112-A111)*(E112*C112) -> 1.11E+12 | G112: =G111+(A112-A111)*(C112) -> 2.86E+11 | K112: 4.64E-03 | L112: 7.85E+13 | M112: =L112*10000 -> 7.85E+17 | N112: 6.97E+03 | O112: 3.84E+00 | P112: =P111+(K112-K111)*(O112*M112) -> 1.33E+16 | Q112: =Q111+(K112-K111)*(M112) -> 3.46E+15
A113: 5.01E-07 | B113: 5.57E+13 | C113: =B113*10000 -> 5.57E+17 | D113: 6.97E-01 | E113: 3.86E+00 | F113: =F112+(A113-A112)*(E113*C113) -> 1.19E+12 | G113: =G112+(A113-A112)*(C113) -> 3.06E+11 | K113: 5.01E-03 | L113: 8.06E+13 | M113: =L113*10000 -> 8.06E+17 | N113: 7.27E+03 | O113: 3.84E+00 | P113: =P112+(K113-K112)*(O113*M113) -> 1.44E+16 | Q113: =Q112+(K113-K112)*(M113) -> 3.76E+15
A114: 5.41E-07 | B114: 5.53E+13 | C114: =B114*10000 -> 5.53E+17 | D114: 7.27E-01 | E114: 3.86E+00 | F114: =F113+(A114-A113)*(E114*C114) -> 1.27E+12 | G114: =G113+(A114-A113)*(C114) -> 3.29E+11 | K114: 5.41E-03 | L114: 8.50E+13 | M114: =L114*10000 -> 8.50E+17 | N114: 7.58E+03 | O114: 3.84E+00 | P114: =P113+(K114-K113)*(O114*M114) -> 1.58E+16 | Q114: =Q113+(K114-K113)*(M114) -> 4.10E+15
A115: 5.84E-07 | B115: 5.64E+13 | C115: =B115*10000 -> 5.64E+17 | D115: 7.58E-01 | E115: 3.86E+00 | F115: =F114+(A115-A114)*(E115*C115) -> 1.36E+12 | G115: =G114+(A115-A114)*(C115) -> 3.53E+11 | K115: 5.84E-03 | L115: 8.07E+13 | M115: =L115*10000 -> 8.07E+17 | N115: 7.88E+03 | O115: 3.83E+00 | P115: =P114+(K115-K114)*(O115*M115) -> 1.71E+16 | Q115: =Q114+(K115-K114)*(M115) -> 4.45E+15
A116: 6.31E-07 | B116: 5.69E+13 | C116: =B116*10000 -> 5.69E+17 | D116: 7.88E-01 | E116: 3.86E+00 | F116: =F115+(A116-A115)*(E116*C116) -> 1.47E+12 | G116: =G115+(A116-A115)*(C116) -> 3.79E+11 | K116: 6.31E-03 | L116: 6.72E+13 | M116: =L116*10000 -> 6.72E+17 | N116: 8.18E+03 | O116: 3.83E+00 | P116: =P115+(K116-K115)*(O116*M116) -> 1.83E+16 | Q116: =Q115+(K116-K115)*(M116) -> 4.76E+15
A117: 6.81E-07 | B117: 5.71E+13 | C117: =B117*10000 -> 5.71E+17 | D117: 8.18E-01 | E117: 3.86E+00 | F117: =F116+(A117-A116)*(E117*C117) -> 1.58E+12 | G117: =G116+(A117-A116)*(C117) -> 4.08E+11 | K117: 6.81E-03 | L117: 8.38E+13 | M117: =L117*10000 -> 8.38E+17 | N117: 8.48E+03 | O117: 3.83E+00 | P117: =P116+(K117-K116)*(O117*M117) -> 1.99E+16 | Q117: =Q116+(K117-K116)*(M117) -> 5.18E+15
A118: 7.36E-07 | B118: 5.48E+13 | C118: =B118*10000 -> 5.48E+17 | D118: 8.48E-01 | E118: 3.86E+00 | F118: =F117+(A118-A117)*(E118*C118) -> 1.69E+12 | G118: =G117+(A118-A117)*(C118) -> 4.38E+11 | K118: 7.36E-03 | L118: 8.06E+13 | M118: =L118*10000 -> 8.06E+17 | N118: 8.79E+03 | O118: 3.83E+00 | P118: =P117+(K118-K117)*(O118*M118) -> 2.16E+16 | Q118: =Q117+(K118-K117)*(M118) -> 5.62E+15
A119: 7.94E-07 | B119: 5.49E+13 | C119: =B119*10000 -> 5.49E+17 | D119: 8.79E-01 | E119: 3.86E+00 | F119: =F118+(A119-A118)*(E119*C119) -> 1.82E+12 | G119: =G118+(A119-A118)*(C119) -> 4.70E+11 | K119: 7.94E-03 | L119: 8.61E+13 | M119: =L119*10000 -> 8.61E+17 | N119: 9.09E+03 | O119: 3.83E+00 | P119: =P118+(K119-K118)*(O119*M119) -> 2.35E+16 | Q119: =Q118+(K119-K118)*(M119) -> 6.13E+15
A120: 8.58E-07 | B120: 5.45E+13 | C120: =B120*10000 -> 5.45E+17 | D120: 9.09E-01 | E120: 3.86E+00 | F120: =F119+(A120-A119)*(E120*C120) -> 1.95E+12 | G120: =G119+(A120-A119)*(C120) -> 5.05E+11 | K120: 8.58E-03 | L120: 7.75E+13 | M120: =L120*10000 -> 7.75E+17 | N120: 9.39E+03 | O120: 3.83E+00 | P120: =P119+(K120-K119)*(O120*M120) -> 2.54E+16 | Q120: =Q119+(K120-K119)*(M120) -> 6.62E+15
A121: 9.26E-07 | B121: 5.44E+13 | C121: =B121*10000 -> 5.44E+17 | D121: 9.39E-01 | E121: 3.86E+00 | F121: =F120+(A121-A120)*(E121*C121) -> 2.09E+12 | G121: =G120+(A121-A120)*(C121) -> 5.42E+11 | K121: 9.26E-03 | L121: 8.35E+13 | M121: =L121*10000 -> 8.35E+17 | N121: 9.70E+03 | O121: 3.83E+00 | P121: =P120+(K121-K120)*(O121*M121) -> 2.76E+16 | Q121: =Q120+(K121-K120)*(M121) -> 7.19E+15
D122: 0.969697 | E122: 3.855157 | K122: 1.00E-02 | L122: 8.64E+13 | M122: =L122*10000 -> 8.64E+17 | N122: 1.00E+04 | O122: 3.83E+00 | P122: =P121+(K122-K121)*(O122*M122) -> 3.00E+16 | Q122: =Q121+(K122-K121)*(M122) -> 7.83E+15
K123: 1.08E-02 | L123: 8.89E+13 | M123: =L123*10000 -> 8.89E+17 | N123: 1.21E+04 | O123: 3.83E+00 | P123: =P122+(K123-K122)*(O123*M123) -> 3.28E+16 | Q123: =Q122+(K123-K122)*(M123) -> 8.54E+15
K124: 1.17E-02 | L124: 8.69E+13 | M124: =L124*10000 -> 8.69E+17 | N124: 1.52E+04 | O124: 3.82E+00 | P124: =P123+(K124-K123)*(O124*M124) -> 3.56E+16 | Q124: =Q123+(K124-K123)*(M124) -> 9.29E+15
K125: 1.26E-02 | L125: 9.36E+13 | M125: =L125*10000 -> 9.36E+17 | N125: 1.82E+04 | O125: 3.81E+00 | P125: =P124+(K125-K124)*(O125*M125) -> 3.89E+16 | Q125: =Q124+(K125-K124)*(M125) -> 1.02E+16
K126: 1.36E-02 | L126: 9.36E+13 | M126: =L126*10000 -> 9.36E+17 | N126: 2.12E+04 | O126: 3.81E+00 | P126: =P125+(K126-K125)*(O126*M126) -> 4.25E+16 | Q126: =Q125+(K126-K125)*(M126) -> 1.11E+16
K127: 1.47E-02 | L127: 9.88E+13 | M127: =L127*10000 -> 9.88E+17 | N127: 2.42E+04 | O127: 3.80E+00 | P127: =P126+(K127-K126)*(O127*M127) -> 4.66E+16 | Q127: =Q126+(K127-K126)*(M127) -> 1.22E+16
K128: 1.58E-02 | L128: 9.18E+13 | M128: =L128*10000 -> 9.18E+17 | N128: 2.73E+04 | O128: 3.79E+00 | P128: =P127+(K128-K127)*(O128*M128) -> 5.07E+16 | Q128: =Q127+(K128-K127)*(M128) -> 1.32E+16
K129: 1.71E-02 | L129: 7.93E+13 | M129: =L129*10000 -> 7.93E+17 | N129: 3.03E+04 | O129: 3.79E+00 | P129: =P128+(K129-K128)*(O129*M129) -> 5.44E+16 | Q129: =Q128+(K129-K128)*(M129) -> 1.42E+16
K130: 1.85E-02 | L130: 7.52E+13 | M130: =L130*10000 -> 7.52E+17 | N130: 3.33E+04 | O130: 3.78E+00 | P130: =P129+(K130-K129)*(O130*M130) -> 5.83E+16 | Q130: =Q129+(K130-K129)*(M130) -> 1.53E+16
K131: 2.00E-02 | L131: 7.15E+13 | M131: =L131*10000 -> 7.15E+17 | N131: 3.64E+04 | O131: 3.77E+00 | P131: =P130+(K131-K130)*(O131*M131) -> 6.23E+16 | Q131: =Q130+(K131-K130)*(M131) -> 1.63E+16
K132: 2.15E-02 | L132: 7.92E+13 | M132: =L132*10000 -> 7.92E+17 | N132: 3.94E+04 | O132: 3.77E+00 | P132: =P131+(K132-K131)*(O132*M132) -> 6.71E+16 | Q132: =Q131+(K132-K131)*(M132) -> 1.76E+16
K133: 2.33E-02 | L133: 9.09E+13 | M133: =L133*10000 -> 9.09E+17 | N133: 4.24E+04 | O133: 3.76E+00 | P133: =P132+(K133-K132)*(O133*M133) -> 7.29E+16 | Q133: =Q132+(K133-K132)*(M133) -> 1.91E+16
K134: 2.51E-02 | L134: 8.71E+13 | M134: =L134*10000 -> 8.71E+17 | N134: 4.55E+04 | O134: 3.75E+00 | P134: =P133+(K134-K133)*(O134*M134) -> 7.90E+16 | Q134: =Q133+(K134-K133)*(M134) -> 2.08E+16
K135: 2.71E-02 | L135: 1.06E+14 | M135: =L135*10000 -> 1.06E+18 | N135: 4.85E+04 | O135: 3.75E+00 | P135: =P134+(K135-K134)*(O135*M135) -> 8.70E+16 | Q135: =Q134+(K135-K134)*(M135) -> 2.29E+16
K136: 2.93E-02 | L136: 1.31E+14 | M136: =L136*10000 -> 1.31E+18 | N136: 5.15E+04 | O136: 3.74E+00 | P136: =P135+(K136-K135)*(O136*M136) -> 9.75E+16 | Q136: =Q135+(K136-K135)*(M136) -> 2.57E+16
K137: 3.16E-02 | L137: 1.48E+14 | M137: =L137*10000 -> 1.48E+18 | N137: 5.45E+04 | O137: 3.73E+00 | P137: =P136+(K137-K136)*(O137*M137) -> 1.10E+17 | Q137: =Q136+(K137-K136)*(M137) -> 2.92E+16
K138: 3.41E-02 | L138: 8.17E+13 | M138: =L138*10000 -> 8.17E+17 | N138: 5.76E+04 | O138: 3.73E+00 | P138: =P137+(K138-K137)*(O138*M138) -> 1.18E+17 | Q138: =Q137+(K138-K137)*(M138) -> 3.12E+16
K139: 3.69E-02 | L139: 4.50E+13 | M139: =L139*10000 -> 4.50E+17 | N139: 6.06E+04 | O139: 3.72E+00 | P139: =P138+(K139-K138)*(O139*M139) -> 1.23E+17 | Q139: =Q138+(K139-K138)*(M139) -> 3.25E+16
K140: 3.98E-02 | L140: 5.48E+13 | M140: =L140*10000 -> 5.48E+17 | N140: 6.36E+04 | O140: 3.72E+00 | P140: =P139+(K140-K139)*(O140*M140) -> 1.29E+17 | Q140: =Q139+(K140-K139)*(M140) -> 3.41E+16
K141: 4.30E-02 | L141: 7.88E+13 | M141: =L141*10000 -> 7.88E+17 | N141: 6.67E+04 | O141: 3.71E+00 | P141: =P140+(K141-K140)*(O141*M141) -> 1.38E+17 | Q141: =Q140+(K141-K140)*(M141) -> 3.66E+16
K142: 4.64E-02 | L142: 9.00E+13 | M142: =L142*10000 -> 9.00E+17 | N142: 6.97E+04 | O142: 3.70E+00 | P142: =P141+(K142-K141)*(O142*M142) -> 1.49E+17 | Q142: =Q141+(K142-K141)*(M142) -> 3.97E+16
K143: 5.01E-02 | L143: 1.06E+14 | M143: =L143*10000 -> 1.06E+18 | N143: 7.27E+04 | O143: 3.70E+00 | P143: =P142+(K143-K142)*(O143*M143) -> 1.64E+17 | Q143: =Q142+(K143-K142)*(M143) -> 4.36E+16
K144: 5.41E-02 | L144: 9.62E+13 | M144: =L144*10000 -> 9.62E+17 | N144: 7.58E+04 | O144: 3.69E+00 | P144: =P143+(K144-K143)*(O144*M144) -> 1.78E+17 | Q144: =Q143+(K144-K143)*(M144) -> 4.74E+16
K145: 5.84E-02 | L145: 1.05E+14 | M145: =L145*10000 -> 1.05E+18 | N145: 7.88E+04 | O145: 3.69E+00 | P145: =P144+(K145-K144)*(O145*M145) -> 1.95E+17 | Q145: =Q144+(K145-K144)*(M145) -> 5.20E+16
K146: 6.31E-02 | L146: 1.21E+14 | M146: =L146*10000 -> 1.21E+18 | N146: 8.18E+04 | O146: 3.68E+00 | P146: =P145+(K146-K145)*(O146*M146) -> 2.16E+17 | Q146: =Q145+(K146-K145)*(M146) -> 5.76E+16
K147: 6.81E-02 | L147: 1.39E+14 | M147: =L147*10000 -> 1.39E+18 | N147: 8.48E+04 | O147: 3.67E+00 | P147: =P146+(K147-K146)*(O147*M147) -> 2.41E+17 | Q147: =Q146+(K147-K146)*(M147) -> 6.46E+16
K148: 7.36E-02 | L148: 1.72E+14 | M148: =L148*10000 -> 1.72E+18 | N148: 8.79E+04 | O148: 3.67E+00 | P148: =P147+(K148-K147)*(O148*M148) -> 2.76E+17 | Q148: =Q147+(K148-K147)*(M148) -> 7.40E+16
K149: 7.94E-02 | L149: 1.68E+14 | M149: =L149*10000 -> 1.68E+18 | N149: 9.09E+04 | O149: 3.66E+00 | P149: =P148+(K149-K148)*(O149*M149) -> 3.12E+17 | Q149: =Q148+(K149-K148)*(M149) -> 8.38E+16
K150: 8.58E-02 | L150: 9.45E+13 | M150: =L150*10000 -> 9.45E+17 | N150: 9.39E+04 | O150: 3.66E+00 | P150: =P149+(K150-K149)*(O150*M150) -> 3.34E+17 | Q150: =Q149+(K150-K149)*(M150) -> 8.98E+16
K151: 9.26E-02 | L151: 5.68E+13 | M151: =L151*10000 -> 5.68E+17 | N151: 9.70E+04 | O151: 3.65E+00 | P151: =P150+(K151-K150)*(O151*M151) -> 3.48E+17 | Q151: =Q150+(K151-K150)*(M151) -> 9.37E+16
K152: 1.00E-01 | L152: 9.00E+13 | M152: =L152*10000 -> 9.00E+17 | N152: 1.00E+05 | O152: 3.64E+00 | P152: =P151+(K152-K151)*(O152*M152) -> 3.72E+17 | Q152: =Q151+(K152-K151)*(M152) -> 1.00E+17
K153: 1.08E-01 | L153: 1.27E+14 | M153: =L153*10000 -> 1.27E+18 | N153: 1.21E+05 | O153: 3.60E+00 | P153: =P152+(K153-K152)*(O153*M153) -> 4.09E+17 | Q153: =Q152+(K153-K152)*(M153) -> 1.11E+17
K154: 1.17E-01 | L154: 1.57E+14 | M154: =L154*10000 -> 1.57E+18 | N154: 1.52E+05 | O154: 3.55E+00 | P154: =P153+(K154-K153)*(O154*M154) -> 4.57E+17 | Q154: =Q153+(K154-K153)*(M154) -> 1.24E+17
K155: 1.26E-01 | L155: 1.33E+14 | M155: =L155*10000 -> 1.33E+18 | N155: 1.82E+05 | O155: 3.50E+00 | P155: =P154+(K155-K154)*(O155*M155) -> 5.00E+17 | Q155: =Q154+(K155-K154)*(M155) -> 1.36E+17
K156: 1.36E-01 | L156: 2.44E+14 | M156: =L156*10000 -> 2.44E+18 | N156: 2.12E+05 | O156: 3.46E+00 | P156: =P155+(K156-K155)*(O156*M156) -> 5.85E+17 | Q156: =Q155+(K156-K155)*(M156) -> 1.61E+17
K157: 1.47E-01 | L157: 1.36E+14 | M157: =L157*10000 -> 1.36E+18 | N157: 2.42E+05 | O157: 3.44E+00 | P157: =P156+(K157-K156)*(O157*M157) -> 6.36E+17 | Q157: =Q156+(K157-K156)*(M157) -> 1.76E+17
K158: 1.58E-01 | L158: 9.94E+13 | M158: =L158*10000 -> 9.94E+17 | N158: 2.73E+05 | O158: 3.44E+00 | P158: =P157+(K158-K157)*(O158*M158) -> 6.76E+17 | Q158: =Q157+(K158-K157)*(M158) -> 1.87E+17
K159: 1.71E-01 | L159: 1.15E+14 | M159: =L159*10000 -> 1.15E+18 | N159: 3.03E+05 | O159: 3.48E+00 | P159: =P158+(K159-K158)*(O159*M159) -> 7.26E+17 | Q159: =Q158+(K159-K158)*(M159) -> 2.02E+17
K160: 1.85E-01 | L160: 1.68E+14 | M160: =L160*10000 -> 1.68E+18 | N160: 3.33E+05 | O160: 3.64E+00 | P160: =P159+(K160-K159)*(O160*M160) -> 8.10E+17 | Q160: =Q159+(K160-K159)*(M160) -> 2.25E+17
K161: 2.00E-01 | L161: 1.88E+14 | M161: =L161*10000 -> 1.88E+18 | N161: 3.64E+05 | O161: 4.14E+00 | P161: =P160+(K161-K160)*(O161*M161) -> 9.25E+17 | Q161: =Q160+(K161-K160)*(M161) -> 2.53E+17
K162: 2.15E-01 | L162: 1.36E+14 | M162: =L162*10000 -> 1.36E+18 | N162: 3.94E+05 | O162: 6.03E+00 | P162: =P161+(K162-K161)*(O162*M162) -> 1.05E+18 | Q162: =Q161+(K162-K161)*(M162) -> 2.74E+17
K163: 2.33E-01 | L163: 1.62E+14 | M163: =L163*10000 -> 1.62E+18 | N163: 4.24E+05 | O163: 1.42E+01 | P163: =P162+(K163-K162)*(O163*M163) -> 1.45E+18 | Q163: =Q162+(K163-K162)*(M163) -> 3.02E+17
K164: 2.51E-01 | L164: 2.04E+14 | M164: =L164*10000 -> 2.04E+18 | N164: 4.55E+05 | O164: 1.06E+01 | P164: =P163+(K164-K163)*(O164*M164) -> 1.85E+18 | Q164: =Q163+(K164-K163)*(M164) -> 3.40E+17
K165: 2.71E-01 | L165: 2.54E+14 | M165: =L165*10000 -> 2.54E+18 | N165: 4.85E+05 | O165: 5.40E+00 | P165: =P164+(K165-K164)*(O165*M165) -> 2.13E+18 | Q165: =Q164+(K165-K164)*(M165) -> 3.91E+17
K166: 2.93E-01 | L166: 2.08E+14 | M166: =L166*10000 -> 2.08E+18 | N166: 5.15E+05 | O166: 4.05E+00 | P166: =P165+(K166-K165)*(O166*M166) -> 2.31E+18 | Q166: =Q165+(K166-K165)*(M166) -> 4.36E+17
K167: 3.16E-01 | L167: 1.98E+14 | M167: =L167*10000 -> 1.98E+18 | N167: 5.45E+05 | O167: 3.52E+00 | P167: =P166+(K167-K166)*(O167*M167) -> 2.47E+18 | Q167: =Q166+(K167-K166)*(M167) -> 4.82E+17
K168: 3.41E-01 | L168: 2.39E+14 | M168: =L168*10000 -> 2.39E+18 | N168: 5.76E+05 | O168: 3.25E+00 | P168: =P167+(K168-K167)*(O168*M168) -> 2.67E+18 | Q168: =Q167+(K168-K167)*(M168) -> 5.42E+17
K169: 3.69E-01 | L169: 2.54E+14 | M169: =L169*10000 -> 2.54E+18 | N169: 6.06E+05 | O169: 3.08E+00 | P169: =P168+(K169-K168)*(O169*M169) -> 2.88E+18 | Q169: =Q168+(K169-K168)*(M169) -> 6.11E+17
K170: 3.98E-01 | L170: 2.57E+14 | M170: =L170*10000 -> 2.57E+18 | N170: 6.36E+05 | O170: 2.97E+00 | P170: =P169+(K170-K169)*(O170*M170) -> 3.11E+18 | Q170: =Q169+(K170-K169)*(M170) -> 6.87E+17
K171: 4.30E-01 | L171: 2.21E+14 | M171: =L171*10000 -> 2.21E+18 | N171: 6.67E+05 | O171: 2.88E+00 | P171: =P170+(K171-K170)*(O171*M171) -> 3.31E+18 | Q171: =Q170+(K171-K170)*(M171) -> 7.57E+17
K172: 4.64E-01 | L172: 2.12E+14 | M172: =L172*10000 -> 2.12E+18 | N172: 6.97E+05 | O172: 2.81E+00 | P172: =P171+(K172-K171)*(O172*M172) -> 3.51E+18 | Q172: =Q171+(K172-K171)*(M172) -> 8.30E+17
K173: 5.01E-01 | L173: 2.71E+14 | M173: =L173*10000 -> 2.71E+18 | N173: 7.27E+05 | O173: 2.76E+00 | P173: =P172+(K173-K172)*(O173*M173) -> 3.79E+18 | Q173: =Q172+(K173-K172)*(M173) -> 9.30E+17
K174: 5.41E-01 | L174: 2.83E+14 | M174: =L174*10000 -> 2.83E+18 | N174: 7.58E+05 | O174: 2.73E+00 | P174: =P173+(K174-K173)*(O174*M174) -> 4.10E+18 | Q174: =Q173+(K174-K173)*(M174) -> 1.04E+18
K175: 5.84E-01 | L175: 2.93E+14 | M175: =L175*10000 -> 2.93E+18 | N175: 7.88E+05 | O175: 2.72E+00 | P175: =P174+(K175-K174)*(O175*M175) -> 4.44E+18 | Q175: =Q174+(K175-K174)*(M175) -> 1.17E+18
K176: 6.31E-01 | L176: 3.29E+14 | M176: =L176*10000 -> 3.29E+18 | N176: 8.18E+05 | O176: 2.74E+00 | P176: =P175+(K176-K175)*(O176*M176) -> 4.86E+18 | Q176: =Q175+(K176-K175)*(M176) -> 1.32E+18
K177: 6.81E-01 | L177: 3.15E+14 | M177: =L177*10000 -> 3.15E+18 | N177: 8.48E+05 | O177: 2.82E+00 | P177: =P176+(K177-K176)*(O177*M177) -> 5.31E+18 | Q177: =Q176+(K177-K176)*(M177) -> 1.48E+18
K178: 7.36E-01 | L178: 3.87E+14 | M178: =L178*10000 -> 3.87E+18 | N178: 8.79E+05 | O178: 3.01E+00 | P178: =P177+(K178-K177)*(O178*M178) -> 5.94E+18 | Q178: =Q177+(K178-K177)*(M178) -> 1.69E+18
K179: 7.94E-01 | L179: 3.56E+14 | M179: =L179*10000 -> 3.56E+18 | N179: 9.09E+05 | O179: 3.43E+00 | P179: =P178+(K179-K178)*(O179*M179) -> 6.66E+18 | Q179: =Q178+(K179-K178)*(M179) -> 1.90E+18
K180: 8.58E-01 | L180: 3.24E+14 | M180: =L180*10000 -> 3.24E+18 | N180: 9.39E+05 | O180: 4.43E+00 | P180: =P179+(K180-K179)*(O180*M180) -> 7.57E+18 | Q180: =Q179+(K180-K179)*(M180) -> 2.11E+18
K181: 9.26E-01 | L181: 3.25E+14 | M181: =L181*10000 -> 3.25E+18 | N181: 9.70E+05 | O181: 6.48E+00 | P181: =P180+(K181-K180)*(O181*M181) -> 9.01E+18 | Q181: =Q180+(K181-K180)*(M181) -> 2.33E+18
K182: 1.00E+00 | L182: 3.31E+14 | M182: =L182*10000 -> 3.31E+18 | N182: 1.00E+06 | O182: 8.15E+00 | P182: =P181+(K182-K181)*(O182*M182) -> 1.10E+19 | Q182: =Q181+(K182-K181)*(M182) -> 2.57E+18
K183: 1.08E+00 | L183: 3.49E+14 | M183: =L183*10000 -> 3.49E+18 | N183: 1.21E+06 | O183: 2.66E+00 | P183: =P182+(K183-K182)*(O183*M183) -> 1.17E+19 | Q183: =Q182+(K183-K182)*(M183) -> 2.85E+18
K184: 1.17E+00 | L184: 3.52E+14 | M184: =L184*10000 -> 3.52E+18 | N184: 1.52E+06 | O184: 2.03E+00 | P184: =P183+(K184-K183)*(O184*M184) -> 1.24E+19 | Q184: =Q183+(K184-K183)*(M184) -> 3.16E+18
K185: 1.26E+00 | L185: 3.40E+14 | M185: =L185*10000 -> 3.40E+18 | N185: 1.82E+06 | O185: 1.57E+00 | P185: =P184+(K185-K184)*(O185*M185) -> 1.29E+19 | Q185: =Q184+(K185-K184)*(M185) -> 3.47E+18
K186: 1.36E+00 | L186: 3.62E+14 | M186: =L186*10000 -> 3.62E+18 | N186: 2.12E+06 | O186: 1.39E+00 | P186: =P185+(K186-K185)*(O186*M186) -> 1.34E+19 | Q186: =Q185+(K186-K185)*(M186) -> 3.84E+18
K187: 1.47E+00 | L187: 3.73E+14 | M187: =L187*10000 -> 3.73E+18 | N187: 2.42E+06 | O187: 6.90E-01 | P187: =P186+(K187-K186)*(O187*M187) -> 1.36E+19 | Q187: =Q186+(K187-K186)*(M187) -> 4.24E+18
K188: 1.58E+00 | L188: 3.62E+14 | M188: =L188*10000 -> 3.62E+18 | N188: 2.73E+06 | O188: 1.09E+00 | P188: =P187+(K188-K187)*(O188*M188) -> 1.41E+19 | Q188: =Q187+(K188-K187)*(M188) -> 4.66E+18
K189: 1.71E+00 | L189: 3.65E+14 | M189: =L189*10000 -> 3.65E+18 | N189: 3.03E+06 | O189: 1.26E+00 | P189: =P188+(K189-K188)*(O189*M189) -> 1.47E+19 | Q189: =Q188+(K189-K188)*(M189) -> 5.13E+18
K190: 1.85E+00 | L190: 3.61E+14 | M190: =L190*10000 -> 3.61E+18 | N190: 3.33E+06 | O190: 3.19E+00 | P190: =P189+(K190-K189)*(O190*M190) -> 1.63E+19 | Q190: =Q189+(K190-K189)*(M190) -> 5.62E+18
K191: 2.00E+00 | L191: 3.41E+14 | M191: =L191*10000 -> 3.41E+18 | N191: 3.64E+06 | O191: 3.08E+00 | P191: =P190+(K191-K190)*(O191*M191) -> 1.78E+19 | Q191: =Q190+(K191-K190)*(M191) -> 6.12E+18
K192: 2.15E+00 | L192: 3.25E+14 | M192: =L192*10000 -> 3.25E+18 | N192: 3.94E+06 | O192: 2.14E+00 | P192: =P191+(K192-K191)*(O192*M192) -> 1.89E+19 | Q192: =Q191+(K192-K191)*(M192) -> 6.64E+18
K193: 2.33E+00 | L193: 3.25E+14 | M193: =L193*10000 -> 3.25E+18 | N193: 4.24E+06 | O193: 1.62E+00 | P193: =P192+(K193-K192)*(O193*M193) -> 1.98E+19 | Q193: =Q192+(K193-K192)*(M193) -> 7.20E+18
K194: 2.51E+00 | L194: 3.56E+14 | M194: =L194*10000 -> 3.56E+18 | N194: 4.55E+06 | O194: 1.68E+00 | P194: =P193+(K194-K193)*(O194*M194) -> 2.09E+19 | Q194: =Q193+(K194-K193)*(M194) -> 7.86E+18
K195: 2.71E+00 | L195: 2.96E+14 | M195: =L195*10000 -> 2.96E+18 | N195: 4.85E+06 | O195: 1.90E+00 | P195: =P194+(K195-K194)*(O195*M195) -> 2.21E+19 | Q195: =Q194+(K195-K194)*(M195) -> 8.45E+18
K196: 2.93E+00 | L196: 2.73E+14 | M196: =L196*10000 -> 2.73E+18 | N196: 5.15E+06 | O196: 1.87E+00 | P196: =P195+(K196-K195)*(O196*M196) -> 2.32E+19 | Q196: =Q195+(K196-K195)*(M196) -> 9.04E+18
K197: 3.16E+00 | L197: 2.54E+14 | M197: =L197*10000 -> 2.54E+18 | N197: 5.45E+06 | O197: 9.26E-01 | P197: =P196+(K197-K196)*(O197*M197) -> 2.37E+19 | Q197: =Q196+(K197-K196)*(M197) -> 9.64E+18
K198: 3.41E+00 | L198: 2.20E+14 | M198: =L198*10000 -> 2.20E+18 | N198: 5.76E+06 | O198: 1.38E+00 | P198: =P197+(K198-K197)*(O198*M198) -> 2.45E+19 | Q198: =Q197+(K198-K197)*(M198) -> 1.02E+19
K199: 3.69E+00 | L199: 1.87E+14 | M199: =L199*10000 -> 1.87E+18 | N199: 6.06E+06 | O199: 1.08E+00 | P199: =P198+(K199-K198)*(O199*M199) -> 2.50E+19 | Q199: =Q198+(K199-K198)*(M199) -> 1.07E+19
K200: 3.98E+00 | L200: 1.66E+14 | M200: =L200*10000 -> 1.66E+18 | N200: 6.36E+06 | O200: 9.68E-01 | P200: =P199+(K200-K199)*(O200*M200) -> 2.55E+19 | Q200: =Q199+(K200-K199)*(M200) -> 1.12E+19
... 42 more rows

Sheet Fe-54 t
A1: Energy (MeV) | B1: Flux (n/cm2-s) | C1: Flux (n/m2-s) | D1: E(JANIS) | E1: sigma (b) | F1: Int(s*F) | G1: Int(F) | I1: Value | K1: Energy (MeV) | L1: Flux (n/cm2-s) | M1: Flux (n/m2-s) | N1: E(JANIS) | O1: sigma (b) | P1: Int(s*F) | Q1: Int(F) | S1: Value
A2: 1.00E-10 | B2: 0.00E+00 | C2: =B2*10000 -> 0.00E+00 | I2: =F121/G121 -> 2.77E+00 | K2: 1.00E-06 | L2: 5.55E+13 | M2: =L2*10000 -> 5.55E+17 | S2: =P121/Q121 -> 9.02E+01
A3: 1.08E-10 | B3: 0.00E+00 | C3: =B3*10000 -> 0.00E+00 | D3: 1.21E-04 | E3: 3.78E+01 | F3: =F2+(A3-A2)*(E3*C3) -> 0.00E+00 | G3: =G2+(A3-A2)*(C3) -> 0.00E+00 | K3: 1.08E-06 | L3: 5.59E+13 | M3: =L3*10000 -> 5.59E+17 | N3: 1.21E+00 | O3: 2.51E+00 | P3: =P2+(K3-K2)*(O3*M3) -> 1.12E+11 | Q3: =Q2+(K3-K2)*(M3) -> 4.46E+10
A4: 1.17E-10 | B4: 0.00E+00 | C4: =B4*10000 -> 0.00E+00 | D4: 1.52E-04 | E4: 3.39E+01 | F4: =F3+(A4-A3)*(E4*C4) -> 0.00E+00 | G4: =G3+(A4-A3)*(C4) -> 0.00E+00 | K4: 1.17E-06 | L4: 5.42E+13 | M4: =L4*10000 -> 5.42E+17 | N4: 1.52E+00 | O4: 2.47E+00 | P4: =P3+(K4-K3)*(O4*M4) -> 2.27E+11 | Q4: =Q3+(K4-K3)*(M4) -> 9.13E+10
A5: 1.26E-10 | B5: 0.00E+00 | C5: =B5*10000 -> 0.00E+00 | D5: 1.82E-04 | E5: 3.10E+01 | F5: =F4+(A5-A4)*(E5*C5) -> 0.00E+00 | G5: =G4+(A5-A4)*(C5) -> 0.00E+00 | K5: 1.26E-06 | L5: 5.59E+13 | M5: =L5*10000 -> 5.59E+17 | N5: 1.82E+00 | O5: 2.45E+00 | P5: =P4+(K5-K4)*(O5*M5) -> 3.54E+11 | Q5: =Q4+(K5-K4)*(M5) -> 1.43E+11
A6: 1.36E-10 | B6: 0.00E+00 | C6: =B6*10000 -> 0.00E+00 | D6: 2.12E-04 | E6: 2.88E+01 | F6: =F5+(A6-A5)*(E6*C6) -> 0.00E+00 | G6: =G5+(A6-A5)*(C6) -> 0.00E+00 | K6: 1.36E-06 | L6: 5.68E+13 | M6: =L6*10000 -> 5.68E+17 | N6: 2.12E+00 | O6: 2.43E+00 | P6: =P5+(K6-K5)*(O6*M6) -> 4.93E+11 | Q6: =Q5+(K6-K5)*(M6) -> 2.00E+11
A7: 1.47E-10 | B7: 0.00E+00 | C7: =B7*10000 -> 0.00E+00 | D7: 2.42E-04 | E7: 2.70E+01 | F7: =F6+(A7-A6)*(E7*C7) -> 0.00E+00 | G7: =G6+(A7-A6)*(C7) -> 0.00E+00 | K7: 1.47E-06 | L7: 5.47E+13 | M7: =L7*10000 -> 5.47E+17 | N7: 2.42E+00 | O7: 2.41E+00 | P7: =P6+(K7-K6)*(O7*M7) -> 6.36E+11 | Q7: =Q6+(K7-K6)*(M7) -> 2.60E+11
A8: 1.58E-10 | B8: 0.00E+00 | C8: =B8*10000 -> 0.00E+00 | D8: 2.73E-04 | E8: 2.55E+01 | F8: =F7+(A8-A7)*(E8*C8) -> 0.00E+00 | G8: =G7+(A8-A7)*(C8) -> 0.00E+00 | K8: 1.58E-06 | L8: 5.38E+13 | M8: =L8*10000 -> 5.38E+17 | N8: 2.73E+00 | O8: 2.40E+00 | P8: =P7+(K8-K7)*(O8*M8) -> 7.86E+11 | Q8: =Q7+(K8-K7)*(M8) -> 3.23E+11
A9: 1.71E-10 | B9: 0.00E+00 | C9: =B9*10000 -> 0.00E+00 | D9: 3.03E-04 | E9: 2.43E+01 | F9: =F8+(A9-A8)*(E9*C9) -> 0.00E+00 | G9: =G8+(A9-A8)*(C9) -> 0.00E+00 | K9: 1.71E-06 | L9: 5.52E+13 | M9: =L9*10000 -> 5.52E+17 | N9: 3.03E+00 | O9: 2.39E+00 | P9: =P8+(K9-K8)*(O9*M9) -> 9.53E+11 | Q9: =Q8+(K9-K8)*(M9) -> 3.92E+11
A10: 1.85E-10 | B10: 0.00E+00 | C10: =B10*10000 -> 0.00E+00 | D10: 3.33E-04 | E10: 2.32E+01 | F10: =F9+(A10-A9)*(E10*C10) -> 0.00E+00 | G10: =G9+(A10-A9)*(C10) -> 0.00E+00 | K10: 1.85E-06 | L10: 5.47E+13 | M10: =L10*10000 -> 5.47E+17 | N10: 3.33E+00 | O10: 2.38E+00 | P10: =P9+(K10-K9)*(O10*M10) -> 1.13E+12 | Q10: =Q9+(K10-K9)*(M10) -> 4.67E+11
A11: 2.00E-10 | B11: 0.00E+00 | C11: =B11*10000 -> 0.00E+00 | D11: 3.64E-04 | E11: 2.23E+01 | F11: =F10+(A11-A10)*(E11*C11) -> 0.00E+00 | G11: =G10+(A11-A10)*(C11) -> 0.00E+00 | K11: 2.00E-06 | L11: 5.68E+13 | M11: =L11*10000 -> 5.68E+17 | N11: 3.64E+00 | O11: 2.37E+00 | P11: =P10+(K11-K10)*(O11*M11) -> 1.33E+12 | Q11: =Q10+(K11-K10)*(M11) -> 5.51E+11
A12: 2.15E-10 | B12: 0.00E+00 | C12: =B12*10000 -> 0.00E+00 | D12: 3.94E-04 | E12: 2.14E+01 | F12: =F11+(A12-A11)*(E12*C12) -> 0.00E+00 | G12: =G11+(A12-A11)*(C12) -> 0.00E+00 | K12: 2.15E-06 | L12: 5.57E+13 | M12: =L12*10000 -> 5.57E+17 | N12: 3.94E+00 | O12: 2.36E+00 | P12: =P11+(K12-K11)*(O12*M12) -> 1.54E+12 | Q12: =Q11+(K12-K11)*(M12) -> 6.39E+11
A13: 2.33E-10 | B13: 0.00E+00 | C13: =B13*10000 -> 0.00E+00 | D13: 4.24E-04 | E13: 2.07E+01 | F13: =F12+(A13-A12)*(E13*C13) -> 0.00E+00 | G13: =G12+(A13-A12)*(C13) -> 0.00E+00 | K13: 2.33E-06 | L13: 5.56E+13 | M13: =L13*10000 -> 5.56E+17 | N13: 4.24E+00 | O13: 2.35E+00 | P13: =P12+(K13-K12)*(O13*M13) -> 1.76E+12 | Q13: =Q12+(K13-K12)*(M13) -> 7.35E+11
A14: 2.51E-10 | B14: 0.00E+00 | C14: =B14*10000 -> 0.00E+00 | D14: 4.55E-04 | E14: 2.01E+01 | F14: =F13+(A14-A13)*(E14*C14) -> 0.00E+00 | G14: =G13+(A14-A13)*(C14) -> 0.00E+00 | K14: 2.51E-06 | L14: 5.65E+13 | M14: =L14*10000 -> 5.65E+17 | N14: 4.55E+00 | O14: 2.35E+00 | P14: =P13+(K14-K13)*(O14*M14) -> 2.01E+12 | Q14: =Q13+(K14-K13)*(M14) -> 8.40E+11
A15: 2.71E-10 | B15: 0.00E+00 | C15: =B15*10000 -> 0.00E+00 | D15: 4.85E-04 | E15: 1.95E+01 | F15: =F14+(A15-A14)*(E15*C15) -> 0.00E+00 | G15: =G14+(A15-A14)*(C15) -> 0.00E+00 | K15: 2.71E-06 | L15: 5.32E+13 | M15: =L15*10000 -> 5.32E+17 | N15: 4.85E+00 | O15: 2.34E+00 | P15: =P14+(K15-K14)*(O15*M15) -> 2.26E+12 | Q15: =Q14+(K15-K14)*(M15) -> 9.47E+11
A16: 2.93E-10 | B16: 3.02E+10 | C16: =B16*10000 -> 3.02E+14 | D16: 5.15E-04 | E16: 1.89E+01 | F16: =F15+(A16-A15)*(E16*C16) -> 1.24E+05 | G16: =G15+(A16-A15)*(C16) -> 6.54E+03 | K16: 2.93E-06 | L16: 5.44E+13 | M16: =L16*10000 -> 5.44E+17 | N16: 5.15E+00 | O16: 2.34E+00 | P16: =P15+(K16-K15)*(O16*M16) -> 2.53E+12 | Q16: =Q15+(K16-K15)*(M16) -> 1.06E+12
A17: 3.16E-10 | B17: 2.75E+10 | C17: =B17*10000 -> 2.75E+14 | D17: 5.45E-04 | E17: 1.84E+01 | F17: =F16+(A17-A16)*(E17*C17) -> 2.42E+05 | G17: =G16+(A17-A16)*(C17) -> 1.30E+04 | K17: 3.16E-06 | L17: 5.39E+13 | M17: =L17*10000 -> 5.39E+17 | N17: 5.45E+00 | O17: 2.33E+00 | P17: =P16+(K17-K16)*(O17*M17) -> 2.83E+12 | Q17: =Q16+(K17-K16)*(M17) -> 1.19E+12
A18: 3.41E-10 | B18: 0.00E+00 | C18: =B18*10000 -> 0.00E+00 | D18: 5.76E-04 | E18: 1.80E+01 | F18: =F17+(A18-A17)*(E18*C18) -> 2.42E+05 | G18: =G17+(A18-A17)*(C18) -> 1.30E+04 | K18: 3.41E-06 | L18: 5.38E+13 | M18: =L18*10000 -> 5.38E+17 | N18: 5.76E+00 | O18: 2.33E+00 | P18: =P17+(K18-K17)*(O18*M18) -> 3.14E+12 | Q18: =Q17+(K18-K17)*(M18) -> 1.33E+12
A19: 3.69E-10 | B19: 1.02E+10 | C19: =B19*10000 -> 1.02E+14 | D19: 6.06E-04 | E19: 1.76E+01 | F19: =F18+(A19-A18)*(E19*C19) -> 2.91E+05 | G19: =G18+(A19-A18)*(C19) -> 1.58E+04 | K19: 3.69E-06 | L19: 5.56E+13 | M19: =L19*10000 -> 5.56E+17 | N19: 6.06E+00 | O19: 2.32E+00 | P19: =P18+(K19-K18)*(O19*M19) -> 3.49E+12 | Q19: =Q18+(K19-K18)*(M19) -> 1.48E+12
A20: 3.98E-10 | B20: 0.00E+00 | C20: =B20*10000 -> 0.00E+00 | D20: 6.36E-04 | E20: 1.72E+01 | F20: =F19+(A20-A19)*(E20*C20) -> 2.91E+05 | G20: =G19+(A20-A19)*(C20) -> 1.58E+04 | K20: 3.98E-06 | L20: 5.65E+13 | M20: =L20*10000 -> 5.65E+17 | N20: 6.36E+00 | O20: 2.32E+00 | P20: =P19+(K20-K19)*(O20*M20) -> 3.88E+12 | Q20: =Q19+(K20-K19)*(M20) -> 1.64E+12
A21: 4.30E-10 | B21: 1.26E+10 | C21: =B21*10000 -> 1.26E+14 | D21: 6.67E-04 | E21: 1.68E+01 | F21: =F20+(A21-A20)*(E21*C21) -> 3.59E+05 | G21: =G20+(A21-A20)*(C21) -> 1.98E+04 | K21: 4.30E-06 | L21: 5.56E+13 | M21: =L21*10000 -> 5.56E+17 | N21: 6.67E+00 | O21: 2.31E+00 | P21: =P20+(K21-K20)*(O21*M21) -> 4.29E+12 | Q21: =Q20+(K21-K20)*(M21) -> 1.82E+12
A22: 4.64E-10 | B22: 7.95E+09 | C22: =B22*10000 -> 7.95E+13 | D22: 6.97E-04 | E22: 1.65E+01 | F22: =F21+(A22-A21)*(E22*C22) -> 4.04E+05 | G22: =G21+(A22-A21)*(C22) -> 2.25E+04 | K22: 4.64E-06 | L22: 5.38E+13 | M22: =L22*10000 -> 5.38E+17 | N22: 6.97E+00 | O22: 2.31E+00 | P22: =P21+(K22-K21)*(O22*M22) -> 4.71E+12 | Q22: =Q21+(K22-K21)*(M22) -> 2.00E+12
A23: 5.01E-10 | B23: 7.77E+09 | C23: =B23*10000 -> 7.77E+13 | D23: 7.27E-04 | E23: 1.62E+01 | F23: =F22+(A23-A22)*(E23*C23) -> 4.50E+05 | G23: =G22+(A23-A22)*(C23) -> 2.54E+04 | K23: 5.01E-06 | L23: 5.23E+13 | M23: =L23*10000 -> 5.23E+17 | N23: 7.27E+00 | O23: 2.31E+00 | P23: =P22+(K23-K22)*(O23*M23) -> 5.16E+12 | Q23: =Q22+(K23-K22)*(M23) -> 2.20E+12
A24: 5.41E-10 | B24: 6.15E+10 | C24: =B24*10000 -> 6.15E+14 | D24: 7.58E-04 | E24: 1.59E+01 | F24: =F23+(A24-A23)*(E24*C24) -> 8.40E+05 | G24: =G23+(A24-A23)*(C24) -> 4.99E+04 | K24: 5.41E-06 | L24: 5.55E+13 | M24: =L24*10000 -> 5.55E+17 | N24: 7.58E+00 | O24: 2.31E+00 | P24: =P23+(K24-K23)*(O24*M24) -> 5.67E+12 | Q24: =Q23+(K24-K23)*(M24) -> 2.42E+12
A25: 5.84E-10 | B25: 1.72E+10 | C25: =B25*10000 -> 1.72E+14 | D25: 7.88E-04 | E25: 1.56E+01 | F25: =F24+(A25-A24)*(E25*C25) -> 9.56E+05 | G25: =G24+(A25-A24)*(C25) -> 5.74E+04 | K25: 5.84E-06 | L25: 5.83E+13 | M25: =L25*10000 -> 5.83E+17 | N25: 7.88E+00 | O25: 2.30E+00 | P25: =P24+(K25-K24)*(O25*M25) -> 6.25E+12 | Q25: =Q24+(K25-K24)*(M25) -> 2.67E+12
A26: 6.31E-10 | B26: 7.71E+10 | C26: =B26*10000 -> 7.71E+14 | D26: 8.18E-04 | E26: 1.53E+01 | F26: =F25+(A26-A25)*(E26*C26) -> 1.51E+06 | G26: =G25+(A26-A25)*(C26) -> 9.33E+04 | K26: 6.31E-06 | L26: 5.67E+13 | M26: =L26*10000 -> 5.67E+17 | N26: 8.18E+00 | O26: 2.30E+00 | P26: =P25+(K26-K25)*(O26*M26) -> 6.86E+12 | Q26: =Q25+(K26-K25)*(M26) -> 2.94E+12
A27: 6.81E-10 | B27: 1.54E+10 | C27: =B27*10000 -> 1.54E+14 | D27: 8.48E-04 | E27: 1.51E+01 | F27: =F26+(A27-A26)*(E27*C27) -> 1.62E+06 | G27: =G26+(A27-A26)*(C27) -> 1.01E+05 | K27: 6.81E-06 | L27: 5.50E+13 | M27: =L27*10000 -> 5.50E+17 | N27: 8.48E+00 | O27: 2.30E+00 | P27: =P26+(K27-K26)*(O27*M27) -> 7.50E+12 | Q27: =Q26+(K27-K26)*(M27) -> 3.21E+12
A28: 7.36E-10 | B28: 4.12E+10 | C28: =B28*10000 -> 4.12E+14 | D28: 8.79E-04 | E28: 1.48E+01 | F28: =F27+(A28-A27)*(E28*C28) -> 1.96E+06 | G28: =G27+(A28-A27)*(C28) -> 1.23E+05 | K28: 7.36E-06 | L28: 5.72E+13 | M28: =L28*10000 -> 5.72E+17 | N28: 8.79E+00 | O28: 2.29E+00 | P28: =P27+(K28-K27)*(O28*M28) -> 8.21E+12 | Q28: =Q27+(K28-K27)*(M28) -> 3.52E+12
A29: 7.94E-10 | B29: 8.22E+10 | C29: =B29*10000 -> 8.22E+14 | D29: 9.09E-04 | E29: 1.46E+01 | F29: =F28+(A29-A28)*(E29*C29) -> 2.66E+06 | G29: =G28+(A29-A28)*(C29) -> 1.72E+05 | K29: 7.94E-06 | L29: 5.84E+13 | M29: =L29*10000 -> 5.84E+17 | N29: 9.09E+00 | O29: 2.29E+00 | P29: =P28+(K29-K28)*(O29*M29) -> 9.00E+12 | Q29: =Q28+(K29-K28)*(M29) -> 3.87E+12
A30: 8.58E-10 | B30: 1.79E+11 | C30: =B30*10000 -> 1.79E+15 | D30: 9.39E-04 | E30: 1.44E+01 | F30: =F29+(A30-A29)*(E30*C30) -> 4.30E+06 | G30: =G29+(A30-A29)*(C30) -> 2.85E+05 | K30: 8.58E-06 | L30: 5.75E+13 | M30: =L30*10000 -> 5.75E+17 | N30: 9.39E+00 | O30: 2.29E+00 | P30: =P29+(K30-K29)*(O30*M30) -> 9.83E+12 | Q30: =Q29+(K30-K29)*(M30) -> 4.23E+12
A31: 9.26E-10 | B31: 1.38E+11 | C31: =B31*10000 -> 1.38E+15 | D31: 9.70E-04 | E31: 1.42E+01 | F31: =F30+(A31-A30)*(E31*C31) -> 5.64E+06 | G31: =G30+(A31-A30)*(C31) -> 3.79E+05 | K31: 9.26E-06 | L31: 5.55E+13 | M31: =L31*10000 -> 5.55E+17 | N31: 9.70E+00 | O31: 2.29E+00 | P31: =P30+(K31-K30)*(O31*M31) -> 1.07E+13 | Q31: =Q30+(K31-K30)*(M31) -> 4.61E+12
A32: 1.00E-09 | B32: 7.31E+10 | C32: =B32*10000 -> 7.31E+14 | D32: 1.00E-03 | E32: 1.40E+01 | F32: =F31+(A32-A31)*(E32*C32) -> 6.40E+06 | G32: =G31+(A32-A31)*(C32) -> 4.33E+05 | K32: 1.00E-05 | L32: 5.82E+13 | M32: =L32*10000 -> 5.82E+17 | N32: 1.00E+01 | O32: 2.29E+00 | P32: =P31+(K32-K31)*(O32*M32) -> 1.17E+13 | Q32: =Q31+(K32-K31)*(M32) -> 5.04E+12
A33: 1.08E-09 | B33: 1.03E+11 | C33: =B33*10000 -> 1.03E+15 | D33: 1.21E-03 | E33: 1.29E+01 | F33: =F32+(A33-A32)*(E33*C33) -> 7.45E+06 | G33: =G32+(A33-A32)*(C33) -> 5.16E+05 | K33: 1.08E-05 | L33: 5.69E+13 | M33: =L33*10000 -> 5.69E+17 | N33: 1.21E+01 | O33: 2.27E+00 | P33: =P32+(K33-K32)*(O33*M33) -> 1.27E+13 | Q33: =Q32+(K33-K32)*(M33) -> 5.50E+12
A34: 1.17E-09 | B34: 2.34E+11 | C34: =B34*10000 -> 2.34E+15 | D34: 1.52E-03 | E34: 1.17E+01 | F34: =F33+(A34-A33)*(E34*C34) -> 9.82E+06 | G34: =G33+(A34-A33)*(C34) -> 7.17E+05 | K34: 1.17E-05 | L34: 5.71E+13 | M34: =L34*10000 -> 5.71E+17 | N34: 1.52E+01 | O34: 2.26E+00 | P34: =P33+(K34-K33)*(O34*M34) -> 1.38E+13 | Q34: =Q33+(K34-K33)*(M34) -> 5.99E+12
A35: 1.26E-09 | B35: 1.62E+11 | C35: =B35*10000 -> 1.62E+15 | D35: 1.82E-03 | E35: 1.09E+01 | F35: =F34+(A35-A34)*(E35*C35) -> 1.15E+07 | G35: =G34+(A35-A34)*(C35) -> 8.68E+05 | K35: 1.26E-05 | L35: 5.40E+13 | M35: =L35*10000 -> 5.40E+17 | N35: 1.82E+01 | O35: 2.25E+00 | P35: =P34+(K35-K34)*(O35*M35) -> 1.50E+13 | Q35: =Q34+(K35-K34)*(M35) -> 6.49E+12
A36: 1.36E-09 | B36: 1.17E+11 | C36: =B36*10000 -> 1.17E+15 | D36: 2.12E-03 | E36: 1.02E+01 | F36: =F35+(A36-A35)*(E36*C36) -> 1.27E+07 | G36: =G35+(A36-A35)*(C36) -> 9.85E+05 | K36: 1.36E-05 | L36: 5.94E+13 | M36: =L36*10000 -> 5.94E+17 | N36: 2.12E+01 | O36: 2.24E+00 | P36: =P35+(K36-K35)*(O36*M36) -> 1.63E+13 | Q36: =Q35+(K36-K35)*(M36) -> 7.09E+12
A37: 1.47E-09 | B37: 2.33E+11 | C37: =B37*10000 -> 2.33E+15 | D37: 2.42E-03 | E37: 9.67E+00 | F37: =F36+(A37-A36)*(E37*C37) -> 1.51E+07 | G37: =G36+(A37-A36)*(C37) -> 1.24E+06 | K37: 1.47E-05 | L37: 5.95E+13 | M37: =L37*10000 -> 5.95E+17 | N37: 2.42E+01 | O37: 2.23E+00 | P37: =P36+(K37-K36)*(O37*M37) -> 1.77E+13 | Q37: =Q36+(K37-K36)*(M37) -> 7.73E+12
A38: 1.58E-09 | B38: 3.17E+11 | C38: =B38*10000 -> 3.17E+15 | D38: 2.73E-03 | E38: 9.23E+00 | F38: =F37+(A38-A37)*(E38*C38) -> 1.85E+07 | G38: =G37+(A38-A37)*(C38) -> 1.61E+06 | K38: 1.58E-05 | L38: 5.94E+13 | M38: =L38*10000 -> 5.94E+17 | N38: 2.73E+01 | O38: 2.23E+00 | P38: =P37+(K38-K37)*(O38*M38) -> 1.93E+13 | Q38: =Q37+(K38-K37)*(M38) -> 8.43E+12
A39: 1.71E-09 | B39: 3.29E+11 | C39: =B39*10000 -> 3.29E+15 | D39: 3.03E-03 | E39: 8.86E+00 | F39: =F38+(A39-A38)*(E39*C39) -> 2.22E+07 | G39: =G38+(A39-A38)*(C39) -> 2.03E+06 | K39: 1.71E-05 | L39: 5.76E+13 | M39: =L39*10000 -> 5.76E+17 | N39: 3.03E+01 | O39: 2.22E+00 | P39: =P38+(K39-K38)*(O39*M39) -> 2.09E+13 | Q39: =Q38+(K39-K38)*(M39) -> 9.15E+12
A40: 1.85E-09 | B40: 2.40E+11 | C40: =B40*10000 -> 2.40E+15 | D40: 3.33E-03 | E40: 8.54E+00 | F40: =F39+(A40-A39)*(E40*C40) -> 2.50E+07 | G40: =G39+(A40-A39)*(C40) -> 2.35E+06 | K40: 1.85E-05 | L40: 6.06E+13 | M40: =L40*10000 -> 6.06E+17 | N40: 3.33E+01 | O40: 2.22E+00 | P40: =P39+(K40-K39)*(O40*M40) -> 2.27E+13 | Q40: =Q39+(K40-K39)*(M40) -> 9.98E+12
A41: 2.00E-09 | B41: 5.05E+11 | C41: =B41*10000 -> 5.05E+15 | D41: 3.64E-03 | E41: 8.27E+00 | F41: =F40+(A41-A40)*(E41*C41) -> 3.12E+07 | G41: =G40+(A41-A40)*(C41) -> 3.10E+06 | K41: 2.00E-05 | L41: 5.93E+13 | M41: =L41*10000 -> 5.93E+17 | N41: 3.64E+01 | O41: 2.21E+00 | P41: =P40+(K41-K40)*(O41*M41) -> 2.47E+13 | Q41: =Q40+(K41-K40)*(M41) -> 1.09E+13
A42: 2.15E-09 | B42: 3.15E+11 | C42: =B42*10000 -> 3.15E+15 | D42: 3.94E-03 | E42: 8.02E+00 | F42: =F41+(A42-A41)*(E42*C42) -> 3.52E+07 | G42: =G41+(A42-A41)*(C42) -> 3.60E+06 | K42: 2.15E-05 | L42: 6.02E+13 | M42: =L42*10000 -> 6.02E+17 | N42: 3.94E+01 | O42: 2.21E+00 | P42: =P41+(K42-K41)*(O42*M42) -> 2.68E+13 | Q42: =Q41+(K42-K41)*(M42) -> 1.18E+13
A43: 2.33E-09 | B43: 5.45E+11 | C43: =B43*10000 -> 5.45E+15 | D43: 4.24E-03 | E43: 7.80E+00 | F43: =F42+(A43-A42)*(E43*C43) -> 4.25E+07 | G43: =G42+(A43-A42)*(C43) -> 4.54E+06 | K43: 2.33E-05 | L43: 6.24E+13 | M43: =L43*10000 -> 6.24E+17 | N43: 4.24E+01 | O43: 2.20E+00 | P43: =P42+(K43-K42)*(O43*M43) -> 2.91E+13 | Q43: =Q42+(K43-K42)*(M43) -> 1.29E+13
A44: 2.51E-09 | B44: 5.21E+11 | C44: =B44*10000 -> 5.21E+15 | D44: 4.55E-03 | E44: 7.61E+00 | F44: =F43+(A44-A43)*(E44*C44) -> 4.99E+07 | G44: =G43+(A44-A43)*(C44) -> 5.50E+06 | K44: 2.51E-05 | L44: 6.32E+13 | M44: =L44*10000 -> 6.32E+17 | N44: 4.55E+01 | O44: 2.20E+00 | P44: =P43+(K44-K43)*(O44*M44) -> 3.17E+13 | Q44: =Q43+(K44-K43)*(M44) -> 1.41E+13
A45: 2.71E-09 | B45: 7.35E+11 | C45: =B45*10000 -> 7.35E+15 | D45: 4.85E-03 | E45: 7.44E+00 | F45: =F44+(A45-A44)*(E45*C45) -> 6.08E+07 | G45: =G44+(A45-A44)*(C45) -> 6.97E+06 | K45: 2.71E-05 | L45: 6.22E+13 | M45: =L45*10000 -> 6.22E+17 | N45: 4.85E+01 | O45: 2.19E+00 | P45: =P44+(K45-K44)*(O45*M45) -> 3.45E+13 | Q45: =Q44+(K45-K44)*(M45) -> 1.53E+13
A46: 2.93E-09 | B46: 1.37E+12 | C46: =B46*10000 -> 1.37E+16 | D46: 5.15E-03 | E46: 7.27E+00 | F46: =F45+(A46-A45)*(E46*C46) -> 8.23E+07 | G46: =G45+(A46-A45)*(C46) -> 9.94E+06 | K46: 2.93E-05 | L46: 6.21E+13 | M46: =L46*10000 -> 6.21E+17 | N46: 5.15E+01 | O46: 2.19E+00 | P46: =P45+(K46-K45)*(O46*M46) -> 3.74E+13 | Q46: =Q45+(K46-K45)*(M46) -> 1.67E+13
A47: 3.16E-09 | B47: 1.44E+12 | C47: =B47*10000 -> 1.44E+16 | D47: 5.46E-03 | E47: 7.13E+00 | F47: =F46+(A47-A46)*(E47*C47) -> 1.06E+08 | G47: =G46+(A47-A46)*(C47) -> 1.33E+07 | K47: 3.16E-05 | L47: 6.24E+13 | M47: =L47*10000 -> 6.24E+17 | N47: 5.45E+01 | O47: 2.18E+00 | P47: =P46+(K47-K46)*(O47*M47) -> 4.06E+13 | Q47: =Q46+(K47-K46)*(M47) -> 1.81E+13
A48: 3.41E-09 | B48: 1.61E+12 | C48: =B48*10000 -> 1.61E+16 | D48: 5.76E-03 | E48: 6.99E+00 | F48: =F47+(A48-A47)*(E48*C48) -> 1.35E+08 | G48: =G47+(A48-A47)*(C48) -> 1.74E+07 | K48: 3.41E-05 | L48: 6.26E+13 | M48: =L48*10000 -> 6.26E+17 | N48: 5.76E+01 | O48: 2.18E+00 | P48: =P47+(K48-K47)*(O48*M48) -> 4.40E+13 | Q48: =Q47+(K48-K47)*(M48) -> 1.97E+13
A49: 3.69E-09 | B49: 1.44E+12 | C49: =B49*10000 -> 1.44E+16 | D49: 6.06E-03 | E49: 6.87E+00 | F49: =F48+(A49-A48)*(E49*C49) -> 1.62E+08 | G49: =G48+(A49-A48)*(C49) -> 2.13E+07 | K49: 3.69E-05 | L49: 6.12E+13 | M49: =L49*10000 -> 6.12E+17 | N49: 6.06E+01 | O49: 2.18E+00 | P49: =P48+(K49-K48)*(O49*M49) -> 4.76E+13 | Q49: =Q48+(K49-K48)*(M49) -> 2.14E+13
A50: 3.98E-09 | B50: 1.92E+12 | C50: =B50*10000 -> 1.92E+16 | D50: 6.36E-03 | E50: 6.76E+00 | F50: =F49+(A50-A49)*(E50*C50) -> 2.00E+08 | G50: =G49+(A50-A49)*(C50) -> 2.70E+07 | K50: 3.98E-05 | L50: 6.60E+13 | M50: =L50*10000 -> 6.60E+17 | N50: 6.36E+01 | O50: 2.17E+00 | P50: =P49+(K50-K49)*(O50*M50) -> 5.19E+13 | Q50: =Q49+(K50-K49)*(M50) -> 2.33E+13
A51: 4.30E-09 | B51: 2.29E+12 | C51: =B51*10000 -> 2.29E+16 | D51: 6.67E-03 | E51: 6.65E+00 | F51: =F50+(A51-A50)*(E51*C51) -> 2.48E+08 | G51: =G50+(A51-A50)*(C51) -> 3.42E+07 | K51: 4.30E-05 | L51: 6.45E+13 | M51: =L51*10000 -> 6.45E+17 | N51: 6.67E+01 | O51: 2.17E+00 | P51: =P50+(K51-K50)*(O51*M51) -> 5.63E+13 | Q51: =Q50+(K51-K50)*(M51) -> 2.53E+13
A52: 4.64E-09 | B52: 2.67E+12 | C52: =B52*10000 -> 2.67E+16 | D52: 6.97E-03 | E52: 6.55E+00 | F52: =F51+(A52-A51)*(E52*C52) -> 3.08E+08 | G52: =G51+(A52-A51)*(C52) -> 4.34E+07 | K52: 4.64E-05 | L52: 6.64E+13 | M52: =L52*10000 -> 6.64E+17 | N52: 6.97E+01 | O52: 2.17E+00 | P52: =P51+(K52-K51)*(O52*M52) -> 6.12E+13 | Q52: =Q51+(K52-K51)*(M52) -> 2.76E+13
A53: 5.01E-09 | B53: 2.14E+12 | C53: =B53*10000 -> 2.14E+16 | D53: 7.27E-03 | E53: 6.46E+00 | F53: =F52+(A53-A52)*(E53*C53) -> 3.59E+08 | G53: =G52+(A53-A52)*(C53) -> 5.13E+07 | K53: 5.01E-05 | L53: 6.45E+13 | M53: =L53*10000 -> 6.45E+17 | N53: 7.27E+01 | O53: 2.16E+00 | P53: =P52+(K53-K52)*(O53*M53) -> 6.64E+13 | Q53: =Q52+(K53-K52)*(M53) -> 3.00E+13
A54: 5.41E-09 | B54: 2.71E+12 | C54: =B54*10000 -> 2.71E+16 | D54: 7.58E-03 | E54: 6.37E+00 | F54: =F53+(A54-A53)*(E54*C54) -> 4.28E+08 | G54: =G53+(A54-A53)*(C54) -> 6.21E+07 | K54: 5.41E-05 | L54: 6.63E+13 | M54: =L54*10000 -> 6.63E+17 | N54: 7.58E+01 | O54: 2.16E+00 | P54: =P53+(K54-K53)*(O54*M54) -> 7.21E+13 | Q54: =Q53+(K54-K53)*(M54) -> 3.27E+13
A55: 5.84E-09 | B55: 3.09E+12 | C55: =B55*10000 -> 3.09E+16 | D55: 7.88E-03 | E55: 6.28E+00 | F55: =F54+(A55-A54)*(E55*C55) -> 5.12E+08 | G55: =G54+(A55-A54)*(C55) -> 7.55E+07 | K55: 5.84E-05 | L55: 6.24E+13 | M55: =L55*10000 -> 6.24E+17 | N55: 7.88E+01 | O55: 2.16E+00 | P55: =P54+(K55-K54)*(O55*M55) -> 7.79E+13 | Q55: =Q54+(K55-K54)*(M55) -> 3.54E+13
A56: 6.31E-09 | B56: 4.61E+12 | C56: =B56*10000 -> 4.61E+16 | D56: 8.18E-03 | E56: 6.21E+00 | F56: =F55+(A56-A55)*(E56*C56) -> 6.46E+08 | G56: =G55+(A56-A55)*(C56) -> 9.70E+07 | K56: 6.31E-05 | L56: 6.85E+13 | M56: =L56*10000 -> 6.85E+17 | N56: 8.18E+01 | O56: 2.15E+00 | P56: =P55+(K56-K55)*(O56*M56) -> 8.48E+13 | Q56: =Q55+(K56-K55)*(M56) -> 3.85E+13
A57: 6.81E-09 | B57: 6.12E+12 | C57: =B57*10000 -> 6.12E+16 | D57: 8.49E-03 | E57: 6.13E+00 | F57: =F56+(A57-A56)*(E57*C57) -> 8.34E+08 | G57: =G56+(A57-A56)*(C57) -> 1.28E+08 | K57: 6.81E-05 | L57: 6.37E+13 | M57: =L57*10000 -> 6.37E+17 | N57: 8.48E+01 | O57: 2.15E+00 | P57: =P56+(K57-K56)*(O57*M57) -> 9.17E+13 | Q57: =Q56+(K57-K56)*(M57) -> 4.18E+13
A58: 7.36E-09 | B58: 6.24E+12 | C58: =B58*10000 -> 6.24E+16 | D58: 8.79E-03 | E58: 6.06E+00 | F58: =F57+(A58-A57)*(E58*C58) -> 1.04E+09 | G58: =G57+(A58-A57)*(C58) -> 1.62E+08 | K58: 7.36E-05 | L58: 6.57E+13 | M58: =L58*10000 -> 6.57E+17 | N58: 8.79E+01 | O58: 2.15E+00 | P58: =P57+(K58-K57)*(O58*M58) -> 9.94E+13 | Q58: =Q57+(K58-K57)*(M58) -> 4.53E+13
A59: 7.94E-09 | B59: 6.35E+12 | C59: =B59*10000 -> 6.35E+16 | D59: 9.09E-03 | E59: 6.00E+00 | F59: =F58+(A59-A58)*(E59*C59) -> 1.26E+09 | G59: =G58+(A59-A58)*(C59) -> 1.99E+08 | K59: 7.94E-05 | L59: 6.56E+13 | M59: =L59*10000 -> 6.56E+17 | N59: 9.09E+01 | O59: 2.14E+00 | P59: =P58+(K59-K58)*(O59*M59) -> 1.08E+14 | Q59: =Q58+(K59-K58)*(M59) -> 4.92E+13
A60: 8.58E-09 | B60: 8.77E+12 | C60: =B60*10000 -> 8.77E+16 | D60: 9.39E-03 | E60: 5.93E+00 | F60: =F59+(A60-A59)*(E60*C60) -> 1.59E+09 | G60: =G59+(A60-A59)*(C60) -> 2.55E+08 | K60: 8.58E-05 | L60: 6.36E+13 | M60: =L60*10000 -> 6.36E+17 | N60: 9.39E+01 | O60: 2.14E+00 | P60: =P59+(K60-K59)*(O60*M60) -> 1.16E+14 | Q60: =Q59+(K60-K59)*(M60) -> 5.32E+13
A61: 9.26E-09 | B61: 8.42E+12 | C61: =B61*10000 -> 8.42E+16 | D61: 9.70E-03 | E61: 5.87E+00 | F61: =F60+(A61-A60)*(E61*C61) -> 1.93E+09 | G61: =G60+(A61-A60)*(C61) -> 3.12E+08 | K61: 9.26E-05 | L61: 6.76E+13 | M61: =L61*10000 -> 6.76E+17 | N61: 9.70E+01 | O61: 2.14E+00 | P61: =P60+(K61-K60)*(O61*M61) -> 1.26E+14 | Q61: =Q60+(K61-K60)*(M61) -> 5.78E+13
A62: 1.00E-08 | B62: 9.04E+12 | C62: =B62*10000 -> 9.04E+16 | D62: 1.00E-02 | E62: 5.82E+00 | F62: =F61+(A62-A61)*(E62*C62) -> 2.32E+09 | G62: =G61+(A62-A61)*(C62) -> 3.79E+08 | K62: 1.00E-04 | L62: 6.77E+13 | M62: =L62*10000 -> 6.77E+17 | N62: 1.00E+02 | O62: 2.13E+00 | P62: =P61+(K62-K61)*(O62*M62) -> 1.37E+14 | Q62: =Q61+(K62-K61)*(M62) -> 6.28E+13
A63: 1.08E-08 | B63: 1.23E+13 | C63: =B63*10000 -> 1.23E+17 | D63: 1.21E-02 | E63: 5.48E+00 | F63: =F62+(A63-A62)*(E63*C63) -> 2.86E+09 | G63: =G62+(A63-A62)*(C63) -> 4.78E+08 | K63: 1.08E-04 | L63: 6.45E+13 | M63: =L63*10000 -> 6.45E+17 | N63: 1.21E+02 | O63: 2.11E+00 | P63: =P62+(K63-K62)*(O63*M63) -> 1.48E+14 | Q63: =Q62+(K63-K62)*(M63) -> 6.80E+13
A64: 1.17E-08 | B64: 1.31E+13 | C64: =B64*10000 -> 1.31E+17 | D64: 1.52E-02 | E64: 5.13E+00 | F64: =F63+(A64-A63)*(E64*C64) -> 3.44E+09 | G64: =G63+(A64-A63)*(C64) -> 5.90E+08 | K64: 1.17E-04 | L64: 6.81E+13 | M64: =L64*10000 -> 6.81E+17 | N64: 1.52E+02 | O64: 2.08E+00 | P64: =P63+(K64-K63)*(O64*M64) -> 1.60E+14 | Q64: =Q63+(K64-K63)*(M64) -> 7.38E+13
A65: 1.26E-08 | B65: 1.51E+13 | C65: =B65*10000 -> 1.51E+17 | D65: 1.82E-02 | E65: 4.87E+00 | F65: =F64+(A65-A64)*(E65*C65) -> 4.12E+09 | G65: =G64+(A65-A64)*(C65) -> 7.31E+08 | K65: 1.26E-04 | L65: 6.70E+13 | M65: =L65*10000 -> 6.70E+17 | N65: 1.82E+02 | O65: 2.06E+00 | P65: =P64+(K65-K64)*(O65*M65) -> 1.73E+14 | Q65: =Q64+(K65-K64)*(M65) -> 8.01E+13
A66: 1.36E-08 | B66: 1.83E+13 | C66: =B66*10000 -> 1.83E+17 | D66: 2.12E-02 | E66: 4.67E+00 | F66: =F65+(A66-A65)*(E66*C66) -> 4.98E+09 | G66: =G65+(A66-A65)*(C66) -> 9.14E+08 | K66: 1.36E-04 | L66: 6.70E+13 | M66: =L66*10000 -> 6.70E+17 | N66: 2.12E+02 | O66: 2.03E+00 | P66: =P65+(K66-K65)*(O66*M66) -> 1.86E+14 | Q66: =Q65+(K66-K65)*(M66) -> 8.68E+13
A67: 1.47E-08 | B67: 1.91E+13 | C67: =B67*10000 -> 1.91E+17 | D67: 2.42E-02 | E67: 4.50E+00 | F67: =F66+(A67-A66)*(E67*C67) -> 5.91E+09 | G67: =G66+(A67-A66)*(C67) -> 1.12E+09 | K67: 1.47E-04 | L67: 6.82E+13 | M67: =L67*10000 -> 6.82E+17 | N67: 2.42E+02 | O67: 2.00E+00 | P67: =P66+(K67-K66)*(O67*M67) -> 2.01E+14 | Q67: =Q66+(K67-K66)*(M67) -> 9.42E+13
A68: 1.58E-08 | B68: 1.98E+13 | C68: =B68*10000 -> 1.98E+17 | D68: 2.73E-02 | E68: 4.37E+00 | F68: =F67+(A68-A67)*(E68*C68) -> 6.92E+09 | G68: =G67+(A68-A67)*(C68) -> 1.35E+09 | K68: 1.58E-04 | L68: 6.88E+13 | M68: =L68*10000 -> 6.88E+17 | N68: 2.73E+02 | O68: 1.97E+00 | P68: =P67+(K68-K67)*(O68*M68) -> 2.17E+14 | Q68: =Q67+(K68-K67)*(M68) -> 1.02E+14
A69: 1.71E-08 | B69: 2.64E+13 | C69: =B69*10000 -> 2.64E+17 | D69: 3.03E-02 | E69: 4.26E+00 | F69: =F68+(A69-A68)*(E69*C69) -> 8.34E+09 | G69: =G68+(A69-A68)*(C69) -> 1.69E+09 | K69: 1.71E-04 | L69: 6.93E+13 | M69: =L69*10000 -> 6.93E+17 | N69: 3.03E+02 | O69: 1.95E+00 | P69: =P68+(K69-K68)*(O69*M69) -> 2.34E+14 | Q69: =Q68+(K69-K68)*(M69) -> 1.11E+14
A70: 1.85E-08 | B70: 2.62E+13 | C70: =B70*10000 -> 2.62E+17 | D70: 3.33E-02 | E70: 4.16E+00 | F70: =F69+(A70-A69)*(E70*C70) -> 9.83E+09 | G70: =G69+(A70-A69)*(C70) -> 2.04E+09 | K70: 1.85E-04 | L70: 6.91E+13 | M70: =L70*10000 -> 6.91E+17 | N70: 3.33E+02 | O70: 1.92E+00 | P70: =P69+(K70-K69)*(O70*M70) -> 2.52E+14 | Q70: =Q69+(K70-K69)*(M70) -> 1.20E+14
A71: 2.00E-08 | B71: 3.06E+13 | C71: =B71*10000 -> 3.06E+17 | D71: 3.64E-02 | E71: 4.08E+00 | F71: =F70+(A71-A70)*(E71*C71) -> 1.17E+10 | G71: =G70+(A71-A70)*(C71) -> 2.50E+09 | K71: 2.00E-04 | L71: 7.14E+13 | M71: =L71*10000 -> 7.14E+17 | N71: 3.64E+02 | O71: 1.90E+00 | P71: =P70+(K71-K70)*(O71*M71) -> 2.72E+14 | Q71: =Q70+(K71-K70)*(M71) -> 1.31E+14
A72: 2.15E-08 | B72: 3.42E+13 | C72: =B72*10000 -> 3.42E+17 | D72: 3.94E-02 | E72: 4.00E+00 | F72: =F71+(A72-A71)*(E72*C72) -> 1.38E+10 | G72: =G71+(A72-A71)*(C72) -> 3.04E+09 | K72: 2.15E-04 | L72: 7.03E+13 | M72: =L72*10000 -> 7.03E+17 | N72: 3.94E+02 | O72: 1.87E+00 | P72: =P71+(K72-K71)*(O72*M72) -> 2.93E+14 | Q72: =Q71+(K72-K71)*(M72) -> 1.42E+14
A73: 2.33E-08 | B73: 3.97E+13 | C73: =B73*10000 -> 3.97E+17 | D73: 4.24E-02 | E73: 3.93E+00 | F73: =F72+(A73-A72)*(E73*C73) -> 1.65E+10 | G73: =G72+(A73-A72)*(C73) -> 3.72E+09 | K73: 2.33E-04 | L73: 6.51E+13 | M73: =L73*10000 -> 6.51E+17 | N73: 4.24E+02 | O73: 1.84E+00 | P73: =P72+(K73-K72)*(O73*M73) -> 3.14E+14 | Q73: =Q72+(K73-K72)*(M73) -> 1.53E+14
A74: 2.51E-08 | B74: 4.04E+13 | C74: =B74*10000 -> 4.04E+17 | D74: 4.55E-02 | E74: 3.87E+00 | F74: =F73+(A74-A73)*(E74*C74) -> 1.94E+10 | G74: =G73+(A74-A73)*(C74) -> 4.47E+09 | K74: 2.51E-04 | L74: 6.97E+13 | M74: =L74*10000 -> 6.97E+17 | N74: 4.55E+02 | O74: 1.82E+00 | P74: =P73+(K74-K73)*(O74*M74) -> 3.37E+14 | Q74: =Q73+(K74-K73)*(M74) -> 1.66E+14
A75: 2.71E-08 | B75: 4.77E+13 | C75: =B75*10000 -> 4.77E+17 | D75: 4.85E-02 | E75: 3.82E+00 | F75: =F74+(A75-A74)*(E75*C75) -> 2.31E+10 | G75: =G74+(A75-A74)*(C75) -> 5.43E+09 | K75: 2.71E-04 | L75: 7.14E+13 | M75: =L75*10000 -> 7.14E+17 | N75: 4.85E+02 | O75: 1.79E+00 | P75: =P74+(K75-K74)*(O75*M75) -> 3.63E+14 | Q75: =Q74+(K75-K74)*(M75) -> 1.81E+14
A76: 2.93E-08 | B76: 5.17E+13 | C76: =B76*10000 -> 5.17E+17 | D76: 5.15E-02 | E76: 3.77E+00 | F76: =F75+(A76-A75)*(E76*C76) -> 2.73E+10 | G76: =G75+(A76-A75)*(C76) -> 6.55E+09 | K76: 2.93E-04 | L76: 6.99E+13 | M76: =L76*10000 -> 6.99E+17 | N76: 5.15E+02 | O76: 1.77E+00 | P76: =P75+(K76-K75)*(O76*M76) -> 3.90E+14 | Q76: =Q75+(K76-K75)*(M76) -> 1.96E+14
A77: 3.16E-08 | B77: 5.73E+13 | C77: =B77*10000 -> 5.73E+17 | D77: 5.45E-02 | E77: 3.72E+00 | F77: =F76+(A77-A76)*(E77*C77) -> 3.23E+10 | G77: =G76+(A77-A76)*(C77) -> 7.89E+09 | K77: 3.16E-04 | L77: 7.30E+13 | M77: =L77*10000 -> 7.30E+17 | N77: 5.45E+02 | O77: 1.74E+00 | P77: =P76+(K77-K76)*(O77*M77) -> 4.19E+14 | Q77: =Q76+(K77-K76)*(M77) -> 2.13E+14
A78: 3.41E-08 | B78: 6.02E+13 | C78: =B78*10000 -> 6.02E+17 | D78: 5.76E-02 | E78: 3.68E+00 | F78: =F77+(A78-A77)*(E78*C78) -> 3.79E+10 | G78: =G77+(A78-A77)*(C78) -> 9.40E+09 | K78: 3.41E-04 | L78: 6.85E+13 | M78: =L78*10000 -> 6.85E+17 | N78: 5.76E+02 | O78: 1.72E+00 | P78: =P77+(K78-K77)*(O78*M78) -> 4.49E+14 | Q78: =Q77+(K78-K77)*(M78) -> 2.30E+14
A79: 3.69E-08 | B79: 6.64E+13 | C79: =B79*10000 -> 6.64E+17 | D79: 6.06E-02 | E79: 3.65E+00 | F79: =F78+(A79-A78)*(E79*C79) -> 4.45E+10 | G79: =G78+(A79-A78)*(C79) -> 1.12E+10 | K79: 3.69E-04 | L79: 6.82E+13 | M79: =L79*10000 -> 6.82E+17 | N79: 6.06E+02 | O79: 1.69E+00 | P79: =P78+(K79-K78)*(O79*M79) -> 4.81E+14 | Q79: =Q78+(K79-K78)*(M79) -> 2.49E+14
A80: 3.98E-08 | B80: 6.82E+13 | C80: =B80*10000 -> 6.82E+17 | D80: 6.36E-02 | E80: 3.61E+00 | F80: =F79+(A80-A79)*(E80*C80) -> 5.17E+10 | G80: =G79+(A80-A79)*(C80) -> 1.32E+10 | K80: 3.98E-04 | L80: 6.91E+13 | M80: =L80*10000 -> 6.91E+17 | N80: 6.36E+02 | O80: 1.67E+00 | P80: =P79+(K80-K79)*(O80*M80) -> 5.15E+14 | Q80: =Q79+(K80-K79)*(M80) -> 2.69E+14
A81: 4.30E-08 | B81: 7.55E+13 | C81: =B81*10000 -> 7.55E+17 | D81: 6.67E-02 | E81: 3.58E+00 | F81: =F80+(A81-A80)*(E81*C81) -> 6.03E+10 | G81: =G80+(A81-A80)*(C81) -> 1.56E+10 | K81: 4.30E-04 | L81: 7.23E+13 | M81: =L81*10000 -> 7.23E+17 | N81: 6.67E+02 | O81: 1.64E+00 | P81: =P80+(K81-K80)*(O81*M81) -> 5.52E+14 | Q81: =Q80+(K81-K80)*(M81) -> 2.92E+14
A82: 4.64E-08 | B82: 7.70E+13 | C82: =B82*10000 -> 7.70E+17 | D82: 6.97E-02 | E82: 3.55E+00 | F82: =F81+(A82-A81)*(E82*C82) -> 6.97E+10 | G82: =G81+(A82-A81)*(C82) -> 1.83E+10 | K82: 4.64E-04 | L82: 7.07E+13 | M82: =L82*10000 -> 7.07E+17 | N82: 6.97E+02 | O82: 1.62E+00 | P82: =P81+(K82-K81)*(O82*M82) -> 5.91E+14 | Q82: =Q81+(K82-K81)*(M82) -> 3.16E+14
A83: 5.01E-08 | B83: 8.52E+13 | C83: =B83*10000 -> 8.52E+17 | D83: 7.27E-02 | E83: 3.52E+00 | F83: =F82+(A83-A82)*(E83*C83) -> 8.08E+10 | G83: =G82+(A83-A82)*(C83) -> 2.14E+10 | K83: 5.01E-04 | L83: 7.49E+13 | M83: =L83*10000 -> 7.49E+17 | N83: 7.27E+02 | O83: 1.59E+00 | P83: =P82+(K83-K82)*(O83*M83) -> 6.36E+14 | Q83: =Q82+(K83-K82)*(M83) -> 3.44E+14
A84: 5.41E-08 | B84: 8.45E+13 | C84: =B84*10000 -> 8.45E+17 | D84: 7.58E-02 | E84: 3.49E+00 | F84: =F83+(A84-A83)*(E84*C84) -> 9.25E+10 | G84: =G83+(A84-A83)*(C84) -> 2.48E+10 | K84: 5.41E-04 | L84: 7.20E+13 | M84: =L84*10000 -> 7.20E+17 | N84: 7.58E+02 | O84: 1.57E+00 | P84: =P83+(K84-K83)*(O84*M84) -> 6.81E+14 | Q84: =Q83+(K84-K83)*(M84) -> 3.73E+14
A85: 5.84E-08 | B85: 9.04E+13 | C85: =B85*10000 -> 9.04E+17 | D85: 7.88E-02 | E85: 3.46E+00 | F85: =F84+(A85-A84)*(E85*C85) -> 1.06E+11 | G85: =G84+(A85-A84)*(C85) -> 2.87E+10 | K85: 5.84E-04 | L85: 7.31E+13 | M85: =L85*10000 -> 7.31E+17 | N85: 7.88E+02 | O85: 1.54E+00 | P85: =P84+(K85-K84)*(O85*M85) -> 7.30E+14 | Q85: =Q84+(K85-K84)*(M85) -> 4.04E+14
A86: 6.31E-08 | B86: 9.09E+13 | C86: =B86*10000 -> 9.09E+17 | D86: 8.18E-02 | E86: 3.44E+00 | F86: =F85+(A86-A85)*(E86*C86) -> 1.21E+11 | G86: =G85+(A86-A85)*(C86) -> 3.29E+10 | K86: 6.31E-04 | L86: 7.28E+13 | M86: =L86*10000 -> 7.28E+17 | N86: 8.18E+02 | O86: 1.52E+00 | P86: =P85+(K86-K85)*(O86*M86) -> 7.81E+14 | Q86: =Q85+(K86-K85)*(M86) -> 4.38E+14
A87: 6.81E-08 | B87: 9.03E+13 | C87: =B87*10000 -> 9.03E+17 | D87: 8.48E-02 | E87: 3.42E+00 | F87: =F86+(A87-A86)*(E87*C87) -> 1.36E+11 | G87: =G86+(A87-A86)*(C87) -> 3.75E+10 | K87: 6.81E-04 | L87: 7.10E+13 | M87: =L87*10000 -> 7.10E+17 | N87: 8.48E+02 | O87: 1.50E+00 | P87: =P86+(K87-K86)*(O87*M87) -> 8.35E+14 | Q87: =Q86+(K87-K86)*(M87) -> 4.74E+14
A88: 7.36E-08 | B88: 9.33E+13 | C88: =B88*10000 -> 9.33E+17 | D88: 8.79E-02 | E88: 3.40E+00 | F88: =F87+(A88-A87)*(E88*C88) -> 1.53E+11 | G88: =G87+(A88-A87)*(C88) -> 4.25E+10 | K88: 7.36E-04 | L88: 6.99E+13 | M88: =L88*10000 -> 6.99E+17 | N88: 8.79E+02 | O88: 1.47E+00 | P88: =P87+(K88-K87)*(O88*M88) -> 8.90E+14 | Q88: =Q87+(K88-K87)*(M88) -> 5.12E+14
A89: 7.94E-08 | B89: 9.07E+13 | C89: =B89*10000 -> 9.07E+17 | D89: 9.09E-02 | E89: 3.38E+00 | F89: =F88+(A89-A88)*(E89*C89) -> 1.71E+11 | G89: =G88+(A89-A88)*(C89) -> 4.79E+10 | K89: 7.94E-04 | L89: 7.19E+13 | M89: =L89*10000 -> 7.19E+17 | N89: 9.09E+02 | O89: 1.45E+00 | P89: =P88+(K89-K88)*(O89*M89) -> 9.51E+14 | Q89: =Q88+(K89-K88)*(M89) -> 5.54E+14
A90: 8.58E-08 | B90: 9.07E+13 | C90: =B90*10000 -> 9.07E+17 | D90: 9.09E-02 | E90: 3.38E+00 | F90: =F89+(A90-A89)*(E90*C90) -> 1.91E+11 | G90: =G89+(A90-A89)*(C90) -> 5.36E+10 | K90: 8.58E-04 | L90: 7.06E+13 | M90: =L90*10000 -> 7.06E+17 | N90: 9.39E+02 | O90: 1.42E+00 | P90: =P89+(K90-K89)*(O90*M90) -> 1.02E+15 | Q90: =Q89+(K90-K89)*(M90) -> 5.99E+14
A91: 9.26E-08 | B91: 9.09E+13 | C91: =B91*10000 -> 9.09E+17 | D91: 9.39E-02 | E91: 3.36E+00 | F91: =F90+(A91-A90)*(E91*C91) -> 2.12E+11 | G91: =G90+(A91-A90)*(C91) -> 5.98E+10 | K91: 9.26E-04 | L91: 7.54E+13 | M91: =L91*10000 -> 7.54E+17 | N91: 9.70E+02 | O91: 1.40E+00 | P91: =P90+(K91-K90)*(O91*M91) -> 1.09E+15 | Q91: =Q90+(K91-K90)*(M91) -> 6.50E+14
A92: 1.00E-07 | B92: 8.62E+13 | C92: =B92*10000 -> 8.62E+17 | D92: 9.70E-02 | E92: 3.34E+00 | F92: =F91+(A92-A91)*(E92*C92) -> 2.33E+11 | G92: =G91+(A92-A91)*(C92) -> 6.62E+10 | K92: 1.00E-03 | L92: 7.39E+13 | M92: =L92*10000 -> 7.39E+17 | N92: 1.00E+03 | O92: 1.37E+00 | P92: =P91+(K92-K91)*(O92*M92) -> 1.16E+15 | Q92: =Q91+(K92-K91)*(M92) -> 7.05E+14
A93: 1.08E-07 | B93: 8.47E+13 | C93: =B93*10000 -> 8.47E+17 | D93: 1.00E-01 | E93: 3.32E+00 | F93: =F92+(A93-A92)*(E93*C93) -> 2.55E+11 | G93: =G92+(A93-A92)*(C93) -> 7.30E+10 | K93: 1.08E-03 | L93: 7.44E+13 | M93: =L93*10000 -> 7.44E+17 | N93: 1.21E+03 | O93: 1.21E+00 | P93: =P92+(K93-K92)*(O93*M93) -> 1.23E+15 | Q93: =Q92+(K93-K92)*(M93) -> 7.64E+14
A94: 1.17E-07 | B94: 8.23E+13 | C94: =B94*10000 -> 8.23E+17 | D94: 1.21E-01 | E94: 3.21E+00 | F94: =F93+(A94-A93)*(E94*C94) -> 2.78E+11 | G94: =G93+(A94-A93)*(C94) -> 8.01E+10 | K94: 1.17E-03 | L94: 6.92E+13 | M94: =L94*10000 -> 6.92E+17 | N94: 1.52E+03 | O94: 9.78E-01 | P94: =P93+(K94-K93)*(O94*M94) -> 1.29E+15 | Q94: =Q93+(K94-K93)*(M94) -> 8.24E+14
A95: 1.26E-07 | B95: 8.14E+13 | C95: =B95*10000 -> 8.14E+17 | D95: 1.52E-01 | E95: 3.11E+00 | F95: =F94+(A95-A94)*(E95*C95) -> 3.02E+11 | G95: =G94+(A95-A94)*(C95) -> 8.76E+10 | K95: 1.26E-03 | L95: 7.13E+13 | M95: =L95*10000 -> 7.13E+17 | N95: 1.82E+03 | O95: 7.60E-01 | P95: =P94+(K95-K94)*(O95*M95) -> 1.34E+15 | Q95: =Q94+(K95-K94)*(M95) -> 8.90E+14
A96: 1.36E-07 | B96: 7.67E+13 | C96: =B96*10000 -> 7.67E+17 | D96: 1.82E-01 | E96: 3.02E+00 | F96: =F95+(A96-A95)*(E96*C96) -> 3.25E+11 | G96: =G95+(A96-A95)*(C96) -> 9.53E+10 | K96: 1.36E-03 | L96: 7.44E+13 | M96: =L96*10000 -> 7.44E+17 | N96: 2.12E+03 | O96: 5.54E-01 | P96: =P95+(K96-K95)*(O96*M96) -> 1.38E+15 | Q96: =Q95+(K96-K95)*(M96) -> 9.65E+14
A97: 1.47E-07 | B97: 7.16E+13 | C97: =B97*10000 -> 7.16E+17 | D97: 2.12E-01 | E97: 2.96E+00 | F97: =F96+(A97-A96)*(E97*C97) -> 3.48E+11 | G97: =G96+(A97-A96)*(C97) -> 1.03E+11 | K97: 1.47E-03 | L97: 7.10E+13 | M97: =L97*10000 -> 7.10E+17 | N97: 2.42E+03 | O97: 3.71E-01 | P97: =P96+(K97-K96)*(O97*M97) -> 1.41E+15 | Q97: =Q96+(K97-K96)*(M97) -> 1.04E+15
A98: 1.58E-07 | B98: 6.72E+13 | C98: =B98*10000 -> 6.72E+17 | D98: 2.42E-01 | E98: 2.91E+00 | F98: =F97+(A98-A97)*(E98*C98) -> 3.71E+11 | G98: =G97+(A98-A97)*(C98) -> 1.11E+11 | K98: 1.58E-03 | L98: 7.69E+13 | M98: =L98*10000 -> 7.69E+17 | N98: 2.73E+03 | O98: 2.12E-01 | P98: =P97+(K98-K97)*(O98*M98) -> 1.43E+15 | Q98: =Q97+(K98-K97)*(M98) -> 1.13E+15
A99: 1.71E-07 | B99: 6.70E+13 | C99: =B99*10000 -> 6.70E+17 | D99: 2.73E-01 | E99: 2.87E+00 | F99: =F98+(A99-A98)*(E99*C99) -> 3.95E+11 | G99: =G98+(A99-A98)*(C99) -> 1.19E+11 | K99: 1.71E-03 | L99: 7.62E+13 | M99: =L99*10000 -> 7.62E+17 | N99: 3.03E+03 | O99: 9.13E-02 | P99: =P98+(K99-K98)*(O99*M99) -> 1.44E+15 | Q99: =Q98+(K99-K98)*(M99) -> 1.23E+15
A100: 1.85E-07 | B100: 6.46E+13 | C100: =B100*10000 -> 6.46E+17 | D100: 3.03E-01 | E100: 2.83E+00 | F100: =F99+(A100-A99)*(E100*C100) -> 4.20E+11 | G100: =G99+(A100-A99)*(C100) -> 1.28E+11 | K100: 1.85E-03 | L100: 7.85E+13 | M100: =L100*10000 -> 7.85E+17 | N100: 3.33E+03 | O100: 2.27E-02 | P100: =P99+(K100-K99)*(O100*M100) -> 1.44E+15 | Q100: =Q99+(K100-K99)*(M100) -> 1.34E+15
A101: 2.00E-07 | B101: 6.34E+13 | C101: =B101*10000 -> 6.34E+17 | D101: 3.33E-01 | E101: 2.80E+00 | F101: =F100+(A101-A100)*(E101*C101) -> 4.46E+11 | G101: =G100+(A101-A100)*(C101) -> 1.38E+11 | K101: 2.00E-03 | L101: 7.51E+13 | M101: =L101*10000 -> 7.51E+17 | N101: 3.64E+03 | O101: 2.79E-02 | P101: =P100+(K101-K100)*(O101*M101) -> 1.45E+15 | Q101: =Q100+(K101-K100)*(M101) -> 1.45E+15
A102: 2.15E-07 | B102: 5.89E+13 | C102: =B102*10000 -> 5.89E+17 | D102: 3.64E-01 | E102: 2.78E+00 | F102: =F101+(A102-A101)*(E102*C102) -> 4.72E+11 | G102: =G101+(A102-A101)*(C102) -> 1.47E+11 | K102: 2.15E-03 | L102: 7.59E+13 | M102: =L102*10000 -> 7.59E+17 | N102: 3.94E+03 | O102: 1.39E-01 | P102: =P101+(K102-K101)*(O102*M102) -> 1.46E+15 | Q102: =Q101+(K102-K101)*(M102) -> 1.57E+15
A103: 2.33E-07 | B103: 5.77E+13 | C103: =B103*10000 -> 5.77E+17 | D103: 3.94E-01 | E103: 2.75E+00 | F103: =F102+(A103-A102)*(E103*C103) -> 5.00E+11 | G103: =G102+(A103-A102)*(C103) -> 1.57E+11 | K103: 2.33E-03 | L103: 7.58E+13 | M103: =L103*10000 -> 7.58E+17 | N103: 4.24E+03 | O103: 4.05E-01 | P103: =P102+(K103-K102)*(O103*M103) -> 1.52E+15 | Q103: =Q102+(K103-K102)*(M103) -> 1.70E+15
A104: 2.51E-07 | B104: 5.68E+13 | C104: =B104*10000 -> 5.68E+17 | D104: 4.24E-01 | E104: 2.73E+00 | F104: =F103+(A104-A103)*(E104*C104) -> 5.29E+11 | G104: =G103+(A104-A103)*(C104) -> 1.67E+11 | K104: 2.51E-03 | L104: 7.52E+13 | M104: =L104*10000 -> 7.52E+17 | N104: 4.55E+03 | O104: 9.04E-01 | P104: =P103+(K104-K103)*(O104*M104) -> 1.64E+15 | Q104: =Q103+(K104-K103)*(M104) -> 1.84E+15
A105: 2.71E-07 | B105: 5.55E+13 | C105: =B105*10000 -> 5.55E+17 | D105: 4.55E-01 | E105: 2.71E+00 | F105: =F104+(A105-A104)*(E105*C105) -> 5.59E+11 | G105: =G104+(A105-A104)*(C105) -> 1.79E+11 | K105: 2.71E-03 | L105: 7.45E+13 | M105: =L105*10000 -> 7.45E+17 | N105: 4.85E+03 | O105: 1.75E+00 | P105: =P104+(K105-K104)*(O105*M105) -> 1.90E+15 | Q105: =Q104+(K105-K104)*(M105) -> 1.99E+15
A106: 2.93E-07 | B106: 5.51E+13 | C106: =B106*10000 -> 5.51E+17 | D106: 4.85E-01 | E106: 2.70E+00 | F106: =F105+(A106-A105)*(E106*C106) -> 5.91E+11 | G106: =G105+(A106-A105)*(C106) -> 1.90E+11 | K106: 2.93E-03 | L106: 8.06E+13 | M106: =L106*10000 -> 8.06E+17 | N106: 5.15E+03 | O106: 3.15E+00 | P106: =P105+(K106-K105)*(O106*M106) -> 2.45E+15 | Q106: =Q105+(K106-K105)*(M106) -> 2.16E+15
A107: 3.16E-07 | B107: 5.52E+13 | C107: =B107*10000 -> 5.52E+17 | D107: 5.15E-01 | E107: 2.68E+00 | F107: =F106+(A107-A106)*(E107*C107) -> 6.25E+11 | G107: =G106+(A107-A106)*(C107) -> 2.03E+11 | K107: 3.16E-03 | L107: 7.13E+13 | M107: =L107*10000 -> 7.13E+17 | N107: 5.45E+03 | O107: 5.44E+00 | P107: =P106+(K107-K106)*(O107*M107) -> 3.36E+15 | Q107: =Q106+(K107-K106)*(M107) -> 2.33E+15
A108: 3.41E-07 | B108: 5.54E+13 | C108: =B108*10000 -> 5.54E+17 | D108: 5.45E-01 | E108: 2.67E+00 | F108: =F107+(A108-A107)*(E108*C108) -> 6.63E+11 | G108: =G107+(A108-A107)*(C108) -> 2.17E+11 | K108: 3.41E-03 | L108: 7.69E+13 | M108: =L108*10000 -> 7.69E+17 | N108: 5.76E+03 | O108: 9.22E+00 | P108: =P107+(K108-K107)*(O108*M108) -> 5.15E+15 | Q108: =Q107+(K108-K107)*(M108) -> 2.52E+15
A109: 3.69E-07 | B109: 5.59E+13 | C109: =B109*10000 -> 5.59E+17 | D109: 5.76E-01 | E109: 2.66E+00 | F109: =F108+(A109-A108)*(E109*C109) -> 7.03E+11 | G109: =G108+(A109-A108)*(C109) -> 2.33E+11 | K109: 3.69E-03 | L109: 7.68E+13 | M109: =L109*10000 -> 7.68E+17 | N109: 6.06E+03 | O109: 1.56E+01 | P109: =P108+(K109-K108)*(O109*M109) -> 8.42E+15 | Q109: =Q108+(K109-K108)*(M109) -> 2.73E+15
A110: 3.98E-07 | B110: 5.39E+13 | C110: =B110*10000 -> 5.39E+17 | D110: 6.06E-01 | E110: 2.64E+00 | F110: =F109+(A110-A109)*(E110*C110) -> 7.45E+11 | G110: =G109+(A110-A109)*(C110) -> 2.48E+11 | K110: 3.98E-03 | L110: 7.49E+13 | M110: =L110*10000 -> 7.49E+17 | N110: 6.36E+03 | O110: 2.70E+01 | P110: =P109+(K110-K109)*(O110*M110) -> 1.44E+16 | Q110: =Q109+(K110-K109)*(M110) -> 2.95E+15
A111: 4.30E-07 | B111: 5.70E+13 | C111: =B111*10000 -> 5.70E+17 | D111: 6.36E-01 | E111: 2.63E+00 | F111: =F110+(A111-A110)*(E111*C111) -> 7.93E+11 | G111: =G110+(A111-A110)*(C111) -> 2.67E+11 | K111: 4.30E-03 | L111: 7.61E+13 | M111: =L111*10000 -> 7.61E+17 | N111: 6.67E+03 | O111: 4.79E+01 | P111: =P110+(K111-K110)*(O111*M111) -> 2.60E+16 | Q111: =Q110+(K111-K110)*(M111) -> 3.19E+15
A112: 4.64E-07 | B112: 5.62E+13 | C112: =B112*10000 -> 5.62E+17 | D112: 6.67E-01 | E112: 2.62E+00 | F112: =F111+(A112-A111)*(E112*C112) -> 8.43E+11 | G112: =G111+(A112-A111)*(C112) -> 2.86E+11 | K112: 4.64E-03 | L112: 7.85E+13 | M112: =L112*10000 -> 7.85E+17 | N112: 6.97E+03 | O112: 8.92E+01 | P112: =P111+(K112-K111)*(O112*M112) -> 5.00E+16 | Q112: =Q111+(K112-K111)*(M112) -> 3.46E+15
A113: 5.01E-07 | B113: 5.57E+13 | C113: =B113*10000 -> 5.57E+17 | D113: 6.97E-01 | E113: 2.61E+00 | F113: =F112+(A113-A112)*(E113*C113) -> 8.97E+11 | G113: =G112+(A113-A112)*(C113) -> 3.06E+11 | K113: 5.01E-03 | L113: 8.06E+13 | M113: =L113*10000 -> 8.06E+17 | N113: 7.27E+03 | O113: 1.69E+02 | P113: =P112+(K113-K112)*(O113*M113) -> 1.01E+17 | Q113: =Q112+(K113-K112)*(M113) -> 3.76E+15
A114: 5.41E-07 | B114: 5.53E+13 | C114: =B114*10000 -> 5.53E+17 | D114: 7.27E-01 | E114: 2.60E+00 | F114: =F113+(A114-A113)*(E114*C114) -> 9.55E+11 | G114: =G113+(A114-A113)*(C114) -> 3.29E+11 | K114: 5.41E-03 | L114: 8.50E+13 | M114: =L114*10000 -> 8.50E+17 | N114: 7.58E+03 | O114: 2.89E+02 | P114: =P113+(K114-K113)*(O114*M114) -> 1.99E+17 | Q114: =Q113+(K114-K113)*(M114) -> 4.10E+15
A115: 5.84E-07 | B115: 5.64E+13 | C115: =B115*10000 -> 5.64E+17 | D115: 7.58E-01 | E115: 2.59E+00 | F115: =F114+(A115-A114)*(E115*C115) -> 1.02E+12 | G115: =G114+(A115-A114)*(C115) -> 3.53E+11 | K115: 5.84E-03 | L115: 8.07E+13 | M115: =L115*10000 -> 8.07E+17 | N115: 7.88E+03 | O115: 3.41E+02 | P115: =P114+(K115-K114)*(O115*M115) -> 3.18E+17 | Q115: =Q114+(K115-K114)*(M115) -> 4.45E+15
A116: 6.31E-07 | B116: 5.69E+13 | C116: =B116*10000 -> 5.69E+17 | D116: 7.88E-01 | E116: 2.59E+00 | F116: =F115+(A116-A115)*(E116*C116) -> 1.09E+12 | G116: =G115+(A116-A115)*(C116) -> 3.79E+11 | K116: 6.31E-03 | L116: 6.72E+13 | M116: =L116*10000 -> 6.72E+17 | N116: 8.18E+03 | O116: 2.67E+02 | P116: =P115+(K116-K115)*(O116*M116) -> 4.01E+17 | Q116: =Q115+(K116-K115)*(M116) -> 4.76E+15
A117: 6.81E-07 | B117: 5.71E+13 | C117: =B117*10000 -> 5.71E+17 | D117: 8.18E-01 | E117: 2.58E+00 | F117: =F116+(A117-A116)*(E117*C117) -> 1.16E+12 | G117: =G116+(A117-A116)*(C117) -> 4.08E+11 | K117: 6.81E-03 | L117: 8.38E+13 | M117: =L117*10000 -> 8.38E+17 | N117: 8.48E+03 | O117: 1.83E+02 | P117: =P116+(K117-K116)*(O117*M117) -> 4.78E+17 | Q117: =Q116+(K117-K116)*(M117) -> 5.18E+15
A118: 7.36E-07 | B118: 5.48E+13 | C118: =B118*10000 -> 5.48E+17 | D118: 8.48E-01 | E118: 2.57E+00 | F118: =F117+(A118-A117)*(E118*C118) -> 1.24E+12 | G118: =G117+(A118-A117)*(C118) -> 4.38E+11 | K118: 7.36E-03 | L118: 8.06E+13 | M118: =L118*10000 -> 8.06E+17 | N118: 8.79E+03 | O118: 1.27E+02 | P118: =P117+(K118-K117)*(O118*M118) -> 5.34E+17 | Q118: =Q117+(K118-K117)*(M118) -> 5.62E+15
A119: 7.94E-07 | B119: 5.49E+13 | C119: =B119*10000 -> 5.49E+17 | D119: 8.79E-01 | E119: 2.56E+00 | F119: =F118+(A119-A118)*(E119*C119) -> 1.32E+12 | G119: =G118+(A119-A118)*(C119) -> 4.70E+11 | K119: 7.94E-03 | L119: 8.61E+13 | M119: =L119*10000 -> 8.61E+17 | N119: 9.09E+03 | O119: 9.28E+01 | P119: =P118+(K119-K118)*(O119*M119) -> 5.81E+17 | Q119: =Q118+(K119-K118)*(M119) -> 6.13E+15
A120: 8.58E-07 | B120: 5.45E+13 | C120: =B120*10000 -> 5.45E+17 | D120: 9.09E-01 | E120: 2.56E+00 | F120: =F119+(A120-A119)*(E120*C120) -> 1.41E+12 | G120: =G119+(A120-A119)*(C120) -> 5.05E+11 | K120: 8.58E-03 | L120: 7.75E+13 | M120: =L120*10000 -> 7.75E+17 | N120: 9.39E+03 | O120: 7.16E+01 | P120: =P119+(K120-K119)*(O120*M120) -> 6.16E+17 | Q120: =Q119+(K120-K119)*(M120) -> 6.62E+15
A121: 9.26E-07 | B121: 5.44E+13 | C121: =B121*10000 -> 5.44E+17 | D121: 9.39E-01 | E121: 2.55E+00 | F121: =F120+(A121-A120)*(E121*C121) -> 1.50E+12 | G121: =G120+(A121-A120)*(C121) -> 5.42E+11 | K121: 9.26E-03 | L121: 8.35E+13 | M121: =L121*10000 -> 8.35E+17 | N121: 9.70E+03 | O121: 5.74E+01 | P121: =P120+(K121-K120)*(O121*M121) -> 6.49E+17 | Q121: =Q120+(K121-K120)*(M121) -> 7.19E+15
D122: 0.969697 | E122: 2.545405 | K122: 1.00E-02 | L122: 8.64E+13 | M122: =L122*10000 -> 8.64E+17 | N122: 1.00E+04 | O122: 4.76E+01 | P122: =P121+(K122-K121)*(O122*M122) -> 6.79E+17 | Q122: =Q121+(K122-K121)*(M122) -> 7.83E+15
K123: 1.08E-02 | L123: 8.89E+13 | M123: =L123*10000 -> 8.89E+17 | N123: 1.21E+04 | O123: 2.09E+01 | P123: =P122+(K123-K122)*(O123*M123) -> 6.94E+17 | Q123: =Q122+(K123-K122)*(M123) -> 8.54E+15
K124: 1.17E-02 | L124: 8.69E+13 | M124: =L124*10000 -> 8.69E+17 | N124: 1.52E+04 | O124: 1.16E+01 | P124: =P123+(K124-K123)*(O124*M124) -> 7.03E+17 | Q124: =Q123+(K124-K123)*(M124) -> 9.29E+15
K125: 1.26E-02 | L125: 9.36E+13 | M125: =L125*10000 -> 9.36E+17 | N125: 1.82E+04 | O125: 8.03E+00 | P125: =P124+(K125-K124)*(O125*M125) -> 7.10E+17 | Q125: =Q124+(K125-K124)*(M125) -> 1.02E+16
K126: 1.36E-02 | L126: 9.36E+13 | M126: =L126*10000 -> 9.36E+17 | N126: 2.12E+04 | O126: 6.06E+00 | P126: =P125+(K126-K125)*(O126*M126) -> 7.15E+17 | Q126: =Q125+(K126-K125)*(M126) -> 1.11E+16
K127: 1.47E-02 | L127: 9.88E+13 | M127: =L127*10000 -> 9.88E+17 | N127: 2.42E+04 | O127: 4.77E+00 | P127: =P126+(K127-K126)*(O127*M127) -> 7.21E+17 | Q127: =Q126+(K127-K126)*(M127) -> 1.22E+16
K128: 1.58E-02 | L128: 9.18E+13 | M128: =L128*10000 -> 9.18E+17 | N128: 2.73E+04 | O128: 3.82E+00 | P128: =P127+(K128-K127)*(O128*M128) -> 7.25E+17 | Q128: =Q127+(K128-K127)*(M128) -> 1.32E+16
K129: 1.71E-02 | L129: 7.93E+13 | M129: =L129*10000 -> 7.93E+17 | N129: 3.03E+04 | O129: 3.07E+00 | P129: =P128+(K129-K128)*(O129*M129) -> 7.28E+17 | Q129: =Q128+(K129-K128)*(M129) -> 1.42E+16
K130: 1.85E-02 | L130: 7.52E+13 | M130: =L130*10000 -> 7.52E+17 | N130: 3.33E+04 | O130: 2.43E+00 | P130: =P129+(K130-K129)*(O130*M130) -> 7.30E+17 | Q130: =Q129+(K130-K129)*(M130) -> 1.53E+16
K131: 2.00E-02 | L131: 7.15E+13 | M131: =L131*10000 -> 7.15E+17 | N131: 3.64E+04 | O131: 1.86E+00 | P131: =P130+(K131-K130)*(O131*M131) -> 7.32E+17 | Q131: =Q130+(K131-K130)*(M131) -> 1.63E+16
K132: 2.15E-02 | L132: 7.92E+13 | M132: =L132*10000 -> 7.92E+17 | N132: 3.94E+04 | O132: 1.32E+00 | P132: =P131+(K132-K131)*(O132*M132) -> 7.34E+17 | Q132: =Q131+(K132-K131)*(M132) -> 1.76E+16
K133: 2.33E-02 | L133: 9.09E+13 | M133: =L133*10000 -> 9.09E+17 | N133: 4.24E+04 | O133: 7.86E-01 | P133: =P132+(K133-K132)*(O133*M133) -> 7.35E+17 | Q133: =Q132+(K133-K132)*(M133) -> 1.91E+16
K134: 2.51E-02 | L134: 8.71E+13 | M134: =L134*10000 -> 8.71E+17 | N134: 4.55E+04 | O134: 2.61E-01 | P134: =P133+(K134-K133)*(O134*M134) -> 7.35E+17 | Q134: =Q133+(K134-K133)*(M134) -> 2.08E+16
K135: 2.71E-02 | L135: 1.06E+14 | M135: =L135*10000 -> 1.06E+18 | N135: 4.85E+04 | O135: 5.44E-02 | P135: =P134+(K135-K134)*(O135*M135) -> 7.36E+17 | Q135: =Q134+(K135-K134)*(M135) -> 2.29E+16
K136: 2.93E-02 | L136: 1.31E+14 | M136: =L136*10000 -> 1.31E+18 | N136: 5.15E+04 | O136: 4.14E+01 | P136: =P135+(K136-K135)*(O136*M136) -> 8.53E+17 | Q136: =Q135+(K136-K135)*(M136) -> 2.57E+16
K137: 3.16E-02 | L137: 1.48E+14 | M137: =L137*10000 -> 1.48E+18 | N137: 5.45E+04 | O137: 2.21E+01 | P137: =P136+(K137-K136)*(O137*M137) -> 9.29E+17 | Q137: =Q136+(K137-K136)*(M137) -> 2.92E+16
K138: 3.41E-02 | L138: 8.17E+13 | M138: =L138*10000 -> 8.17E+17 | N138: 5.76E+04 | O138: 5.94E+00 | P138: =P137+(K138-K137)*(O138*M138) -> 9.41E+17 | Q138: =Q137+(K138-K137)*(M138) -> 3.12E+16
K139: 3.69E-02 | L139: 4.50E+13 | M139: =L139*10000 -> 4.50E+17 | N139: 6.06E+04 | O139: 2.90E+00 | P139: =P138+(K139-K138)*(O139*M139) -> 9.45E+17 | Q139: =Q138+(K139-K138)*(M139) -> 3.25E+16
K140: 3.98E-02 | L140: 5.48E+13 | M140: =L140*10000 -> 5.48E+17 | N140: 6.36E+04 | O140: 1.47E+00 | P140: =P139+(K140-K139)*(O140*M140) -> 9.47E+17 | Q140: =Q139+(K140-K139)*(M140) -> 3.41E+16
K141: 4.30E-02 | L141: 7.88E+13 | M141: =L141*10000 -> 7.88E+17 | N141: 6.67E+04 | O141: 4.15E-01 | P141: =P140+(K141-K140)*(O141*M141) -> 9.48E+17 | Q141: =Q140+(K141-K140)*(M141) -> 3.66E+16
K142: 4.64E-02 | L142: 9.00E+13 | M142: =L142*10000 -> 9.00E+17 | N142: 6.97E+04 | O142: 6.47E-01 | P142: =P141+(K142-K141)*(O142*M142) -> 9.50E+17 | Q142: =Q141+(K142-K141)*(M142) -> 3.97E+16
K143: 5.01E-02 | L143: 1.06E+14 | M143: =L143*10000 -> 1.06E+18 | N143: 7.27E+04 | O143: 2.97E+01 | P143: =P142+(K143-K142)*(O143*M143) -> 1.07E+18 | Q143: =Q142+(K143-K142)*(M143) -> 4.36E+16
K144: 5.41E-02 | L144: 9.62E+13 | M144: =L144*10000 -> 9.62E+17 | N144: 7.58E+04 | O144: 6.88E+00 | P144: =P143+(K144-K143)*(O144*M144) -> 1.09E+18 | Q144: =Q143+(K144-K143)*(M144) -> 4.74E+16
K145: 5.84E-02 | L145: 1.05E+14 | M145: =L145*10000 -> 1.05E+18 | N145: 7.88E+04 | O145: 3.58E+00 | P145: =P144+(K145-K144)*(O145*M145) -> 1.11E+18 | Q145: =Q144+(K145-K144)*(M145) -> 5.20E+16
K146: 6.31E-02 | L146: 1.21E+14 | M146: =L146*10000 -> 1.21E+18 | N146: 8.18E+04 | O146: 2.40E+00 | P146: =P145+(K146-K145)*(O146*M146) -> 1.12E+18 | Q146: =Q145+(K146-K145)*(M146) -> 5.76E+16
K147: 6.81E-02 | L147: 1.39E+14 | M147: =L147*10000 -> 1.39E+18 | N147: 8.48E+04 | O147: 1.74E+00 | P147: =P146+(K147-K146)*(O147*M147) -> 1.14E+18 | Q147: =Q146+(K147-K146)*(M147) -> 6.46E+16
K148: 7.36E-02 | L148: 1.72E+14 | M148: =L148*10000 -> 1.72E+18 | N148: 8.79E+04 | O148: 1.27E+00 | P148: =P147+(K148-K147)*(O148*M148) -> 1.15E+18 | Q148: =Q147+(K148-K147)*(M148) -> 7.40E+16
K149: 7.94E-02 | L149: 1.68E+14 | M149: =L149*10000 -> 1.68E+18 | N149: 9.09E+04 | O149: 8.80E-01 | P149: =P148+(K149-K148)*(O149*M149) -> 1.16E+18 | Q149: =Q148+(K149-K148)*(M149) -> 8.38E+16
K150: 8.58E-02 | L150: 9.45E+13 | M150: =L150*10000 -> 9.45E+17 | N150: 9.39E+04 | O150: 5.03E-01 | P150: =P149+(K150-K149)*(O150*M150) -> 1.16E+18 | Q150: =Q149+(K150-K149)*(M150) -> 8.98E+16
K151: 9.26E-02 | L151: 5.68E+13 | M151: =L151*10000 -> 5.68E+17 | N151: 9.70E+04 | O151: 3.06E-02 | P151: =P150+(K151-K150)*(O151*M151) -> 1.16E+18 | Q151: =Q150+(K151-K150)*(M151) -> 9.37E+16
K152: 1.00E-01 | L152: 9.00E+13 | M152: =L152*10000 -> 9.00E+17 | N152: 1.00E+05 | O152: 3.64E+00 | P152: =P151+(K152-K151)*(O152*M152) -> 1.18E+18 | Q152: =Q151+(K152-K151)*(M152) -> 1.00E+17
K153: 1.08E-01 | L153: 1.27E+14 | M153: =L153*10000 -> 1.27E+18 | N153: 1.21E+05 | O153: 1.45E-01 | P153: =P152+(K153-K152)*(O153*M153) -> 1.18E+18 | Q153: =Q152+(K153-K152)*(M153) -> 1.11E+17
K154: 1.17E-01 | L154: 1.57E+14 | M154: =L154*10000 -> 1.57E+18 | N154: 1.52E+05 | O154: 1.23E+00 | P154: =P153+(K154-K153)*(O154*M154) -> 1.20E+18 | Q154: =Q153+(K154-K153)*(M154) -> 1.24E+17
K155: 1.26E-01 | L155: 1.33E+14 | M155: =L155*10000 -> 1.33E+18 | N155: 1.82E+05 | O155: 6.14E+00 | P155: =P154+(K155-K154)*(O155*M155) -> 1.28E+18 | Q155: =Q154+(K155-K154)*(M155) -> 1.36E+17
K156: 1.36E-01 | L156: 2.44E+14 | M156: =L156*10000 -> 2.44E+18 | N156: 2.12E+05 | O156: 8.08E+00 | P156: =P155+(K156-K155)*(O156*M156) -> 1.48E+18 | Q156: =Q155+(K156-K155)*(M156) -> 1.61E+17
K157: 1.47E-01 | L157: 1.36E+14 | M157: =L157*10000 -> 1.36E+18 | N157: 2.42E+05 | O157: 5.94E+00 | P157: =P156+(K157-K156)*(O157*M157) -> 1.56E+18 | Q157: =Q156+(K157-K156)*(M157) -> 1.76E+17
K158: 1.58E-01 | L158: 9.94E+13 | M158: =L158*10000 -> 9.94E+17 | N158: 2.73E+05 | O158: 4.73E+00 | P158: =P157+(K158-K157)*(O158*M158) -> 1.62E+18 | Q158: =Q157+(K158-K157)*(M158) -> 1.87E+17
K159: 1.71E-01 | L159: 1.15E+14 | M159: =L159*10000 -> 1.15E+18 | N159: 3.03E+05 | O159: 5.57E-01 | P159: =P158+(K159-K158)*(O159*M159) -> 1.63E+18 | Q159: =Q158+(K159-K158)*(M159) -> 2.02E+17
K160: 1.85E-01 | L160: 1.68E+14 | M160: =L160*10000 -> 1.68E+18 | N160: 3.33E+05 | O160: 7.87E+00 | P160: =P159+(K160-K159)*(O160*M160) -> 1.81E+18 | Q160: =Q159+(K160-K159)*(M160) -> 2.25E+17
K161: 2.00E-01 | L161: 1.88E+14 | M161: =L161*10000 -> 1.88E+18 | N161: 3.64E+05 | O161: 1.95E+00 | P161: =P160+(K161-K160)*(O161*M161) -> 1.86E+18 | Q161: =Q160+(K161-K160)*(M161) -> 2.53E+17
K162: 2.15E-01 | L162: 1.36E+14 | M162: =L162*10000 -> 1.36E+18 | N162: 3.94E+05 | O162: 7.25E-02 | P162: =P161+(K162-K161)*(O162*M162) -> 1.86E+18 | Q162: =Q161+(K162-K161)*(M162) -> 2.74E+17
K163: 2.33E-01 | L163: 1.62E+14 | M163: =L163*10000 -> 1.62E+18 | N163: 4.24E+05 | O163: 2.09E+00 | P163: =P162+(K163-K162)*(O163*M163) -> 1.92E+18 | Q163: =Q162+(K163-K162)*(M163) -> 3.02E+17
K164: 2.51E-01 | L164: 2.04E+14 | M164: =L164*10000 -> 2.04E+18 | N164: 4.55E+05 | O164: 3.81E+00 | P164: =P163+(K164-K163)*(O164*M164) -> 2.07E+18 | Q164: =Q163+(K164-K163)*(M164) -> 3.40E+17
K165: 2.71E-01 | L165: 2.54E+14 | M165: =L165*10000 -> 2.54E+18 | N165: 4.85E+05 | O165: 3.49E+00 | P165: =P164+(K165-K164)*(O165*M165) -> 2.24E+18 | Q165: =Q164+(K165-K164)*(M165) -> 3.91E+17
K166: 2.93E-01 | L166: 2.08E+14 | M166: =L166*10000 -> 2.08E+18 | N166: 5.15E+05 | O166: 3.86E+00 | P166: =P165+(K166-K165)*(O166*M166) -> 2.42E+18 | Q166: =Q165+(K166-K165)*(M166) -> 4.36E+17
K167: 3.16E-01 | L167: 1.98E+14 | M167: =L167*10000 -> 1.98E+18 | N167: 5.45E+05 | O167: 4.68E+00 | P167: =P166+(K167-K166)*(O167*M167) -> 2.63E+18 | Q167: =Q166+(K167-K166)*(M167) -> 4.82E+17
K168: 3.41E-01 | L168: 2.39E+14 | M168: =L168*10000 -> 2.39E+18 | N168: 5.76E+05 | O168: 4.90E+00 | P168: =P167+(K168-K167)*(O168*M168) -> 2.93E+18 | Q168: =Q167+(K168-K167)*(M168) -> 5.42E+17
K169: 3.69E-01 | L169: 2.54E+14 | M169: =L169*10000 -> 2.54E+18 | N169: 6.06E+05 | O169: 8.57E+00 | P169: =P168+(K169-K168)*(O169*M169) -> 3.52E+18 | Q169: =Q168+(K169-K168)*(M169) -> 6.11E+17
K170: 3.98E-01 | L170: 2.57E+14 | M170: =L170*10000 -> 2.57E+18 | N170: 6.36E+05 | O170: 6.01E+00 | P170: =P169+(K170-K169)*(O170*M170) -> 3.98E+18 | Q170: =Q169+(K170-K169)*(M170) -> 6.87E+17
K171: 4.30E-01 | L171: 2.21E+14 | M171: =L171*10000 -> 2.21E+18 | N171: 6.67E+05 | O171: 4.00E+00 | P171: =P170+(K171-K170)*(O171*M171) -> 4.26E+18 | Q171: =Q170+(K171-K170)*(M171) -> 7.57E+17
K172: 4.64E-01 | L172: 2.12E+14 | M172: =L172*10000 -> 2.12E+18 | N172: 6.97E+05 | O172: 4.06E+00 | P172: =P171+(K172-K171)*(O172*M172) -> 4.55E+18 | Q172: =Q171+(K172-K171)*(M172) -> 8.30E+17
K173: 5.01E-01 | L173: 2.71E+14 | M173: =L173*10000 -> 2.71E+18 | N173: 7.27E+05 | O173: 2.93E+00 | P173: =P172+(K173-K172)*(O173*M173) -> 4.84E+18 | Q173: =Q172+(K173-K172)*(M173) -> 9.30E+17
K174: 5.41E-01 | L174: 2.83E+14 | M174: =L174*10000 -> 2.83E+18 | N174: 7.58E+05 | O174: 4.64E+00 | P174: =P173+(K174-K173)*(O174*M174) -> 5.37E+18 | Q174: =Q173+(K174-K173)*(M174) -> 1.04E+18
K175: 5.84E-01 | L175: 2.93E+14 | M175: =L175*10000 -> 2.93E+18 | N175: 7.88E+05 | O175: 3.72E+00 | P175: =P174+(K175-K174)*(O175*M175) -> 5.84E+18 | Q175: =Q174+(K175-K174)*(M175) -> 1.17E+18
K176: 6.31E-01 | L176: 3.29E+14 | M176: =L176*10000 -> 3.29E+18 | N176: 8.18E+05 | O176: 1.85E+00 | P176: =P175+(K176-K175)*(O176*M176) -> 6.13E+18 | Q176: =Q175+(K176-K175)*(M176) -> 1.32E+18
K177: 6.81E-01 | L177: 3.15E+14 | M177: =L177*10000 -> 3.15E+18 | N177: 8.48E+05 | O177: 2.85E+00 | P177: =P176+(K177-K176)*(O177*M177) -> 6.58E+18 | Q177: =Q176+(K177-K176)*(M177) -> 1.48E+18
K178: 7.36E-01 | L178: 3.87E+14 | M178: =L178*10000 -> 3.87E+18 | N178: 8.79E+05 | O178: 3.62E+00 | P178: =P177+(K178-K177)*(O178*M178) -> 7.34E+18 | Q178: =Q177+(K178-K177)*(M178) -> 1.69E+18
K179: 7.94E-01 | L179: 3.56E+14 | M179: =L179*10000 -> 3.56E+18 | N179: 9.09E+05 | O179: 1.57E+00 | P179: =P178+(K179-K178)*(O179*M179) -> 7.67E+18 | Q179: =Q178+(K179-K178)*(M179) -> 1.90E+18
K180: 8.58E-01 | L180: 3.24E+14 | M180: =L180*10000 -> 3.24E+18 | N180: 9.39E+05 | O180: 6.99E+00 | P180: =P179+(K180-K179)*(O180*M180) -> 9.10E+18 | Q180: =Q179+(K180-K179)*(M180) -> 2.11E+18
K181: 9.26E-01 | L181: 3.25E+14 | M181: =L181*10000 -> 3.25E+18 | N181: 9.70E+05 | O181: 7.41E-01 | P181: =P180+(K181-K180)*(O181*M181) -> 9.27E+18 | Q181: =Q180+(K181-K180)*(M181) -> 2.33E+18
K182: 1.00E+00 | L182: 3.31E+14 | M182: =L182*10000 -> 3.31E+18 | N182: 1.00E+06 | O182: 3.13E+00 | P182: =P181+(K182-K181)*(O182*M182) -> 1.00E+19 | Q182: =Q181+(K182-K181)*(M182) -> 2.57E+18
K183: 1.08E+00 | L183: 3.49E+14 | M183: =L183*10000 -> 3.49E+18 | N183: 1.21E+06 | O183: 3.26E+00 | P183: =P182+(K183-K182)*(O183*M183) -> 1.09E+19 | Q183: =Q182+(K183-K182)*(M183) -> 2.85E+18
K184: 1.17E+00 | L184: 3.52E+14 | M184: =L184*10000 -> 3.52E+18 | N184: 1.52E+06 | O184: 5.47E+00 | P184: =P183+(K184-K183)*(O184*M184) -> 1.26E+19 | Q184: =Q183+(K184-K183)*(M184) -> 3.16E+18
K185: 1.26E+00 | L185: 3.40E+14 | M185: =L185*10000 -> 3.40E+18 | N185: 1.82E+06 | O185: 4.09E+00 | P185: =P184+(K185-K184)*(O185*M185) -> 1.39E+19 | Q185: =Q184+(K185-K184)*(M185) -> 3.47E+18
K186: 1.36E+00 | L186: 3.62E+14 | M186: =L186*10000 -> 3.62E+18 | N186: 2.12E+06 | O186: 2.90E+00 | P186: =P185+(K186-K185)*(O186*M186) -> 1.50E+19 | Q186: =Q185+(K186-K185)*(M186) -> 3.84E+18
K187: 1.47E+00 | L187: 3.73E+14 | M187: =L187*10000 -> 3.73E+18 | N187: 2.42E+06 | O187: 3.00E+00 | P187: =P186+(K187-K186)*(O187*M187) -> 1.62E+19 | Q187: =Q186+(K187-K186)*(M187) -> 4.24E+18
K188: 1.58E+00 | L188: 3.62E+14 | M188: =L188*10000 -> 3.62E+18 | N188: 2.73E+06 | O188: 3.67E+00 | P188: =P187+(K188-K187)*(O188*M188) -> 1.77E+19 | Q188: =Q187+(K188-K187)*(M188) -> 4.66E+18
K189: 1.71E+00 | L189: 3.65E+14 | M189: =L189*10000 -> 3.65E+18 | N189: 3.03E+06 | O189: 3.30E+00 | P189: =P188+(K189-K188)*(O189*M189) -> 1.92E+19 | Q189: =Q188+(K189-K188)*(M189) -> 5.13E+18
K190: 1.85E+00 | L190: 3.61E+14 | M190: =L190*10000 -> 3.61E+18 | N190: 3.33E+06 | O190: 3.24E+00 | P190: =P189+(K190-K189)*(O190*M190) -> 2.08E+19 | Q190: =Q189+(K190-K189)*(M190) -> 5.62E+18
K191: 2.00E+00 | L191: 3.41E+14 | M191: =L191*10000 -> 3.41E+18 | N191: 3.64E+06 | O191: 3.67E+00 | P191: =P190+(K191-K190)*(O191*M191) -> 2.27E+19 | Q191: =Q190+(K191-K190)*(M191) -> 6.12E+18
K192: 2.15E+00 | L192: 3.25E+14 | M192: =L192*10000 -> 3.25E+18 | N192: 3.94E+06 | O192: 3.73E+00 | P192: =P191+(K192-K191)*(O192*M192) -> 2.46E+19 | Q192: =Q191+(K192-K191)*(M192) -> 6.64E+18
K193: 2.33E+00 | L193: 3.25E+14 | M193: =L193*10000 -> 3.25E+18 | N193: 4.24E+06 | O193: 3.57E+00 | P193: =P192+(K193-K192)*(O193*M193) -> 2.66E+19 | Q193: =Q192+(K193-K192)*(M193) -> 7.20E+18
K194: 2.51E+00 | L194: 3.56E+14 | M194: =L194*10000 -> 3.56E+18 | N194: 4.55E+06 | O194: 3.82E+00 | P194: =P193+(K194-K193)*(O194*M194) -> 2.91E+19 | Q194: =Q193+(K194-K193)*(M194) -> 7.86E+18
K195: 2.71E+00 | L195: 2.96E+14 | M195: =L195*10000 -> 2.96E+18 | N195: 4.85E+06 | O195: 3.52E+00 | P195: =P194+(K195-K194)*(O195*M195) -> 3.12E+19 | Q195: =Q194+(K195-K194)*(M195) -> 8.45E+18
K196: 2.93E+00 | L196: 2.73E+14 | M196: =L196*10000 -> 2.73E+18 | N196: 5.15E+06 | O196: 3.64E+00 | P196: =P195+(K196-K195)*(O196*M196) -> 3.34E+19 | Q196: =Q195+(K196-K195)*(M196) -> 9.04E+18
K197: 3.16E+00 | L197: 2.54E+14 | M197: =L197*10000 -> 2.54E+18 | N197: 5.45E+06 | O197: 3.61E+00 | P197: =P196+(K197-K196)*(O197*M197) -> 3.55E+19 | Q197: =Q196+(K197-K196)*(M197) -> 9.64E+18
K198: 3.41E+00 | L198: 2.20E+14 | M198: =L198*10000 -> 2.20E+18 | N198: 5.76E+06 | O198: 3.61E+00 | P198: =P197+(K198-K197)*(O198*M198) -> 3.75E+19 | Q198: =Q197+(K198-K197)*(M198) -> 1.02E+19
K199: 3.69E+00 | L199: 1.87E+14 | M199: =L199*10000 -> 1.87E+18 | N199: 6.06E+06 | O199: 3.63E+00 | P199: =P198+(K199-K198)*(O199*M199) -> 3.94E+19 | Q199: =Q198+(K199-K198)*(M199) -> 1.07E+19
K200: 3.98E+00 | L200: 1.66E+14 | M200: =L200*10000 -> 1.66E+18 | N200: 6.36E+06 | O200: 3.52E+00 | P200: =P199+(K200-K199)*(O200*M200) -> 4.11E+19 | Q200: =Q199+(K200-K199)*(M200) -> 1.12E+19
... 42 more rows

Sheet Fe-54 s
A1: Energy (MeV) | B1: Flux (n/cm2-s) | C1: Flux (n/m2-s) | D1: E(JANIS) | E1: sigma (b) | F1: Int(s*F) | G1: Int(F) | I1: Value | K1: Energy (MeV) | L1: Flux (n/cm2-s) | M1: Flux (n/m2-s) | N1: E(JANIS) | O1: sigma (b) | P1: Int(s*F) | Q1: Int(F) | S1: Value
A2: 1.00E-10 | B2: 0.00E+00 | C2: =B2*10000 -> 0.00E+00 | I2: =F121/G121 -> 2.18E+00 | K2: 1.00E-06 | L2: 5.55E+13 | M2: =L2*10000 -> 5.55E+17 | S2: =P121/Q121 -> 9.01E+01
A3: 1.08E-10 | B3: 0.00E+00 | C3: =B3*10000 -> 0.00E+00 | D3: 1.21E-04 | E3: 5.27E+00 | F3: =F2+(A3-A2)*(E3*C3) -> 0.00E+00 | G3: =G2+(A3-A2)*(C3) -> 0.00E+00 | K3: 1.08E-06 | L3: 5.59E+13 | M3: =L3*10000 -> 5.59E+17 | N3: 1.21E+00 | O3: 2.18E+00 | P3: =P2+(K3-K2)*(O3*M3) -> 9.73E+10 | Q3: =Q2+(K3-K2)*(M3) -> 4.46E+10
A4: 1.17E-10 | B4: 0.00E+00 | C4: =B4*10000 -> 0.00E+00 | D4: 1.52E-04 | E4: 4.80E+00 | F4: =F3+(A4-A3)*(E4*C4) -> 0.00E+00 | G4: =G3+(A4-A3)*(C4) -> 0.00E+00 | K4: 1.17E-06 | L4: 5.42E+13 | M4: =L4*10000 -> 5.42E+17 | N4: 1.52E+00 | O4: 2.18E+00 | P4: =P3+(K4-K3)*(O4*M4) -> 1.99E+11 | Q4: =Q3+(K4-K3)*(M4) -> 9.13E+10
A5: 1.26E-10 | B5: 0.00E+00 | C5: =B5*10000 -> 0.00E+00 | D5: 1.82E-04 | E5: 4.46E+00 | F5: =F4+(A5-A4)*(E5*C5) -> 0.00E+00 | G5: =G4+(A5-A4)*(C5) -> 0.00E+00 | K5: 1.26E-06 | L5: 5.59E+13 | M5: =L5*10000 -> 5.59E+17 | N5: 1.82E+00 | O5: 2.18E+00 | P5: =P4+(K5-K4)*(O5*M5) -> 3.12E+11 | Q5: =Q4+(K5-K4)*(M5) -> 1.43E+11
A6: 1.36E-10 | B6: 0.00E+00 | C6: =B6*10000 -> 0.00E+00 | D6: 2.12E-04 | E6: 4.20E+00 | F6: =F5+(A6-A5)*(E6*C6) -> 0.00E+00 | G6: =G5+(A6-A5)*(C6) -> 0.00E+00 | K6: 1.36E-06 | L6: 5.68E+13 | M6: =L6*10000 -> 5.68E+17 | N6: 2.12E+00 | O6: 2.18E+00 | P6: =P5+(K6-K5)*(O6*M6) -> 4.37E+11 | Q6: =Q5+(K6-K5)*(M6) -> 2.00E+11
A7: 1.47E-10 | B7: 0.00E+00 | C7: =B7*10000 -> 0.00E+00 | D7: 2.42E-04 | E7: 4.00E+00 | F7: =F6+(A7-A6)*(E7*C7) -> 0.00E+00 | G7: =G6+(A7-A6)*(C7) -> 0.00E+00 | K7: 1.47E-06 | L7: 5.47E+13 | M7: =L7*10000 -> 5.47E+17 | N7: 2.42E+00 | O7: 2.18E+00 | P7: =P6+(K7-K6)*(O7*M7) -> 5.66E+11 | Q7: =Q6+(K7-K6)*(M7) -> 2.60E+11
A8: 1.58E-10 | B8: 0.00E+00 | C8: =B8*10000 -> 0.00E+00 | D8: 2.73E-04 | E8: 3.83E+00 | F8: =F7+(A8-A7)*(E8*C8) -> 0.00E+00 | G8: =G7+(A8-A7)*(C8) -> 0.00E+00 | K8: 1.58E-06 | L8: 5.38E+13 | M8: =L8*10000 -> 5.38E+17 | N8: 2.73E+00 | O8: 2.18E+00 | P8: =P7+(K8-K7)*(O8*M8) -> 7.03E+11 | Q8: =Q7+(K8-K7)*(M8) -> 3.23E+11
A9: 1.71E-10 | B9: 0.00E+00 | C9: =B9*10000 -> 0.00E+00 | D9: 3.03E-04 | E9: 3.69E+00 | F9: =F8+(A9-A8)*(E9*C9) -> 0.00E+00 | G9: =G8+(A9-A8)*(C9) -> 0.00E+00 | K9: 1.71E-06 | L9: 5.52E+13 | M9: =L9*10000 -> 5.52E+17 | N9: 3.03E+00 | O9: 2.18E+00 | P9: =P8+(K9-K8)*(O9*M9) -> 8.55E+11 | Q9: =Q8+(K9-K8)*(M9) -> 3.92E+11
A10: 1.85E-10 | B10: 0.00E+00 | C10: =B10*10000 -> 0.00E+00 | D10: 3.33E-04 | E10: 3.58E+00 | F10: =F9+(A10-A9)*(E10*C10) -> 0.00E+00 | G10: =G9+(A10-A9)*(C10) -> 0.00E+00 | K10: 1.85E-06 | L10: 5.47E+13 | M10: =L10*10000 -> 5.47E+17 | N10: 3.33E+00 | O10: 2.18E+00 | P10: =P9+(K10-K9)*(O10*M10) -> 1.02E+12 | Q10: =Q9+(K10-K9)*(M10) -> 4.67E+11
A11: 2.00E-10 | B11: 0.00E+00 | C11: =B11*10000 -> 0.00E+00 | D11: 3.64E-04 | E11: 3.48E+00 | F11: =F10+(A11-A10)*(E11*C11) -> 0.00E+00 | G11: =G10+(A11-A10)*(C11) -> 0.00E+00 | K11: 2.00E-06 | L11: 5.68E+13 | M11: =L11*10000 -> 5.68E+17 | N11: 3.64E+00 | O11: 2.18E+00 | P11: =P10+(K11-K10)*(O11*M11) -> 1.20E+12 | Q11: =Q10+(K11-K10)*(M11) -> 5.51E+11
A12: 2.15E-10 | B12: 0.00E+00 | C12: =B12*10000 -> 0.00E+00 | D12: 3.94E-04 | E12: 3.39E+00 | F12: =F11+(A12-A11)*(E12*C12) -> 0.00E+00 | G12: =G11+(A12-A11)*(C12) -> 0.00E+00 | K12: 2.15E-06 | L12: 5.57E+13 | M12: =L12*10000 -> 5.57E+17 | N12: 3.94E+00 | O12: 2.18E+00 | P12: =P11+(K12-K11)*(O12*M12) -> 1.39E+12 | Q12: =Q11+(K12-K11)*(M12) -> 6.39E+11
A13: 2.33E-10 | B13: 0.00E+00 | C13: =B13*10000 -> 0.00E+00 | D13: 4.24E-04 | E13: 3.31E+00 | F13: =F12+(A13-A12)*(E13*C13) -> 0.00E+00 | G13: =G12+(A13-A12)*(C13) -> 0.00E+00 | K13: 2.33E-06 | L13: 5.56E+13 | M13: =L13*10000 -> 5.56E+17 | N13: 4.24E+00 | O13: 2.18E+00 | P13: =P12+(K13-K12)*(O13*M13) -> 1.60E+12 | Q13: =Q12+(K13-K12)*(M13) -> 7.35E+11
A14: 2.51E-10 | B14: 0.00E+00 | C14: =B14*10000 -> 0.00E+00 | D14: 4.55E-04 | E14: 3.25E+00 | F14: =F13+(A14-A13)*(E14*C14) -> 0.00E+00 | G14: =G13+(A14-A13)*(C14) -> 0.00E+00 | K14: 2.51E-06 | L14: 5.65E+13 | M14: =L14*10000 -> 5.65E+17 | N14: 4.55E+00 | O14: 2.18E+00 | P14: =P13+(K14-K13)*(O14*M14) -> 1.83E+12 | Q14: =Q13+(K14-K13)*(M14) -> 8.40E+11
A15: 2.71E-10 | B15: 0.00E+00 | C15: =B15*10000 -> 0.00E+00 | D15: 4.85E-04 | E15: 3.19E+00 | F15: =F14+(A15-A14)*(E15*C15) -> 0.00E+00 | G15: =G14+(A15-A14)*(C15) -> 0.00E+00 | K15: 2.71E-06 | L15: 5.32E+13 | M15: =L15*10000 -> 5.32E+17 | N15: 4.85E+00 | O15: 2.18E+00 | P15: =P14+(K15-K14)*(O15*M15) -> 2.06E+12 | Q15: =Q14+(K15-K14)*(M15) -> 9.47E+11
A16: 2.93E-10 | B16: 3.02E+10 | C16: =B16*10000 -> 3.02E+14 | D16: 5.15E-04 | E16: 3.13E+00 | F16: =F15+(A16-A15)*(E16*C16) -> 2.05E+04 | G16: =G15+(A16-A15)*(C16) -> 6.54E+03 | K16: 2.93E-06 | L16: 5.44E+13 | M16: =L16*10000 -> 5.44E+17 | N16: 5.15E+00 | O16: 2.18E+00 | P16: =P15+(K16-K15)*(O16*M16) -> 2.32E+12 | Q16: =Q15+(K16-K15)*(M16) -> 1.06E+12
A17: 3.16E-10 | B17: 2.75E+10 | C17: =B17*10000 -> 2.75E+14 | D17: 5.45E-04 | E17: 3.09E+00 | F17: =F16+(A17-A16)*(E17*C17) -> 4.04E+04 | G17: =G16+(A17-A16)*(C17) -> 1.30E+04 | K17: 3.16E-06 | L17: 5.39E+13 | M17: =L17*10000 -> 5.39E+17 | N17: 5.45E+00 | O17: 2.18E+00 | P17: =P16+(K17-K16)*(O17*M17) -> 2.59E+12 | Q17: =Q16+(K17-K16)*(M17) -> 1.19E+12
A18: 3.41E-10 | B18: 0.00E+00 | C18: =B18*10000 -> 0.00E+00 | D18: 5.76E-04 | E18: 3.04E+00 | F18: =F17+(A18-A17)*(E18*C18) -> 4.04E+04 | G18: =G17+(A18-A17)*(C18) -> 1.30E+04 | K18: 3.41E-06 | L18: 5.38E+13 | M18: =L18*10000 -> 5.38E+17 | N18: 5.76E+00 | O18: 2.18E+00 | P18: =P17+(K18-K17)*(O18*M18) -> 2.89E+12 | Q18: =Q17+(K18-K17)*(M18) -> 1.33E+12
A19: 3.69E-10 | B19: 1.02E+10 | C19: =B19*10000 -> 1.02E+14 | D19: 6.06E-04 | E19: 3.00E+00 | F19: =F18+(A19-A18)*(E19*C19) -> 4.87E+04 | G19: =G18+(A19-A18)*(C19) -> 1.58E+04 | K19: 3.69E-06 | L19: 5.56E+13 | M19: =L19*10000 -> 5.56E+17 | N19: 6.06E+00 | O19: 2.18E+00 | P19: =P18+(K19-K18)*(O19*M19) -> 3.22E+12 | Q19: =Q18+(K19-K18)*(M19) -> 1.48E+12
A20: 3.98E-10 | B20: 0.00E+00 | C20: =B20*10000 -> 0.00E+00 | D20: 6.36E-04 | E20: 2.97E+00 | F20: =F19+(A20-A19)*(E20*C20) -> 4.87E+04 | G20: =G19+(A20-A19)*(C20) -> 1.58E+04 | K20: 3.98E-06 | L20: 5.65E+13 | M20: =L20*10000 -> 5.65E+17 | N20: 6.36E+00 | O20: 2.18E+00 | P20: =P19+(K20-K19)*(O20*M20) -> 3.58E+12 | Q20: =Q19+(K20-K19)*(M20) -> 1.64E+12
A21: 4.30E-10 | B21: 1.26E+10 | C21: =B21*10000 -> 1.26E+14 | D21: 6.67E-04 | E21: 2.93E+00 | F21: =F20+(A21-A20)*(E21*C21) -> 6.05E+04 | G21: =G20+(A21-A20)*(C21) -> 1.98E+04 | K21: 4.30E-06 | L21: 5.56E+13 | M21: =L21*10000 -> 5.56E+17 | N21: 6.67E+00 | O21: 2.18E+00 | P21: =P20+(K21-K20)*(O21*M21) -> 3.96E+12 | Q21: =Q20+(K21-K20)*(M21) -> 1.82E+12
A22: 4.64E-10 | B22: 7.95E+09 | C22: =B22*10000 -> 7.95E+13 | D22: 6.97E-04 | E22: 2.90E+00 | F22: =F21+(A22-A21)*(E22*C22) -> 6.84E+04 | G22: =G21+(A22-A21)*(C22) -> 2.25E+04 | K22: 4.64E-06 | L22: 5.38E+13 | M22: =L22*10000 -> 5.38E+17 | N22: 6.97E+00 | O22: 2.18E+00 | P22: =P21+(K22-K21)*(O22*M22) -> 4.37E+12 | Q22: =Q21+(K22-K21)*(M22) -> 2.00E+12
A23: 5.01E-10 | B23: 7.77E+09 | C23: =B23*10000 -> 7.77E+13 | D23: 7.27E-04 | E23: 2.88E+00 | F23: =F22+(A23-A22)*(E23*C23) -> 7.67E+04 | G23: =G22+(A23-A22)*(C23) -> 2.54E+04 | K23: 5.01E-06 | L23: 5.23E+13 | M23: =L23*10000 -> 5.23E+17 | N23: 7.27E+00 | O23: 2.18E+00 | P23: =P22+(K23-K22)*(O23*M23) -> 4.79E+12 | Q23: =Q22+(K23-K22)*(M23) -> 2.20E+12
